Workbook

Sheet Cat 1 Summary
A1: 1 | C1: Unique Identifier Range: | D1: =RIGHT(CELL("Address",'DY2-Category 1'!$A$7),4)&":"&RIGHT(CELL("address",'DY2-Category 1'!$A$1005),7) -> $A$7:$A$1005 | L1: ="'DY2-Category "&$A$1&"'!" -> 'DY2-Category 1'! | M1: ="'DY3-Category "&$A$1&"'!" -> 'DY3-Category 1'! | N1: ="'DY4-Category "&$A$1&"'!" -> 'DY4-Category 1'! | O1: ="'DY5-Category "&$A$1&"'!" -> 'DY5-Category 1'! | R1: QPI Worksheet: | S1: ="'DY3-5 QPI Summary'!" -> 'DY3-5 QPI Summary'! | T1: =CELL("Address",$T$11)&":"&CELL("address",$T$1843) -> $T$11:$T$1843 | Z1: Milestone Number Range
Z2: =RIGHT(CELL("Address",'DY2-Category 1'!$M$7),4)&":"&RIGHT(CELL("address",'DY2-Category 1'!$M$1005),7) -> $M$7:$M$1005 | AA2: =RIGHT(CELL("Address",'DY3-Category 1'!$M$7),4)&":"&RIGHT(CELL("address",'DY3-Category 1'!$M$1005),7) -> $M$7:$M$1005 | AB2: =RIGHT(CELL("Address",'DY4-Category 1'!$M$7),4)&":"&RIGHT(CELL("address",'DY4-Category 1'!$M$1005),7) -> $M$7:$M$1005 | AC2: =RIGHT(CELL("Address",'DY5-Category 1'!$M$7),4)&":"&RIGHT(CELL("address",'DY5-Category 1'!$M$1005),7) -> $M$7:$M$1005
L5: ="Category " & $A$1 -> Category 1
L6: Category: | M6: =$A$1 -> 1
L7: RHP: | M7: 4
L8: TPI:
L9: Project ID:
T10: Hide? | BB10: Copy of cells for autofit row height
A11: QPI Offset | L11: =IFERROR(INDEX(INDIRECT($M$1&"G5:G1003"),MATCH(RHP&"_"&$M$8,INDIRECT($M$1&"B5:B1003"),0)),"") ->  | T11: 0 | AN11: 1 | AO11: 2 | AP11: 3 | AQ11: 4 | AR11: 5 | AS11: 6 | AT11: 7 | AU11: 8 | AV11: 9 | AW11: 10 | AX11: 11 | AY11: 12 | AZ11: 13 | BB11: =L11 -> 
A12: =RIGHT(CELL("address",'DY3-5 QPI Summary'!$D$6),4) -> $D$6 | L12: =IFERROR(INDEX(INDIRECT($M$1&"I5:I1003"),MATCH(RHP&"_"&$M$9,INDIRECT($M$1&"A5:A1003"),0))&" - "&INDEX(INDIRECT($M$1&"J5:J1003"),MATCH(RHP&"_"&$M$9,INDIRECT($M$1&"A5:A1003"),0)),"") ->  | N12: =IFERROR(INDEX(INDIRECT($M$1&"K5:K1003"),MATCH(RHP&"_"&$M$9,INDIRECT($M$1&"A5:A1003"),0))&" - "&INDEX(INDIRECT($M$1&"L5:L1003"),MATCH(RHP&"_"&$M$9,INDIRECT($M$1&"A5:A1003"),0)),"") ->  | T12: 0 | AJ12: Milestone Column Offset: | AL12: =COLUMNS('DY2-Category 1'!$O$6:$CY$6) -> 89 | AM12: Metric Column Offset: | AN12: =COLUMNS('DY2-Category 1'!$O$6:$Q$6) -> 3 | AO12: =$AL$12*(AO$11-1)+$AN$12 -> 92 | AP12: =$AL$12*(AP$11-1)+$AN$12 -> 181 | AQ12: 270 | AR12: 359 | AS12: 448 | AT12: 537 | AU12: 626 | AV12: 715 | AW12: 804 | AX12: 893 | AY12: 982 | AZ12: 1071 | BB12: =L12 ->  | BC12: =N12 -> 
G13: QPI: Cols per DY ---> | H13: =COUNTA('DY3-5 QPI Summary'!$I$5:$N$5) -> 6 | I13: =COUNTA('DY3-5 QPI Summary'!$O$5:$T$5) -> 6 | L13: Year 2 | M13: Year 3 | N13: Year 4 | O13: Year 5
F14: QPI Row | G14: Text Helper | H14: QPI Column 1 | I14: QPI Column 2 | J14: QPI Column 3 | L14: 10/1/2012 - 9/30/2013 | M14: 10/1/2013 - 9/30/2014 | N14: 10/1/2014 - 9/30/2015 | O14: 10/1/2015 - 9/30/2016
F15: =IFERROR(MATCH(RHP&"_"&$M$9,INDIRECT(S$1&"$C$6:$C$1494"),0)-1,"") ->  | G15: ="Medicaid (Goal)" -> Medicaid (Goal) | H15: 5 | I15: =H15+H$13 -> 11 | J15: =I15+I$13 -> 17 | M15: ="" & RIGHT(LEFT(M$1,4),3) & " " & $G15 & ": " & IFERROR(TEXT(OFFSET(INDIRECT($S$1&$A$12),$F15,H15),"0.00%"),"") & "" -> DY3 Medicaid (Goal): | N15: ="" & RIGHT(LEFT(N$1,4),3) & " " & $G15 & ": " & IFERROR(TEXT(OFFSET(INDIRECT($S$1&$A$12),$F15,I15),"0.00%"),"") & "" -> DY4 Medicaid (Goal): | O15: ="" & RIGHT(LEFT(O$1,4),3) & " " & $G15 & ": " & IFERROR(TEXT(OFFSET(INDIRECT($S$1&$A$12),$F15,J15),"0.00%"),"") & "" -> DY5 Medicaid (Goal): | T15: =IF($M$9="",1,0) -> 1 | BB15: 0
F16: =F15 ->  | G16: Low Income (Goal) | H16: 7 | I16: =H16+H$13 -> 13 | J16: =I16+I$13 -> 19 | M16: ="" & RIGHT(LEFT(M$1,4),3) & " " & $G16 & ": " & IFERROR(TEXT(OFFSET(INDIRECT($S$1&$A$12),$F16,H16),"0.00%"),"") & "" -> DY3 Low Income (Goal): | N16: DY4 Low Income (Goal): | O16: DY5 Low Income (Goal): | T16: =IF($M$9="",1,0) -> 1
F17: =F16 ->  | G17: Medicaid Low Income (Goal) | H17: 9 | I17: 15 | J17: 21 | M17: DY3 Medicaid Low Income (Goal): | N17: DY4 Medicaid Low Income (Goal): | O17: DY5 Medicaid Low Income (Goal): | T17: 1
A18: DY2-Row | B18: DY3-Row | C18: DY4-Row | D18: DY5-Row | E18: DY2-5 Col | G18: Medicaid (Actual) | H18: 6 | I18: 12 | J18: 18 | M18: DY3 Medicaid (Actual): | N18: DY4 Medicaid (Actual): | O18: DY5 Medicaid (Actual): | T18: 1
A19: DY2-5 Offset | G19: Low Income (Actual) | H19: 8 | I19: 14 | J19: 20 | M19: DY3 Low Income (Actual): | N19: DY4 Low Income (Actual): | O19: DY5 Low Income (Actual): | T19: 1 | U19: Shading? | Z19: Number of Milestones | AE19: Hide Table | AJ19: Number of Metrics | BB19: 0
A20: =RIGHT(CELL("address",'DY2-Category 1'!$O$7),4) -> $O$7 | D20: =COLUMNS('DY2-Category 1'!$O$6:$CX$6) -> 88 | E20: =COLUMNS('DY2-Category 1'!$S$6:$AD$6) -> 12 | G20: Medicaid Low Income (Actual) | H20: 10 | I20: 16 | J20: 22 | M20: DY3 Medicaid Low Income (Actual): | N20: DY4 Medicaid Low Income (Actual): | O20: DY5 Medicaid Low Income (Actual): | R20: Milestone | S20: Metric | T20: 1 | U20: DY2 | V20: DY3 | W20: DY4 | X20: DY5 | Z20: DY2 | AA20: DY3 | AB20: DY4 | AC20: DY5 | AD20: Max | AE20: Milestone | AF20: Metric | AG20: Hide Milestone? | AH20: Hide Metric? | AI20: Final Hide? | AJ20: Milestone | AK20: DY2 | AL20: DY3 | AM20: DY4 | AN20: DY5 | AO20: MAX
A21: =IFERROR(MATCH(RHP&"_"&$M$9,INDIRECT(L$1&$D$1),0)-1,"N/A") -> N/A | B21: =MATCH(RHP&"_"&$M$9,INDIRECT(M$1&$D$1),0)-1 ->  | C21: =MATCH(RHP&"_"&$M$9,INDIRECT(N$1&$D$1),0)-1 ->  | D21: =MATCH(RHP&"_"&$M$9,INDIRECT(O$1&$D$1),0)-1 ->  | E21: 0 | L21: ="Milestone #"&$R21&": "&IFERROR(OFFSET(INDIRECT(L$1&$A$20),A21,$E21),"") -> Milestone #1: | M21: ="Milestone #"&$R21&": "&IFERROR(OFFSET(INDIRECT(M$1&$A$20),B21,$E21),"") -> Milestone #1: | N21: ="Milestone #"&$R21&": "&IFERROR(OFFSET(INDIRECT(N$1&$A$20),C21,$E21),"") -> Milestone #1: | O21: ="Milestone #"&$R21&": "&IFERROR(OFFSET(INDIRECT(O$1&$A$20),D21,$E21),"") -> Milestone #1: | R21: 1 | S21: 0 | T21: =IF($M$9="",1,SUMPRODUCT(($R21=$AE$21:$AE$124)*($S21=$AF$21:$AF$124)*($AI$21:$AI$124))) -> 1 | U21: =IF($R21>Z$21,1,IF($S21>INDEX(AK$21:AK$33,MATCH($R21,$AJ$21:$AJ$33,0)),1,0)) -> 1 | V21: =IF($R21>AA$21,1,IF($S21>INDEX(AL$21:AL$33,MATCH($R21,$AJ$21:$AJ$33,0)),1,0)) -> 1 | W21: =IF($R21>AB$21,1,IF($S21>INDEX(AM$21:AM$33,MATCH($R21,$AJ$21:$AJ$33,0)),1,0)) -> 1 | X21: =IF($R21>AC$21,1,IF($S21>INDEX(AN$21:AN$33,MATCH($R21,$AJ$21:$AJ$33,0)),1,0)) -> 1 | Z21: =IFERROR(INDEX(INDIRECT(L$1&Z$2),A$21+1),0) -> 0 | AA21: =IFERROR(INDEX(INDIRECT(M$1&AA$2),B$21+1),0) -> 0 | AB21: =IFERROR(INDEX(INDIRECT(N$1&AB$2),C$21+1),0) -> 0 | AC21: =IFERROR(INDEX(INDIRECT(O$1&AC$2),D$21+1),0) -> 0 | AD21: =MAX(Z21:AC21) -> 0 | AE21: 1 | AF21: 0 | AG21: =IF($AE21>$AD$21,1,0) -> 1 | AH21: =IF($AF21=0,0,IF($AF21>INDEX($AO$21:$AO$33,MATCH($AE21,$AJ$21:$AJ$33,0)),1,0)) -> 0 | AI21: =MAX(AG21:AH21) -> 1 | AJ21: 1 | AK21: =IFERROR(OFFSET(INDIRECT(L$1&$A$20),A$21,HLOOKUP($AJ21,$AN$11:$AZ$12,2)),0) -> 0 | AL21: =IFERROR(OFFSET(INDIRECT(M$1&$A$20),B$21,HLOOKUP($AJ21,$AN$11:$AZ$12,2)),0) -> 0 | AM21: =IFERROR(OFFSET(INDIRECT(N$1&$A$20),C$21,HLOOKUP($AJ21,$AN$11:$AZ$12,2)),0) -> 0 | AN21: =IFERROR(OFFSET(INDIRECT(O$1&$A$20),D$21,HLOOKUP($AJ21,$AN$11:$AZ$12,2)),0) -> 0 | AO21: =MAX(AK21:AN21) -> 0 | BD21: =L21 -> Milestone #1: | BE21: =M21 -> Milestone #1: | BF21: Milestone #1: | BG21: Milestone #1:
A22: =A21 -> N/A | B22: =B21 ->  | C22: =C21 ->  | D22: =D21 ->  | E22: =E21+1 -> 1 | L22: =IFERROR(OFFSET(INDIRECT(L$1&$A$20),A22,$E22),"") ->  | R22: 1 | S22: 0 | T22: 1 | U22: =IF($R22>Z$21,1,IF($S22>INDEX(AK$21:AK$33,MATCH($R22,$AJ$21:$AJ$33,0)),1,0)) -> 1 | V22: 1 | W22: 1 | X22: 1 | AE22: =IF(AF22=0,AE21+1,AE21) -> 1 | AF22: 1 | AG22: 1 | AH22: =IF($AF22=0,0,IF($AF22>INDEX($AO$21:$AO$33,MATCH($AE22,$AJ$21:$AJ$33,0)),1,0)) -> 1 | AI22: =MAX(AG22:AH22) -> 1 | AJ22: =AJ21+1 -> 2 | AK22: 0 | AL22: 0 | AM22: 0 | AN22: 0 | AO22: =MAX(AK22:AN22) -> 0 | BD22: =L22 ->  | BE22: =M22 ->  | BF22: =N22 ->  | BG22: =O22 -> 
A23: =A22 -> N/A | B23: =B22 ->  | C23: =C22 ->  | D23: =D22 ->  | E23: =E21+2 -> 2 | R23: 1 | S23: 0 | T23: 1 | U23: 1 | V23: 1 | W23: 1 | X23: 1 | AE23: =IF(AF23=0,AE22+1,AE22) -> 1 | AF23: 2 | AG23: 1 | AH23: =IF($AF23=0,0,IF($AF23>INDEX($AO$21:$AO$33,MATCH($AE23,$AJ$21:$AJ$33,0)),1,0)) -> 1 | AI23: 1 | AJ23: =AJ22+1 -> 3 | AK23: 0 | AL23: 0 | AM23: 0 | AN23: 0 | AO23: 0
A24: N/A | R24: 1 | S24: 0 | T24: 1 | U24: 1 | V24: 1 | W24: 1 | X24: 1 | AE24: 1 | AF24: 3 | AG24: 1 | AH24: 1 | AI24: 1 | AJ24: 4 | AK24: 0 | AL24: 0 | AM24: 0 | AN24: 0 | AO24: 0 | BD24: 0 | BE24: 0 | BF24: 0 | BG24: 0
A25: N/A | E25: =E19+4 -> 4 | L25: ="Metric #"&$S25&": "&IFERROR(OFFSET(INDIRECT(L$1&$A$20),A25,$E25),"") -> Metric #1: | M25: ="Metric #"&$S25&": "&IFERROR(OFFSET(INDIRECT(M$1&$A$20),B25,$E25),"") -> Metric #1: | N25: ="Metric #"&$S25&": "&IFERROR(OFFSET(INDIRECT(N$1&$A$20),C25,$E25),"") -> Metric #1: | O25: ="Metric #"&$S25&": "&IFERROR(OFFSET(INDIRECT(O$1&$A$20),D25,$E25),"") -> Metric #1: | R25: 1 | S25: 1 | T25: 1 | U25: 1 | V25: 1 | W25: 1 | X25: 1 | AE25: 1 | AF25: 4 | AG25: 1 | AH25: 1 | AI25: 1 | AJ25: 5 | AK25: 0 | AL25: 0 | AM25: 0 | AN25: 0 | AO25: 0 | BD25: Metric #1: | BE25: Metric #1: | BF25: Metric #1: | BG25: Metric #1:
A26: N/A | E26: =E21+5 -> 5 | L26: =IFERROR(OFFSET(INDIRECT(L$1&$A$20),A26,$E26),"") ->  | R26: 1 | S26: 1 | T26: 1 | U26: 1 | V26: 1 | W26: 1 | X26: 1 | AE26: 1 | AF26: 5 | AG26: 1 | AH26: 1 | AI26: 1 | AJ26: 6 | AK26: 0 | AL26: 0 | AM26: 0 | AN26: 0 | AO26: 0
A27: N/A | E27: =E21+6 -> 6 | R27: 1 | S27: 1 | T27: 1 | U27: 1 | V27: 1 | W27: 1 | X27: 1 | AE27: 1 | AF27: 6 | AG27: 1 | AH27: 1 | AI27: 1 | AJ27: 7 | AK27: 0 | AL27: 0 | AM27: 0 | AN27: 0 | AO27: 0
A28: N/A | R28: 1 | S28: 1 | T28: 1 | U28: 1 | V28: 1 | W28: 1 | X28: 1 | AE28: 1 | AF28: 7 | AG28: 1 | AH28: 1 | AI28: 1 | AJ28: 8 | AK28: 0 | AL28: 0 | AM28: 0 | AN28: 0 | AO28: 0 | BD28: 0 | BE28: 0 | BF28: 0 | BG28: 0
A29: N/A | L29: Baseline/Goal: | M29: Baseline/Goal: | N29: Baseline/Goal: | O29: Baseline/Goal: | R29: 1 | S29: 1 | T29: 1 | U29: 1 | V29: 1 | W29: 1 | X29: 1 | AE29: 2 | AF29: =AF21 -> 0 | AG29: 1 | AH29: 0 | AI29: 1 | AJ29: 9 | AK29: 0 | AL29: 0 | AM29: 0 | AN29: 0 | AO29: 0 | BD29: Baseline/Goal: | BE29: Baseline/Goal: | BF29: Baseline/Goal: | BG29: Baseline/Goal:
A30: N/A | E30: =E21+7 -> 7 | L30: =IFERROR(OFFSET(INDIRECT(L$1&$A$20),A30,$E30),"") ->  | M30: =IFERROR(OFFSET(INDIRECT(M$1&$A$20),B30,$E30),"") ->  | N30: =IFERROR(OFFSET(INDIRECT(N$1&$A$20),C30,$E30),"") ->  | O30: =IFERROR(OFFSET(INDIRECT(O$1&$A$20),D30,$E30),"") ->  | R30: 1 | S30: 1 | T30: 1 | U30: 1 | V30: 1 | W30: 1 | X30: 1 | AE30: 2 | AF30: =AF22 -> 1 | AG30: 1 | AH30: 1 | AI30: 1 | AJ30: 10 | AK30: 0 | AL30: 0 | AM30: 0 | AN30: 0 | AO30: 0
A31: N/A | R31: 1 | S31: 1 | T31: 1 | U31: 1 | V31: 1 | W31: 1 | X31: 1 | AE31: 2 | AF31: 2 | AG31: 1 | AH31: 1 | AI31: 1 | AJ31: 11 | AK31: 0 | AL31: 0 | AM31: 0 | AN31: 0 | AO31: 0 | BD31: 0 | BE31: 0 | BF31: 0 | BG31: 0
A32: N/A | L32: Data Source: | M32: Data Source: | N32: Data Source: | O32: Data Source: | R32: 1 | S32: 1 | T32: 1 | U32: 1 | V32: 1 | W32: 1 | X32: 1 | AE32: 2 | AF32: 3 | AG32: 1 | AH32: 1 | AI32: 1 | AJ32: 12 | AK32: 0 | AL32: 0 | AM32: 0 | AN32: 0 | AO32: 0 | BD32: Data Source: | BE32: Data Source: | BF32: Data Source: | BG32: Data Source:
A33: N/A | E33: =E21+14 -> 14 | L33: =IFERROR(OFFSET(INDIRECT(L$1&$A$20),A33,$E33),"") ->  | R33: 1 | S33: 1 | T33: 1 | U33: 1 | V33: 1 | W33: 1 | X33: 1 | AE33: 2 | AF33: 4 | AG33: 1 | AH33: 1 | AI33: 1 | AJ33: =AJ32+1 -> 13 | AK33: 0 | AL33: 0 | AM33: 0 | AN33: 0 | AO33: 0
A34: =A33 -> N/A | C34: =C33 ->  | D34: =D33 ->  | E34: =E21+15 -> 15 | R34: 1 | S34: 1 | T34: 1 | U34: 1 | V34: 1 | W34: 1 | X34: 1 | AE34: 2 | AF34: 5 | AG34: 1 | AH34: 1 | AI34: 1
A35: N/A | R35: 1 | S35: 1 | T35: 1 | U35: 1 | V35: 1 | W35: 1 | X35: 1 | AE35: 2 | AF35: 6 | AG35: 1 | AH35: 1 | AI35: 1 | BD35: 0 | BE35: 0 | BF35: 0 | BG35: 0
A36: N/A | E36: =E21+8 -> 8 | L36: ="Metric Type: "&IFERROR(OFFSET(INDIRECT(L$1&$A$20),A36,$E36),"") -> Metric Type: | M36: ="Metric Type: "&IFERROR(OFFSET(INDIRECT(M$1&$A$20),B36,$E36),"") -> Metric Type: | N36: ="Metric Type: "&IFERROR(OFFSET(INDIRECT(N$1&$A$20),C36,$E36),"") -> Metric Type: | O36: ="Metric Type: "&IFERROR(OFFSET(INDIRECT(O$1&$A$20),D36,$E36),"") -> Metric Type: | R36: 1 | S36: 1 | T36: 1 | U36: 1 | V36: 1 | W36: 1 | X36: 1 | AE36: 2 | AF36: 7 | AG36: 1 | AH36: 1 | AI36: 1 | BD36: Metric Type: | BE36: Metric Type: | BF36: Metric Type: | BG36: Metric Type:
A37: N/A | E37: =E21+9 -> 9 | L37: ="Numeric Goal: "&IFERROR(OFFSET(INDIRECT(L$1&$A$20),A37,$E37),"") -> Numeric Goal: | M37: ="Numeric Goal: "&IFERROR(OFFSET(INDIRECT(M$1&$A$20),B37,$E37),"") -> Numeric Goal: | N37: ="Numeric Goal: "&IFERROR(OFFSET(INDIRECT(N$1&$A$20),C37,$E37),"") -> Numeric Goal: | O37: ="Numeric Goal: "&IFERROR(OFFSET(INDIRECT(O$1&$A$20),D37,$E37),"") -> Numeric Goal: | R37: 1 | S37: 1 | T37: 1 | U37: 1 | V37: 1 | W37: 1 | X37: 1 | AE37: 3 | AF37: 0 | AG37: 1 | AH37: 0 | AI37: 1 | BD37: Numeric Goal: | BE37: Numeric Goal: | BF37: Numeric Goal: | BG37: Numeric Goal:
A38: N/A | E38: =E21+10 -> 10 | L38: ="Numerator: "&IFERROR(OFFSET(INDIRECT(L$1&$A$20),A38,$E38),"") -> Numerator: | M38: ="Numerator: "&IFERROR(OFFSET(INDIRECT(M$1&$A$20),B38,$E38),"") -> Numerator: | N38: ="Numerator: "&IFERROR(OFFSET(INDIRECT(N$1&$A$20),C38,$E38),"") -> Numerator: | O38: ="Numerator: "&IFERROR(OFFSET(INDIRECT(O$1&$A$20),D38,$E38),"") -> Numerator: | R38: 1 | S38: 1 | T38: 1 | U38: 1 | V38: 1 | W38: 1 | X38: 1 | AE38: 3 | AF38: 1 | AG38: 1 | AH38: 1 | AI38: 1 | BD38: Numerator: | BE38: Numerator: | BF38: Numerator: | BG38: Numerator:
A39: N/A | E39: =E21+11 -> 11 | L39: ="Denominator: "&IFERROR(OFFSET(INDIRECT(L$1&$A$20),A39,$E39),"") -> Denominator: | M39: ="Denominator: "&IFERROR(OFFSET(INDIRECT(M$1&$A$20),B39,$E39),"") -> Denominator: | N39: ="Denominator: "&IFERROR(OFFSET(INDIRECT(N$1&$A$20),C39,$E39),"") -> Denominator: | O39: ="Denominator: "&IFERROR(OFFSET(INDIRECT(O$1&$A$20),D39,$E39),"") -> Denominator: | R39: 1 | S39: 1 | T39: 1 | U39: 1 | V39: 1 | W39: 1 | X39: 1 | AE39: 3 | AF39: 2 | AG39: 1 | AH39: 1 | AI39: 1 | BD39: Denominator: | BE39: Denominator: | BF39: Denominator: | BG39: Denominator:
A40: N/A | E40: =E21+13 -> 13 | M40: ="QPI Metric: "&IFERROR(OFFSET(INDIRECT(M$1&$A$20),B40,$E40),"") -> QPI Metric: | N40: ="QPI Metric: "&IFERROR(OFFSET(INDIRECT(N$1&$A$20),C40,$E40),"") -> QPI Metric: | O40: ="QPI Metric: "&IFERROR(OFFSET(INDIRECT(O$1&$A$20),D40,$E40),"") -> QPI Metric: | R40: 1 | S40: 1 | T40: 1 | U40: 1 | V40: 1 | W40: 1 | X40: 1 | AE40: 3 | AF40: 3 | AG40: 1 | AH40: 1 | AI40: 1 | BD40: 0 | BE40: QPI Metric: | BF40: QPI Metric: | BG40: QPI Metric:
A41: N/A | H41: 23 | M41: ="QPI Type: " & IFERROR(OFFSET(INDIRECT($S$1&$A$12),$F41,$H41),"") -> QPI Type: | N41: ="QPI Type: " & IFERROR(OFFSET(INDIRECT($S$1&$A$12),$F41,$H41),"") -> QPI Type: | O41: ="QPI Type: " & IFERROR(OFFSET(INDIRECT($S$1&$A$12),$F41,$H41),"") -> QPI Type: | R41: 1 | S41: 1 | T41: 1 | U41: 1 | V41: 1 | W41: 1 | X41: 1 | AE41: 3 | AF41: 4 | AG41: 1 | AH41: 1 | AI41: 1 | BD41: 0 | BE41: QPI Type: | BF41: QPI Type: | BG41: QPI Type:
A42: =A41 -> N/A | B42: =B41 ->  | C42: =C41 ->  | D42: =D41 ->  | E42: =E21+12 -> 12 | M42: ="MLIU Required: "&IFERROR(OFFSET(INDIRECT(M$1&$A$20),B42,$E42),"") -> MLIU Required: | N42: ="MLIU Required: "&IFERROR(OFFSET(INDIRECT(N$1&$A$20),C42,$E42),"") -> MLIU Required: | O42: ="MLIU Required: "&IFERROR(OFFSET(INDIRECT(O$1&$A$20),D42,$E42),"") -> MLIU Required: | R42: 1 | S42: 1 | T42: 1 | U42: 1 | V42: 1 | W42: 1 | X42: 1 | AE42: 3 | AF42: 5 | AG42: 1 | AH42: 1 | AI42: 1 | BD42: 0 | BE42: MLIU Required: | BF42: MLIU Required: | BG42: MLIU Required:
A43: N/A | R43: 1 | S43: 1 | T43: 1 | U43: 1 | V43: 1 | W43: 1 | X43: 1 | AE43: 3 | AF43: 6 | AG43: 1 | AH43: 1 | AI43: 1 | BD43: 0 | BE43: 0 | BF43: 0 | BG43: 0
A44: =A43 -> N/A | B44: =B43 ->  | C44: =C43 ->  | D44: =D43 ->  | E44: =E25+$E$20 -> 16 | L44: ="Metric #"&$S44&": "&IFERROR(OFFSET(INDIRECT(L$1&$A$20),A44,$E44),"") -> Metric #2: | M44: ="Metric #"&$S44&": "&IFERROR(OFFSET(INDIRECT(M$1&$A$20),B44,$E44),"") -> Metric #2: | N44: ="Metric #"&$S44&": "&IFERROR(OFFSET(INDIRECT(N$1&$A$20),C44,$E44),"") -> Metric #2: | O44: ="Metric #"&$S44&": "&IFERROR(OFFSET(INDIRECT(O$1&$A$20),D44,$E44),"") -> Metric #2: | R44: 1 | S44: 2 | T44: 1 | U44: 1 | V44: 1 | W44: 1 | X44: 1 | AE44: 3 | AF44: 7 | AG44: 1 | AH44: 1 | AI44: 1 | BD44: Metric #2: | BE44: Metric #2: | BF44: Metric #2: | BG44: Metric #2:
A45: N/A | E45: =E26+$E$20 -> 17 | L45: =IFERROR(OFFSET(INDIRECT(L$1&$A$20),A45,$E45),"") ->  | R45: 1 | S45: 2 | T45: 1 | U45: =IF($R45>Z$21,1,IF($S45>INDEX(AK$21:AK$33,MATCH($R45,$AJ$21:$AJ$33,0)),1,0)) -> 1 | V45: =IF($R45>AA$21,1,IF($S45>INDEX(AL$21:AL$33,MATCH($R45,$AJ$21:$AJ$33,0)),1,0)) -> 1 | W45: =IF($R45>AB$21,1,IF($S45>INDEX(AM$21:AM$33,MATCH($R45,$AJ$21:$AJ$33,0)),1,0)) -> 1 | X45: =IF($R45>AC$21,1,IF($S45>INDEX(AN$21:AN$33,MATCH($R45,$AJ$21:$AJ$33,0)),1,0)) -> 1 | AE45: 4 | AF45: 0 | AG45: 1 | AH45: 0 | AI45: 1
A46: N/A | E46: =E27+$E$20 -> 18 | R46: 1 | S46: 2 | T46: 1 | U46: 1 | V46: 1 | W46: 1 | X46: 1 | AE46: 4 | AF46: 1 | AG46: 1 | AH46: 1 | AI46: 1
A47: N/A | R47: 1 | S47: 2 | T47: 1 | U47: 1 | V47: 1 | W47: 1 | X47: 1 | AE47: 4 | AF47: 2 | AG47: 1 | AH47: 1 | AI47: 1 | BD47: 0 | BE47: 0 | BF47: 0 | BG47: 0
A48: N/A | E48: 12 | L48: Baseline/Goal: | M48: Baseline/Goal: | N48: Baseline/Goal: | O48: Baseline/Goal: | R48: 1 | S48: 2 | T48: 1 | U48: 1 | V48: 1 | W48: 1 | X48: 1 | AE48: 4 | AF48: 3 | AG48: 1 | AH48: 1 | AI48: 1 | BD48: Baseline/Goal: | BE48: Baseline/Goal: | BF48: Baseline/Goal: | BG48: Baseline/Goal:
A49: N/A | E49: 19 | L49: =IFERROR(OFFSET(INDIRECT(L$1&$A$20),A49,$E49),"") ->  | M49: =IFERROR(OFFSET(INDIRECT(M$1&$A$20),B49,$E49),"") ->  | N49: =IFERROR(OFFSET(INDIRECT(N$1&$A$20),C49,$E49),"") ->  | O49: =IFERROR(OFFSET(INDIRECT(O$1&$A$20),D49,$E49),"") ->  | R49: 1 | S49: 2 | T49: 1 | U49: 1 | V49: 1 | W49: 1 | X49: 1 | AE49: 4 | AF49: 4 | AG49: 1 | AH49: 1 | AI49: 1
A50: N/A | R50: 1 | S50: 2 | T50: 1 | U50: 1 | V50: 1 | W50: 1 | X50: 1 | AE50: 4 | AF50: 5 | AG50: 1 | AH50: 1 | AI50: 1 | BD50: 0 | BE50: 0 | BF50: 0 | BG50: 0
A51: N/A | E51: 12 | L51: Data Source: | M51: Data Source: | N51: Data Source: | O51: Data Source: | R51: 1 | S51: 2 | T51: 1 | U51: 1 | V51: 1 | W51: 1 | X51: 1 | AE51: 4 | AF51: 6 | AG51: 1 | AH51: 1 | AI51: 1 | BD51: Data Source: | BE51: Data Source: | BF51: Data Source: | BG51: Data Source:
A52: N/A | E52: 26 | L52: =IFERROR(OFFSET(INDIRECT(L$1&$A$20),A52,$E52),"") ->  | R52: 1 | S52: 2 | T52: 1 | U52: 1 | V52: 1 | W52: 1 | X52: 1 | AE52: 4 | AF52: 7 | AG52: 1 | AH52: 1 | AI52: 1
A53: N/A | E53: 27 | R53: 1 | S53: 2 | T53: 1 | U53: 1 | V53: 1 | W53: 1 | X53: 1 | AE53: 5 | AF53: 0 | AG53: =IF($AE53>$AD$21,1,0) -> 1 | AH53: 0 | AI53: 1
A54: N/A | R54: 1 | S54: 2 | T54: 1 | U54: 1 | V54: 1 | W54: 1 | X54: 1 | AE54: 5 | AF54: 1 | AG54: 1 | AH54: 1 | AI54: 1 | BD54: 0 | BE54: 0 | BF54: 0 | BG54: 0
A55: N/A | E55: 20 | L55: ="Metric Type: "&IFERROR(OFFSET(INDIRECT(L$1&$A$20),A55,$E55),"") -> Metric Type: | M55: ="Metric Type: "&IFERROR(OFFSET(INDIRECT(M$1&$A$20),B55,$E55),"") -> Metric Type: | N55: ="Metric Type: "&IFERROR(OFFSET(INDIRECT(N$1&$A$20),C55,$E55),"") -> Metric Type: | O55: ="Metric Type: "&IFERROR(OFFSET(INDIRECT(O$1&$A$20),D55,$E55),"") -> Metric Type: | R55: 1 | S55: 2 | T55: 1 | U55: 1 | V55: 1 | W55: 1 | X55: 1 | AE55: 5 | AF55: 2 | AG55: 1 | AH55: 1 | AI55: 1 | BD55: Metric Type: | BE55: Metric Type: | BF55: Metric Type: | BG55: Metric Type:
A56: N/A | E56: 21 | L56: ="Numeric Goal: "&IFERROR(OFFSET(INDIRECT(L$1&$A$20),A56,$E56),"") -> Numeric Goal: | M56: ="Numeric Goal: "&IFERROR(OFFSET(INDIRECT(M$1&$A$20),B56,$E56),"") -> Numeric Goal: | N56: ="Numeric Goal: "&IFERROR(OFFSET(INDIRECT(N$1&$A$20),C56,$E56),"") -> Numeric Goal: | O56: ="Numeric Goal: "&IFERROR(OFFSET(INDIRECT(O$1&$A$20),D56,$E56),"") -> Numeric Goal: | R56: 1 | S56: 2 | T56: 1 | U56: 1 | V56: 1 | W56: 1 | X56: 1 | AE56: 5 | AF56: 3 | AG56: 1 | AH56: 1 | AI56: 1 | BD56: Numeric Goal: | BE56: Numeric Goal: | BF56: Numeric Goal: | BG56: Numeric Goal:
A57: N/A | E57: 22 | L57: ="Numerator: "&IFERROR(OFFSET(INDIRECT(L$1&$A$20),A57,$E57),"") -> Numerator: | M57: ="Numerator: "&IFERROR(OFFSET(INDIRECT(M$1&$A$20),B57,$E57),"") -> Numerator: | N57: ="Numerator: "&IFERROR(OFFSET(INDIRECT(N$1&$A$20),C57,$E57),"") -> Numerator: | O57: ="Numerator: "&IFERROR(OFFSET(INDIRECT(O$1&$A$20),D57,$E57),"") -> Numerator: | R57: 1 | S57: 2 | T57: 1 | U57: 1 | V57: 1 | W57: 1 | X57: 1 | AE57: 5 | AF57: 4 | AG57: 1 | AH57: 1 | AI57: 1 | BD57: Numerator: | BE57: Numerator: | BF57: Numerator: | BG57: Numerator:
A58: N/A | E58: 23 | L58: ="Denominator: "&IFERROR(OFFSET(INDIRECT(L$1&$A$20),A58,$E58),"") -> Denominator: | M58: ="Denominator: "&IFERROR(OFFSET(INDIRECT(M$1&$A$20),B58,$E58),"") -> Denominator: | N58: ="Denominator: "&IFERROR(OFFSET(INDIRECT(N$1&$A$20),C58,$E58),"") -> Denominator: | O58: ="Denominator: "&IFERROR(OFFSET(INDIRECT(O$1&$A$20),D58,$E58),"") -> Denominator: | R58: 1 | S58: 2 | T58: 1 | U58: 1 | V58: 1 | W58: 1 | X58: 1 | AE58: 5 | AF58: 5 | AG58: 1 | AH58: 1 | AI58: 1 | BD58: Denominator: | BE58: Denominator: | BF58: Denominator: | BG58: Denominator:
A59: N/A | E59: 25 | M59: ="QPI Metric: "&IFERROR(OFFSET(INDIRECT(M$1&$A$20),B59,$E59),"") -> QPI Metric: | N59: ="QPI Metric: "&IFERROR(OFFSET(INDIRECT(N$1&$A$20),C59,$E59),"") -> QPI Metric: | O59: ="QPI Metric: "&IFERROR(OFFSET(INDIRECT(O$1&$A$20),D59,$E59),"") -> QPI Metric: | R59: 1 | S59: 2 | T59: 1 | U59: 1 | V59: 1 | W59: 1 | X59: 1 | AE59: 5 | AF59: 6 | AG59: 1 | AH59: 1 | AI59: 1 | BD59: 0 | BE59: QPI Metric: | BF59: QPI Metric: | BG59: QPI Metric:
A60: N/A | H60: =$H$41 -> 23 | M60: ="QPI Type: " & IFERROR(OFFSET(INDIRECT($S$1&$A$12),$F60,$H60),"") -> QPI Type: | N60: ="QPI Type: " & IFERROR(OFFSET(INDIRECT($S$1&$A$12),$F60,$H60),"") -> QPI Type: | O60: ="QPI Type: " & IFERROR(OFFSET(INDIRECT($S$1&$A$12),$F60,$H60),"") -> QPI Type: | R60: 1 | S60: 2 | T60: 1 | U60: 1 | V60: 1 | W60: 1 | X60: 1 | AE60: 5 | AF60: 7 | AG60: 1 | AH60: 1 | AI60: 1 | BD60: 0 | BE60: QPI Type: | BF60: QPI Type: | BG60: QPI Type:
A61: N/A | E61: 24 | M61: ="MLIU Required: "&IFERROR(OFFSET(INDIRECT(M$1&$A$20),B61,$E61),"") -> MLIU Required: | N61: ="MLIU Required: "&IFERROR(OFFSET(INDIRECT(N$1&$A$20),C61,$E61),"") -> MLIU Required: | O61: ="MLIU Required: "&IFERROR(OFFSET(INDIRECT(O$1&$A$20),D61,$E61),"") -> MLIU Required: | R61: 1 | S61: 2 | T61: 1 | U61: 1 | V61: 1 | W61: 1 | X61: 1 | AE61: 6 | AF61: 0 | AG61: 1 | AH61: 0 | AI61: 1 | BD61: 0 | BE61: MLIU Required: | BF61: MLIU Required: | BG61: MLIU Required:
A62: N/A | R62: 1 | S62: 2 | T62: 1 | U62: 1 | V62: 1 | W62: 1 | X62: 1 | AE62: 6 | AF62: 1 | AG62: 1 | AH62: 1 | AI62: 1 | BD62: 0 | BE62: 0 | BF62: 0 | BG62: 0
A63: =A62 -> N/A | B63: =B62 ->  | C63: =C62 ->  | D63: =D62 ->  | E63: =E44+$E$20 -> 28 | L63: ="Metric #"&$S63&": "&IFERROR(OFFSET(INDIRECT(L$1&$A$20),A63,$E63),"") -> Metric #3: | M63: ="Metric #"&$S63&": "&IFERROR(OFFSET(INDIRECT(M$1&$A$20),B63,$E63),"") -> Metric #3: | N63: ="Metric #"&$S63&": "&IFERROR(OFFSET(INDIRECT(N$1&$A$20),C63,$E63),"") -> Metric #3: | O63: ="Metric #"&$S63&": "&IFERROR(OFFSET(INDIRECT(O$1&$A$20),D63,$E63),"") -> Metric #3: | R63: 1 | S63: 3 | T63: 1 | U63: 1 | V63: 1 | W63: 1 | X63: 1 | AE63: 6 | AF63: 2 | AG63: 1 | AH63: 1 | AI63: 1 | BD63: Metric #3: | BE63: Metric #3: | BF63: Metric #3: | BG63: Metric #3:
A64: N/A | E64: =E45+$E$20 -> 29 | L64: =IFERROR(OFFSET(INDIRECT(L$1&$A$20),A64,$E64),"") ->  | R64: 1 | S64: 3 | T64: 1 | U64: =IF($R64>Z$21,1,IF($S64>INDEX(AK$21:AK$33,MATCH($R64,$AJ$21:$AJ$33,0)),1,0)) -> 1 | V64: =IF($R64>AA$21,1,IF($S64>INDEX(AL$21:AL$33,MATCH($R64,$AJ$21:$AJ$33,0)),1,0)) -> 1 | W64: =IF($R64>AB$21,1,IF($S64>INDEX(AM$21:AM$33,MATCH($R64,$AJ$21:$AJ$33,0)),1,0)) -> 1 | X64: =IF($R64>AC$21,1,IF($S64>INDEX(AN$21:AN$33,MATCH($R64,$AJ$21:$AJ$33,0)),1,0)) -> 1 | AE64: 6 | AF64: 3 | AG64: 1 | AH64: 1 | AI64: 1
A65: N/A | E65: =E46+$E$20 -> 30 | R65: 1 | S65: 3 | T65: 1 | U65: 1 | V65: 1 | W65: 1 | X65: 1 | AE65: 6 | AF65: 4 | AG65: 1 | AH65: 1 | AI65: 1
A66: N/A | R66: 1 | S66: 3 | T66: 1 | U66: 1 | V66: 1 | W66: 1 | X66: 1 | AE66: 6 | AF66: 5 | AG66: 1 | AH66: 1 | AI66: 1 | BD66: 0 | BE66: 0 | BF66: 0 | BG66: 0
A67: N/A | E67: 24 | L67: Baseline/Goal: | M67: Baseline/Goal: | N67: Baseline/Goal: | O67: Baseline/Goal: | R67: 1 | S67: 3 | T67: 1 | U67: 1 | V67: 1 | W67: 1 | X67: 1 | AE67: 6 | AF67: 6 | AG67: 1 | AH67: 1 | AI67: 1 | BD67: Baseline/Goal: | BE67: Baseline/Goal: | BF67: Baseline/Goal: | BG67: Baseline/Goal:
A68: N/A | E68: 31 | L68: =IFERROR(OFFSET(INDIRECT(L$1&$A$20),A68,$E68),"") ->  | M68: =IFERROR(OFFSET(INDIRECT(M$1&$A$20),B68,$E68),"") ->  | N68: =IFERROR(OFFSET(INDIRECT(N$1&$A$20),C68,$E68),"") ->  | O68: =IFERROR(OFFSET(INDIRECT(O$1&$A$20),D68,$E68),"") ->  | R68: 1 | S68: 3 | T68: 1 | U68: 1 | V68: 1 | W68: 1 | X68: 1 | AE68: 6 | AF68: 7 | AG68: 1 | AH68: 1 | AI68: 1
A69: N/A | R69: 1 | S69: 3 | T69: 1 | U69: 1 | V69: 1 | W69: 1 | X69: 1 | AE69: 7 | AF69: 0 | AG69: 1 | AH69: 0 | AI69: 1 | BD69: 0 | BE69: 0 | BF69: 0 | BG69: 0
A70: N/A | E70: 24 | L70: Data Source: | M70: Data Source: | N70: Data Source: | O70: Data Source: | R70: 1 | S70: 3 | T70: 1 | U70: 1 | V70: 1 | W70: 1 | X70: 1 | AE70: 7 | AF70: 1 | AG70: 1 | AH70: 1 | AI70: 1 | BD70: Data Source: | BE70: Data Source: | BF70: Data Source: | BG70: Data Source:
A71: N/A | E71: 38 | L71: =IFERROR(OFFSET(INDIRECT(L$1&$A$20),A71,$E71),"") ->  | R71: 1 | S71: 3 | T71: 1 | U71: 1 | V71: 1 | W71: 1 | X71: 1 | AE71: 7 | AF71: 2 | AG71: 1 | AH71: 1 | AI71: 1
A72: N/A | E72: 39 | R72: 1 | S72: 3 | T72: 1 | U72: 1 | V72: 1 | W72: 1 | X72: 1 | AE72: 7 | AF72: 3 | AG72: 1 | AH72: 1 | AI72: 1
A73: N/A | R73: 1 | S73: 3 | T73: 1 | U73: 1 | V73: 1 | W73: 1 | X73: 1 | AE73: 7 | AF73: 4 | AG73: 1 | AH73: 1 | AI73: 1 | BD73: 0 | BE73: 0 | BF73: 0 | BG73: 0
A74: N/A | E74: 32 | L74: ="Metric Type: "&IFERROR(OFFSET(INDIRECT(L$1&$A$20),A74,$E74),"") -> Metric Type: | M74: ="Metric Type: "&IFERROR(OFFSET(INDIRECT(M$1&$A$20),B74,$E74),"") -> Metric Type: | N74: ="Metric Type: "&IFERROR(OFFSET(INDIRECT(N$1&$A$20),C74,$E74),"") -> Metric Type: | O74: ="Metric Type: "&IFERROR(OFFSET(INDIRECT(O$1&$A$20),D74,$E74),"") -> Metric Type: | R74: 1 | S74: 3 | T74: 1 | U74: 1 | V74: 1 | W74: 1 | X74: 1 | AE74: 7 | AF74: 5 | AG74: 1 | AH74: 1 | AI74: 1 | BD74: Metric Type: | BE74: Metric Type: | BF74: Metric Type: | BG74: Metric Type:
A75: N/A | E75: 33 | L75: ="Numeric Goal: "&IFERROR(OFFSET(INDIRECT(L$1&$A$20),A75,$E75),"") -> Numeric Goal: | M75: ="Numeric Goal: "&IFERROR(OFFSET(INDIRECT(M$1&$A$20),B75,$E75),"") -> Numeric Goal: | N75: ="Numeric Goal: "&IFERROR(OFFSET(INDIRECT(N$1&$A$20),C75,$E75),"") -> Numeric Goal: | O75: ="Numeric Goal: "&IFERROR(OFFSET(INDIRECT(O$1&$A$20),D75,$E75),"") -> Numeric Goal: | R75: 1 | S75: 3 | T75: 1 | U75: 1 | V75: 1 | W75: 1 | X75: 1 | AE75: 7 | AF75: 6 | AG75: 1 | AH75: 1 | AI75: 1 | BD75: Numeric Goal: | BE75: Numeric Goal: | BF75: Numeric Goal: | BG75: Numeric Goal:
A76: N/A | E76: 34 | L76: ="Numerator: "&IFERROR(OFFSET(INDIRECT(L$1&$A$20),A76,$E76),"") -> Numerator: | M76: ="Numerator: "&IFERROR(OFFSET(INDIRECT(M$1&$A$20),B76,$E76),"") -> Numerator: | N76: ="Numerator: "&IFERROR(OFFSET(INDIRECT(N$1&$A$20),C76,$E76),"") -> Numerator: | O76: ="Numerator: "&IFERROR(OFFSET(INDIRECT(O$1&$A$20),D76,$E76),"") -> Numerator: | R76: 1 | S76: 3 | T76: 1 | U76: 1 | V76: 1 | W76: 1 | X76: 1 | AE76: 7 | AF76: 7 | AG76: 1 | AH76: 1 | AI76: 1 | BD76: Numerator: | BE76: Numerator: | BF76: Numerator: | BG76: Numerator:
A77: N/A | E77: 35 | L77: ="Denominator: "&IFERROR(OFFSET(INDIRECT(L$1&$A$20),A77,$E77),"") -> Denominator: | M77: ="Denominator: "&IFERROR(OFFSET(INDIRECT(M$1&$A$20),B77,$E77),"") -> Denominator: | N77: ="Denominator: "&IFERROR(OFFSET(INDIRECT(N$1&$A$20),C77,$E77),"") -> Denominator: | O77: ="Denominator: "&IFERROR(OFFSET(INDIRECT(O$1&$A$20),D77,$E77),"") -> Denominator: | R77: 1 | S77: 3 | T77: 1 | U77: 1 | V77: 1 | W77: 1 | X77: 1 | AE77: 8 | AF77: 0 | AG77: 1 | AH77: 0 | AI77: 1 | BD77: Denominator: | BE77: Denominator: | BF77: Denominator: | BG77: Denominator:
A78: N/A | E78: 37 | M78: ="QPI Metric: "&IFERROR(OFFSET(INDIRECT(M$1&$A$20),B78,$E78),"") -> QPI Metric: | N78: ="QPI Metric: "&IFERROR(OFFSET(INDIRECT(N$1&$A$20),C78,$E78),"") -> QPI Metric: | O78: ="QPI Metric: "&IFERROR(OFFSET(INDIRECT(O$1&$A$20),D78,$E78),"") -> QPI Metric: | R78: 1 | S78: 3 | T78: 1 | U78: 1 | V78: 1 | W78: 1 | X78: 1 | AE78: 8 | AF78: 1 | AG78: 1 | AH78: 1 | AI78: 1 | BD78: 0 | BE78: QPI Metric: | BF78: QPI Metric: | BG78: QPI Metric:
A79: N/A | H79: =$H$41 -> 23 | M79: ="QPI Type: " & IFERROR(OFFSET(INDIRECT($S$1&$A$12),$F79,$H79),"") -> QPI Type: | N79: ="QPI Type: " & IFERROR(OFFSET(INDIRECT($S$1&$A$12),$F79,$H79),"") -> QPI Type: | O79: ="QPI Type: " & IFERROR(OFFSET(INDIRECT($S$1&$A$12),$F79,$H79),"") -> QPI Type: | R79: 1 | S79: 3 | T79: 1 | U79: 1 | V79: 1 | W79: 1 | X79: 1 | AE79: 8 | AF79: 2 | AG79: 1 | AH79: 1 | AI79: 1 | BD79: 0 | BE79: QPI Type: | BF79: QPI Type: | BG79: QPI Type:
A80: N/A | E80: 36 | M80: ="MLIU Required: "&IFERROR(OFFSET(INDIRECT(M$1&$A$20),B80,$E80),"") -> MLIU Required: | N80: ="MLIU Required: "&IFERROR(OFFSET(INDIRECT(N$1&$A$20),C80,$E80),"") -> MLIU Required: | O80: ="MLIU Required: "&IFERROR(OFFSET(INDIRECT(O$1&$A$20),D80,$E80),"") -> MLIU Required: | R80: 1 | S80: 3 | T80: 1 | U80: 1 | V80: 1 | W80: 1 | X80: 1 | AE80: 8 | AF80: 3 | AG80: 1 | AH80: 1 | AI80: 1 | BD80: 0 | BE80: MLIU Required: | BF80: MLIU Required: | BG80: MLIU Required:
A81: N/A | F81: =F80 ->  | R81: 1 | S81: 3 | T81: 1 | U81: 1 | V81: 1 | W81: 1 | X81: 1 | AE81: 8 | AF81: 4 | AG81: 1 | AH81: 1 | AI81: 1 | BD81: 0 | BE81: 0 | BF81: 0 | BG81: 0
A82: N/A | E82: =E63+$E$20 -> 40 | L82: ="Metric #"&$S82&": "&IFERROR(OFFSET(INDIRECT(L$1&$A$20),A82,$E82),"") -> Metric #4: | M82: ="Metric #"&$S82&": "&IFERROR(OFFSET(INDIRECT(M$1&$A$20),B82,$E82),"") -> Metric #4: | N82: ="Metric #"&$S82&": "&IFERROR(OFFSET(INDIRECT(N$1&$A$20),C82,$E82),"") -> Metric #4: | O82: ="Metric #"&$S82&": "&IFERROR(OFFSET(INDIRECT(O$1&$A$20),D82,$E82),"") -> Metric #4: | R82: 1 | S82: 4 | T82: 1 | U82: 1 | V82: 1 | W82: 1 | X82: 1 | AE82: 8 | AF82: 5 | AG82: 1 | AH82: 1 | AI82: 1 | BD82: Metric #4: | BE82: Metric #4: | BF82: Metric #4: | BG82: Metric #4:
A83: N/A | E83: =E64+$E$20 -> 41 | L83: =IFERROR(OFFSET(INDIRECT(L$1&$A$20),A83,$E83),"") ->  | R83: 1 | S83: 4 | T83: 1 | U83: 1 | V83: 1 | W83: 1 | X83: 1 | AE83: 8 | AF83: 6 | AG83: 1 | AH83: 1 | AI83: 1
A84: N/A | E84: =E65+$E$20 -> 42 | R84: 1 | S84: 4 | T84: 1 | U84: 1 | V84: 1 | W84: 1 | X84: 1 | AE84: 8 | AF84: 7 | AG84: 1 | AH84: 1 | AI84: 1
A85: N/A | R85: 1 | S85: 4 | T85: =IF($M$9="",1,SUMPRODUCT(($R85=$AE$21:$AE$124)*($S85=$AF$21:$AF$124)*($AI$21:$AI$124))) -> 1 | U85: 1 | V85: 1 | W85: 1 | X85: 1 | AE85: 9 | AF85: 0 | AG85: 1 | AH85: 0 | AI85: 1 | BD85: 0 | BE85: 0 | BF85: 0 | BG85: 0
A86: N/A | E86: 36 | L86: Baseline/Goal: | M86: Baseline/Goal: | N86: Baseline/Goal: | O86: Baseline/Goal: | R86: 1 | S86: 4 | T86: 1 | U86: 1 | V86: 1 | W86: 1 | X86: 1 | AE86: 9 | AF86: 1 | AG86: =IF($AE86>$AD$21,1,0) -> 1 | AH86: =IF($AF86=0,0,IF($AF86>INDEX($AO$21:$AO$33,MATCH($AE86,$AJ$21:$AJ$33,0)),1,0)) -> 1 | AI86: =MAX(AG86:AH86) -> 1 | BD86: =L86 -> Baseline/Goal: | BE86: =M86 -> Baseline/Goal: | BF86: =N86 -> Baseline/Goal: | BG86: =O86 -> Baseline/Goal:
A87: N/A | E87: 43 | L87: =IFERROR(OFFSET(INDIRECT(L$1&$A$20),A87,$E87),"") ->  | M87: =IFERROR(OFFSET(INDIRECT(M$1&$A$20),B87,$E87),"") ->  | N87: =IFERROR(OFFSET(INDIRECT(N$1&$A$20),C87,$E87),"") ->  | O87: =IFERROR(OFFSET(INDIRECT(O$1&$A$20),D87,$E87),"") ->  | R87: 1 | S87: 4 | T87: 1 | U87: 1 | V87: 1 | W87: 1 | X87: 1 | AE87: =IF(AF87=0,AE86+1,AE86) -> 9 | AF87: 2 | AG87: 1 | AH87: 1 | AI87: 1
A88: N/A | R88: 1 | S88: 4 | T88: 1 | U88: 1 | V88: 1 | W88: 1 | X88: 1 | AE88: 9 | AF88: 3 | AG88: 1 | AH88: 1 | AI88: 1 | BD88: 0 | BE88: 0 | BF88: 0 | BG88: 0
A89: N/A | E89: 36 | L89: Data Source: | M89: Data Source: | N89: Data Source: | O89: Data Source: | R89: 1 | S89: 4 | T89: 1 | U89: 1 | V89: 1 | W89: 1 | X89: 1 | AE89: 9 | AF89: 4 | AG89: 1 | AH89: 1 | AI89: 1 | BD89: Data Source: | BE89: Data Source: | BF89: Data Source: | BG89: Data Source:
A90: N/A | E90: 50 | L90: =IFERROR(OFFSET(INDIRECT(L$1&$A$20),A90,$E90),"") ->  | R90: 1 | S90: 4 | T90: 1 | U90: 1 | V90: 1 | W90: 1 | X90: 1 | AE90: 9 | AF90: 5 | AG90: 1 | AH90: 1 | AI90: 1
A91: N/A | E91: 51 | R91: 1 | S91: 4 | T91: 1 | U91: 1 | V91: 1 | W91: 1 | X91: 1 | AE91: 9 | AF91: 6 | AG91: 1 | AH91: 1 | AI91: 1
A92: N/A | R92: 1 | S92: 4 | T92: 1 | U92: 1 | V92: 1 | W92: 1 | X92: 1 | AE92: 9 | AF92: 7 | AG92: 1 | AH92: 1 | AI92: 1 | BD92: 0 | BE92: 0 | BF92: 0 | BG92: 0
A93: N/A | E93: 44 | L93: ="Metric Type: "&IFERROR(OFFSET(INDIRECT(L$1&$A$20),A93,$E93),"") -> Metric Type: | M93: ="Metric Type: "&IFERROR(OFFSET(INDIRECT(M$1&$A$20),B93,$E93),"") -> Metric Type: | N93: ="Metric Type: "&IFERROR(OFFSET(INDIRECT(N$1&$A$20),C93,$E93),"") -> Metric Type: | O93: ="Metric Type: "&IFERROR(OFFSET(INDIRECT(O$1&$A$20),D93,$E93),"") -> Metric Type: | R93: 1 | S93: 4 | T93: 1 | U93: 1 | V93: 1 | W93: 1 | X93: 1 | AE93: 10 | AF93: 0 | AG93: 1 | AH93: 0 | AI93: 1 | BD93: Metric Type: | BE93: Metric Type: | BF93: Metric Type: | BG93: Metric Type:
A94: N/A | E94: 45 | L94: ="Numeric Goal: "&IFERROR(OFFSET(INDIRECT(L$1&$A$20),A94,$E94),"") -> Numeric Goal: | M94: ="Numeric Goal: "&IFERROR(OFFSET(INDIRECT(M$1&$A$20),B94,$E94),"") -> Numeric Goal: | N94: ="Numeric Goal: "&IFERROR(OFFSET(INDIRECT(N$1&$A$20),C94,$E94),"") -> Numeric Goal: | O94: ="Numeric Goal: "&IFERROR(OFFSET(INDIRECT(O$1&$A$20),D94,$E94),"") -> Numeric Goal: | R94: 1 | S94: 4 | T94: 1 | U94: 1 | V94: 1 | W94: 1 | X94: 1 | AE94: 10 | AF94: =AF86 -> 1 | AG94: 1 | AH94: 1 | AI94: 1 | BD94: Numeric Goal: | BE94: Numeric Goal: | BF94: Numeric Goal: | BG94: Numeric Goal:
A95: N/A | E95: 46 | L95: ="Numerator: "&IFERROR(OFFSET(INDIRECT(L$1&$A$20),A95,$E95),"") -> Numerator: | M95: ="Numerator: "&IFERROR(OFFSET(INDIRECT(M$1&$A$20),B95,$E95),"") -> Numerator: | N95: ="Numerator: "&IFERROR(OFFSET(INDIRECT(N$1&$A$20),C95,$E95),"") -> Numerator: | O95: ="Numerator: "&IFERROR(OFFSET(INDIRECT(O$1&$A$20),D95,$E95),"") -> Numerator: | R95: 1 | S95: 4 | T95: 1 | U95: 1 | V95: 1 | W95: 1 | X95: 1 | AE95: 10 | AF95: 2 | AG95: 1 | AH95: 1 | AI95: 1 | BD95: Numerator: | BE95: Numerator: | BF95: Numerator: | BG95: Numerator:
A96: N/A | E96: 47 | L96: ="Denominator: "&IFERROR(OFFSET(INDIRECT(L$1&$A$20),A96,$E96),"") -> Denominator: | M96: ="Denominator: "&IFERROR(OFFSET(INDIRECT(M$1&$A$20),B96,$E96),"") -> Denominator: | N96: ="Denominator: "&IFERROR(OFFSET(INDIRECT(N$1&$A$20),C96,$E96),"") -> Denominator: | O96: ="Denominator: "&IFERROR(OFFSET(INDIRECT(O$1&$A$20),D96,$E96),"") -> Denominator: | R96: 1 | S96: 4 | T96: 1 | U96: 1 | V96: 1 | W96: 1 | X96: 1 | AE96: 10 | AF96: 3 | AG96: 1 | AH96: 1 | AI96: 1 | BD96: Denominator: | BE96: Denominator: | BF96: Denominator: | BG96: Denominator:
A97: N/A | E97: 49 | M97: ="QPI Metric: "&IFERROR(OFFSET(INDIRECT(M$1&$A$20),B97,$E97),"") -> QPI Metric: | N97: ="QPI Metric: "&IFERROR(OFFSET(INDIRECT(N$1&$A$20),C97,$E97),"") -> QPI Metric: | O97: ="QPI Metric: "&IFERROR(OFFSET(INDIRECT(O$1&$A$20),D97,$E97),"") -> QPI Metric: | R97: 1 | S97: 4 | T97: 1 | U97: 1 | V97: 1 | W97: 1 | X97: 1 | AE97: 10 | AF97: 4 | AG97: 1 | AH97: 1 | AI97: 1 | BD97: 0 | BE97: QPI Metric: | BF97: QPI Metric: | BG97: QPI Metric:
A98: N/A | H98: =$H$41 -> 23 | M98: ="QPI Type: " & IFERROR(OFFSET(INDIRECT($S$1&$A$12),$F98,$H98),"") -> QPI Type: | N98: ="QPI Type: " & IFERROR(OFFSET(INDIRECT($S$1&$A$12),$F98,$H98),"") -> QPI Type: | O98: ="QPI Type: " & IFERROR(OFFSET(INDIRECT($S$1&$A$12),$F98,$H98),"") -> QPI Type: | R98: 1 | S98: 4 | T98: 1 | U98: 1 | V98: 1 | W98: 1 | X98: 1 | AE98: 10 | AF98: 5 | AG98: 1 | AH98: 1 | AI98: 1 | BD98: 0 | BE98: QPI Type: | BF98: QPI Type: | BG98: QPI Type:
A99: N/A | E99: 48 | M99: ="MLIU Required: "&IFERROR(OFFSET(INDIRECT(M$1&$A$20),B99,$E99),"") -> MLIU Required: | N99: ="MLIU Required: "&IFERROR(OFFSET(INDIRECT(N$1&$A$20),C99,$E99),"") -> MLIU Required: | O99: ="MLIU Required: "&IFERROR(OFFSET(INDIRECT(O$1&$A$20),D99,$E99),"") -> MLIU Required: | R99: 1 | S99: 4 | T99: 1 | U99: 1 | V99: 1 | W99: 1 | X99: 1 | AE99: 10 | AF99: 6 | AG99: 1 | AH99: 1 | AI99: 1 | BD99: 0 | BE99: MLIU Required: | BF99: MLIU Required: | BG99: MLIU Required:
A100: N/A | R100: 1 | S100: 4 | T100: 1 | U100: 1 | V100: 1 | W100: 1 | X100: 1 | AE100: 10 | AF100: 7 | AG100: 1 | AH100: 1 | AI100: 1 | BD100: 0 | BE100: 0 | BF100: 0 | BG100: 0
A101: N/A | E101: =E82+$E$20 -> 52 | L101: ="Metric #"&$S101&": "&IFERROR(OFFSET(INDIRECT(L$1&$A$20),A101,$E101),"") -> Metric #5: | M101: ="Metric #"&$S101&": "&IFERROR(OFFSET(INDIRECT(M$1&$A$20),B101,$E101),"") -> Metric #5: | N101: ="Metric #"&$S101&": "&IFERROR(OFFSET(INDIRECT(N$1&$A$20),C101,$E101),"") -> Metric #5: | O101: ="Metric #"&$S101&": "&IFERROR(OFFSET(INDIRECT(O$1&$A$20),D101,$E101),"") -> Metric #5: | R101: 1 | S101: 5 | T101: 1 | U101: 1 | V101: 1 | W101: 1 | X101: 1 | AE101: 11 | AF101: 0 | AG101: 1 | AH101: 0 | AI101: 1 | BD101: Metric #5: | BE101: Metric #5: | BF101: Metric #5: | BG101: Metric #5:
A102: N/A | E102: =E83+$E$20 -> 53 | L102: =IFERROR(OFFSET(INDIRECT(L$1&$A$20),A102,$E102),"") ->  | R102: 1 | S102: 5 | T102: 1 | U102: 1 | V102: 1 | W102: 1 | X102: 1 | AE102: 11 | AF102: 1 | AG102: 1 | AH102: 1 | AI102: 1
A103: N/A | E103: =E84+$E$20 -> 54 | R103: 1 | S103: 5 | T103: 1 | U103: 1 | V103: 1 | W103: 1 | X103: 1 | AE103: 11 | AF103: 2 | AG103: 1 | AH103: 1 | AI103: 1
A104: N/A | R104: 1 | S104: 5 | T104: 1 | U104: 1 | V104: 1 | W104: 1 | X104: 1 | AE104: 11 | AF104: 3 | AG104: 1 | AH104: 1 | AI104: 1 | BD104: 0 | BE104: 0 | BF104: 0 | BG104: 0
A105: N/A | E105: 48 | L105: Baseline/Goal: | M105: Baseline/Goal: | N105: Baseline/Goal: | O105: Baseline/Goal: | R105: 1 | S105: 5 | T105: 1 | U105: 1 | V105: 1 | W105: 1 | X105: 1 | AE105: 11 | AF105: 4 | AG105: 1 | AH105: 1 | AI105: 1 | BD105: Baseline/Goal: | BE105: Baseline/Goal: | BF105: Baseline/Goal: | BG105: Baseline/Goal:
A106: N/A | E106: 55 | L106: =IFERROR(OFFSET(INDIRECT(L$1&$A$20),A106,$E106),"") ->  | M106: =IFERROR(OFFSET(INDIRECT(M$1&$A$20),B106,$E106),"") ->  | N106: =IFERROR(OFFSET(INDIRECT(N$1&$A$20),C106,$E106),"") ->  | O106: =IFERROR(OFFSET(INDIRECT(O$1&$A$20),D106,$E106),"") ->  | R106: 1 | S106: 5 | T106: 1 | U106: 1 | V106: 1 | W106: 1 | X106: 1 | AE106: 11 | AF106: 5 | AG106: 1 | AH106: 1 | AI106: 1
A107: N/A | R107: 1 | S107: 5 | T107: 1 | U107: 1 | V107: 1 | W107: 1 | X107: 1 | AE107: 11 | AF107: 6 | AG107: 1 | AH107: 1 | AI107: 1 | BD107: 0 | BE107: 0 | BF107: 0 | BG107: 0
A108: N/A | E108: 48 | L108: Data Source: | M108: Data Source: | N108: Data Source: | O108: Data Source: | R108: 1 | S108: 5 | T108: 1 | U108: 1 | V108: 1 | W108: 1 | X108: 1 | AE108: 11 | AF108: 7 | AG108: 1 | AH108: 1 | AI108: 1 | BD108: Data Source: | BE108: Data Source: | BF108: Data Source: | BG108: Data Source:
A109: N/A | E109: 62 | L109: =IFERROR(OFFSET(INDIRECT(L$1&$A$20),A109,$E109),"") ->  | R109: 1 | S109: 5 | T109: 1 | U109: 1 | V109: 1 | W109: 1 | X109: 1 | AE109: 12 | AF109: 0 | AG109: 1 | AH109: 0 | AI109: 1
A110: N/A | E110: 63 | R110: 1 | S110: 5 | T110: 1 | U110: 1 | V110: 1 | W110: 1 | X110: 1 | AE110: 12 | AF110: 1 | AG110: 1 | AH110: 1 | AI110: 1
A111: N/A | R111: 1 | S111: 5 | T111: 1 | U111: 1 | V111: 1 | W111: 1 | X111: 1 | AE111: 12 | AF111: 2 | AG111: 1 | AH111: 1 | AI111: 1 | BD111: 0 | BE111: 0 | BF111: 0 | BG111: 0
A112: N/A | E112: 56 | L112: ="Metric Type: "&IFERROR(OFFSET(INDIRECT(L$1&$A$20),A112,$E112),"") -> Metric Type: | M112: ="Metric Type: "&IFERROR(OFFSET(INDIRECT(M$1&$A$20),B112,$E112),"") -> Metric Type: | N112: ="Metric Type: "&IFERROR(OFFSET(INDIRECT(N$1&$A$20),C112,$E112),"") -> Metric Type: | O112: ="Metric Type: "&IFERROR(OFFSET(INDIRECT(O$1&$A$20),D112,$E112),"") -> Metric Type: | R112: 1 | S112: 5 | T112: 1 | U112: 1 | V112: 1 | W112: 1 | X112: 1 | AE112: =IF(AF112=0,AE111+1,AE111) -> 12 | AF112: 3 | AG112: 1 | AH112: 1 | AI112: 1 | BD112: Metric Type: | BE112: Metric Type: | BF112: Metric Type: | BG112: Metric Type:
A113: N/A | E113: 57 | L113: ="Numeric Goal: "&IFERROR(OFFSET(INDIRECT(L$1&$A$20),A113,$E113),"") -> Numeric Goal: | M113: ="Numeric Goal: "&IFERROR(OFFSET(INDIRECT(M$1&$A$20),B113,$E113),"") -> Numeric Goal: | N113: ="Numeric Goal: "&IFERROR(OFFSET(INDIRECT(N$1&$A$20),C113,$E113),"") -> Numeric Goal: | O113: ="Numeric Goal: "&IFERROR(OFFSET(INDIRECT(O$1&$A$20),D113,$E113),"") -> Numeric Goal: | R113: 1 | S113: 5 | T113: 1 | U113: 1 | V113: 1 | W113: 1 | X113: 1 | AE113: 12 | AF113: 4 | AG113: 1 | AH113: 1 | AI113: 1 | BD113: Numeric Goal: | BE113: Numeric Goal: | BF113: Numeric Goal: | BG113: Numeric Goal:
A114: N/A | E114: 58 | L114: ="Numerator: "&IFERROR(OFFSET(INDIRECT(L$1&$A$20),A114,$E114),"") -> Numerator: | M114: ="Numerator: "&IFERROR(OFFSET(INDIRECT(M$1&$A$20),B114,$E114),"") -> Numerator: | N114: ="Numerator: "&IFERROR(OFFSET(INDIRECT(N$1&$A$20),C114,$E114),"") -> Numerator: | O114: ="Numerator: "&IFERROR(OFFSET(INDIRECT(O$1&$A$20),D114,$E114),"") -> Numerator: | R114: 1 | S114: 5 | T114: 1 | U114: 1 | V114: 1 | W114: 1 | X114: 1 | AE114: 12 | AF114: 5 | AG114: 1 | AH114: 1 | AI114: 1 | BD114: Numerator: | BE114: Numerator: | BF114: Numerator: | BG114: Numerator:
A115: N/A | E115: 59 | L115: ="Denominator: "&IFERROR(OFFSET(INDIRECT(L$1&$A$20),A115,$E115),"") -> Denominator: | M115: ="Denominator: "&IFERROR(OFFSET(INDIRECT(M$1&$A$20),B115,$E115),"") -> Denominator: | N115: ="Denominator: "&IFERROR(OFFSET(INDIRECT(N$1&$A$20),C115,$E115),"") -> Denominator: | O115: ="Denominator: "&IFERROR(OFFSET(INDIRECT(O$1&$A$20),D115,$E115),"") -> Denominator: | R115: 1 | S115: 5 | T115: 1 | U115: 1 | V115: 1 | W115: 1 | X115: 1 | AE115: 12 | AF115: 6 | AG115: 1 | AH115: 1 | AI115: 1 | BD115: Denominator: | BE115: Denominator: | BF115: Denominator: | BG115: Denominator:
A116: N/A | E116: 61 | M116: ="QPI Metric: "&IFERROR(OFFSET(INDIRECT(M$1&$A$20),B116,$E116),"") -> QPI Metric: | N116: ="QPI Metric: "&IFERROR(OFFSET(INDIRECT(N$1&$A$20),C116,$E116),"") -> QPI Metric: | O116: ="QPI Metric: "&IFERROR(OFFSET(INDIRECT(O$1&$A$20),D116,$E116),"") -> QPI Metric: | R116: 1 | S116: 5 | T116: 1 | U116: 1 | V116: 1 | W116: 1 | X116: 1 | AE116: 12 | AF116: 7 | AG116: 1 | AH116: 1 | AI116: 1 | BD116: 0 | BE116: QPI Metric: | BF116: QPI Metric: | BG116: QPI Metric:
A117: N/A | H117: =$H$41 -> 23 | M117: ="QPI Type: " & IFERROR(OFFSET(INDIRECT($S$1&$A$12),$F117,$H117),"") -> QPI Type: | N117: ="QPI Type: " & IFERROR(OFFSET(INDIRECT($S$1&$A$12),$F117,$H117),"") -> QPI Type: | O117: ="QPI Type: " & IFERROR(OFFSET(INDIRECT($S$1&$A$12),$F117,$H117),"") -> QPI Type: | R117: 1 | S117: 5 | T117: 1 | U117: 1 | V117: 1 | W117: 1 | X117: 1 | AE117: 13 | AF117: 0 | AG117: 1 | AH117: 0 | AI117: 1 | BD117: 0 | BE117: QPI Type: | BF117: QPI Type: | BG117: QPI Type:
A118: N/A | E118: 60 | M118: ="MLIU Required: "&IFERROR(OFFSET(INDIRECT(M$1&$A$20),B118,$E118),"") -> MLIU Required: | N118: ="MLIU Required: "&IFERROR(OFFSET(INDIRECT(N$1&$A$20),C118,$E118),"") -> MLIU Required: | O118: ="MLIU Required: "&IFERROR(OFFSET(INDIRECT(O$1&$A$20),D118,$E118),"") -> MLIU Required: | R118: 1 | S118: 5 | T118: 1 | U118: 1 | V118: 1 | W118: 1 | X118: 1 | AE118: 13 | AF118: 1 | AG118: 1 | AH118: 1 | AI118: 1 | BD118: 0 | BE118: MLIU Required: | BF118: MLIU Required: | BG118: MLIU Required:
A119: N/A | R119: 1 | S119: 5 | T119: 1 | U119: 1 | V119: 1 | W119: 1 | X119: 1 | AE119: 13 | AF119: 2 | AG119: 1 | AH119: 1 | AI119: 1 | BD119: 0 | BE119: 0 | BF119: 0 | BG119: 0
A120: N/A | E120: =E101+$E$20 -> 64 | L120: ="Metric #"&$S120&": "&IFERROR(OFFSET(INDIRECT(L$1&$A$20),A120,$E120),"") -> Metric #6: | M120: ="Metric #"&$S120&": "&IFERROR(OFFSET(INDIRECT(M$1&$A$20),B120,$E120),"") -> Metric #6: | N120: ="Metric #"&$S120&": "&IFERROR(OFFSET(INDIRECT(N$1&$A$20),C120,$E120),"") -> Metric #6: | O120: ="Metric #"&$S120&": "&IFERROR(OFFSET(INDIRECT(O$1&$A$20),D120,$E120),"") -> Metric #6: | R120: 1 | S120: 6 | T120: 1 | U120: 1 | V120: 1 | W120: 1 | X120: 1 | AE120: 13 | AF120: 3 | AG120: 1 | AH120: 1 | AI120: 1 | BD120: Metric #6: | BE120: Metric #6: | BF120: Metric #6: | BG120: Metric #6:
A121: N/A | E121: =E102+$E$20 -> 65 | L121: =IFERROR(OFFSET(INDIRECT(L$1&$A$20),A121,$E121),"") ->  | R121: 1 | S121: 6 | T121: 1 | U121: 1 | V121: 1 | W121: 1 | X121: 1 | AE121: 13 | AF121: 4 | AG121: 1 | AH121: 1 | AI121: 1
A122: N/A | E122: =E103+$E$20 -> 66 | R122: 1 | S122: 6 | T122: 1 | U122: 1 | V122: 1 | W122: 1 | X122: 1 | AE122: =IF(AF122=0,AE121+1,AE121) -> 13 | AF122: 5 | AG122: 1 | AH122: 1 | AI122: 1
A123: N/A | R123: 1 | S123: 6 | T123: 1 | U123: 1 | V123: 1 | W123: 1 | X123: 1 | AE123: 13 | AF123: 6 | AG123: 1 | AH123: 1 | AI123: 1 | BD123: 0 | BE123: 0 | BF123: 0 | BG123: 0
A124: N/A | E124: 60 | L124: Baseline/Goal: | M124: Baseline/Goal: | N124: Baseline/Goal: | O124: Baseline/Goal: | R124: 1 | S124: 6 | T124: 1 | U124: 1 | V124: 1 | W124: 1 | X124: 1 | AE124: 13 | AF124: 7 | AG124: 1 | AH124: 1 | AI124: 1 | BD124: Baseline/Goal: | BE124: Baseline/Goal: | BF124: Baseline/Goal: | BG124: Baseline/Goal:
A125: N/A | E125: 67 | L125: =IFERROR(OFFSET(INDIRECT(L$1&$A$20),A125,$E125),"") ->  | M125: =IFERROR(OFFSET(INDIRECT(M$1&$A$20),B125,$E125),"") ->  | N125: =IFERROR(OFFSET(INDIRECT(N$1&$A$20),C125,$E125),"") ->  | O125: =IFERROR(OFFSET(INDIRECT(O$1&$A$20),D125,$E125),"") ->  | R125: 1 | S125: 6 | T125: 1 | U125: 1 | V125: 1 | W125: 1 | X125: 1
A126: N/A | R126: 1 | S126: 6 | T126: 1 | U126: 1 | V126: 1 | W126: 1 | X126: 1 | BD126: 0 | BE126: 0 | BF126: 0 | BG126: 0
A127: =A126 -> N/A | B127: =B126 ->  | C127: =C126 ->  | D127: =D126 ->  | E127: 60 | L127: Data Source: | M127: Data Source: | N127: Data Source: | O127: Data Source: | R127: 1 | S127: 6 | T127: 1 | U127: 1 | V127: 1 | W127: 1 | X127: 1 | BD127: Data Source: | BE127: Data Source: | BF127: Data Source: | BG127: Data Source:
A128: N/A | E128: 74 | L128: =IFERROR(OFFSET(INDIRECT(L$1&$A$20),A128,$E128),"") ->  | R128: 1 | S128: 6 | T128: 1 | U128: =IF($R128>Z$21,1,IF($S128>INDEX(AK$21:AK$33,MATCH($R128,$AJ$21:$AJ$33,0)),1,0)) -> 1 | V128: =IF($R128>AA$21,1,IF($S128>INDEX(AL$21:AL$33,MATCH($R128,$AJ$21:$AJ$33,0)),1,0)) -> 1 | W128: =IF($R128>AB$21,1,IF($S128>INDEX(AM$21:AM$33,MATCH($R128,$AJ$21:$AJ$33,0)),1,0)) -> 1 | X128: =IF($R128>AC$21,1,IF($S128>INDEX(AN$21:AN$33,MATCH($R128,$AJ$21:$AJ$33,0)),1,0)) -> 1
A129: N/A | E129: 75 | R129: 1 | S129: 6 | T129: 1 | U129: 1 | V129: 1 | W129: 1 | X129: 1
A130: N/A | R130: 1 | S130: 6 | T130: 1 | U130: 1 | V130: 1 | W130: 1 | X130: 1 | BD130: 0 | BE130: 0 | BF130: 0 | BG130: 0
A131: N/A | E131: 68 | L131: ="Metric Type: "&IFERROR(OFFSET(INDIRECT(L$1&$A$20),A131,$E131),"") -> Metric Type: | M131: ="Metric Type: "&IFERROR(OFFSET(INDIRECT(M$1&$A$20),B131,$E131),"") -> Metric Type: | N131: ="Metric Type: "&IFERROR(OFFSET(INDIRECT(N$1&$A$20),C131,$E131),"") -> Metric Type: | O131: ="Metric Type: "&IFERROR(OFFSET(INDIRECT(O$1&$A$20),D131,$E131),"") -> Metric Type: | R131: 1 | S131: 6 | T131: 1 | U131: 1 | V131: 1 | W131: 1 | X131: 1 | BD131: Metric Type: | BE131: Metric Type: | BF131: Metric Type: | BG131: Metric Type:
A132: N/A | E132: 69 | L132: ="Numeric Goal: "&IFERROR(OFFSET(INDIRECT(L$1&$A$20),A132,$E132),"") -> Numeric Goal: | M132: ="Numeric Goal: "&IFERROR(OFFSET(INDIRECT(M$1&$A$20),B132,$E132),"") -> Numeric Goal: | N132: ="Numeric Goal: "&IFERROR(OFFSET(INDIRECT(N$1&$A$20),C132,$E132),"") -> Numeric Goal: | O132: ="Numeric Goal: "&IFERROR(OFFSET(INDIRECT(O$1&$A$20),D132,$E132),"") -> Numeric Goal: | R132: 1 | S132: 6 | T132: 1 | U132: 1 | V132: 1 | W132: 1 | X132: 1 | BD132: Numeric Goal: | BE132: Numeric Goal: | BF132: Numeric Goal: | BG132: Numeric Goal:
A133: N/A | E133: 70 | L133: ="Numerator: "&IFERROR(OFFSET(INDIRECT(L$1&$A$20),A133,$E133),"") -> Numerator: | M133: ="Numerator: "&IFERROR(OFFSET(INDIRECT(M$1&$A$20),B133,$E133),"") -> Numerator: | N133: ="Numerator: "&IFERROR(OFFSET(INDIRECT(N$1&$A$20),C133,$E133),"") -> Numerator: | O133: ="Numerator: "&IFERROR(OFFSET(INDIRECT(O$1&$A$20),D133,$E133),"") -> Numerator: | R133: 1 | S133: 6 | T133: 1 | U133: 1 | V133: 1 | W133: 1 | X133: 1 | BD133: Numerator: | BE133: Numerator: | BF133: Numerator: | BG133: Numerator:
A134: N/A | E134: 71 | L134: ="Denominator: "&IFERROR(OFFSET(INDIRECT(L$1&$A$20),A134,$E134),"") -> Denominator: | M134: ="Denominator: "&IFERROR(OFFSET(INDIRECT(M$1&$A$20),B134,$E134),"") -> Denominator: | N134: ="Denominator: "&IFERROR(OFFSET(INDIRECT(N$1&$A$20),C134,$E134),"") -> Denominator: | O134: ="Denominator: "&IFERROR(OFFSET(INDIRECT(O$1&$A$20),D134,$E134),"") -> Denominator: | R134: 1 | S134: 6 | T134: 1 | U134: 1 | V134: 1 | W134: 1 | X134: 1 | BD134: Denominator: | BE134: Denominator: | BF134: Denominator: | BG134: Denominator:
A135: N/A | E135: 73 | M135: ="QPI Metric: "&IFERROR(OFFSET(INDIRECT(M$1&$A$20),B135,$E135),"") -> QPI Metric: | N135: ="QPI Metric: "&IFERROR(OFFSET(INDIRECT(N$1&$A$20),C135,$E135),"") -> QPI Metric: | O135: ="QPI Metric: "&IFERROR(OFFSET(INDIRECT(O$1&$A$20),D135,$E135),"") -> QPI Metric: | R135: 1 | S135: 6 | T135: 1 | U135: 1 | V135: 1 | W135: 1 | X135: 1 | BD135: 0 | BE135: QPI Metric: | BF135: QPI Metric: | BG135: QPI Metric:
A136: N/A | H136: =$H$41 -> 23 | M136: ="QPI Type: " & IFERROR(OFFSET(INDIRECT($S$1&$A$12),$F136,$H136),"") -> QPI Type: | N136: ="QPI Type: " & IFERROR(OFFSET(INDIRECT($S$1&$A$12),$F136,$H136),"") -> QPI Type: | O136: ="QPI Type: " & IFERROR(OFFSET(INDIRECT($S$1&$A$12),$F136,$H136),"") -> QPI Type: | R136: 1 | S136: 6 | T136: 1 | U136: 1 | V136: 1 | W136: 1 | X136: 1 | BD136: 0 | BE136: QPI Type: | BF136: QPI Type: | BG136: QPI Type:
A137: N/A | E137: 72 | M137: ="MLIU Required: "&IFERROR(OFFSET(INDIRECT(M$1&$A$20),B137,$E137),"") -> MLIU Required: | N137: ="MLIU Required: "&IFERROR(OFFSET(INDIRECT(N$1&$A$20),C137,$E137),"") -> MLIU Required: | O137: ="MLIU Required: "&IFERROR(OFFSET(INDIRECT(O$1&$A$20),D137,$E137),"") -> MLIU Required: | R137: 1 | S137: 6 | T137: 1 | U137: 1 | V137: 1 | W137: 1 | X137: 1 | BD137: 0 | BE137: MLIU Required: | BF137: MLIU Required: | BG137: MLIU Required:
A138: N/A | R138: 1 | S138: 6 | T138: 1 | U138: 1 | V138: 1 | W138: 1 | X138: 1 | BD138: 0 | BE138: 0 | BF138: 0 | BG138: 0
A139: N/A | E139: =E120+$E$20 -> 76 | L139: ="Metric #"&$S139&": "&IFERROR(OFFSET(INDIRECT(L$1&$A$20),A139,$E139),"") -> Metric #7: | M139: ="Metric #"&$S139&": "&IFERROR(OFFSET(INDIRECT(M$1&$A$20),B139,$E139),"") -> Metric #7: | N139: ="Metric #"&$S139&": "&IFERROR(OFFSET(INDIRECT(N$1&$A$20),C139,$E139),"") -> Metric #7: | O139: ="Metric #"&$S139&": "&IFERROR(OFFSET(INDIRECT(O$1&$A$20),D139,$E139),"") -> Metric #7: | R139: 1 | S139: 7 | T139: 1 | U139: 1 | V139: 1 | W139: 1 | X139: 1 | BD139: Metric #7: | BE139: Metric #7: | BF139: Metric #7: | BG139: Metric #7:
A140: N/A | E140: =E121+$E$20 -> 77 | L140: =IFERROR(OFFSET(INDIRECT(L$1&$A$20),A140,$E140),"") ->  | R140: 1 | S140: 7 | T140: 1 | U140: 1 | V140: 1 | W140: 1 | X140: 1
A141: N/A | E141: =E122+$E$20 -> 78 | R141: 1 | S141: 7 | T141: 1 | U141: 1 | V141: 1 | W141: 1 | X141: 1
A142: N/A | R142: 1 | S142: 7 | T142: 1 | U142: 1 | V142: 1 | W142: 1 | X142: 1 | BD142: 0 | BE142: 0 | BF142: 0 | BG142: 0
A143: N/A | E143: 72 | L143: Baseline/Goal: | M143: Baseline/Goal: | N143: Baseline/Goal: | O143: Baseline/Goal: | R143: 1 | S143: 7 | T143: 1 | U143: 1 | V143: 1 | W143: 1 | X143: 1 | BD143: Baseline/Goal: | BE143: Baseline/Goal: | BF143: Baseline/Goal: | BG143: Baseline/Goal:
A144: N/A | E144: 79 | L144: =IFERROR(OFFSET(INDIRECT(L$1&$A$20),A144,$E144),"") ->  | M144: =IFERROR(OFFSET(INDIRECT(M$1&$A$20),B144,$E144),"") ->  | N144: =IFERROR(OFFSET(INDIRECT(N$1&$A$20),C144,$E144),"") ->  | O144: =IFERROR(OFFSET(INDIRECT(O$1&$A$20),D144,$E144),"") ->  | R144: 1 | S144: 7 | T144: 1 | U144: 1 | V144: 1 | W144: 1 | X144: 1
A145: N/A | F145: =F144 ->  | R145: 1 | S145: 7 | T145: 1 | U145: 1 | V145: 1 | W145: 1 | X145: 1 | BD145: 0 | BE145: 0 | BF145: 0 | BG145: 0
A146: N/A | E146: 72 | L146: Data Source: | M146: Data Source: | N146: Data Source: | O146: Data Source: | R146: 1 | S146: 7 | T146: 1 | U146: 1 | V146: 1 | W146: 1 | X146: 1 | BD146: Data Source: | BE146: Data Source: | BF146: Data Source: | BG146: Data Source:
A147: N/A | E147: 86 | L147: =IFERROR(OFFSET(INDIRECT(L$1&$A$20),A147,$E147),"") ->  | R147: 1 | S147: 7 | T147: 1 | U147: 1 | V147: 1 | W147: 1 | X147: 1
A148: N/A | E148: 87 | R148: 1 | S148: 7 | T148: 1 | U148: 1 | V148: 1 | W148: 1 | X148: 1
A149: N/A | R149: 1 | S149: 7 | T149: =IF($M$9="",1,SUMPRODUCT(($R149=$AE$21:$AE$124)*($S149=$AF$21:$AF$124)*($AI$21:$AI$124))) -> 1 | U149: 1 | V149: 1 | W149: 1 | X149: 1 | BD149: 0 | BE149: 0 | BF149: 0 | BG149: 0
A150: N/A | E150: 80 | L150: ="Metric Type: "&IFERROR(OFFSET(INDIRECT(L$1&$A$20),A150,$E150),"") -> Metric Type: | M150: ="Metric Type: "&IFERROR(OFFSET(INDIRECT(M$1&$A$20),B150,$E150),"") -> Metric Type: | N150: ="Metric Type: "&IFERROR(OFFSET(INDIRECT(N$1&$A$20),C150,$E150),"") -> Metric Type: | O150: ="Metric Type: "&IFERROR(OFFSET(INDIRECT(O$1&$A$20),D150,$E150),"") -> Metric Type: | R150: 1 | S150: 7 | T150: 1 | U150: 1 | V150: 1 | W150: 1 | X150: 1 | BD150: =L150 -> Metric Type: | BE150: =M150 -> Metric Type: | BF150: =N150 -> Metric Type: | BG150: =O150 -> Metric Type:
A151: N/A | E151: 81 | L151: ="Numeric Goal: "&IFERROR(OFFSET(INDIRECT(L$1&$A$20),A151,$E151),"") -> Numeric Goal: | M151: ="Numeric Goal: "&IFERROR(OFFSET(INDIRECT(M$1&$A$20),B151,$E151),"") -> Numeric Goal: | N151: ="Numeric Goal: "&IFERROR(OFFSET(INDIRECT(N$1&$A$20),C151,$E151),"") -> Numeric Goal: | O151: ="Numeric Goal: "&IFERROR(OFFSET(INDIRECT(O$1&$A$20),D151,$E151),"") -> Numeric Goal: | R151: 1 | S151: 7 | T151: 1 | U151: 1 | V151: 1 | W151: 1 | X151: 1 | BD151: Numeric Goal: | BE151: Numeric Goal: | BF151: Numeric Goal: | BG151: Numeric Goal:
A152: N/A | E152: 82 | L152: ="Numerator: "&IFERROR(OFFSET(INDIRECT(L$1&$A$20),A152,$E152),"") -> Numerator: | M152: ="Numerator: "&IFERROR(OFFSET(INDIRECT(M$1&$A$20),B152,$E152),"") -> Numerator: | N152: ="Numerator: "&IFERROR(OFFSET(INDIRECT(N$1&$A$20),C152,$E152),"") -> Numerator: | O152: ="Numerator: "&IFERROR(OFFSET(INDIRECT(O$1&$A$20),D152,$E152),"") -> Numerator: | R152: 1 | S152: 7 | T152: 1 | U152: 1 | V152: 1 | W152: 1 | X152: 1 | BD152: Numerator: | BE152: Numerator: | BF152: Numerator: | BG152: Numerator:
A153: N/A | E153: 83 | L153: ="Denominator: "&IFERROR(OFFSET(INDIRECT(L$1&$A$20),A153,$E153),"") -> Denominator: | M153: ="Denominator: "&IFERROR(OFFSET(INDIRECT(M$1&$A$20),B153,$E153),"") -> Denominator: | N153: ="Denominator: "&IFERROR(OFFSET(INDIRECT(N$1&$A$20),C153,$E153),"") -> Denominator: | O153: ="Denominator: "&IFERROR(OFFSET(INDIRECT(O$1&$A$20),D153,$E153),"") -> Denominator: | R153: 1 | S153: 7 | T153: 1 | U153: 1 | V153: 1 | W153: 1 | X153: 1 | BD153: Denominator: | BE153: Denominator: | BF153: Denominator: | BG153: Denominator:
A154: N/A | E154: 85 | M154: ="QPI Metric: "&IFERROR(OFFSET(INDIRECT(M$1&$A$20),B154,$E154),"") -> QPI Metric: | N154: ="QPI Metric: "&IFERROR(OFFSET(INDIRECT(N$1&$A$20),C154,$E154),"") -> QPI Metric: | O154: ="QPI Metric: "&IFERROR(OFFSET(INDIRECT(O$1&$A$20),D154,$E154),"") -> QPI Metric: | R154: 1 | S154: 7 | T154: 1 | U154: 1 | V154: 1 | W154: 1 | X154: 1 | BD154: 0 | BE154: QPI Metric: | BF154: QPI Metric: | BG154: QPI Metric:
A155: N/A | H155: =$H$41 -> 23 | M155: ="QPI Type: " & IFERROR(OFFSET(INDIRECT($S$1&$A$12),$F155,$H155),"") -> QPI Type: | N155: ="QPI Type: " & IFERROR(OFFSET(INDIRECT($S$1&$A$12),$F155,$H155),"") -> QPI Type: | O155: ="QPI Type: " & IFERROR(OFFSET(INDIRECT($S$1&$A$12),$F155,$H155),"") -> QPI Type: | R155: 1 | S155: 7 | T155: 1 | U155: 1 | V155: 1 | W155: 1 | X155: 1 | BD155: 0 | BE155: QPI Type: | BF155: QPI Type: | BG155: QPI Type:
A156: N/A | E156: 84 | M156: ="MLIU Required: "&IFERROR(OFFSET(INDIRECT(M$1&$A$20),B156,$E156),"") -> MLIU Required: | N156: ="MLIU Required: "&IFERROR(OFFSET(INDIRECT(N$1&$A$20),C156,$E156),"") -> MLIU Required: | O156: ="MLIU Required: "&IFERROR(OFFSET(INDIRECT(O$1&$A$20),D156,$E156),"") -> MLIU Required: | R156: 1 | S156: 7 | T156: 1 | U156: 1 | V156: 1 | W156: 1 | X156: 1 | BD156: 0 | BE156: MLIU Required: | BF156: MLIU Required: | BG156: MLIU Required:
A157: N/A | R157: 1 | S157: 7 | T157: 1 | U157: 1 | V157: 1 | W157: 1 | X157: 1 | BD157: 0 | BE157: 0 | BF157: 0 | BG157: 0
A158: =A157 -> N/A | B158: =B157 ->  | C158: =C157 ->  | D158: =D157 ->  | L158: ="Milestone #" & $R158 & " Estimated Incentive Payment:" -> Milestone #1 Estimated Incentive Payment: | M158: ="Milestone #" & $R158 & " Estimated Incentive Payment:" -> Milestone #1 Estimated Incentive Payment: | N158: Milestone #1 Estimated Incentive Payment: | O158: Milestone #1 Estimated Incentive Payment: | R158: 1 | S158: 0 | T158: 1 | U158: 1 | V158: 1 | W158: 1 | X158: 1 | BD158: Milestone #1 Estimated Incentive Payment: | BE158: Milestone #1 Estimated Incentive Payment: | BF158: Milestone #1 Estimated Incentive Payment: | BG158: Milestone #1 Estimated Incentive Payment:
A159: =A158 -> N/A | B159: =B158 ->  | C159: =C158 ->  | D159: =D158 ->  | E159: =E21+$D$20 -> 88 | L159: =IFERROR(OFFSET(INDIRECT(L$1&$A$20),A159,$E159),"") ->  | M159: =IFERROR(OFFSET(INDIRECT(M$1&$A$20),B159,$E159),"") ->  | N159: =IFERROR(OFFSET(INDIRECT(N$1&$A$20),C159,$E159),"") ->  | O159: =IFERROR(OFFSET(INDIRECT(O$1&$A$20),D159,$E159),"") ->  | R159: 1 | S159: 0 | T159: 1 | U159: =IF($R159>Z$21,1,IF($S159>INDEX(AK$21:AK$33,MATCH($R159,$AJ$21:$AJ$33,0)),1,0)) -> 1 | V159: =IF($R159>AA$21,1,IF($S159>INDEX(AL$21:AL$33,MATCH($R159,$AJ$21:$AJ$33,0)),1,0)) -> 1 | W159: =IF($R159>AB$21,1,IF($S159>INDEX(AM$21:AM$33,MATCH($R159,$AJ$21:$AJ$33,0)),1,0)) -> 1 | X159: =IF($R159>AC$21,1,IF($S159>INDEX(AN$21:AN$33,MATCH($R159,$AJ$21:$AJ$33,0)),1,0)) -> 1
A160: =A159 -> N/A | B160: =B159 ->  | C160: =C159 ->  | D160: =D159 ->  | R160: 1 | S160: 0 | T160: 1 | U160: 1 | V160: 1 | W160: 1 | X160: 1 | BD160: 0 | BE160: 0 | BF160: 0 | BG160: 0
A161: =A160 -> N/A | B161: =B160 ->  | C161: =C160 ->  | D161: =D160 ->  | E161: =IF($E21="","",$E21+$AL$12) -> 89 | H161: =IF($H21="","",$H21) ->  | L161: ="Milestone #"&$R161&": "&IFERROR(OFFSET(INDIRECT(L$1&$A$20),A161,$E161),"") -> Milestone #2: | M161: ="Milestone #"&$R161&": "&IFERROR(OFFSET(INDIRECT(M$1&$A$20),B161,$E161),"") -> Milestone #2: | N161: ="Milestone #"&$R161&": "&IFERROR(OFFSET(INDIRECT(N$1&$A$20),C161,$E161),"") -> Milestone #2: | O161: ="Milestone #"&$R161&": "&IFERROR(OFFSET(INDIRECT(O$1&$A$20),D161,$E161),"") -> Milestone #2: | R161: 2 | S161: 0 | T161: 1 | U161: =IF($R161>Z$21,1,IF($S161>INDEX(AK$21:AK$33,MATCH($R161,$AJ$21:$AJ$33,0)),1,0)) -> 1 | V161: 1 | W161: 1 | X161: 1 | BD161: Milestone #2: | BE161: Milestone #2: | BF161: Milestone #2: | BG161: Milestone #2:
A162: =A161 -> N/A | B162: =B161 ->  | C162: =C161 ->  | D162: =D161 ->  | E162: =IF($E22="","",$E22+$AL$12) -> 90 | H162: =IF($H22="","",$H22) ->  | L162: =IFERROR(OFFSET(INDIRECT(L$1&$A$20),A162,$E162),"") ->  | R162: 2 | S162: 0 | T162: 1 | U162: =IF($R162>Z$21,1,IF($S162>INDEX(AK$21:AK$33,MATCH($R162,$AJ$21:$AJ$33,0)),1,0)) -> 1 | V162: 1 | W162: 1 | X162: 1
A163: N/A | E163: 91 | R163: 2 | S163: 0 | T163: 1 | U163: 1 | V163: 1 | W163: 1 | X163: 1
A164: N/A | R164: 2 | S164: 0 | T164: 1 | U164: 1 | V164: 1 | W164: 1 | X164: 1 | BD164: 0 | BE164: 0 | BF164: 0 | BG164: 0
A165: N/A | E165: 93 | L165: ="Metric #"&$S165&": "&IFERROR(OFFSET(INDIRECT(L$1&$A$20),A165,$E165),"") -> Metric #1: | M165: ="Metric #"&$S165&": "&IFERROR(OFFSET(INDIRECT(M$1&$A$20),B165,$E165),"") -> Metric #1: | N165: ="Metric #"&$S165&": "&IFERROR(OFFSET(INDIRECT(N$1&$A$20),C165,$E165),"") -> Metric #1: | O165: ="Metric #"&$S165&": "&IFERROR(OFFSET(INDIRECT(O$1&$A$20),D165,$E165),"") -> Metric #1: | R165: 2 | S165: 1 | T165: 1 | U165: 1 | V165: 1 | W165: 1 | X165: 1 | BD165: Metric #1: | BE165: Metric #1: | BF165: Metric #1: | BG165: Metric #1:
A166: N/A | E166: 94 | L166: =IFERROR(OFFSET(INDIRECT(L$1&$A$20),A166,$E166),"") ->  | R166: 2 | S166: 1 | T166: 1 | U166: 1 | V166: 1 | W166: 1 | X166: 1
A167: N/A | E167: 95 | R167: 2 | S167: 1 | T167: 1 | U167: 1 | V167: 1 | W167: 1 | X167: 1
A168: N/A | R168: 2 | S168: 1 | T168: 1 | U168: 1 | V168: 1 | W168: 1 | X168: 1 | BD168: 0 | BE168: 0 | BF168: 0 | BG168: 0
A169: N/A | L169: Baseline/Goal: | M169: Baseline/Goal: | N169: Baseline/Goal: | O169: Baseline/Goal: | R169: 2 | S169: 1 | T169: 1 | U169: 1 | V169: 1 | W169: 1 | X169: 1 | BD169: Baseline/Goal: | BE169: Baseline/Goal: | BF169: Baseline/Goal: | BG169: Baseline/Goal:
A170: N/A | E170: 96 | L170: =IFERROR(OFFSET(INDIRECT(L$1&$A$20),A170,$E170),"") ->  | M170: =IFERROR(OFFSET(INDIRECT(M$1&$A$20),B170,$E170),"") ->  | N170: =IFERROR(OFFSET(INDIRECT(N$1&$A$20),C170,$E170),"") ->  | O170: =IFERROR(OFFSET(INDIRECT(O$1&$A$20),D170,$E170),"") ->  | R170: 2 | S170: 1 | T170: 1 | U170: 1 | V170: 1 | W170: 1 | X170: 1
A171: N/A | R171: 2 | S171: 1 | T171: 1 | U171: 1 | V171: 1 | W171: 1 | X171: 1 | BD171: 0 | BE171: 0 | BF171: 0 | BG171: 0
A172: N/A | L172: Data Source: | M172: Data Source: | N172: Data Source: | O172: Data Source: | R172: 2 | S172: 1 | T172: 1 | U172: 1 | V172: 1 | W172: 1 | X172: 1 | BD172: Data Source: | BE172: Data Source: | BF172: Data Source: | BG172: Data Source:
A173: N/A | E173: 103 | L173: =IFERROR(OFFSET(INDIRECT(L$1&$A$20),A173,$E173),"") ->  | R173: 2 | S173: 1 | T173: 1 | U173: 1 | V173: 1 | W173: 1 | X173: 1
A174: N/A | E174: 104 | R174: 2 | S174: 1 | T174: 1 | U174: 1 | V174: 1 | W174: 1 | X174: 1
A175: N/A | R175: 2 | S175: 1 | T175: 1 | U175: 1 | V175: 1 | W175: 1 | X175: 1 | BD175: 0 | BE175: 0 | BF175: 0 | BG175: 0
A176: N/A | E176: 97 | L176: ="Metric Type: "&IFERROR(OFFSET(INDIRECT(L$1&$A$20),A176,$E176),"") -> Metric Type: | M176: ="Metric Type: "&IFERROR(OFFSET(INDIRECT(M$1&$A$20),B176,$E176),"") -> Metric Type: | N176: ="Metric Type: "&IFERROR(OFFSET(INDIRECT(N$1&$A$20),C176,$E176),"") -> Metric Type: | O176: ="Metric Type: "&IFERROR(OFFSET(INDIRECT(O$1&$A$20),D176,$E176),"") -> Metric Type: | R176: 2 | S176: 1 | T176: 1 | U176: 1 | V176: 1 | W176: 1 | X176: 1 | BD176: Metric Type: | BE176: Metric Type: | BF176: Metric Type: | BG176: Metric Type:
A177: N/A | E177: 98 | L177: ="Numeric Goal: "&IFERROR(OFFSET(INDIRECT(L$1&$A$20),A177,$E177),"") -> Numeric Goal: | M177: ="Numeric Goal: "&IFERROR(OFFSET(INDIRECT(M$1&$A$20),B177,$E177),"") -> Numeric Goal: | N177: ="Numeric Goal: "&IFERROR(OFFSET(INDIRECT(N$1&$A$20),C177,$E177),"") -> Numeric Goal: | O177: ="Numeric Goal: "&IFERROR(OFFSET(INDIRECT(O$1&$A$20),D177,$E177),"") -> Numeric Goal: | R177: 2 | S177: 1 | T177: 1 | U177: 1 | V177: 1 | W177: 1 | X177: 1 | BD177: Numeric Goal: | BE177: Numeric Goal: | BF177: Numeric Goal: | BG177: Numeric Goal:
A178: N/A | E178: 99 | L178: ="Numerator: "&IFERROR(OFFSET(INDIRECT(L$1&$A$20),A178,$E178),"") -> Numerator: | M178: ="Numerator: "&IFERROR(OFFSET(INDIRECT(M$1&$A$20),B178,$E178),"") -> Numerator: | N178: ="Numerator: "&IFERROR(OFFSET(INDIRECT(N$1&$A$20),C178,$E178),"") -> Numerator: | O178: ="Numerator: "&IFERROR(OFFSET(INDIRECT(O$1&$A$20),D178,$E178),"") -> Numerator: | R178: 2 | S178: 1 | T178: 1 | U178: 1 | V178: 1 | W178: 1 | X178: 1 | BD178: Numerator: | BE178: Numerator: | BF178: Numerator: | BG178: Numerator:
A179: N/A | E179: 100 | L179: ="Denominator: "&IFERROR(OFFSET(INDIRECT(L$1&$A$20),A179,$E179),"") -> Denominator: | M179: ="Denominator: "&IFERROR(OFFSET(INDIRECT(M$1&$A$20),B179,$E179),"") -> Denominator: | N179: ="Denominator: "&IFERROR(OFFSET(INDIRECT(N$1&$A$20),C179,$E179),"") -> Denominator: | O179: ="Denominator: "&IFERROR(OFFSET(INDIRECT(O$1&$A$20),D179,$E179),"") -> Denominator: | R179: 2 | S179: 1 | T179: 1 | U179: 1 | V179: 1 | W179: 1 | X179: 1 | BD179: Denominator: | BE179: Denominator: | BF179: Denominator: | BG179: Denominator:
A180: N/A | E180: 102 | M180: ="QPI Metric: "&IFERROR(OFFSET(INDIRECT(M$1&$A$20),B180,$E180),"") -> QPI Metric: | N180: ="QPI Metric: "&IFERROR(OFFSET(INDIRECT(N$1&$A$20),C180,$E180),"") -> QPI Metric: | O180: ="QPI Metric: "&IFERROR(OFFSET(INDIRECT(O$1&$A$20),D180,$E180),"") -> QPI Metric: | R180: 2 | S180: 1 | T180: 1 | U180: 1 | V180: 1 | W180: 1 | X180: 1 | BD180: 0 | BE180: QPI Metric: | BF180: QPI Metric: | BG180: QPI Metric:
A181: N/A | H181: 23 | M181: ="QPI Type: " & IFERROR(OFFSET(INDIRECT($S$1&$A$12),$F181,$H181),"") -> QPI Type: | N181: ="QPI Type: " & IFERROR(OFFSET(INDIRECT($S$1&$A$12),$F181,$H181),"") -> QPI Type: | O181: ="QPI Type: " & IFERROR(OFFSET(INDIRECT($S$1&$A$12),$F181,$H181),"") -> QPI Type: | R181: 2 | S181: 1 | T181: 1 | U181: 1 | V181: 1 | W181: 1 | X181: 1 | BD181: 0 | BE181: QPI Type: | BF181: QPI Type: | BG181: QPI Type:
A182: N/A | E182: 101 | M182: ="MLIU Required: "&IFERROR(OFFSET(INDIRECT(M$1&$A$20),B182,$E182),"") -> MLIU Required: | N182: ="MLIU Required: "&IFERROR(OFFSET(INDIRECT(N$1&$A$20),C182,$E182),"") -> MLIU Required: | O182: ="MLIU Required: "&IFERROR(OFFSET(INDIRECT(O$1&$A$20),D182,$E182),"") -> MLIU Required: | R182: 2 | S182: 1 | T182: 1 | U182: 1 | V182: 1 | W182: 1 | X182: 1 | BD182: 0 | BE182: MLIU Required: | BF182: MLIU Required: | BG182: MLIU Required:
A183: N/A | R183: 2 | S183: 1 | T183: 1 | U183: 1 | V183: 1 | W183: 1 | X183: 1 | BD183: 0 | BE183: 0 | BF183: 0 | BG183: 0
A184: N/A | E184: 105 | L184: ="Metric #"&$S184&": "&IFERROR(OFFSET(INDIRECT(L$1&$A$20),A184,$E184),"") -> Metric #2: | M184: ="Metric #"&$S184&": "&IFERROR(OFFSET(INDIRECT(M$1&$A$20),B184,$E184),"") -> Metric #2: | N184: ="Metric #"&$S184&": "&IFERROR(OFFSET(INDIRECT(N$1&$A$20),C184,$E184),"") -> Metric #2: | O184: ="Metric #"&$S184&": "&IFERROR(OFFSET(INDIRECT(O$1&$A$20),D184,$E184),"") -> Metric #2: | R184: 2 | S184: 2 | T184: 1 | U184: 1 | V184: 1 | W184: 1 | X184: 1 | BD184: Metric #2: | BE184: Metric #2: | BF184: Metric #2: | BG184: Metric #2:
A185: N/A | E185: 106 | L185: =IFERROR(OFFSET(INDIRECT(L$1&$A$20),A185,$E185),"") ->  | R185: 2 | S185: 2 | T185: 1 | U185: 1 | V185: 1 | W185: 1 | X185: 1
A186: N/A | E186: 107 | R186: 2 | S186: 2 | T186: 1 | U186: 1 | V186: 1 | W186: 1 | X186: 1
A187: N/A | R187: 2 | S187: 2 | T187: 1 | U187: 1 | V187: 1 | W187: 1 | X187: 1 | BD187: 0 | BE187: 0 | BF187: 0 | BG187: 0
A188: N/A | E188: 101 | L188: Baseline/Goal: | M188: Baseline/Goal: | N188: Baseline/Goal: | O188: Baseline/Goal: | R188: 2 | S188: 2 | T188: 1 | U188: 1 | V188: 1 | W188: 1 | X188: 1 | BD188: Baseline/Goal: | BE188: Baseline/Goal: | BF188: Baseline/Goal: | BG188: Baseline/Goal:
A189: N/A | E189: 108 | L189: =IFERROR(OFFSET(INDIRECT(L$1&$A$20),A189,$E189),"") ->  | M189: =IFERROR(OFFSET(INDIRECT(M$1&$A$20),B189,$E189),"") ->  | N189: =IFERROR(OFFSET(INDIRECT(N$1&$A$20),C189,$E189),"") ->  | O189: =IFERROR(OFFSET(INDIRECT(O$1&$A$20),D189,$E189),"") ->  | R189: 2 | S189: 2 | T189: 1 | U189: 1 | V189: 1 | W189: 1 | X189: 1
A190: N/A | R190: 2 | S190: 2 | T190: 1 | U190: 1 | V190: 1 | W190: 1 | X190: 1 | BD190: 0 | BE190: 0 | BF190: 0 | BG190: 0
A191: N/A | E191: 101 | L191: Data Source: | M191: Data Source: | N191: Data Source: | O191: Data Source: | R191: 2 | S191: 2 | T191: 1 | U191: 1 | V191: 1 | W191: 1 | X191: 1 | BD191: Data Source: | BE191: Data Source: | BF191: Data Source: | BG191: Data Source:
A192: N/A | E192: 115 | L192: =IFERROR(OFFSET(INDIRECT(L$1&$A$20),A192,$E192),"") ->  | R192: 2 | S192: 2 | T192: 1 | U192: 1 | V192: 1 | W192: 1 | X192: 1
A193: N/A | E193: 116 | R193: 2 | S193: 2 | T193: 1 | U193: 1 | V193: 1 | W193: 1 | X193: 1
A194: N/A | R194: 2 | S194: 2 | T194: 1 | U194: 1 | V194: 1 | W194: 1 | X194: 1 | BD194: 0 | BE194: 0 | BF194: 0 | BG194: 0
A195: N/A | E195: 109 | L195: ="Metric Type: "&IFERROR(OFFSET(INDIRECT(L$1&$A$20),A195,$E195),"") -> Metric Type: | M195: ="Metric Type: "&IFERROR(OFFSET(INDIRECT(M$1&$A$20),B195,$E195),"") -> Metric Type: | N195: ="Metric Type: "&IFERROR(OFFSET(INDIRECT(N$1&$A$20),C195,$E195),"") -> Metric Type: | O195: ="Metric Type: "&IFERROR(OFFSET(INDIRECT(O$1&$A$20),D195,$E195),"") -> Metric Type: | R195: 2 | S195: 2 | T195: 1 | U195: 1 | V195: 1 | W195: 1 | X195: 1 | BD195: Metric Type: | BE195: Metric Type: | BF195: Metric Type: | BG195: Metric Type:
A196: N/A | E196: 110 | L196: ="Numeric Goal: "&IFERROR(OFFSET(INDIRECT(L$1&$A$20),A196,$E196),"") -> Numeric Goal: | M196: ="Numeric Goal: "&IFERROR(OFFSET(INDIRECT(M$1&$A$20),B196,$E196),"") -> Numeric Goal: | N196: ="Numeric Goal: "&IFERROR(OFFSET(INDIRECT(N$1&$A$20),C196,$E196),"") -> Numeric Goal: | O196: ="Numeric Goal: "&IFERROR(OFFSET(INDIRECT(O$1&$A$20),D196,$E196),"") -> Numeric Goal: | R196: 2 | S196: 2 | T196: 1 | U196: 1 | V196: 1 | W196: 1 | X196: 1 | BD196: Numeric Goal: | BE196: Numeric Goal: | BF196: Numeric Goal: | BG196: Numeric Goal:
A197: N/A | E197: 111 | L197: ="Numerator: "&IFERROR(OFFSET(INDIRECT(L$1&$A$20),A197,$E197),"") -> Numerator: | M197: ="Numerator: "&IFERROR(OFFSET(INDIRECT(M$1&$A$20),B197,$E197),"") -> Numerator: | N197: ="Numerator: "&IFERROR(OFFSET(INDIRECT(N$1&$A$20),C197,$E197),"") -> Numerator: | O197: ="Numerator: "&IFERROR(OFFSET(INDIRECT(O$1&$A$20),D197,$E197),"") -> Numerator: | R197: 2 | S197: 2 | T197: 1 | U197: 1 | V197: 1 | W197: 1 | X197: 1 | BD197: Numerator: | BE197: Numerator: | BF197: Numerator: | BG197: Numerator:
A198: N/A | E198: 112 | L198: ="Denominator: "&IFERROR(OFFSET(INDIRECT(L$1&$A$20),A198,$E198),"") -> Denominator: | M198: ="Denominator: "&IFERROR(OFFSET(INDIRECT(M$1&$A$20),B198,$E198),"") -> Denominator: | N198: ="Denominator: "&IFERROR(OFFSET(INDIRECT(N$1&$A$20),C198,$E198),"") -> Denominator: | O198: ="Denominator: "&IFERROR(OFFSET(INDIRECT(O$1&$A$20),D198,$E198),"") -> Denominator: | R198: 2 | S198: 2 | T198: 1 | U198: 1 | V198: 1 | W198: 1 | X198: 1 | BD198: Denominator: | BE198: Denominator: | BF198: Denominator: | BG198: Denominator:
A199: N/A | E199: 114 | M199: ="QPI Metric: "&IFERROR(OFFSET(INDIRECT(M$1&$A$20),B199,$E199),"") -> QPI Metric: | N199: ="QPI Metric: "&IFERROR(OFFSET(INDIRECT(N$1&$A$20),C199,$E199),"") -> QPI Metric: | O199: ="QPI Metric: "&IFERROR(OFFSET(INDIRECT(O$1&$A$20),D199,$E199),"") -> QPI Metric: | R199: 2 | S199: 2 | T199: 1 | U199: 1 | V199: 1 | W199: 1 | X199: 1 | BD199: 0 | BE199: QPI Metric: | BF199: QPI Metric: | BG199: QPI Metric:
A200: N/A | H200: 23 | M200: ="QPI Type: " & IFERROR(OFFSET(INDIRECT($S$1&$A$12),$F200,$H200),"") -> QPI Type: | N200: ="QPI Type: " & IFERROR(OFFSET(INDIRECT($S$1&$A$12),$F200,$H200),"") -> QPI Type: | O200: ="QPI Type: " & IFERROR(OFFSET(INDIRECT($S$1&$A$12),$F200,$H200),"") -> QPI Type: | R200: 2 | S200: 2 | T200: 1 | U200: 1 | V200: 1 | W200: 1 | X200: 1 | BD200: 0 | BE200: QPI Type: | BF200: QPI Type: | BG200: QPI Type:
A201: N/A | E201: 113 | M201: ="MLIU Required: "&IFERROR(OFFSET(INDIRECT(M$1&$A$20),B201,$E201),"") -> MLIU Required: | N201: ="MLIU Required: "&IFERROR(OFFSET(INDIRECT(N$1&$A$20),C201,$E201),"") -> MLIU Required: | O201: ="MLIU Required: "&IFERROR(OFFSET(INDIRECT(O$1&$A$20),D201,$E201),"") -> MLIU Required: | R201: 2 | S201: 2 | T201: 1 | U201: 1 | V201: 1 | W201: 1 | X201: 1 | BD201: 0 | BE201: MLIU Required: | BF201: MLIU Required: | BG201: MLIU Required:
A202: N/A | R202: 2 | S202: 2 | T202: 1 | U202: 1 | V202: 1 | W202: 1 | X202: 1 | BD202: 0 | BE202: 0 | BF202: 0 | BG202: 0
... 923 more rows

Sheet Cat 2 Summary
A1: 2 | C1: Unique Identifier Range: | D1: =RIGHT(CELL("Address",'DY2-Category 1'!$A$7),4)&":"&RIGHT(CELL("address",'DY2-Category 1'!$A$1005),7) -> $A$7:$A$1005 | L1: ="'DY2-Category "&$A$1&"'!" -> 'DY2-Category 2'! | M1: ="'DY3-Category "&$A$1&"'!" -> 'DY3-Category 2'! | N1: ="'DY4-Category "&$A$1&"'!" -> 'DY4-Category 2'! | O1: ="'DY5-Category "&$A$1&"'!" -> 'DY5-Category 2'! | R1: QPI Worksheet: | S1: ="'DY3-5 QPI Summary'!" -> 'DY3-5 QPI Summary'! | T1: =CELL("Address",$T$11)&":"&CELL("address",$T$1843) -> $T$11:$T$1843 | Z1: Milestone Number Range
Z2: =RIGHT(CELL("Address",'DY2-Category 1'!$M$7),4)&":"&RIGHT(CELL("address",'DY2-Category 1'!$M$1005),7) -> $M$7:$M$1005 | AA2: =RIGHT(CELL("Address",'DY3-Category 1'!$M$7),4)&":"&RIGHT(CELL("address",'DY3-Category 1'!$M$1005),7) -> $M$7:$M$1005 | AB2: =RIGHT(CELL("Address",'DY4-Category 1'!$M$7),4)&":"&RIGHT(CELL("address",'DY4-Category 1'!$M$1005),7) -> $M$7:$M$1005 | AC2: =RIGHT(CELL("Address",'DY5-Category 1'!$M$7),4)&":"&RIGHT(CELL("address",'DY5-Category 1'!$M$1005),7) -> $M$7:$M$1005
L5: ="Category " & $A$1 -> Category 2
L6: Category: | M6: =$A$1 -> 2
L7: RHP: | M7: =RHP -> 4
L8: TPI:
L9: Project ID:
T10: Hide? | BB10: Copy of cells for autofit row height
A11: QPI Offset | L11: =IFERROR(INDEX(INDIRECT($M$1&"G5:G1003"),MATCH(RHP&"_"&$M$8,INDIRECT($M$1&"B5:B1003"),0)),"") ->  | T11: 0 | AN11: 1 | AO11: 2 | AP11: 3 | AQ11: 4 | AR11: 5 | AS11: 6 | AT11: 7 | AU11: 8 | AV11: 9 | AW11: 10 | AX11: 11 | AY11: 12 | AZ11: 13 | BB11: =L11 -> 
A12: =RIGHT(CELL("address",'DY3-5 QPI Summary'!$D$6),4) -> $D$6 | L12: =IFERROR(INDEX(INDIRECT($M$1&"I5:I1003"),MATCH(RHP&"_"&$M$9,INDIRECT($M$1&"A5:A1003"),0))&" - "&INDEX(INDIRECT($M$1&"J5:J1003"),MATCH(RHP&"_"&$M$9,INDIRECT($M$1&"A5:A1003"),0)),"") ->  | N12: =IFERROR(INDEX(INDIRECT($M$1&"K5:K1003"),MATCH(RHP&"_"&$M$9,INDIRECT($M$1&"A5:A1003"),0))&" - "&INDEX(INDIRECT($M$1&"L5:L1003"),MATCH(RHP&"_"&$M$9,INDIRECT($M$1&"A5:A1003"),0)),"") ->  | T12: 0 | AJ12: Milestone Column Offset: | AL12: =COLUMNS('DY2-Category 1'!$O$6:$CY$6) -> 89 | AM12: Metric Column Offset: | AN12: =COLUMNS('DY2-Category 1'!$O$6:$Q$6) -> 3 | AO12: =$AL$12*(AO$11-1)+$AN$12 -> 92 | AP12: =$AL$12*(AP$11-1)+$AN$12 -> 181 | AQ12: 270 | AR12: 359 | AS12: 448 | AT12: 537 | AU12: 626 | AV12: 715 | AW12: 804 | AX12: 893 | AY12: 982 | AZ12: 1071 | BB12: =L12 ->  | BC12: =N12 -> 
G13: QPI: Cols per DY ---> | H13: =COUNTA('DY3-5 QPI Summary'!$I$5:$N$5) -> 6 | I13: =COUNTA('DY3-5 QPI Summary'!$O$5:$T$5) -> 6 | L13: Year 2 | M13: Year 3 | N13: Year 4 | O13: Year 5
F14: QPI Row | G14: Text Helper | H14: QPI Column 1 | I14: QPI Column 2 | J14: QPI Column 3 | L14: 10/1/2012 - 9/30/2013 | M14: 10/1/2013 - 9/30/2014 | N14: 10/1/2014 - 9/30/2015 | O14: 10/1/2015 - 9/30/2016
F15: =IFERROR(MATCH(RHP&"_"&$M$9,INDIRECT(S$1&"$C$6:$C$1494"),0)-1,"") ->  | G15: ="Medicaid (Goal)" -> Medicaid (Goal) | H15: 5 | I15: =H15+H$13 -> 11 | J15: =I15+I$13 -> 17 | M15: ="" & RIGHT(LEFT(M$1,4),3) & " " & $G15 & ": " & IFERROR(TEXT(OFFSET(INDIRECT($S$1&$A$12),$F15,H15),"0.00%"),"") & "" -> DY3 Medicaid (Goal): | N15: ="" & RIGHT(LEFT(N$1,4),3) & " " & $G15 & ": " & IFERROR(TEXT(OFFSET(INDIRECT($S$1&$A$12),$F15,I15),"0.00%"),"") & "" -> DY4 Medicaid (Goal): | O15: ="" & RIGHT(LEFT(O$1,4),3) & " " & $G15 & ": " & IFERROR(TEXT(OFFSET(INDIRECT($S$1&$A$12),$F15,J15),"0.00%"),"") & "" -> DY5 Medicaid (Goal): | T15: =IF($M$9="",1,0) -> 1 | BB15: 0
F16: =F15 ->  | G16: Low Income (Goal) | H16: 7 | I16: =H16+H$13 -> 13 | J16: 19 | M16: ="" & RIGHT(LEFT(M$1,4),3) & " " & $G16 & ": " & IFERROR(TEXT(OFFSET(INDIRECT($S$1&$A$12),$F16,H16),"0.00%"),"") & "" -> DY3 Low Income (Goal): | N16: DY4 Low Income (Goal): | O16: DY5 Low Income (Goal): | T16: =IF($M$9="",1,0) -> 1
F17: =F16 ->  | G17: Medicaid Low Income (Goal) | H17: 9 | I17: 15 | J17: 21 | M17: DY3 Medicaid Low Income (Goal): | N17: DY4 Medicaid Low Income (Goal): | O17: DY5 Medicaid Low Income (Goal): | T17: 1
A18: DY2-Row | B18: DY3-Row | C18: DY4-Row | D18: DY5-Row | E18: DY2-5 Col | G18: Medicaid (Actual) | H18: 6 | I18: 12 | J18: 18 | M18: DY3 Medicaid (Actual): | N18: DY4 Medicaid (Actual): | O18: DY5 Medicaid (Actual): | T18: 1
A19: DY2-5 Offset | G19: Low Income (Actual) | H19: 8 | I19: 14 | J19: 20 | M19: DY3 Low Income (Actual): | N19: DY4 Low Income (Actual): | O19: DY5 Low Income (Actual): | T19: 1 | U19: Shading? | Z19: Number of Milestones | AE19: Hide Table | AJ19: Number of Metrics | BB19: 0
A20: =RIGHT(CELL("address",'DY2-Category 1'!$O$7),4) -> $O$7 | D20: =COLUMNS('DY2-Category 1'!$O$6:$CX$6) -> 88 | E20: =COLUMNS('DY2-Category 1'!$S$6:$AD$6) -> 12 | G20: Medicaid Low Income (Actual) | H20: 10 | I20: 16 | J20: 22 | M20: DY3 Medicaid Low Income (Actual): | N20: DY4 Medicaid Low Income (Actual): | O20: DY5 Medicaid Low Income (Actual): | R20: Milestone | S20: Metric | T20: 1 | U20: DY2 | V20: DY3 | W20: DY4 | X20: DY5 | Z20: DY2 | AA20: DY3 | AB20: DY4 | AC20: DY5 | AD20: Max | AE20: Milestone | AF20: Metric | AG20: Hide Milestone? | AH20: Hide Metric? | AI20: Final Hide? | AJ20: Milestone | AK20: DY2 | AL20: DY3 | AM20: DY4 | AN20: DY5 | AO20: MAX
A21: =IFERROR(MATCH(RHP&"_"&$M$9,INDIRECT(L$1&$D$1),0)-1,"N/A") -> N/A | B21: =MATCH(RHP&"_"&$M$9,INDIRECT(M$1&$D$1),0)-1 ->  | C21: =MATCH(RHP&"_"&$M$9,INDIRECT(N$1&$D$1),0)-1 ->  | D21: =MATCH(RHP&"_"&$M$9,INDIRECT(O$1&$D$1),0)-1 ->  | E21: 0 | F21: =F20 ->  | L21: ="Milestone #"&$R21&": "&IFERROR(OFFSET(INDIRECT(L$1&$A$20),A21,$E21),"") -> Milestone #1: | M21: ="Milestone #"&$R21&": "&IFERROR(OFFSET(INDIRECT(M$1&$A$20),B21,$E21),"") -> Milestone #1: | N21: ="Milestone #"&$R21&": "&IFERROR(OFFSET(INDIRECT(N$1&$A$20),C21,$E21),"") -> Milestone #1: | O21: ="Milestone #"&$R21&": "&IFERROR(OFFSET(INDIRECT(O$1&$A$20),D21,$E21),"") -> Milestone #1: | R21: 1 | S21: 0 | T21: =IF($M$9="",1,SUMPRODUCT(($R21=$AE$21:$AE$124)*($S21=$AF$21:$AF$124)*($AI$21:$AI$124))) -> 1 | U21: =IF($R21>Z$21,1,IF($S21>INDEX(AK$21:AK$33,MATCH($R21,$AJ$21:$AJ$33,0)),1,0)) -> 1 | V21: =IF($R21>AA$21,1,IF($S21>INDEX(AL$21:AL$33,MATCH($R21,$AJ$21:$AJ$33,0)),1,0)) -> 1 | W21: 1 | X21: 1 | Z21: =IFERROR(INDEX(INDIRECT(L$1&Z$2),A$21+1),0) -> 0 | AA21: =IFERROR(INDEX(INDIRECT(M$1&AA$2),B$21+1),0) -> 0 | AB21: =IFERROR(INDEX(INDIRECT(N$1&AB$2),C$21+1),0) -> 0 | AC21: =IFERROR(INDEX(INDIRECT(O$1&AC$2),D$21+1),0) -> 0 | AD21: =MAX(Z21:AC21) -> 0 | AE21: 1 | AF21: 0 | AG21: =IF($AE21>$AD$21,1,0) -> 1 | AH21: =IF($AF21=0,0,IF($AF21>INDEX($AO$21:$AO$33,MATCH($AE21,$AJ$21:$AJ$33,0)),1,0)) -> 0 | AI21: =MAX(AG21:AH21) -> 1 | AJ21: 1 | AK21: =IFERROR(OFFSET(INDIRECT(L$1&$A$20),A$21,HLOOKUP($AJ21,$AN$11:$AZ$12,2)),0) -> 0 | AL21: =IFERROR(OFFSET(INDIRECT(M$1&$A$20),B$21,HLOOKUP($AJ21,$AN$11:$AZ$12,2)),0) -> 0 | AM21: =IFERROR(OFFSET(INDIRECT(N$1&$A$20),C$21,HLOOKUP($AJ21,$AN$11:$AZ$12,2)),0) -> 0 | AN21: =IFERROR(OFFSET(INDIRECT(O$1&$A$20),D$21,HLOOKUP($AJ21,$AN$11:$AZ$12,2)),0) -> 0 | AO21: =MAX(AK21:AN21) -> 0 | BD21: =L21 -> Milestone #1: | BE21: =M21 -> Milestone #1: | BF21: Milestone #1: | BG21: Milestone #1:
A22: =A21 -> N/A | B22: =B21 ->  | C22: =C21 ->  | D22: =D21 ->  | E22: =E21+1 -> 1 | F22: =F21 ->  | L22: =IFERROR(OFFSET(INDIRECT(L$1&$A$20),A22,$E22),"") ->  | R22: 1 | S22: 0 | T22: 1 | U22: =IF($R22>Z$21,1,IF($S22>INDEX(AK$21:AK$33,MATCH($R22,$AJ$21:$AJ$33,0)),1,0)) -> 1 | V22: 1 | W22: 1 | X22: 1 | AE22: =IF(AF22=0,AE21+1,AE21) -> 1 | AF22: 1 | AG22: 1 | AH22: =IF($AF22=0,0,IF($AF22>INDEX($AO$21:$AO$33,MATCH($AE22,$AJ$21:$AJ$33,0)),1,0)) -> 1 | AI22: =MAX(AG22:AH22) -> 1 | AJ22: =AJ21+1 -> 2 | AK22: 0 | AL22: 0 | AM22: 0 | AN22: 0 | AO22: =MAX(AK22:AN22) -> 0 | BD22: =L22 -> 
A23: =A22 -> N/A | E23: =E21+2 -> 2 | R23: 1 | S23: 0 | T23: 1 | U23: 1 | V23: 1 | W23: 1 | X23: 1 | AE23: =IF(AF23=0,AE22+1,AE22) -> 1 | AF23: 2 | AG23: 1 | AH23: =IF($AF23=0,0,IF($AF23>INDEX($AO$21:$AO$33,MATCH($AE23,$AJ$21:$AJ$33,0)),1,0)) -> 1 | AI23: 1 | AJ23: =AJ22+1 -> 3 | AK23: 0 | AL23: 0 | AM23: 0 | AN23: 0 | AO23: 0
A24: N/A | R24: 1 | S24: 0 | T24: 1 | U24: 1 | V24: 1 | W24: 1 | X24: 1 | AE24: 1 | AF24: 3 | AG24: 1 | AH24: 1 | AI24: 1 | AJ24: 4 | AK24: 0 | AL24: 0 | AM24: 0 | AN24: 0 | AO24: 0 | BD24: 0 | BE24: 0 | BF24: 0 | BG24: 0
A25: N/A | E25: =E19+4 -> 4 | L25: ="Metric #"&$S25&": "&IFERROR(OFFSET(INDIRECT(L$1&$A$20),A25,$E25),"") -> Metric #1: | M25: ="Metric #"&$S25&": "&IFERROR(OFFSET(INDIRECT(M$1&$A$20),B25,$E25),"") -> Metric #1: | N25: ="Metric #"&$S25&": "&IFERROR(OFFSET(INDIRECT(N$1&$A$20),C25,$E25),"") -> Metric #1: | O25: ="Metric #"&$S25&": "&IFERROR(OFFSET(INDIRECT(O$1&$A$20),D25,$E25),"") -> Metric #1: | R25: 1 | S25: 1 | T25: 1 | U25: 1 | V25: 1 | W25: 1 | X25: 1 | AE25: 1 | AF25: 4 | AG25: 1 | AH25: 1 | AI25: 1 | AJ25: 5 | AK25: 0 | AL25: 0 | AM25: 0 | AN25: 0 | AO25: 0 | BD25: Metric #1: | BE25: Metric #1: | BF25: Metric #1: | BG25: Metric #1:
A26: N/A | E26: =E21+5 -> 5 | L26: =IFERROR(OFFSET(INDIRECT(L$1&$A$20),A26,$E26),"") ->  | R26: 1 | S26: 1 | T26: 1 | U26: 1 | V26: 1 | W26: 1 | X26: 1 | AE26: 1 | AF26: 5 | AG26: 1 | AH26: 1 | AI26: 1 | AJ26: 6 | AK26: 0 | AL26: 0 | AM26: 0 | AN26: 0 | AO26: 0
A27: N/A | E27: =E21+6 -> 6 | R27: 1 | S27: 1 | T27: 1 | U27: 1 | V27: 1 | W27: 1 | X27: 1 | AE27: 1 | AF27: 6 | AG27: 1 | AH27: 1 | AI27: 1 | AJ27: 7 | AK27: 0 | AL27: 0 | AM27: 0 | AN27: 0 | AO27: 0
A28: N/A | R28: 1 | S28: 1 | T28: 1 | U28: 1 | V28: 1 | W28: 1 | X28: 1 | AE28: 1 | AF28: 7 | AG28: 1 | AH28: 1 | AI28: 1 | AJ28: 8 | AK28: 0 | AL28: 0 | AM28: 0 | AN28: 0 | AO28: 0 | BD28: 0 | BE28: 0 | BF28: 0 | BG28: 0
A29: N/A | L29: Baseline/Goal: | M29: Baseline/Goal: | N29: Baseline/Goal: | O29: Baseline/Goal: | R29: 1 | S29: 1 | T29: 1 | U29: 1 | V29: 1 | W29: 1 | X29: 1 | AE29: 2 | AF29: =AF21 -> 0 | AG29: 1 | AH29: 0 | AI29: 1 | AJ29: 9 | AK29: 0 | AL29: 0 | AM29: 0 | AN29: 0 | AO29: 0 | BD29: Baseline/Goal: | BE29: Baseline/Goal: | BF29: Baseline/Goal: | BG29: Baseline/Goal:
A30: N/A | E30: =E21+7 -> 7 | L30: =IFERROR(OFFSET(INDIRECT(L$1&$A$20),A30,$E30),"") ->  | M30: =IFERROR(OFFSET(INDIRECT(M$1&$A$20),B30,$E30),"") ->  | N30: =IFERROR(OFFSET(INDIRECT(N$1&$A$20),C30,$E30),"") ->  | O30: =IFERROR(OFFSET(INDIRECT(O$1&$A$20),D30,$E30),"") ->  | R30: 1 | S30: 1 | T30: 1 | U30: 1 | V30: 1 | W30: 1 | X30: 1 | AE30: 2 | AF30: =AF22 -> 1 | AG30: 1 | AH30: 1 | AI30: 1 | AJ30: 10 | AK30: 0 | AL30: 0 | AM30: 0 | AN30: 0 | AO30: 0
A31: N/A | R31: 1 | S31: 1 | T31: 1 | U31: 1 | V31: 1 | W31: 1 | X31: 1 | AE31: 2 | AF31: 2 | AG31: 1 | AH31: 1 | AI31: 1 | AJ31: 11 | AK31: 0 | AL31: 0 | AM31: 0 | AN31: 0 | AO31: 0 | BD31: 0 | BE31: 0 | BF31: 0 | BG31: 0
A32: N/A | L32: Data Source: | M32: Data Source: | N32: Data Source: | O32: Data Source: | R32: 1 | S32: 1 | T32: 1 | U32: 1 | V32: 1 | W32: 1 | X32: 1 | AE32: 2 | AF32: 3 | AG32: 1 | AH32: 1 | AI32: 1 | AJ32: 12 | AK32: 0 | AL32: 0 | AM32: 0 | AN32: 0 | AO32: 0 | BD32: Data Source: | BE32: Data Source: | BF32: Data Source: | BG32: Data Source:
A33: N/A | E33: =E21+14 -> 14 | L33: =IFERROR(OFFSET(INDIRECT(L$1&$A$20),A33,$E33),"") ->  | R33: 1 | S33: 1 | T33: 1 | U33: 1 | V33: 1 | W33: 1 | X33: 1 | AE33: 2 | AF33: 4 | AG33: 1 | AH33: 1 | AI33: 1 | AJ33: =AJ32+1 -> 13 | AK33: 0 | AL33: 0 | AM33: 0 | AN33: 0 | AO33: 0
A34: N/A | E34: =E21+15 -> 15 | R34: 1 | S34: 1 | T34: 1 | U34: 1 | V34: 1 | W34: 1 | X34: 1 | AE34: 2 | AF34: 5 | AG34: 1 | AH34: 1 | AI34: 1
A35: N/A | R35: 1 | S35: 1 | T35: 1 | U35: 1 | V35: 1 | W35: 1 | X35: 1 | AE35: 2 | AF35: 6 | AG35: 1 | AH35: 1 | AI35: 1 | BD35: 0 | BE35: 0 | BF35: 0 | BG35: 0
A36: N/A | E36: =E21+8 -> 8 | L36: ="Metric Type: "&IFERROR(OFFSET(INDIRECT(L$1&$A$20),A36,$E36),"") -> Metric Type: | M36: ="Metric Type: "&IFERROR(OFFSET(INDIRECT(M$1&$A$20),B36,$E36),"") -> Metric Type: | N36: ="Metric Type: "&IFERROR(OFFSET(INDIRECT(N$1&$A$20),C36,$E36),"") -> Metric Type: | O36: ="Metric Type: "&IFERROR(OFFSET(INDIRECT(O$1&$A$20),D36,$E36),"") -> Metric Type: | R36: 1 | S36: 1 | T36: 1 | U36: 1 | V36: 1 | W36: 1 | X36: 1 | AE36: 2 | AF36: 7 | AG36: 1 | AH36: 1 | AI36: 1 | BD36: Metric Type: | BE36: Metric Type: | BF36: Metric Type: | BG36: Metric Type:
A37: N/A | E37: =E21+9 -> 9 | L37: ="Numeric Goal: "&IFERROR(OFFSET(INDIRECT(L$1&$A$20),A37,$E37),"") -> Numeric Goal: | M37: ="Numeric Goal: "&IFERROR(OFFSET(INDIRECT(M$1&$A$20),B37,$E37),"") -> Numeric Goal: | N37: ="Numeric Goal: "&IFERROR(OFFSET(INDIRECT(N$1&$A$20),C37,$E37),"") -> Numeric Goal: | O37: ="Numeric Goal: "&IFERROR(OFFSET(INDIRECT(O$1&$A$20),D37,$E37),"") -> Numeric Goal: | R37: 1 | S37: 1 | T37: 1 | U37: 1 | V37: 1 | W37: 1 | X37: 1 | AE37: 3 | AF37: 0 | AG37: 1 | AH37: 0 | AI37: 1 | BD37: Numeric Goal: | BE37: Numeric Goal: | BF37: Numeric Goal: | BG37: Numeric Goal:
A38: N/A | E38: =E21+10 -> 10 | L38: ="Numerator: "&IFERROR(OFFSET(INDIRECT(L$1&$A$20),A38,$E38),"") -> Numerator: | M38: ="Numerator: "&IFERROR(OFFSET(INDIRECT(M$1&$A$20),B38,$E38),"") -> Numerator: | N38: ="Numerator: "&IFERROR(OFFSET(INDIRECT(N$1&$A$20),C38,$E38),"") -> Numerator: | O38: ="Numerator: "&IFERROR(OFFSET(INDIRECT(O$1&$A$20),D38,$E38),"") -> Numerator: | R38: 1 | S38: 1 | T38: 1 | U38: 1 | V38: 1 | W38: 1 | X38: 1 | AE38: 3 | AF38: 1 | AG38: 1 | AH38: 1 | AI38: 1 | BD38: Numerator: | BE38: Numerator: | BF38: Numerator: | BG38: Numerator:
A39: =A38 -> N/A | E39: =E21+11 -> 11 | L39: ="Denominator: "&IFERROR(OFFSET(INDIRECT(L$1&$A$20),A39,$E39),"") -> Denominator: | M39: ="Denominator: "&IFERROR(OFFSET(INDIRECT(M$1&$A$20),B39,$E39),"") -> Denominator: | N39: ="Denominator: "&IFERROR(OFFSET(INDIRECT(N$1&$A$20),C39,$E39),"") -> Denominator: | O39: ="Denominator: "&IFERROR(OFFSET(INDIRECT(O$1&$A$20),D39,$E39),"") -> Denominator: | R39: 1 | S39: 1 | T39: 1 | U39: 1 | V39: 1 | W39: 1 | X39: 1 | AE39: 3 | AF39: 2 | AG39: 1 | AH39: 1 | AI39: 1 | BD39: Denominator: | BE39: Denominator: | BF39: Denominator: | BG39: Denominator:
A40: N/A | E40: =E21+13 -> 13 | M40: ="QPI Metric: "&IFERROR(OFFSET(INDIRECT(M$1&$A$20),B40,$E40),"") -> QPI Metric: | N40: ="QPI Metric: "&IFERROR(OFFSET(INDIRECT(N$1&$A$20),C40,$E40),"") -> QPI Metric: | O40: ="QPI Metric: "&IFERROR(OFFSET(INDIRECT(O$1&$A$20),D40,$E40),"") -> QPI Metric: | R40: 1 | S40: 1 | T40: 1 | U40: 1 | V40: 1 | W40: 1 | X40: 1 | AE40: 3 | AF40: 3 | AG40: 1 | AH40: 1 | AI40: 1 | BD40: 0 | BE40: QPI Metric: | BF40: QPI Metric: | BG40: QPI Metric:
A41: N/A | H41: 23 | M41: ="QPI Type: " & IFERROR(OFFSET(INDIRECT($S$1&$A$12),$F41,$H41),"") -> QPI Type: | N41: ="QPI Type: " & IFERROR(OFFSET(INDIRECT($S$1&$A$12),$F41,$H41),"") -> QPI Type: | O41: ="QPI Type: " & IFERROR(OFFSET(INDIRECT($S$1&$A$12),$F41,$H41),"") -> QPI Type: | R41: 1 | S41: 1 | T41: 1 | U41: 1 | V41: 1 | W41: 1 | X41: 1 | AE41: 3 | AF41: 4 | AG41: 1 | AH41: 1 | AI41: 1 | BD41: 0 | BE41: QPI Type: | BF41: QPI Type: | BG41: QPI Type:
A42: N/A | E42: =E21+12 -> 12 | M42: ="MLIU Required: "&IFERROR(OFFSET(INDIRECT(M$1&$A$20),B42,$E42),"") -> MLIU Required: | N42: ="MLIU Required: "&IFERROR(OFFSET(INDIRECT(N$1&$A$20),C42,$E42),"") -> MLIU Required: | O42: ="MLIU Required: "&IFERROR(OFFSET(INDIRECT(O$1&$A$20),D42,$E42),"") -> MLIU Required: | R42: 1 | S42: 1 | T42: 1 | U42: 1 | V42: 1 | W42: 1 | X42: 1 | AE42: 3 | AF42: 5 | AG42: 1 | AH42: 1 | AI42: 1 | BD42: 0 | BE42: MLIU Required: | BF42: MLIU Required: | BG42: MLIU Required:
A43: N/A | R43: 1 | S43: 1 | T43: 1 | U43: 1 | V43: 1 | W43: 1 | X43: 1 | AE43: 3 | AF43: 6 | AG43: 1 | AH43: 1 | AI43: 1 | BD43: 0 | BE43: 0 | BF43: 0 | BG43: 0
A44: N/A | E44: =E25+$E$20 -> 16 | L44: ="Metric #"&$S44&": "&IFERROR(OFFSET(INDIRECT(L$1&$A$20),A44,$E44),"") -> Metric #2: | M44: ="Metric #"&$S44&": "&IFERROR(OFFSET(INDIRECT(M$1&$A$20),B44,$E44),"") -> Metric #2: | N44: ="Metric #"&$S44&": "&IFERROR(OFFSET(INDIRECT(N$1&$A$20),C44,$E44),"") -> Metric #2: | O44: ="Metric #"&$S44&": "&IFERROR(OFFSET(INDIRECT(O$1&$A$20),D44,$E44),"") -> Metric #2: | R44: 1 | S44: 2 | T44: 1 | U44: 1 | V44: 1 | W44: 1 | X44: 1 | AE44: 3 | AF44: 7 | AG44: 1 | AH44: 1 | AI44: 1 | BD44: Metric #2: | BE44: Metric #2: | BF44: Metric #2: | BG44: Metric #2:
A45: N/A | E45: =E26+$E$20 -> 17 | L45: =IFERROR(OFFSET(INDIRECT(L$1&$A$20),A45,$E45),"") ->  | R45: 1 | S45: 2 | T45: 1 | U45: 1 | V45: 1 | W45: 1 | X45: 1 | AE45: 4 | AF45: 0 | AG45: 1 | AH45: 0 | AI45: 1
A46: N/A | E46: =E27+$E$20 -> 18 | R46: 1 | S46: 2 | T46: 1 | U46: =IF($R46>Z$21,1,IF($S46>INDEX(AK$21:AK$33,MATCH($R46,$AJ$21:$AJ$33,0)),1,0)) -> 1 | V46: 1 | W46: 1 | X46: 1 | AE46: 4 | AF46: 1 | AG46: 1 | AH46: 1 | AI46: 1
A47: N/A | R47: 1 | S47: 2 | T47: 1 | U47: 1 | V47: 1 | W47: 1 | X47: 1 | AE47: 4 | AF47: 2 | AG47: 1 | AH47: 1 | AI47: 1 | BD47: 0 | BE47: 0 | BF47: 0 | BG47: 0
A48: N/A | E48: 12 | L48: Baseline/Goal: | M48: Baseline/Goal: | N48: Baseline/Goal: | O48: Baseline/Goal: | R48: 1 | S48: 2 | T48: 1 | U48: 1 | V48: 1 | W48: 1 | X48: 1 | AE48: 4 | AF48: 3 | AG48: 1 | AH48: 1 | AI48: 1 | BD48: Baseline/Goal: | BE48: Baseline/Goal: | BF48: Baseline/Goal: | BG48: Baseline/Goal:
A49: N/A | E49: 19 | L49: =IFERROR(OFFSET(INDIRECT(L$1&$A$20),A49,$E49),"") ->  | M49: =IFERROR(OFFSET(INDIRECT(M$1&$A$20),B49,$E49),"") ->  | N49: =IFERROR(OFFSET(INDIRECT(N$1&$A$20),C49,$E49),"") ->  | O49: =IFERROR(OFFSET(INDIRECT(O$1&$A$20),D49,$E49),"") ->  | R49: 1 | S49: 2 | T49: 1 | U49: 1 | V49: 1 | W49: 1 | X49: 1 | AE49: 4 | AF49: 4 | AG49: 1 | AH49: 1 | AI49: 1
A50: N/A | R50: 1 | S50: 2 | T50: 1 | U50: 1 | V50: 1 | W50: 1 | X50: 1 | AE50: 4 | AF50: 5 | AG50: 1 | AH50: 1 | AI50: 1 | BD50: 0 | BE50: 0 | BF50: 0 | BG50: 0
A51: N/A | E51: 12 | L51: Data Source: | M51: Data Source: | N51: Data Source: | O51: Data Source: | R51: 1 | S51: 2 | T51: 1 | U51: 1 | V51: 1 | W51: 1 | X51: 1 | AE51: 4 | AF51: 6 | AG51: 1 | AH51: 1 | AI51: 1 | BD51: Data Source: | BE51: Data Source: | BF51: Data Source: | BG51: Data Source:
A52: N/A | E52: 26 | L52: =IFERROR(OFFSET(INDIRECT(L$1&$A$20),A52,$E52),"") ->  | R52: 1 | S52: 2 | T52: 1 | U52: 1 | V52: 1 | W52: 1 | X52: 1 | AE52: 4 | AF52: 7 | AG52: 1 | AH52: 1 | AI52: 1
A53: N/A | E53: 27 | R53: 1 | S53: 2 | T53: 1 | U53: 1 | V53: 1 | W53: 1 | X53: 1 | AE53: 5 | AF53: 0 | AG53: =IF($AE53>$AD$21,1,0) -> 1 | AH53: 0 | AI53: 1
A54: N/A | R54: 1 | S54: 2 | T54: 1 | U54: 1 | V54: 1 | W54: 1 | X54: 1 | AE54: 5 | AF54: 1 | AG54: 1 | AH54: 1 | AI54: 1 | BD54: 0 | BE54: 0 | BF54: 0 | BG54: 0
A55: =A54 -> N/A | E55: 20 | L55: ="Metric Type: "&IFERROR(OFFSET(INDIRECT(L$1&$A$20),A55,$E55),"") -> Metric Type: | M55: ="Metric Type: "&IFERROR(OFFSET(INDIRECT(M$1&$A$20),B55,$E55),"") -> Metric Type: | N55: ="Metric Type: "&IFERROR(OFFSET(INDIRECT(N$1&$A$20),C55,$E55),"") -> Metric Type: | O55: ="Metric Type: "&IFERROR(OFFSET(INDIRECT(O$1&$A$20),D55,$E55),"") -> Metric Type: | R55: 1 | S55: 2 | T55: 1 | U55: 1 | V55: 1 | W55: 1 | X55: 1 | AE55: 5 | AF55: 2 | AG55: 1 | AH55: 1 | AI55: 1 | BD55: Metric Type: | BE55: Metric Type: | BF55: Metric Type: | BG55: Metric Type:
A56: N/A | E56: 21 | L56: ="Numeric Goal: "&IFERROR(OFFSET(INDIRECT(L$1&$A$20),A56,$E56),"") -> Numeric Goal: | M56: ="Numeric Goal: "&IFERROR(OFFSET(INDIRECT(M$1&$A$20),B56,$E56),"") -> Numeric Goal: | N56: ="Numeric Goal: "&IFERROR(OFFSET(INDIRECT(N$1&$A$20),C56,$E56),"") -> Numeric Goal: | O56: ="Numeric Goal: "&IFERROR(OFFSET(INDIRECT(O$1&$A$20),D56,$E56),"") -> Numeric Goal: | R56: 1 | S56: 2 | T56: 1 | U56: 1 | V56: 1 | W56: 1 | X56: 1 | AE56: 5 | AF56: 3 | AG56: 1 | AH56: 1 | AI56: 1 | BD56: Numeric Goal: | BE56: Numeric Goal: | BF56: Numeric Goal: | BG56: Numeric Goal:
A57: N/A | E57: 22 | L57: ="Numerator: "&IFERROR(OFFSET(INDIRECT(L$1&$A$20),A57,$E57),"") -> Numerator: | M57: ="Numerator: "&IFERROR(OFFSET(INDIRECT(M$1&$A$20),B57,$E57),"") -> Numerator: | N57: ="Numerator: "&IFERROR(OFFSET(INDIRECT(N$1&$A$20),C57,$E57),"") -> Numerator: | O57: ="Numerator: "&IFERROR(OFFSET(INDIRECT(O$1&$A$20),D57,$E57),"") -> Numerator: | R57: 1 | S57: 2 | T57: 1 | U57: 1 | V57: 1 | W57: 1 | X57: 1 | AE57: 5 | AF57: 4 | AG57: 1 | AH57: 1 | AI57: 1 | BD57: Numerator: | BE57: Numerator: | BF57: Numerator: | BG57: Numerator:
A58: N/A | E58: 23 | L58: ="Denominator: "&IFERROR(OFFSET(INDIRECT(L$1&$A$20),A58,$E58),"") -> Denominator: | M58: ="Denominator: "&IFERROR(OFFSET(INDIRECT(M$1&$A$20),B58,$E58),"") -> Denominator: | N58: ="Denominator: "&IFERROR(OFFSET(INDIRECT(N$1&$A$20),C58,$E58),"") -> Denominator: | O58: ="Denominator: "&IFERROR(OFFSET(INDIRECT(O$1&$A$20),D58,$E58),"") -> Denominator: | R58: 1 | S58: 2 | T58: 1 | U58: 1 | V58: 1 | W58: 1 | X58: 1 | AE58: 5 | AF58: 5 | AG58: 1 | AH58: 1 | AI58: 1 | BD58: Denominator: | BE58: Denominator: | BF58: Denominator: | BG58: Denominator:
A59: N/A | E59: 25 | M59: ="QPI Metric: "&IFERROR(OFFSET(INDIRECT(M$1&$A$20),B59,$E59),"") -> QPI Metric: | N59: ="QPI Metric: "&IFERROR(OFFSET(INDIRECT(N$1&$A$20),C59,$E59),"") -> QPI Metric: | O59: ="QPI Metric: "&IFERROR(OFFSET(INDIRECT(O$1&$A$20),D59,$E59),"") -> QPI Metric: | R59: 1 | S59: 2 | T59: 1 | U59: 1 | V59: 1 | W59: 1 | X59: 1 | AE59: 5 | AF59: 6 | AG59: 1 | AH59: 1 | AI59: 1 | BD59: 0 | BE59: QPI Metric: | BF59: QPI Metric: | BG59: QPI Metric:
A60: N/A | H60: =$H$41 -> 23 | M60: ="QPI Type: " & IFERROR(OFFSET(INDIRECT($S$1&$A$12),$F60,$H60),"") -> QPI Type: | N60: ="QPI Type: " & IFERROR(OFFSET(INDIRECT($S$1&$A$12),$F60,$H60),"") -> QPI Type: | O60: ="QPI Type: " & IFERROR(OFFSET(INDIRECT($S$1&$A$12),$F60,$H60),"") -> QPI Type: | R60: 1 | S60: 2 | T60: 1 | U60: 1 | V60: 1 | W60: 1 | X60: 1 | AE60: 5 | AF60: 7 | AG60: 1 | AH60: 1 | AI60: 1 | BD60: 0 | BE60: QPI Type: | BF60: QPI Type: | BG60: QPI Type:
A61: N/A | E61: 24 | M61: ="MLIU Required: "&IFERROR(OFFSET(INDIRECT(M$1&$A$20),B61,$E61),"") -> MLIU Required: | N61: ="MLIU Required: "&IFERROR(OFFSET(INDIRECT(N$1&$A$20),C61,$E61),"") -> MLIU Required: | O61: ="MLIU Required: "&IFERROR(OFFSET(INDIRECT(O$1&$A$20),D61,$E61),"") -> MLIU Required: | R61: 1 | S61: 2 | T61: 1 | U61: 1 | V61: 1 | W61: 1 | X61: 1 | AE61: 6 | AF61: 0 | AG61: 1 | AH61: 0 | AI61: 1 | BD61: 0 | BE61: MLIU Required: | BF61: MLIU Required: | BG61: MLIU Required:
A62: N/A | R62: 1 | S62: 2 | T62: 1 | U62: 1 | V62: 1 | W62: 1 | X62: 1 | AE62: 6 | AF62: 1 | AG62: 1 | AH62: 1 | AI62: 1 | BD62: 0 | BE62: 0 | BF62: 0 | BG62: 0
A63: N/A | E63: =E44+$E$20 -> 28 | L63: ="Metric #"&$S63&": "&IFERROR(OFFSET(INDIRECT(L$1&$A$20),A63,$E63),"") -> Metric #3: | M63: ="Metric #"&$S63&": "&IFERROR(OFFSET(INDIRECT(M$1&$A$20),B63,$E63),"") -> Metric #3: | N63: ="Metric #"&$S63&": "&IFERROR(OFFSET(INDIRECT(N$1&$A$20),C63,$E63),"") -> Metric #3: | O63: ="Metric #"&$S63&": "&IFERROR(OFFSET(INDIRECT(O$1&$A$20),D63,$E63),"") -> Metric #3: | R63: 1 | S63: 3 | T63: 1 | U63: 1 | V63: 1 | W63: 1 | X63: 1 | AE63: 6 | AF63: 2 | AG63: 1 | AH63: 1 | AI63: 1 | BD63: Metric #3: | BE63: Metric #3: | BF63: Metric #3: | BG63: Metric #3:
A64: N/A | E64: =E45+$E$20 -> 29 | L64: =IFERROR(OFFSET(INDIRECT(L$1&$A$20),A64,$E64),"") ->  | R64: 1 | S64: 3 | T64: 1 | U64: 1 | V64: 1 | W64: 1 | X64: 1 | AE64: 6 | AF64: 3 | AG64: 1 | AH64: 1 | AI64: 1
A65: N/A | E65: =E46+$E$20 -> 30 | R65: 1 | S65: 3 | T65: 1 | U65: =IF($R65>Z$21,1,IF($S65>INDEX(AK$21:AK$33,MATCH($R65,$AJ$21:$AJ$33,0)),1,0)) -> 1 | V65: 1 | W65: 1 | X65: 1 | AE65: 6 | AF65: 4 | AG65: 1 | AH65: 1 | AI65: 1
A66: N/A | R66: 1 | S66: 3 | T66: 1 | U66: 1 | V66: 1 | W66: 1 | X66: 1 | AE66: 6 | AF66: 5 | AG66: 1 | AH66: 1 | AI66: 1 | BD66: 0 | BE66: 0 | BF66: 0 | BG66: 0
A67: N/A | E67: 24 | L67: Baseline/Goal: | M67: Baseline/Goal: | N67: Baseline/Goal: | O67: Baseline/Goal: | R67: 1 | S67: 3 | T67: 1 | U67: 1 | V67: 1 | W67: 1 | X67: 1 | AE67: 6 | AF67: 6 | AG67: 1 | AH67: 1 | AI67: 1 | BD67: Baseline/Goal: | BE67: Baseline/Goal: | BF67: Baseline/Goal: | BG67: Baseline/Goal:
A68: N/A | E68: 31 | L68: =IFERROR(OFFSET(INDIRECT(L$1&$A$20),A68,$E68),"") ->  | M68: =IFERROR(OFFSET(INDIRECT(M$1&$A$20),B68,$E68),"") ->  | N68: =IFERROR(OFFSET(INDIRECT(N$1&$A$20),C68,$E68),"") ->  | O68: =IFERROR(OFFSET(INDIRECT(O$1&$A$20),D68,$E68),"") ->  | R68: 1 | S68: 3 | T68: 1 | U68: 1 | V68: 1 | W68: 1 | X68: 1 | AE68: 6 | AF68: 7 | AG68: 1 | AH68: 1 | AI68: 1
A69: N/A | R69: 1 | S69: 3 | T69: 1 | U69: 1 | V69: 1 | W69: 1 | X69: 1 | AE69: 7 | AF69: 0 | AG69: 1 | AH69: 0 | AI69: 1 | BD69: 0 | BE69: 0 | BF69: 0 | BG69: 0
A70: N/A | E70: 24 | L70: Data Source: | M70: Data Source: | N70: Data Source: | O70: Data Source: | R70: 1 | S70: 3 | T70: 1 | U70: 1 | V70: 1 | W70: 1 | X70: 1 | AE70: 7 | AF70: 1 | AG70: 1 | AH70: 1 | AI70: 1 | BD70: Data Source: | BE70: Data Source: | BF70: Data Source: | BG70: Data Source:
A71: N/A | E71: 38 | L71: =IFERROR(OFFSET(INDIRECT(L$1&$A$20),A71,$E71),"") ->  | R71: 1 | S71: 3 | T71: 1 | U71: 1 | V71: 1 | W71: 1 | X71: 1 | AE71: 7 | AF71: 2 | AG71: 1 | AH71: 1 | AI71: 1
A72: N/A | E72: 39 | R72: 1 | S72: 3 | T72: 1 | U72: 1 | V72: 1 | W72: 1 | X72: 1 | AE72: 7 | AF72: 3 | AG72: 1 | AH72: 1 | AI72: 1
A73: N/A | R73: 1 | S73: 3 | T73: 1 | U73: 1 | V73: 1 | W73: 1 | X73: 1 | AE73: 7 | AF73: 4 | AG73: 1 | AH73: 1 | AI73: 1 | BD73: 0 | BE73: 0 | BF73: 0 | BG73: 0
A74: =A73 -> N/A | E74: 32 | L74: ="Metric Type: "&IFERROR(OFFSET(INDIRECT(L$1&$A$20),A74,$E74),"") -> Metric Type: | M74: ="Metric Type: "&IFERROR(OFFSET(INDIRECT(M$1&$A$20),B74,$E74),"") -> Metric Type: | N74: ="Metric Type: "&IFERROR(OFFSET(INDIRECT(N$1&$A$20),C74,$E74),"") -> Metric Type: | O74: ="Metric Type: "&IFERROR(OFFSET(INDIRECT(O$1&$A$20),D74,$E74),"") -> Metric Type: | R74: 1 | S74: 3 | T74: 1 | U74: 1 | V74: 1 | W74: 1 | X74: 1 | AE74: 7 | AF74: 5 | AG74: 1 | AH74: 1 | AI74: 1 | BD74: Metric Type: | BE74: Metric Type: | BF74: Metric Type: | BG74: Metric Type:
A75: N/A | E75: 33 | L75: ="Numeric Goal: "&IFERROR(OFFSET(INDIRECT(L$1&$A$20),A75,$E75),"") -> Numeric Goal: | M75: ="Numeric Goal: "&IFERROR(OFFSET(INDIRECT(M$1&$A$20),B75,$E75),"") -> Numeric Goal: | N75: ="Numeric Goal: "&IFERROR(OFFSET(INDIRECT(N$1&$A$20),C75,$E75),"") -> Numeric Goal: | O75: ="Numeric Goal: "&IFERROR(OFFSET(INDIRECT(O$1&$A$20),D75,$E75),"") -> Numeric Goal: | R75: 1 | S75: 3 | T75: 1 | U75: 1 | V75: 1 | W75: 1 | X75: 1 | AE75: 7 | AF75: 6 | AG75: 1 | AH75: 1 | AI75: 1 | BD75: Numeric Goal: | BE75: Numeric Goal: | BF75: Numeric Goal: | BG75: Numeric Goal:
A76: N/A | E76: 34 | L76: ="Numerator: "&IFERROR(OFFSET(INDIRECT(L$1&$A$20),A76,$E76),"") -> Numerator: | M76: ="Numerator: "&IFERROR(OFFSET(INDIRECT(M$1&$A$20),B76,$E76),"") -> Numerator: | N76: ="Numerator: "&IFERROR(OFFSET(INDIRECT(N$1&$A$20),C76,$E76),"") -> Numerator: | O76: ="Numerator: "&IFERROR(OFFSET(INDIRECT(O$1&$A$20),D76,$E76),"") -> Numerator: | R76: 1 | S76: 3 | T76: 1 | U76: 1 | V76: 1 | W76: 1 | X76: 1 | AE76: 7 | AF76: 7 | AG76: 1 | AH76: 1 | AI76: 1 | BD76: Numerator: | BE76: Numerator: | BF76: Numerator: | BG76: Numerator:
A77: N/A | E77: 35 | L77: ="Denominator: "&IFERROR(OFFSET(INDIRECT(L$1&$A$20),A77,$E77),"") -> Denominator: | M77: ="Denominator: "&IFERROR(OFFSET(INDIRECT(M$1&$A$20),B77,$E77),"") -> Denominator: | N77: ="Denominator: "&IFERROR(OFFSET(INDIRECT(N$1&$A$20),C77,$E77),"") -> Denominator: | O77: ="Denominator: "&IFERROR(OFFSET(INDIRECT(O$1&$A$20),D77,$E77),"") -> Denominator: | R77: 1 | S77: 3 | T77: 1 | U77: 1 | V77: 1 | W77: 1 | X77: 1 | AE77: 8 | AF77: 0 | AG77: 1 | AH77: 0 | AI77: 1 | BD77: Denominator: | BE77: Denominator: | BF77: Denominator: | BG77: Denominator:
A78: N/A | E78: 37 | M78: ="QPI Metric: "&IFERROR(OFFSET(INDIRECT(M$1&$A$20),B78,$E78),"") -> QPI Metric: | N78: ="QPI Metric: "&IFERROR(OFFSET(INDIRECT(N$1&$A$20),C78,$E78),"") -> QPI Metric: | O78: ="QPI Metric: "&IFERROR(OFFSET(INDIRECT(O$1&$A$20),D78,$E78),"") -> QPI Metric: | R78: 1 | S78: 3 | T78: 1 | U78: 1 | V78: 1 | W78: 1 | X78: 1 | AE78: 8 | AF78: 1 | AG78: 1 | AH78: 1 | AI78: 1 | BD78: 0 | BE78: QPI Metric: | BF78: QPI Metric: | BG78: QPI Metric:
A79: N/A | H79: =$H$41 -> 23 | M79: ="QPI Type: " & IFERROR(OFFSET(INDIRECT($S$1&$A$12),$F79,$H79),"") -> QPI Type: | N79: ="QPI Type: " & IFERROR(OFFSET(INDIRECT($S$1&$A$12),$F79,$H79),"") -> QPI Type: | O79: ="QPI Type: " & IFERROR(OFFSET(INDIRECT($S$1&$A$12),$F79,$H79),"") -> QPI Type: | R79: 1 | S79: 3 | T79: 1 | U79: 1 | V79: 1 | W79: 1 | X79: 1 | AE79: 8 | AF79: 2 | AG79: 1 | AH79: 1 | AI79: 1 | BD79: 0 | BE79: QPI Type: | BF79: QPI Type: | BG79: QPI Type:
A80: N/A | E80: 36 | M80: ="MLIU Required: "&IFERROR(OFFSET(INDIRECT(M$1&$A$20),B80,$E80),"") -> MLIU Required: | N80: ="MLIU Required: "&IFERROR(OFFSET(INDIRECT(N$1&$A$20),C80,$E80),"") -> MLIU Required: | O80: ="MLIU Required: "&IFERROR(OFFSET(INDIRECT(O$1&$A$20),D80,$E80),"") -> MLIU Required: | R80: 1 | S80: 3 | T80: 1 | U80: 1 | V80: 1 | W80: 1 | X80: 1 | AE80: 8 | AF80: 3 | AG80: 1 | AH80: 1 | AI80: 1 | BD80: 0 | BE80: MLIU Required: | BF80: MLIU Required: | BG80: MLIU Required:
A81: N/A | R81: 1 | S81: 3 | T81: 1 | U81: 1 | V81: 1 | W81: 1 | X81: 1 | AE81: 8 | AF81: 4 | AG81: 1 | AH81: 1 | AI81: 1 | BD81: 0 | BE81: 0 | BF81: 0 | BG81: 0
A82: N/A | E82: =E63+$E$20 -> 40 | L82: ="Metric #"&$S82&": "&IFERROR(OFFSET(INDIRECT(L$1&$A$20),A82,$E82),"") -> Metric #4: | M82: ="Metric #"&$S82&": "&IFERROR(OFFSET(INDIRECT(M$1&$A$20),B82,$E82),"") -> Metric #4: | N82: ="Metric #"&$S82&": "&IFERROR(OFFSET(INDIRECT(N$1&$A$20),C82,$E82),"") -> Metric #4: | O82: ="Metric #"&$S82&": "&IFERROR(OFFSET(INDIRECT(O$1&$A$20),D82,$E82),"") -> Metric #4: | R82: 1 | S82: 4 | T82: 1 | U82: 1 | V82: 1 | W82: 1 | X82: 1 | AE82: 8 | AF82: 5 | AG82: 1 | AH82: 1 | AI82: 1 | BD82: Metric #4: | BE82: Metric #4: | BF82: Metric #4: | BG82: Metric #4:
A83: N/A | E83: =E64+$E$20 -> 41 | L83: =IFERROR(OFFSET(INDIRECT(L$1&$A$20),A83,$E83),"") ->  | R83: 1 | S83: 4 | T83: 1 | U83: 1 | V83: 1 | W83: 1 | X83: 1 | AE83: 8 | AF83: 6 | AG83: 1 | AH83: 1 | AI83: 1
A84: N/A | E84: =E65+$E$20 -> 42 | R84: 1 | S84: 4 | T84: 1 | U84: 1 | V84: 1 | W84: 1 | X84: 1 | AE84: 8 | AF84: 7 | AG84: 1 | AH84: 1 | AI84: 1
A85: N/A | R85: 1 | S85: 4 | T85: =IF($M$9="",1,SUMPRODUCT(($R85=$AE$21:$AE$124)*($S85=$AF$21:$AF$124)*($AI$21:$AI$124))) -> 1 | U85: 1 | V85: 1 | W85: 1 | X85: 1 | AE85: 9 | AF85: 0 | AG85: 1 | AH85: 0 | AI85: 1 | BD85: 0 | BE85: 0 | BF85: 0 | BG85: 0
A86: N/A | E86: 36 | F86: =F85 ->  | L86: Baseline/Goal: | M86: Baseline/Goal: | N86: Baseline/Goal: | O86: Baseline/Goal: | R86: 1 | S86: 4 | T86: 1 | U86: 1 | V86: 1 | W86: 1 | X86: 1 | AE86: 9 | AF86: 1 | AG86: =IF($AE86>$AD$21,1,0) -> 1 | AH86: 1 | AI86: =MAX(AG86:AH86) -> 1 | BD86: =L86 -> Baseline/Goal: | BE86: Baseline/Goal: | BF86: Baseline/Goal: | BG86: Baseline/Goal:
A87: N/A | E87: 43 | L87: =IFERROR(OFFSET(INDIRECT(L$1&$A$20),A87,$E87),"") ->  | M87: =IFERROR(OFFSET(INDIRECT(M$1&$A$20),B87,$E87),"") ->  | N87: =IFERROR(OFFSET(INDIRECT(N$1&$A$20),C87,$E87),"") ->  | O87: =IFERROR(OFFSET(INDIRECT(O$1&$A$20),D87,$E87),"") ->  | R87: 1 | S87: 4 | T87: 1 | U87: 1 | V87: 1 | W87: 1 | X87: 1 | AE87: =IF(AF87=0,AE86+1,AE86) -> 9 | AF87: 2 | AG87: 1 | AH87: =IF($AF87=0,0,IF($AF87>INDEX($AO$21:$AO$33,MATCH($AE87,$AJ$21:$AJ$33,0)),1,0)) -> 1 | AI87: 1
A88: N/A | R88: 1 | S88: 4 | T88: 1 | U88: 1 | V88: 1 | W88: 1 | X88: 1 | AE88: 9 | AF88: 3 | AG88: 1 | AH88: 1 | AI88: 1 | BD88: 0 | BE88: 0 | BF88: 0 | BG88: 0
A89: N/A | E89: 36 | L89: Data Source: | M89: Data Source: | N89: Data Source: | O89: Data Source: | R89: 1 | S89: 4 | T89: 1 | U89: 1 | V89: 1 | W89: 1 | X89: 1 | AE89: 9 | AF89: 4 | AG89: 1 | AH89: 1 | AI89: 1 | BD89: Data Source: | BE89: Data Source: | BF89: Data Source: | BG89: Data Source:
A90: N/A | E90: 50 | L90: =IFERROR(OFFSET(INDIRECT(L$1&$A$20),A90,$E90),"") ->  | R90: 1 | S90: 4 | T90: 1 | U90: 1 | V90: 1 | W90: 1 | X90: 1 | AE90: 9 | AF90: 5 | AG90: 1 | AH90: 1 | AI90: 1
A91: N/A | E91: 51 | R91: 1 | S91: 4 | T91: 1 | U91: 1 | V91: 1 | W91: 1 | X91: 1 | AE91: 9 | AF91: 6 | AG91: 1 | AH91: 1 | AI91: 1
A92: N/A | R92: 1 | S92: 4 | T92: 1 | U92: 1 | V92: 1 | W92: 1 | X92: 1 | AE92: 9 | AF92: 7 | AG92: 1 | AH92: 1 | AI92: 1 | BD92: 0 | BE92: 0 | BF92: 0 | BG92: 0
A93: N/A | E93: 44 | L93: ="Metric Type: "&IFERROR(OFFSET(INDIRECT(L$1&$A$20),A93,$E93),"") -> Metric Type: | M93: ="Metric Type: "&IFERROR(OFFSET(INDIRECT(M$1&$A$20),B93,$E93),"") -> Metric Type: | N93: ="Metric Type: "&IFERROR(OFFSET(INDIRECT(N$1&$A$20),C93,$E93),"") -> Metric Type: | O93: ="Metric Type: "&IFERROR(OFFSET(INDIRECT(O$1&$A$20),D93,$E93),"") -> Metric Type: | R93: 1 | S93: 4 | T93: 1 | U93: 1 | V93: 1 | W93: 1 | X93: 1 | AE93: 10 | AF93: 0 | AG93: 1 | AH93: 0 | AI93: 1 | BD93: Metric Type: | BE93: Metric Type: | BF93: Metric Type: | BG93: Metric Type:
A94: N/A | E94: 45 | L94: ="Numeric Goal: "&IFERROR(OFFSET(INDIRECT(L$1&$A$20),A94,$E94),"") -> Numeric Goal: | M94: ="Numeric Goal: "&IFERROR(OFFSET(INDIRECT(M$1&$A$20),B94,$E94),"") -> Numeric Goal: | N94: ="Numeric Goal: "&IFERROR(OFFSET(INDIRECT(N$1&$A$20),C94,$E94),"") -> Numeric Goal: | O94: ="Numeric Goal: "&IFERROR(OFFSET(INDIRECT(O$1&$A$20),D94,$E94),"") -> Numeric Goal: | R94: 1 | S94: 4 | T94: 1 | U94: 1 | V94: 1 | W94: 1 | X94: 1 | AE94: 10 | AF94: =AF86 -> 1 | AG94: 1 | AH94: 1 | AI94: 1 | BD94: Numeric Goal: | BE94: Numeric Goal: | BF94: Numeric Goal: | BG94: Numeric Goal:
A95: N/A | E95: 46 | L95: ="Numerator: "&IFERROR(OFFSET(INDIRECT(L$1&$A$20),A95,$E95),"") -> Numerator: | M95: ="Numerator: "&IFERROR(OFFSET(INDIRECT(M$1&$A$20),B95,$E95),"") -> Numerator: | N95: ="Numerator: "&IFERROR(OFFSET(INDIRECT(N$1&$A$20),C95,$E95),"") -> Numerator: | O95: ="Numerator: "&IFERROR(OFFSET(INDIRECT(O$1&$A$20),D95,$E95),"") -> Numerator: | R95: 1 | S95: 4 | T95: 1 | U95: 1 | V95: 1 | W95: 1 | X95: 1 | AE95: 10 | AF95: 2 | AG95: 1 | AH95: 1 | AI95: 1 | BD95: Numerator: | BE95: Numerator: | BF95: Numerator: | BG95: Numerator:
A96: N/A | E96: 47 | L96: ="Denominator: "&IFERROR(OFFSET(INDIRECT(L$1&$A$20),A96,$E96),"") -> Denominator: | M96: ="Denominator: "&IFERROR(OFFSET(INDIRECT(M$1&$A$20),B96,$E96),"") -> Denominator: | N96: ="Denominator: "&IFERROR(OFFSET(INDIRECT(N$1&$A$20),C96,$E96),"") -> Denominator: | O96: ="Denominator: "&IFERROR(OFFSET(INDIRECT(O$1&$A$20),D96,$E96),"") -> Denominator: | R96: 1 | S96: 4 | T96: 1 | U96: 1 | V96: 1 | W96: 1 | X96: 1 | AE96: 10 | AF96: 3 | AG96: 1 | AH96: 1 | AI96: 1 | BD96: Denominator: | BE96: Denominator: | BF96: Denominator: | BG96: Denominator:
A97: N/A | E97: 49 | M97: ="QPI Metric: "&IFERROR(OFFSET(INDIRECT(M$1&$A$20),B97,$E97),"") -> QPI Metric: | N97: ="QPI Metric: "&IFERROR(OFFSET(INDIRECT(N$1&$A$20),C97,$E97),"") -> QPI Metric: | O97: ="QPI Metric: "&IFERROR(OFFSET(INDIRECT(O$1&$A$20),D97,$E97),"") -> QPI Metric: | R97: 1 | S97: 4 | T97: 1 | U97: 1 | V97: 1 | W97: 1 | X97: 1 | AE97: 10 | AF97: 4 | AG97: 1 | AH97: 1 | AI97: 1 | BD97: 0 | BE97: QPI Metric: | BF97: QPI Metric: | BG97: QPI Metric:
A98: N/A | H98: =$H$41 -> 23 | M98: ="QPI Type: " & IFERROR(OFFSET(INDIRECT($S$1&$A$12),$F98,$H98),"") -> QPI Type: | N98: ="QPI Type: " & IFERROR(OFFSET(INDIRECT($S$1&$A$12),$F98,$H98),"") -> QPI Type: | O98: ="QPI Type: " & IFERROR(OFFSET(INDIRECT($S$1&$A$12),$F98,$H98),"") -> QPI Type: | R98: 1 | S98: 4 | T98: 1 | U98: 1 | V98: 1 | W98: 1 | X98: 1 | AE98: 10 | AF98: 5 | AG98: 1 | AH98: 1 | AI98: 1 | BD98: 0 | BE98: QPI Type: | BF98: QPI Type: | BG98: QPI Type:
A99: N/A | E99: 48 | M99: ="MLIU Required: "&IFERROR(OFFSET(INDIRECT(M$1&$A$20),B99,$E99),"") -> MLIU Required: | N99: ="MLIU Required: "&IFERROR(OFFSET(INDIRECT(N$1&$A$20),C99,$E99),"") -> MLIU Required: | O99: ="MLIU Required: "&IFERROR(OFFSET(INDIRECT(O$1&$A$20),D99,$E99),"") -> MLIU Required: | R99: 1 | S99: 4 | T99: 1 | U99: 1 | V99: 1 | W99: 1 | X99: 1 | AE99: 10 | AF99: 6 | AG99: 1 | AH99: 1 | AI99: 1 | BD99: 0 | BE99: MLIU Required: | BF99: MLIU Required: | BG99: MLIU Required:
A100: N/A | R100: 1 | S100: 4 | T100: 1 | U100: 1 | V100: 1 | W100: 1 | X100: 1 | AE100: 10 | AF100: 7 | AG100: 1 | AH100: 1 | AI100: 1 | BD100: 0 | BE100: 0 | BF100: 0 | BG100: 0
A101: N/A | E101: =E82+$E$20 -> 52 | L101: ="Metric #"&$S101&": "&IFERROR(OFFSET(INDIRECT(L$1&$A$20),A101,$E101),"") -> Metric #5: | M101: ="Metric #"&$S101&": "&IFERROR(OFFSET(INDIRECT(M$1&$A$20),B101,$E101),"") -> Metric #5: | N101: ="Metric #"&$S101&": "&IFERROR(OFFSET(INDIRECT(N$1&$A$20),C101,$E101),"") -> Metric #5: | O101: ="Metric #"&$S101&": "&IFERROR(OFFSET(INDIRECT(O$1&$A$20),D101,$E101),"") -> Metric #5: | R101: 1 | S101: 5 | T101: 1 | U101: 1 | V101: 1 | W101: 1 | X101: 1 | AE101: 11 | AF101: 0 | AG101: 1 | AH101: 0 | AI101: 1 | BD101: Metric #5: | BE101: Metric #5: | BF101: Metric #5: | BG101: Metric #5:
A102: N/A | E102: =E83+$E$20 -> 53 | L102: =IFERROR(OFFSET(INDIRECT(L$1&$A$20),A102,$E102),"") ->  | R102: 1 | S102: 5 | T102: 1 | U102: 1 | V102: 1 | W102: 1 | X102: 1 | AE102: 11 | AF102: 1 | AG102: 1 | AH102: 1 | AI102: 1
A103: N/A | E103: =E84+$E$20 -> 54 | R103: 1 | S103: 5 | T103: 1 | U103: 1 | V103: 1 | W103: 1 | X103: 1 | AE103: 11 | AF103: 2 | AG103: 1 | AH103: 1 | AI103: 1
A104: N/A | R104: 1 | S104: 5 | T104: 1 | U104: 1 | V104: 1 | W104: 1 | X104: 1 | AE104: 11 | AF104: 3 | AG104: 1 | AH104: 1 | AI104: 1 | BD104: 0 | BE104: 0 | BF104: 0 | BG104: 0
A105: N/A | E105: 48 | L105: Baseline/Goal: | M105: Baseline/Goal: | N105: Baseline/Goal: | O105: Baseline/Goal: | R105: 1 | S105: 5 | T105: 1 | U105: 1 | V105: 1 | W105: 1 | X105: 1 | AE105: 11 | AF105: 4 | AG105: 1 | AH105: 1 | AI105: 1 | BD105: Baseline/Goal: | BE105: Baseline/Goal: | BF105: Baseline/Goal: | BG105: Baseline/Goal:
A106: N/A | E106: 55 | L106: =IFERROR(OFFSET(INDIRECT(L$1&$A$20),A106,$E106),"") ->  | M106: =IFERROR(OFFSET(INDIRECT(M$1&$A$20),B106,$E106),"") ->  | N106: =IFERROR(OFFSET(INDIRECT(N$1&$A$20),C106,$E106),"") ->  | O106: =IFERROR(OFFSET(INDIRECT(O$1&$A$20),D106,$E106),"") ->  | R106: 1 | S106: 5 | T106: 1 | U106: 1 | V106: 1 | W106: 1 | X106: 1 | AE106: 11 | AF106: 5 | AG106: 1 | AH106: 1 | AI106: 1
A107: N/A | R107: 1 | S107: 5 | T107: 1 | U107: 1 | V107: 1 | W107: 1 | X107: 1 | AE107: 11 | AF107: 6 | AG107: 1 | AH107: 1 | AI107: 1 | BD107: 0 | BE107: 0 | BF107: 0 | BG107: 0
A108: N/A | E108: 48 | L108: Data Source: | M108: Data Source: | N108: Data Source: | O108: Data Source: | R108: 1 | S108: 5 | T108: 1 | U108: 1 | V108: 1 | W108: 1 | X108: 1 | AE108: 11 | AF108: 7 | AG108: 1 | AH108: 1 | AI108: 1 | BD108: Data Source: | BE108: Data Source: | BF108: Data Source: | BG108: Data Source:
A109: N/A | E109: 62 | L109: =IFERROR(OFFSET(INDIRECT(L$1&$A$20),A109,$E109),"") ->  | R109: 1 | S109: 5 | T109: 1 | U109: 1 | V109: 1 | W109: 1 | X109: 1 | AE109: 12 | AF109: 0 | AG109: 1 | AH109: 0 | AI109: 1
A110: N/A | E110: 63 | R110: 1 | S110: 5 | T110: 1 | U110: 1 | V110: 1 | W110: 1 | X110: 1 | AE110: 12 | AF110: 1 | AG110: 1 | AH110: 1 | AI110: 1
A111: N/A | R111: 1 | S111: 5 | T111: 1 | U111: 1 | V111: 1 | W111: 1 | X111: 1 | AE111: 12 | AF111: 2 | AG111: 1 | AH111: 1 | AI111: 1 | BD111: 0 | BE111: 0 | BF111: 0 | BG111: 0
A112: N/A | E112: 56 | L112: ="Metric Type: "&IFERROR(OFFSET(INDIRECT(L$1&$A$20),A112,$E112),"") -> Metric Type: | M112: ="Metric Type: "&IFERROR(OFFSET(INDIRECT(M$1&$A$20),B112,$E112),"") -> Metric Type: | N112: ="Metric Type: "&IFERROR(OFFSET(INDIRECT(N$1&$A$20),C112,$E112),"") -> Metric Type: | O112: ="Metric Type: "&IFERROR(OFFSET(INDIRECT(O$1&$A$20),D112,$E112),"") -> Metric Type: | R112: 1 | S112: 5 | T112: 1 | U112: 1 | V112: 1 | W112: 1 | X112: 1 | AE112: 12 | AF112: 3 | AG112: 1 | AH112: 1 | AI112: 1 | BD112: Metric Type: | BE112: Metric Type: | BF112: Metric Type: | BG112: Metric Type:
A113: N/A | E113: 57 | L113: ="Numeric Goal: "&IFERROR(OFFSET(INDIRECT(L$1&$A$20),A113,$E113),"") -> Numeric Goal: | M113: ="Numeric Goal: "&IFERROR(OFFSET(INDIRECT(M$1&$A$20),B113,$E113),"") -> Numeric Goal: | N113: ="Numeric Goal: "&IFERROR(OFFSET(INDIRECT(N$1&$A$20),C113,$E113),"") -> Numeric Goal: | O113: ="Numeric Goal: "&IFERROR(OFFSET(INDIRECT(O$1&$A$20),D113,$E113),"") -> Numeric Goal: | R113: 1 | S113: 5 | T113: 1 | U113: 1 | V113: 1 | W113: 1 | X113: 1 | AE113: 12 | AF113: 4 | AG113: 1 | AH113: 1 | AI113: 1 | BD113: Numeric Goal: | BE113: Numeric Goal: | BF113: Numeric Goal: | BG113: Numeric Goal:
A114: N/A | E114: 58 | L114: ="Numerator: "&IFERROR(OFFSET(INDIRECT(L$1&$A$20),A114,$E114),"") -> Numerator: | M114: ="Numerator: "&IFERROR(OFFSET(INDIRECT(M$1&$A$20),B114,$E114),"") -> Numerator: | N114: ="Numerator: "&IFERROR(OFFSET(INDIRECT(N$1&$A$20),C114,$E114),"") -> Numerator: | O114: ="Numerator: "&IFERROR(OFFSET(INDIRECT(O$1&$A$20),D114,$E114),"") -> Numerator: | R114: 1 | S114: 5 | T114: 1 | U114: 1 | V114: 1 | W114: 1 | X114: 1 | AE114: 12 | AF114: 5 | AG114: 1 | AH114: 1 | AI114: 1 | BD114: Numerator: | BE114: Numerator: | BF114: Numerator: | BG114: Numerator:
A115: N/A | E115: 59 | L115: ="Denominator: "&IFERROR(OFFSET(INDIRECT(L$1&$A$20),A115,$E115),"") -> Denominator: | M115: ="Denominator: "&IFERROR(OFFSET(INDIRECT(M$1&$A$20),B115,$E115),"") -> Denominator: | N115: ="Denominator: "&IFERROR(OFFSET(INDIRECT(N$1&$A$20),C115,$E115),"") -> Denominator: | O115: ="Denominator: "&IFERROR(OFFSET(INDIRECT(O$1&$A$20),D115,$E115),"") -> Denominator: | R115: 1 | S115: 5 | T115: 1 | U115: 1 | V115: 1 | W115: 1 | X115: 1 | AE115: 12 | AF115: 6 | AG115: 1 | AH115: 1 | AI115: 1 | BD115: Denominator: | BE115: Denominator: | BF115: Denominator: | BG115: Denominator:
A116: N/A | E116: 61 | M116: ="QPI Metric: "&IFERROR(OFFSET(INDIRECT(M$1&$A$20),B116,$E116),"") -> QPI Metric: | N116: ="QPI Metric: "&IFERROR(OFFSET(INDIRECT(N$1&$A$20),C116,$E116),"") -> QPI Metric: | O116: ="QPI Metric: "&IFERROR(OFFSET(INDIRECT(O$1&$A$20),D116,$E116),"") -> QPI Metric: | R116: 1 | S116: 5 | T116: 1 | U116: 1 | V116: 1 | W116: 1 | X116: 1 | AE116: 12 | AF116: 7 | AG116: 1 | AH116: 1 | AI116: 1 | BD116: 0 | BE116: QPI Metric: | BF116: QPI Metric: | BG116: QPI Metric:
A117: N/A | H117: =$H$41 -> 23 | M117: ="QPI Type: " & IFERROR(OFFSET(INDIRECT($S$1&$A$12),$F117,$H117),"") -> QPI Type: | N117: ="QPI Type: " & IFERROR(OFFSET(INDIRECT($S$1&$A$12),$F117,$H117),"") -> QPI Type: | O117: ="QPI Type: " & IFERROR(OFFSET(INDIRECT($S$1&$A$12),$F117,$H117),"") -> QPI Type: | R117: 1 | S117: 5 | T117: 1 | U117: 1 | V117: 1 | W117: 1 | X117: 1 | AE117: 13 | AF117: 0 | AG117: 1 | AH117: 0 | AI117: 1 | BD117: 0 | BE117: QPI Type: | BF117: QPI Type: | BG117: QPI Type:
A118: N/A | E118: 60 | M118: ="MLIU Required: "&IFERROR(OFFSET(INDIRECT(M$1&$A$20),B118,$E118),"") -> MLIU Required: | N118: ="MLIU Required: "&IFERROR(OFFSET(INDIRECT(N$1&$A$20),C118,$E118),"") -> MLIU Required: | O118: ="MLIU Required: "&IFERROR(OFFSET(INDIRECT(O$1&$A$20),D118,$E118),"") -> MLIU Required: | R118: 1 | S118: 5 | T118: 1 | U118: 1 | V118: 1 | W118: 1 | X118: 1 | AE118: 13 | AF118: 1 | AG118: 1 | AH118: 1 | AI118: 1 | BD118: 0 | BE118: MLIU Required: | BF118: MLIU Required: | BG118: MLIU Required:
A119: N/A | R119: 1 | S119: 5 | T119: 1 | U119: 1 | V119: 1 | W119: 1 | X119: 1 | AE119: 13 | AF119: 2 | AG119: 1 | AH119: 1 | AI119: 1 | BD119: 0 | BE119: 0 | BF119: 0 | BG119: 0
A120: N/A | E120: =E101+$E$20 -> 64 | L120: ="Metric #"&$S120&": "&IFERROR(OFFSET(INDIRECT(L$1&$A$20),A120,$E120),"") -> Metric #6: | M120: ="Metric #"&$S120&": "&IFERROR(OFFSET(INDIRECT(M$1&$A$20),B120,$E120),"") -> Metric #6: | N120: ="Metric #"&$S120&": "&IFERROR(OFFSET(INDIRECT(N$1&$A$20),C120,$E120),"") -> Metric #6: | O120: ="Metric #"&$S120&": "&IFERROR(OFFSET(INDIRECT(O$1&$A$20),D120,$E120),"") -> Metric #6: | R120: 1 | S120: 6 | T120: 1 | U120: 1 | V120: 1 | W120: 1 | X120: 1 | AE120: 13 | AF120: 3 | AG120: 1 | AH120: 1 | AI120: 1 | BD120: Metric #6: | BE120: Metric #6: | BF120: Metric #6: | BG120: Metric #6:
A121: N/A | E121: =E102+$E$20 -> 65 | L121: =IFERROR(OFFSET(INDIRECT(L$1&$A$20),A121,$E121),"") ->  | R121: 1 | S121: 6 | T121: 1 | U121: 1 | V121: 1 | W121: 1 | X121: 1 | AE121: 13 | AF121: 4 | AG121: 1 | AH121: 1 | AI121: 1
A122: N/A | E122: =E103+$E$20 -> 66 | R122: 1 | S122: 6 | T122: 1 | U122: 1 | V122: 1 | W122: 1 | X122: 1 | AE122: 13 | AF122: 5 | AG122: 1 | AH122: 1 | AI122: 1
A123: N/A | R123: 1 | S123: 6 | T123: 1 | U123: 1 | V123: 1 | W123: 1 | X123: 1 | AE123: 13 | AF123: 6 | AG123: 1 | AH123: 1 | AI123: 1 | BD123: 0 | BE123: 0 | BF123: 0 | BG123: 0
A124: N/A | E124: 60 | L124: Baseline/Goal: | M124: Baseline/Goal: | N124: Baseline/Goal: | O124: Baseline/Goal: | R124: 1 | S124: 6 | T124: 1 | U124: 1 | V124: 1 | W124: 1 | X124: 1 | AE124: 13 | AF124: 7 | AG124: 1 | AH124: 1 | AI124: 1 | BD124: Baseline/Goal: | BE124: Baseline/Goal: | BF124: Baseline/Goal: | BG124: Baseline/Goal:
A125: N/A | E125: 67 | L125: =IFERROR(OFFSET(INDIRECT(L$1&$A$20),A125,$E125),"") ->  | M125: =IFERROR(OFFSET(INDIRECT(M$1&$A$20),B125,$E125),"") ->  | N125: =IFERROR(OFFSET(INDIRECT(N$1&$A$20),C125,$E125),"") ->  | O125: =IFERROR(OFFSET(INDIRECT(O$1&$A$20),D125,$E125),"") ->  | R125: 1 | S125: 6 | T125: 1 | U125: 1 | V125: 1 | W125: 1 | X125: 1
A126: N/A | R126: 1 | S126: 6 | T126: 1 | U126: 1 | V126: 1 | W126: 1 | X126: 1 | BD126: 0 | BE126: 0 | BF126: 0 | BG126: 0
A127: N/A | E127: 60 | L127: Data Source: | M127: Data Source: | N127: Data Source: | O127: Data Source: | R127: 1 | S127: 6 | T127: 1 | U127: 1 | V127: 1 | W127: 1 | X127: 1 | BD127: Data Source: | BE127: Data Source: | BF127: Data Source: | BG127: Data Source:
A128: N/A | E128: 74 | L128: =IFERROR(OFFSET(INDIRECT(L$1&$A$20),A128,$E128),"") ->  | R128: 1 | S128: 6 | T128: 1 | U128: 1 | V128: 1 | W128: 1 | X128: =IF($R128>AC$21,1,IF($S128>INDEX(AN$21:AN$33,MATCH($R128,$AJ$21:$AJ$33,0)),1,0)) -> 1
A129: N/A | E129: 75 | R129: 1 | S129: 6 | T129: 1 | U129: =IF($R129>Z$21,1,IF($S129>INDEX(AK$21:AK$33,MATCH($R129,$AJ$21:$AJ$33,0)),1,0)) -> 1 | V129: 1 | W129: 1 | X129: 1
A130: N/A | R130: 1 | S130: 6 | T130: 1 | U130: 1 | V130: 1 | W130: 1 | X130: 1 | BD130: 0 | BE130: 0 | BF130: 0 | BG130: 0
A131: N/A | E131: 68 | L131: ="Metric Type: "&IFERROR(OFFSET(INDIRECT(L$1&$A$20),A131,$E131),"") -> Metric Type: | M131: ="Metric Type: "&IFERROR(OFFSET(INDIRECT(M$1&$A$20),B131,$E131),"") -> Metric Type: | N131: ="Metric Type: "&IFERROR(OFFSET(INDIRECT(N$1&$A$20),C131,$E131),"") -> Metric Type: | O131: ="Metric Type: "&IFERROR(OFFSET(INDIRECT(O$1&$A$20),D131,$E131),"") -> Metric Type: | R131: 1 | S131: 6 | T131: 1 | U131: 1 | V131: 1 | W131: 1 | X131: 1 | BD131: Metric Type: | BE131: Metric Type: | BF131: Metric Type: | BG131: Metric Type:
A132: N/A | E132: 69 | L132: ="Numeric Goal: "&IFERROR(OFFSET(INDIRECT(L$1&$A$20),A132,$E132),"") -> Numeric Goal: | M132: ="Numeric Goal: "&IFERROR(OFFSET(INDIRECT(M$1&$A$20),B132,$E132),"") -> Numeric Goal: | N132: ="Numeric Goal: "&IFERROR(OFFSET(INDIRECT(N$1&$A$20),C132,$E132),"") -> Numeric Goal: | O132: ="Numeric Goal: "&IFERROR(OFFSET(INDIRECT(O$1&$A$20),D132,$E132),"") -> Numeric Goal: | R132: 1 | S132: 6 | T132: 1 | U132: 1 | V132: 1 | W132: 1 | X132: 1 | BD132: Numeric Goal: | BE132: Numeric Goal: | BF132: Numeric Goal: | BG132: Numeric Goal:
A133: N/A | E133: 70 | L133: ="Numerator: "&IFERROR(OFFSET(INDIRECT(L$1&$A$20),A133,$E133),"") -> Numerator: | M133: ="Numerator: "&IFERROR(OFFSET(INDIRECT(M$1&$A$20),B133,$E133),"") -> Numerator: | N133: ="Numerator: "&IFERROR(OFFSET(INDIRECT(N$1&$A$20),C133,$E133),"") -> Numerator: | O133: ="Numerator: "&IFERROR(OFFSET(INDIRECT(O$1&$A$20),D133,$E133),"") -> Numerator: | R133: 1 | S133: 6 | T133: 1 | U133: 1 | V133: 1 | W133: 1 | X133: 1 | BD133: Numerator: | BE133: Numerator: | BF133: Numerator: | BG133: Numerator:
A134: N/A | E134: 71 | L134: ="Denominator: "&IFERROR(OFFSET(INDIRECT(L$1&$A$20),A134,$E134),"") -> Denominator: | M134: ="Denominator: "&IFERROR(OFFSET(INDIRECT(M$1&$A$20),B134,$E134),"") -> Denominator: | N134: ="Denominator: "&IFERROR(OFFSET(INDIRECT(N$1&$A$20),C134,$E134),"") -> Denominator: | O134: ="Denominator: "&IFERROR(OFFSET(INDIRECT(O$1&$A$20),D134,$E134),"") -> Denominator: | R134: 1 | S134: 6 | T134: 1 | U134: 1 | V134: 1 | W134: 1 | X134: 1 | BD134: Denominator: | BE134: Denominator: | BF134: Denominator: | BG134: Denominator:
A135: N/A | E135: 73 | M135: ="QPI Metric: "&IFERROR(OFFSET(INDIRECT(M$1&$A$20),B135,$E135),"") -> QPI Metric: | N135: ="QPI Metric: "&IFERROR(OFFSET(INDIRECT(N$1&$A$20),C135,$E135),"") -> QPI Metric: | O135: ="QPI Metric: "&IFERROR(OFFSET(INDIRECT(O$1&$A$20),D135,$E135),"") -> QPI Metric: | R135: 1 | S135: 6 | T135: 1 | U135: 1 | V135: 1 | W135: 1 | X135: 1 | BD135: 0 | BE135: QPI Metric: | BF135: QPI Metric: | BG135: QPI Metric:
A136: N/A | H136: =$H$41 -> 23 | M136: ="QPI Type: " & IFERROR(OFFSET(INDIRECT($S$1&$A$12),$F136,$H136),"") -> QPI Type: | N136: ="QPI Type: " & IFERROR(OFFSET(INDIRECT($S$1&$A$12),$F136,$H136),"") -> QPI Type: | O136: ="QPI Type: " & IFERROR(OFFSET(INDIRECT($S$1&$A$12),$F136,$H136),"") -> QPI Type: | R136: 1 | S136: 6 | T136: 1 | U136: 1 | V136: 1 | W136: 1 | X136: 1 | BD136: 0 | BE136: QPI Type: | BF136: QPI Type: | BG136: QPI Type:
A137: N/A | D137: =D136 ->  | E137: 72 | M137: ="MLIU Required: "&IFERROR(OFFSET(INDIRECT(M$1&$A$20),B137,$E137),"") -> MLIU Required: | N137: ="MLIU Required: "&IFERROR(OFFSET(INDIRECT(N$1&$A$20),C137,$E137),"") -> MLIU Required: | O137: ="MLIU Required: "&IFERROR(OFFSET(INDIRECT(O$1&$A$20),D137,$E137),"") -> MLIU Required: | R137: 1 | S137: 6 | T137: 1 | U137: 1 | V137: 1 | W137: 1 | X137: 1 | BD137: 0 | BE137: MLIU Required: | BF137: MLIU Required: | BG137: MLIU Required:
A138: =A137 -> N/A | R138: 1 | S138: 6 | T138: 1 | U138: 1 | V138: 1 | W138: 1 | X138: 1 | BD138: 0 | BE138: 0 | BF138: 0 | BG138: 0
A139: N/A | E139: =E120+$E$20 -> 76 | L139: ="Metric #"&$S139&": "&IFERROR(OFFSET(INDIRECT(L$1&$A$20),A139,$E139),"") -> Metric #7: | M139: ="Metric #"&$S139&": "&IFERROR(OFFSET(INDIRECT(M$1&$A$20),B139,$E139),"") -> Metric #7: | N139: ="Metric #"&$S139&": "&IFERROR(OFFSET(INDIRECT(N$1&$A$20),C139,$E139),"") -> Metric #7: | O139: ="Metric #"&$S139&": "&IFERROR(OFFSET(INDIRECT(O$1&$A$20),D139,$E139),"") -> Metric #7: | R139: 1 | S139: 7 | T139: 1 | U139: 1 | V139: 1 | W139: 1 | X139: 1 | BD139: Metric #7: | BE139: Metric #7: | BF139: Metric #7: | BG139: Metric #7:
A140: N/A | E140: =E121+$E$20 -> 77 | L140: =IFERROR(OFFSET(INDIRECT(L$1&$A$20),A140,$E140),"") ->  | R140: 1 | S140: 7 | T140: 1 | U140: 1 | V140: 1 | W140: 1 | X140: 1
A141: N/A | E141: =E122+$E$20 -> 78 | R141: 1 | S141: 7 | T141: 1 | U141: 1 | V141: 1 | W141: 1 | X141: 1
A142: N/A | R142: 1 | S142: 7 | T142: 1 | U142: 1 | V142: 1 | W142: 1 | X142: 1 | BD142: 0 | BE142: 0 | BF142: 0 | BG142: 0
A143: N/A | E143: 72 | L143: Baseline/Goal: | M143: Baseline/Goal: | N143: Baseline/Goal: | O143: Baseline/Goal: | R143: 1 | S143: 7 | T143: 1 | U143: 1 | V143: 1 | W143: 1 | X143: 1 | BD143: Baseline/Goal: | BE143: Baseline/Goal: | BF143: Baseline/Goal: | BG143: Baseline/Goal:
A144: N/A | E144: 79 | L144: =IFERROR(OFFSET(INDIRECT(L$1&$A$20),A144,$E144),"") ->  | M144: =IFERROR(OFFSET(INDIRECT(M$1&$A$20),B144,$E144),"") ->  | N144: =IFERROR(OFFSET(INDIRECT(N$1&$A$20),C144,$E144),"") ->  | O144: =IFERROR(OFFSET(INDIRECT(O$1&$A$20),D144,$E144),"") ->  | R144: 1 | S144: 7 | T144: 1 | U144: 1 | V144: 1 | W144: 1 | X144: 1
A145: N/A | R145: 1 | S145: 7 | T145: 1 | U145: 1 | V145: 1 | W145: 1 | X145: 1 | BD145: 0 | BE145: 0 | BF145: 0 | BG145: 0
A146: N/A | E146: 72 | L146: Data Source: | M146: Data Source: | N146: Data Source: | O146: Data Source: | R146: 1 | S146: 7 | T146: 1 | U146: 1 | V146: 1 | W146: 1 | X146: 1 | BD146: Data Source: | BE146: Data Source: | BF146: Data Source: | BG146: Data Source:
A147: N/A | E147: 86 | L147: =IFERROR(OFFSET(INDIRECT(L$1&$A$20),A147,$E147),"") ->  | R147: 1 | S147: 7 | T147: 1 | U147: 1 | V147: 1 | W147: 1 | X147: 1
A148: N/A | E148: 87 | R148: 1 | S148: 7 | T148: 1 | U148: 1 | V148: 1 | W148: 1 | X148: 1
A149: N/A | R149: 1 | S149: 7 | T149: =IF($M$9="",1,SUMPRODUCT(($R149=$AE$21:$AE$124)*($S149=$AF$21:$AF$124)*($AI$21:$AI$124))) -> 1 | U149: 1 | V149: 1 | W149: 1 | X149: 1 | BD149: 0 | BE149: 0 | BF149: 0 | BG149: =O149 -> 0
A150: N/A | E150: 80 | F150: =F149 ->  | L150: ="Metric Type: "&IFERROR(OFFSET(INDIRECT(L$1&$A$20),A150,$E150),"") -> Metric Type: | M150: ="Metric Type: "&IFERROR(OFFSET(INDIRECT(M$1&$A$20),B150,$E150),"") -> Metric Type: | N150: ="Metric Type: "&IFERROR(OFFSET(INDIRECT(N$1&$A$20),C150,$E150),"") -> Metric Type: | O150: ="Metric Type: "&IFERROR(OFFSET(INDIRECT(O$1&$A$20),D150,$E150),"") -> Metric Type: | R150: 1 | S150: 7 | T150: 1 | U150: 1 | V150: 1 | W150: 1 | X150: 1 | BD150: =L150 -> Metric Type: | BE150: Metric Type: | BF150: Metric Type: | BG150: Metric Type:
A151: N/A | E151: 81 | L151: ="Numeric Goal: "&IFERROR(OFFSET(INDIRECT(L$1&$A$20),A151,$E151),"") -> Numeric Goal: | M151: ="Numeric Goal: "&IFERROR(OFFSET(INDIRECT(M$1&$A$20),B151,$E151),"") -> Numeric Goal: | N151: ="Numeric Goal: "&IFERROR(OFFSET(INDIRECT(N$1&$A$20),C151,$E151),"") -> Numeric Goal: | O151: ="Numeric Goal: "&IFERROR(OFFSET(INDIRECT(O$1&$A$20),D151,$E151),"") -> Numeric Goal: | R151: 1 | S151: 7 | T151: 1 | U151: 1 | V151: 1 | W151: 1 | X151: 1 | BD151: Numeric Goal: | BE151: Numeric Goal: | BF151: Numeric Goal: | BG151: Numeric Goal:
A152: N/A | E152: 82 | L152: ="Numerator: "&IFERROR(OFFSET(INDIRECT(L$1&$A$20),A152,$E152),"") -> Numerator: | M152: ="Numerator: "&IFERROR(OFFSET(INDIRECT(M$1&$A$20),B152,$E152),"") -> Numerator: | N152: ="Numerator: "&IFERROR(OFFSET(INDIRECT(N$1&$A$20),C152,$E152),"") -> Numerator: | O152: ="Numerator: "&IFERROR(OFFSET(INDIRECT(O$1&$A$20),D152,$E152),"") -> Numerator: | R152: 1 | S152: 7 | T152: 1 | U152: 1 | V152: 1 | W152: 1 | X152: 1 | BD152: Numerator: | BE152: Numerator: | BF152: Numerator: | BG152: Numerator:
A153: N/A | E153: 83 | L153: ="Denominator: "&IFERROR(OFFSET(INDIRECT(L$1&$A$20),A153,$E153),"") -> Denominator: | M153: ="Denominator: "&IFERROR(OFFSET(INDIRECT(M$1&$A$20),B153,$E153),"") -> Denominator: | N153: ="Denominator: "&IFERROR(OFFSET(INDIRECT(N$1&$A$20),C153,$E153),"") -> Denominator: | O153: ="Denominator: "&IFERROR(OFFSET(INDIRECT(O$1&$A$20),D153,$E153),"") -> Denominator: | R153: 1 | S153: 7 | T153: 1 | U153: 1 | V153: 1 | W153: 1 | X153: 1 | BD153: Denominator: | BE153: Denominator: | BF153: Denominator: | BG153: Denominator:
A154: N/A | E154: 85 | M154: ="QPI Metric: "&IFERROR(OFFSET(INDIRECT(M$1&$A$20),B154,$E154),"") -> QPI Metric: | N154: ="QPI Metric: "&IFERROR(OFFSET(INDIRECT(N$1&$A$20),C154,$E154),"") -> QPI Metric: | O154: ="QPI Metric: "&IFERROR(OFFSET(INDIRECT(O$1&$A$20),D154,$E154),"") -> QPI Metric: | R154: 1 | S154: 7 | T154: 1 | U154: 1 | V154: 1 | W154: 1 | X154: 1 | BD154: 0 | BE154: QPI Metric: | BF154: QPI Metric: | BG154: QPI Metric:
A155: N/A | H155: =$H$41 -> 23 | M155: ="QPI Type: " & IFERROR(OFFSET(INDIRECT($S$1&$A$12),$F155,$H155),"") -> QPI Type: | N155: ="QPI Type: " & IFERROR(OFFSET(INDIRECT($S$1&$A$12),$F155,$H155),"") -> QPI Type: | O155: ="QPI Type: " & IFERROR(OFFSET(INDIRECT($S$1&$A$12),$F155,$H155),"") -> QPI Type: | R155: 1 | S155: 7 | T155: 1 | U155: 1 | V155: 1 | W155: 1 | X155: 1 | BD155: 0 | BE155: QPI Type: | BF155: QPI Type: | BG155: QPI Type:
A156: N/A | E156: 84 | M156: ="MLIU Required: "&IFERROR(OFFSET(INDIRECT(M$1&$A$20),B156,$E156),"") -> MLIU Required: | N156: ="MLIU Required: "&IFERROR(OFFSET(INDIRECT(N$1&$A$20),C156,$E156),"") -> MLIU Required: | O156: ="MLIU Required: "&IFERROR(OFFSET(INDIRECT(O$1&$A$20),D156,$E156),"") -> MLIU Required: | R156: 1 | S156: 7 | T156: 1 | U156: 1 | V156: 1 | W156: 1 | X156: 1 | BD156: 0 | BE156: MLIU Required: | BF156: MLIU Required: | BG156: MLIU Required:
A157: N/A | R157: 1 | S157: 7 | T157: 1 | U157: 1 | V157: 1 | W157: 1 | X157: 1 | BD157: 0 | BE157: 0 | BF157: 0 | BG157: 0
A158: N/A | L158: ="Milestone #" & $R158 & " Estimated Incentive Payment:" -> Milestone #1 Estimated Incentive Payment: | M158: ="Milestone #" & $R158 & " Estimated Incentive Payment:" -> Milestone #1 Estimated Incentive Payment: | N158: Milestone #1 Estimated Incentive Payment: | O158: Milestone #1 Estimated Incentive Payment: | R158: 1 | S158: 0 | T158: 1 | U158: 1 | V158: 1 | W158: 1 | X158: 1 | BD158: Milestone #1 Estimated Incentive Payment: | BE158: Milestone #1 Estimated Incentive Payment: | BF158: Milestone #1 Estimated Incentive Payment: | BG158: Milestone #1 Estimated Incentive Payment:
A159: N/A | E159: =E21+$D$20 -> 88 | L159: =IFERROR(OFFSET(INDIRECT(L$1&$A$20),A159,$E159),"") ->  | M159: =IFERROR(OFFSET(INDIRECT(M$1&$A$20),B159,$E159),"") ->  | N159: =IFERROR(OFFSET(INDIRECT(N$1&$A$20),C159,$E159),"") ->  | O159: =IFERROR(OFFSET(INDIRECT(O$1&$A$20),D159,$E159),"") ->  | R159: 1 | S159: 0 | T159: 1 | U159: 1 | V159: 1 | W159: 1 | X159: 1
A160: N/A | R160: 1 | S160: 0 | T160: 1 | U160: =IF($R160>Z$21,1,IF($S160>INDEX(AK$21:AK$33,MATCH($R160,$AJ$21:$AJ$33,0)),1,0)) -> 1 | V160: 1 | W160: 1 | X160: 1 | BD160: 0 | BE160: 0 | BF160: 0 | BG160: 0
A161: N/A | E161: =IF($E21="","",$E21+$AL$12) -> 89 | H161: =IF($H21="","",$H21) ->  | L161: ="Milestone #"&$R161&": "&IFERROR(OFFSET(INDIRECT(L$1&$A$20),A161,$E161),"") -> Milestone #2: | M161: ="Milestone #"&$R161&": "&IFERROR(OFFSET(INDIRECT(M$1&$A$20),B161,$E161),"") -> Milestone #2: | N161: ="Milestone #"&$R161&": "&IFERROR(OFFSET(INDIRECT(N$1&$A$20),C161,$E161),"") -> Milestone #2: | O161: ="Milestone #"&$R161&": "&IFERROR(OFFSET(INDIRECT(O$1&$A$20),D161,$E161),"") -> Milestone #2: | R161: 2 | S161: 0 | T161: 1 | U161: =IF($R161>Z$21,1,IF($S161>INDEX(AK$21:AK$33,MATCH($R161,$AJ$21:$AJ$33,0)),1,0)) -> 1 | V161: 1 | W161: 1 | X161: 1 | BD161: Milestone #2: | BE161: Milestone #2: | BF161: Milestone #2: | BG161: Milestone #2:
A162: N/A | E162: =IF($E22="","",$E22+$AL$12) -> 90 | H162: =IF($H22="","",$H22) ->  | L162: =IFERROR(OFFSET(INDIRECT(L$1&$A$20),A162,$E162),"") ->  | R162: 2 | S162: 0 | T162: 1 | U162: =IF($R162>Z$21,1,IF($S162>INDEX(AK$21:AK$33,MATCH($R162,$AJ$21:$AJ$33,0)),1,0)) -> 1 | V162: 1 | W162: 1 | X162: 1
A163: N/A | E163: 91 | R163: 2 | S163: 0 | T163: 1 | U163: 1 | V163: 1 | W163: 1 | X163: 1
A164: N/A | R164: 2 | S164: 0 | T164: 1 | U164: 1 | V164: 1 | W164: 1 | X164: 1 | BD164: 0 | BE164: 0 | BF164: 0 | BG164: 0
A165: N/A | E165: 93 | L165: ="Metric #"&$S165&": "&IFERROR(OFFSET(INDIRECT(L$1&$A$20),A165,$E165),"") -> Metric #1: | M165: ="Metric #"&$S165&": "&IFERROR(OFFSET(INDIRECT(M$1&$A$20),B165,$E165),"") -> Metric #1: | N165: ="Metric #"&$S165&": "&IFERROR(OFFSET(INDIRECT(N$1&$A$20),C165,$E165),"") -> Metric #1: | O165: ="Metric #"&$S165&": "&IFERROR(OFFSET(INDIRECT(O$1&$A$20),D165,$E165),"") -> Metric #1: | R165: 2 | S165: 1 | T165: 1 | U165: 1 | V165: 1 | W165: 1 | X165: 1 | BD165: Metric #1: | BE165: Metric #1: | BF165: Metric #1: | BG165: Metric #1:
A166: N/A | E166: 94 | L166: =IFERROR(OFFSET(INDIRECT(L$1&$A$20),A166,$E166),"") ->  | R166: 2 | S166: 1 | T166: 1 | U166: 1 | V166: 1 | W166: 1 | X166: 1
A167: N/A | E167: 95 | R167: 2 | S167: 1 | T167: 1 | U167: 1 | V167: 1 | W167: 1 | X167: 1
A168: N/A | R168: 2 | S168: 1 | T168: 1 | U168: 1 | V168: 1 | W168: 1 | X168: 1 | BD168: 0 | BE168: 0 | BF168: 0 | BG168: 0
A169: =A168 -> N/A | L169: Baseline/Goal: | M169: Baseline/Goal: | N169: Baseline/Goal: | O169: Baseline/Goal: | R169: 2 | S169: 1 | T169: 1 | U169: 1 | V169: 1 | W169: 1 | X169: 1 | BD169: Baseline/Goal: | BE169: Baseline/Goal: | BF169: Baseline/Goal: | BG169: Baseline/Goal:
A170: N/A | E170: 96 | L170: =IFERROR(OFFSET(INDIRECT(L$1&$A$20),A170,$E170),"") ->  | M170: =IFERROR(OFFSET(INDIRECT(M$1&$A$20),B170,$E170),"") ->  | N170: =IFERROR(OFFSET(INDIRECT(N$1&$A$20),C170,$E170),"") ->  | O170: =IFERROR(OFFSET(INDIRECT(O$1&$A$20),D170,$E170),"") ->  | R170: 2 | S170: 1 | T170: 1 | U170: 1 | V170: 1 | W170: 1 | X170: 1
A171: N/A | R171: 2 | S171: 1 | T171: 1 | U171: 1 | V171: 1 | W171: 1 | X171: 1 | BD171: 0 | BE171: 0 | BF171: 0 | BG171: 0
A172: N/A | L172: Data Source: | M172: Data Source: | N172: Data Source: | O172: Data Source: | R172: 2 | S172: 1 | T172: 1 | U172: 1 | V172: 1 | W172: 1 | X172: 1 | BD172: Data Source: | BE172: Data Source: | BF172: Data Source: | BG172: Data Source:
A173: N/A | E173: 103 | L173: =IFERROR(OFFSET(INDIRECT(L$1&$A$20),A173,$E173),"") ->  | R173: 2 | S173: 1 | T173: 1 | U173: 1 | V173: 1 | W173: 1 | X173: 1
A174: N/A | E174: 104 | R174: 2 | S174: 1 | T174: 1 | U174: 1 | V174: 1 | W174: 1 | X174: 1
A175: N/A | R175: 2 | S175: 1 | T175: 1 | U175: 1 | V175: 1 | W175: 1 | X175: 1 | BD175: 0 | BE175: 0 | BF175: 0 | BG175: 0
A176: N/A | E176: 97 | L176: ="Metric Type: "&IFERROR(OFFSET(INDIRECT(L$1&$A$20),A176,$E176),"") -> Metric Type: | M176: ="Metric Type: "&IFERROR(OFFSET(INDIRECT(M$1&$A$20),B176,$E176),"") -> Metric Type: | N176: ="Metric Type: "&IFERROR(OFFSET(INDIRECT(N$1&$A$20),C176,$E176),"") -> Metric Type: | O176: ="Metric Type: "&IFERROR(OFFSET(INDIRECT(O$1&$A$20),D176,$E176),"") -> Metric Type: | R176: 2 | S176: 1 | T176: 1 | U176: 1 | V176: 1 | W176: 1 | X176: 1 | BD176: Metric Type: | BE176: Metric Type: | BF176: Metric Type: | BG176: Metric Type:
A177: N/A | E177: 98 | L177: ="Numeric Goal: "&IFERROR(OFFSET(INDIRECT(L$1&$A$20),A177,$E177),"") -> Numeric Goal: | M177: ="Numeric Goal: "&IFERROR(OFFSET(INDIRECT(M$1&$A$20),B177,$E177),"") -> Numeric Goal: | N177: ="Numeric Goal: "&IFERROR(OFFSET(INDIRECT(N$1&$A$20),C177,$E177),"") -> Numeric Goal: | O177: ="Numeric Goal: "&IFERROR(OFFSET(INDIRECT(O$1&$A$20),D177,$E177),"") -> Numeric Goal: | R177: 2 | S177: 1 | T177: 1 | U177: 1 | V177: 1 | W177: 1 | X177: 1 | BD177: Numeric Goal: | BE177: Numeric Goal: | BF177: Numeric Goal: | BG177: Numeric Goal:
A178: N/A | E178: 99 | L178: ="Numerator: "&IFERROR(OFFSET(INDIRECT(L$1&$A$20),A178,$E178),"") -> Numerator: | M178: ="Numerator: "&IFERROR(OFFSET(INDIRECT(M$1&$A$20),B178,$E178),"") -> Numerator: | N178: ="Numerator: "&IFERROR(OFFSET(INDIRECT(N$1&$A$20),C178,$E178),"") -> Numerator: | O178: ="Numerator: "&IFERROR(OFFSET(INDIRECT(O$1&$A$20),D178,$E178),"") -> Numerator: | R178: 2 | S178: 1 | T178: 1 | U178: 1 | V178: 1 | W178: 1 | X178: 1 | BD178: Numerator: | BE178: Numerator: | BF178: Numerator: | BG178: Numerator:
A179: N/A | E179: 100 | L179: ="Denominator: "&IFERROR(OFFSET(INDIRECT(L$1&$A$20),A179,$E179),"") -> Denominator: | M179: ="Denominator: "&IFERROR(OFFSET(INDIRECT(M$1&$A$20),B179,$E179),"") -> Denominator: | N179: ="Denominator: "&IFERROR(OFFSET(INDIRECT(N$1&$A$20),C179,$E179),"") -> Denominator: | O179: ="Denominator: "&IFERROR(OFFSET(INDIRECT(O$1&$A$20),D179,$E179),"") -> Denominator: | R179: 2 | S179: 1 | T179: 1 | U179: 1 | V179: 1 | W179: 1 | X179: 1 | BD179: Denominator: | BE179: Denominator: | BF179: Denominator: | BG179: Denominator:
A180: N/A | E180: 102 | M180: ="QPI Metric: "&IFERROR(OFFSET(INDIRECT(M$1&$A$20),B180,$E180),"") -> QPI Metric: | N180: ="QPI Metric: "&IFERROR(OFFSET(INDIRECT(N$1&$A$20),C180,$E180),"") -> QPI Metric: | O180: ="QPI Metric: "&IFERROR(OFFSET(INDIRECT(O$1&$A$20),D180,$E180),"") -> QPI Metric: | R180: 2 | S180: 1 | T180: 1 | U180: 1 | V180: 1 | W180: 1 | X180: 1 | BD180: 0 | BE180: QPI Metric: | BF180: QPI Metric: | BG180: QPI Metric:
A181: N/A | H181: 23 | M181: ="QPI Type: " & IFERROR(OFFSET(INDIRECT($S$1&$A$12),$F181,$H181),"") -> QPI Type: | N181: ="QPI Type: " & IFERROR(OFFSET(INDIRECT($S$1&$A$12),$F181,$H181),"") -> QPI Type: | O181: ="QPI Type: " & IFERROR(OFFSET(INDIRECT($S$1&$A$12),$F181,$H181),"") -> QPI Type: | R181: 2 | S181: 1 | T181: 1 | U181: 1 | V181: 1 | W181: 1 | X181: 1 | BD181: 0 | BE181: QPI Type: | BF181: QPI Type: | BG181: QPI Type:
A182: N/A | E182: 101 | M182: ="MLIU Required: "&IFERROR(OFFSET(INDIRECT(M$1&$A$20),B182,$E182),"") -> MLIU Required: | N182: ="MLIU Required: "&IFERROR(OFFSET(INDIRECT(N$1&$A$20),C182,$E182),"") -> MLIU Required: | O182: ="MLIU Required: "&IFERROR(OFFSET(INDIRECT(O$1&$A$20),D182,$E182),"") -> MLIU Required: | R182: 2 | S182: 1 | T182: 1 | U182: 1 | V182: 1 | W182: 1 | X182: 1 | BD182: 0 | BE182: MLIU Required: | BF182: MLIU Required: | BG182: MLIU Required:
A183: N/A | R183: 2 | S183: 1 | T183: 1 | U183: 1 | V183: 1 | W183: 1 | X183: 1 | BD183: 0 | BE183: 0 | BF183: 0 | BG183: 0
A184: N/A | E184: 105 | L184: ="Metric #"&$S184&": "&IFERROR(OFFSET(INDIRECT(L$1&$A$20),A184,$E184),"") -> Metric #2: | M184: ="Metric #"&$S184&": "&IFERROR(OFFSET(INDIRECT(M$1&$A$20),B184,$E184),"") -> Metric #2: | N184: ="Metric #"&$S184&": "&IFERROR(OFFSET(INDIRECT(N$1&$A$20),C184,$E184),"") -> Metric #2: | O184: ="Metric #"&$S184&": "&IFERROR(OFFSET(INDIRECT(O$1&$A$20),D184,$E184),"") -> Metric #2: | R184: 2 | S184: 2 | T184: 1 | U184: 1 | V184: 1 | W184: 1 | X184: 1 | BD184: Metric #2: | BE184: Metric #2: | BF184: Metric #2: | BG184: Metric #2:
A185: N/A | E185: 106 | L185: =IFERROR(OFFSET(INDIRECT(L$1&$A$20),A185,$E185),"") ->  | R185: 2 | S185: 2 | T185: 1 | U185: 1 | V185: 1 | W185: 1 | X185: 1
A186: N/A | E186: 107 | R186: 2 | S186: 2 | T186: 1 | U186: 1 | V186: 1 | W186: 1 | X186: 1
A187: N/A | R187: 2 | S187: 2 | T187: 1 | U187: 1 | V187: 1 | W187: 1 | X187: 1 | BD187: 0 | BE187: 0 | BF187: 0 | BG187: 0
A188: N/A | E188: 101 | L188: Baseline/Goal: | M188: Baseline/Goal: | N188: Baseline/Goal: | O188: Baseline/Goal: | R188: 2 | S188: 2 | T188: 1 | U188: 1 | V188: 1 | W188: 1 | X188: 1 | BD188: Baseline/Goal: | BE188: Baseline/Goal: | BF188: Baseline/Goal: | BG188: Baseline/Goal:
A189: N/A | E189: 108 | L189: =IFERROR(OFFSET(INDIRECT(L$1&$A$20),A189,$E189),"") ->  | M189: =IFERROR(OFFSET(INDIRECT(M$1&$A$20),B189,$E189),"") ->  | N189: =IFERROR(OFFSET(INDIRECT(N$1&$A$20),C189,$E189),"") ->  | O189: =IFERROR(OFFSET(INDIRECT(O$1&$A$20),D189,$E189),"") ->  | R189: 2 | S189: 2 | T189: 1 | U189: 1 | V189: 1 | W189: 1 | X189: 1
A190: N/A | R190: 2 | S190: 2 | T190: 1 | U190: 1 | V190: 1 | W190: 1 | X190: 1 | BD190: 0 | BE190: 0 | BF190: 0 | BG190: 0
A191: N/A | E191: 101 | L191: Data Source: | M191: Data Source: | N191: Data Source: | O191: Data Source: | R191: 2 | S191: 2 | T191: 1 | U191: 1 | V191: 1 | W191: 1 | X191: 1 | BD191: Data Source: | BE191: Data Source: | BF191: Data Source: | BG191: Data Source:
A192: N/A | E192: 115 | L192: =IFERROR(OFFSET(INDIRECT(L$1&$A$20),A192,$E192),"") ->  | R192: 2 | S192: 2 | T192: 1 | U192: 1 | V192: 1 | W192: 1 | X192: 1
A193: N/A | E193: 116 | R193: 2 | S193: 2 | T193: 1 | U193: 1 | V193: 1 | W193: 1 | X193: 1
A194: N/A | R194: 2 | S194: 2 | T194: 1 | U194: 1 | V194: 1 | W194: 1 | X194: 1 | BD194: 0 | BE194: 0 | BF194: 0 | BG194: 0
A195: N/A | E195: 109 | L195: ="Metric Type: "&IFERROR(OFFSET(INDIRECT(L$1&$A$20),A195,$E195),"") -> Metric Type: | M195: ="Metric Type: "&IFERROR(OFFSET(INDIRECT(M$1&$A$20),B195,$E195),"") -> Metric Type: | N195: ="Metric Type: "&IFERROR(OFFSET(INDIRECT(N$1&$A$20),C195,$E195),"") -> Metric Type: | O195: ="Metric Type: "&IFERROR(OFFSET(INDIRECT(O$1&$A$20),D195,$E195),"") -> Metric Type: | R195: 2 | S195: 2 | T195: 1 | U195: 1 | V195: 1 | W195: 1 | X195: 1 | BD195: Metric Type: | BE195: Metric Type: | BF195: Metric Type: | BG195: Metric Type:
A196: N/A | E196: 110 | L196: ="Numeric Goal: "&IFERROR(OFFSET(INDIRECT(L$1&$A$20),A196,$E196),"") -> Numeric Goal: | M196: ="Numeric Goal: "&IFERROR(OFFSET(INDIRECT(M$1&$A$20),B196,$E196),"") -> Numeric Goal: | N196: ="Numeric Goal: "&IFERROR(OFFSET(INDIRECT(N$1&$A$20),C196,$E196),"") -> Numeric Goal: | O196: ="Numeric Goal: "&IFERROR(OFFSET(INDIRECT(O$1&$A$20),D196,$E196),"") -> Numeric Goal: | R196: 2 | S196: 2 | T196: 1 | U196: 1 | V196: 1 | W196: 1 | X196: 1 | BD196: Numeric Goal: | BE196: Numeric Goal: | BF196: Numeric Goal: | BG196: Numeric Goal:
A197: N/A | E197: 111 | L197: ="Numerator: "&IFERROR(OFFSET(INDIRECT(L$1&$A$20),A197,$E197),"") -> Numerator: | M197: ="Numerator: "&IFERROR(OFFSET(INDIRECT(M$1&$A$20),B197,$E197),"") -> Numerator: | N197: ="Numerator: "&IFERROR(OFFSET(INDIRECT(N$1&$A$20),C197,$E197),"") -> Numerator: | O197: ="Numerator: "&IFERROR(OFFSET(INDIRECT(O$1&$A$20),D197,$E197),"") -> Numerator: | R197: 2 | S197: 2 | T197: 1 | U197: 1 | V197: 1 | W197: 1 | X197: 1 | BD197: Numerator: | BE197: Numerator: | BF197: Numerator: | BG197: Numerator:
A198: N/A | E198: 112 | L198: ="Denominator: "&IFERROR(OFFSET(INDIRECT(L$1&$A$20),A198,$E198),"") -> Denominator: | M198: ="Denominator: "&IFERROR(OFFSET(INDIRECT(M$1&$A$20),B198,$E198),"") -> Denominator: | N198: ="Denominator: "&IFERROR(OFFSET(INDIRECT(N$1&$A$20),C198,$E198),"") -> Denominator: | O198: ="Denominator: "&IFERROR(OFFSET(INDIRECT(O$1&$A$20),D198,$E198),"") -> Denominator: | R198: 2 | S198: 2 | T198: 1 | U198: 1 | V198: 1 | W198: 1 | X198: 1 | BD198: Denominator: | BE198: Denominator: | BF198: Denominator: | BG198: Denominator:
A199: N/A | E199: 114 | M199: ="QPI Metric: "&IFERROR(OFFSET(INDIRECT(M$1&$A$20),B199,$E199),"") -> QPI Metric: | N199: ="QPI Metric: "&IFERROR(OFFSET(INDIRECT(N$1&$A$20),C199,$E199),"") -> QPI Metric: | O199: ="QPI Metric: "&IFERROR(OFFSET(INDIRECT(O$1&$A$20),D199,$E199),"") -> QPI Metric: | R199: 2 | S199: 2 | T199: 1 | U199: 1 | V199: 1 | W199: 1 | X199: 1 | BD199: 0 | BE199: QPI Metric: | BF199: QPI Metric: | BG199: QPI Metric:
A200: N/A | H200: 23 | M200: ="QPI Type: " & IFERROR(OFFSET(INDIRECT($S$1&$A$12),$F200,$H200),"") -> QPI Type: | N200: ="QPI Type: " & IFERROR(OFFSET(INDIRECT($S$1&$A$12),$F200,$H200),"") -> QPI Type: | O200: ="QPI Type: " & IFERROR(OFFSET(INDIRECT($S$1&$A$12),$F200,$H200),"") -> QPI Type: | R200: 2 | S200: 2 | T200: 1 | U200: 1 | V200: 1 | W200: 1 | X200: 1 | BD200: 0 | BE200: QPI Type: | BF200: QPI Type: | BG200: QPI Type:
A201: N/A | E201: 113 | M201: ="MLIU Required: "&IFERROR(OFFSET(INDIRECT(M$1&$A$20),B201,$E201),"") -> MLIU Required: | N201: ="MLIU Required: "&IFERROR(OFFSET(INDIRECT(N$1&$A$20),C201,$E201),"") -> MLIU Required: | O201: ="MLIU Required: "&IFERROR(OFFSET(INDIRECT(O$1&$A$20),D201,$E201),"") -> MLIU Required: | R201: 2 | S201: 2 | T201: 1 | U201: 1 | V201: 1 | W201: 1 | X201: 1 | BD201: 0 | BE201: MLIU Required: | BF201: MLIU Required: | BG201: MLIU Required:
A202: N/A | R202: 2 | S202: 2 | T202: 1 | U202: 1 | V202: 1 | W202: 1 | X202: 1 | BD202: 0 | BE202: 0 | BF202: 0 | BG202: 0
... 923 more rows

Sheet Project Dropdown List (hidden)
A1: List of all Project IDs by Category, RHP, and TPI:
A2: *** If you change a TPI Number or Project ID in one of the 'Detail' worksheet, make the same change in this worksheet as well ***
A3: *** Be Careful when dealing with a TPI Number with a '0' as the first digit; many times excel will automatically remove this '0'. Insert an apostrophe (') before the 0 to fix this issue ***
B4: Category Indicator | C4: RHP | D4: TPI | E4: Project ID | G4: Category Indicator | H4: RHP | I4: TPI | J4: Project ID
B5: 1 | C5: 1 | D5: 017624007 | E5: 017624002.1.1 | G5: 1 | H5: 1 | I5: 017624007 | J5: 017624002.1.1
B6: 1 | C6: 1 | D6: 020812601 | E6: 020812601.1.1 | G6: 1 | H6: 1 | I6: 020812601 | J6: 020812601.1.1
B7: 1 | C7: 1 | D7: 020812601 | E7: 020812601.1.2 | G7: 1 | H7: 1 | I7: 020812601 | J7: 020812601.1.2
B8: 2 | C8: 1 | D8: 020812601 | E8: 020812601.2.3 | G8: 2 | H8: 1 | I8: 020812601 | J8: 020812601.2.3
B9: 1 | C9: 1 | D9: 084434201 | E9: 084434201.1.1 | G9: 1 | H9: 1 | I9: 084434201 | J9: 084434201.1.1
B10: 1 | C10: 1 | D10: 084434201 | E10: 084434201.1.2 | G10: 1 | H10: 1 | I10: 084434201 | J10: 084434201.1.2
B11: 1 | C11: 1 | D11: 084434201 | E11: 084434201.1.3 | G11: 1 | H11: 1 | I11: 084434201 | J11: 084434201.1.3
B12: 1 | C12: 1 | D12: 084434201 | E12: 084434201.1.4 | G12: 1 | H12: 1 | I12: 084434201 | J12: 084434201.1.4
B13: 2 | C13: 1 | D13: 084434201 | E13: 084434201.2.1 | G13: 2 | H13: 1 | I13: 084434201 | J13: 084434201.2.1
B14: 2 | C14: 1 | D14: 084434201 | E14: 084434201.2.2 | G14: 2 | H14: 1 | I14: 084434201 | J14: 084434201.2.2
B15: 2 | C15: 1 | D15: 094095902 | E15: 094095902.2.1 | G15: 2 | H15: 1 | I15: 094095902 | J15: 094095902.2.1
B16: 1 | C16: 1 | D16: 094108002 | E16: 094108002.1.1 | G16: 1 | H16: 1 | I16: 094108002 | J16: 094108002.1.1
B17: 1 | C17: 1 | D17: 094108002 | E17: 094108002.1.2 | G17: 1 | H17: 1 | I17: 094108002 | J17: 094108002.1.2
B18: 1 | C18: 1 | D18: 094108002 | E18: 094108002.1.3 | G18: 1 | H18: 1 | I18: 094108002 | J18: 094108002.1.3
B19: 2 | C19: 1 | D19: 094108002 | E19: 094108002.2.1 | G19: 2 | H19: 1 | I19: 094108002 | J19: 094108002.2.1
B20: 2 | C20: 1 | D20: 094108002 | E20: 094108002.2.100 | G20: 2 | H20: 1 | I20: 094108002 | J20: 094108002.2.100
B21: 2 | C21: 1 | D21: 094108002 | E21: 094108002.2.2 | G21: 2 | H21: 1 | I21: 094108002 | J21: 094108002.2.2
B22: 2 | C22: 1 | D22: 094108002 | E22: 094108002.2.3 | G22: 2 | H22: 1 | I22: 094108002 | J22: 094108002.2.3
B23: 1 | C23: 1 | D23: 094127002 | E23: 094127002.1.1 | G23: 1 | H23: 1 | I23: 094127002 | J23: 094127002.1.1
B24: 2 | C24: 1 | D24: 094127002 | E24: 094127002.2.1 | G24: 2 | H24: 1 | I24: 094127002 | J24: 094127002.2.1
B25: 1 | C25: 1 | D25: 094190802 | E25: 094190802.1.1 | G25: 1 | H25: 1 | I25: 094190802 | J25: 094190802.1.1
B26: 2 | C26: 1 | D26: 094190802 | E26: 094190802.2.1 | G26: 2 | H26: 1 | I26: 094190802 | J26: 094190802.2.1
B27: 1 | C27: 1 | D27: 111411803 | E27: 111411803.1.100 | G27: 1 | H27: 1 | I27: 111411803 | J27: 111411803.1.100
B28: 1 | C28: 1 | D28: 111411803 | E28: 111411803.1.101 | G28: 1 | H28: 1 | I28: 111411803 | J28: 111411803.1.101
B29: 2 | C29: 1 | D29: 111411803 | E29: 111411803.2.100 | G29: 2 | H29: 1 | I29: 111411803 | J29: 111411803.2.100
B30: 1 | C30: 1 | D30: 121817401 | E30: 121817401.1.1 | G30: 1 | H30: 1 | I30: 121817401 | J30: 121817401.1.1
B31: 2 | C31: 1 | D31: 121817401 | E31: 121817401.2.1 | G31: 2 | H31: 1 | I31: 121817401 | J31: 121817401.2.1
B32: 1 | C32: 1 | D32: 121988304 | E32: 121988304.1.1 | G32: 1 | H32: 1 | I32: 121988304 | J32: 121988304.1.1
B33: 2 | C33: 1 | D33: 121988304 | E33: 121988304.2.1 | G33: 2 | H33: 1 | I33: 121988304 | J33: 121988304.2.1
B34: 2 | C34: 1 | D34: 121988304 | E34: 121988304.2.2 | G34: 2 | H34: 1 | I34: 121988304 | J34: 121988304.2.2
B35: 1 | C35: 1 | D35: 127278302 | E35: 127278302.1.1 | G35: 1 | H35: 1 | I35: 127278302 | J35: 127278302.1.1
B36: 1 | C36: 1 | D36: 127278302 | E36: 127278302.1.10 | G36: 1 | H36: 1 | I36: 127278302 | J36: 127278302.1.10
B37: 1 | C37: 1 | D37: 127278302 | E37: 127278302.1.11 | G37: 1 | H37: 1 | I37: 127278302 | J37: 127278302.1.11
B38: 1 | C38: 1 | D38: 127278302 | E38: 127278302.1.12 | G38: 1 | H38: 1 | I38: 127278302 | J38: 127278302.1.12
B39: 1 | C39: 1 | D39: 127278302 | E39: 127278302.1.13 | G39: 1 | H39: 1 | I39: 127278302 | J39: 127278302.1.13
B40: 1 | C40: 1 | D40: 127278302 | E40: 127278302.1.4 | G40: 1 | H40: 1 | I40: 127278302 | J40: 127278302.1.4
B41: 1 | C41: 1 | D41: 127278302 | E41: 127278302.1.8 | G41: 1 | H41: 1 | I41: 127278302 | J41: 127278302.1.8
B42: 1 | C42: 1 | D42: 127278302 | E42: 127278302.1.9 | G42: 1 | H42: 1 | I42: 127278302 | J42: 127278302.1.9
B43: 2 | C43: 1 | D43: 127278302 | E43: 127278302.2.1 | G43: 2 | H43: 1 | I43: 127278302 | J43: 127278302.2.1
B44: 2 | C44: 1 | D44: 127278302 | E44: 127278302.2.100 | G44: 2 | H44: 1 | I44: 127278302 | J44: 127278302.2.100
B45: 2 | C45: 1 | D45: 127278302 | E45: 127278302.2.13 | G45: 2 | H45: 1 | I45: 127278302 | J45: 127278302.2.13
B46: 2 | C46: 1 | D46: 127278302 | E46: 127278302.2.14 | G46: 2 | H46: 1 | I46: 127278302 | J46: 127278302.2.14
B47: 2 | C47: 1 | D47: 127278302 | E47: 127278302.2.15 | G47: 2 | H47: 1 | I47: 127278302 | J47: 127278302.2.15
B48: 2 | C48: 1 | D48: 127278302 | E48: 127278302.2.16 | G48: 2 | H48: 1 | I48: 127278302 | J48: 127278302.2.16
B49: 2 | C49: 1 | D49: 127278302 | E49: 127278302.2.17 | G49: 2 | H49: 1 | I49: 127278302 | J49: 127278302.2.17
B50: 2 | C50: 1 | D50: 127278302 | E50: 127278302.2.18 | G50: 2 | H50: 1 | I50: 127278302 | J50: 127278302.2.18
B51: 2 | C51: 1 | D51: 127278302 | E51: 127278302.2.19 | G51: 2 | H51: 1 | I51: 127278302 | J51: 127278302.2.19
B52: 2 | C52: 1 | D52: 127278302 | E52: 127278302.2.20 | G52: 2 | H52: 1 | I52: 127278302 | J52: 127278302.2.20
B53: 2 | C53: 1 | D53: 127278302 | E53: 127278302.2.22 | G53: 2 | H53: 1 | I53: 127278302 | J53: 127278302.2.22
B54: 2 | C54: 1 | D54: 127278302 | E54: 127278302.2.23 | G54: 2 | H54: 1 | I54: 127278302 | J54: 127278302.2.23
B55: 2 | C55: 1 | D55: 127278302 | E55: 127278302.2.5 | G55: 2 | H55: 1 | I55: 127278302 | J55: 127278302.2.5
B56: 1 | C56: 1 | D56: 130612806 | E56: 130612806.1.1 | G56: 1 | H56: 1 | I56: 130612806 | J56: 130612806.1.1
B57: 2 | C57: 1 | D57: 130612806 | E57: 130612806.2.1 | G57: 2 | H57: 1 | I57: 130612806 | J57: 130612806.2.1
B58: 1 | C58: 1 | D58: 131037704 | E58: 131037704.1.1 | G58: 1 | H58: 1 | I58: 131037704 | J58: 131037704.1.1
B59: 1 | C59: 1 | D59: 131037704 | E59: 131037704.1.2 | G59: 1 | H59: 1 | I59: 131037704 | J59: 131037704.1.2
B60: 2 | C60: 1 | D60: 131037704 | E60: 131037704.2.1 | G60: 2 | H60: 1 | I60: 131037704 | J60: 131037704.2.1
B61: 2 | C61: 1 | D61: 131037704 | E61: 131037704.2.2 | G61: 2 | H61: 1 | I61: 131037704 | J61: 131037704.2.2
B62: 1 | C62: 1 | D62: 131038504 | E62: 131038504.1.1 | G62: 1 | H62: 1 | I62: 131038504 | J62: 131038504.1.1
B63: 1 | C63: 1 | D63: 131038504 | E63: 131038504.1.2 | G63: 1 | H63: 1 | I63: 131038504 | J63: 131038504.1.2
B64: 1 | C64: 1 | D64: 131038504 | E64: 131038504.1.3 | G64: 1 | H64: 1 | I64: 131038504 | J64: 131038504.1.3
B65: 2 | C65: 1 | D65: 131038504 | E65: 131038504.2.1 | G65: 2 | H65: 1 | I65: 131038504 | J65: 131038504.2.1
B66: 2 | C66: 1 | D66: 131038504 | E66: 131038504.2.2 | G66: 2 | H66: 1 | I66: 131038504 | J66: 131038504.2.2
B67: 1 | C67: 1 | D67: 136367307 | E67: 136367307.1.1 | G67: 1 | H67: 1 | I67: 136367307 | J67: 136367307.1.1
B68: 1 | C68: 1 | D68: 137921608 | E68: 137921608.1.1 | G68: 1 | H68: 1 | I68: 137921608 | J68: 137921608.1.1
B69: 1 | C69: 1 | D69: 137921608 | E69: 137921608.1.4 | G69: 1 | H69: 1 | I69: 137921608 | J69: 137921608.1.4
B70: 2 | C70: 1 | D70: 137921608 | E70: 137921608.2.1 | G70: 2 | H70: 1 | I70: 137921608 | J70: 137921608.2.1
B71: 2 | C71: 1 | D71: 138360606 | E71: 138360606.2.1 | G71: 2 | H71: 1 | I71: 138360606 | J71: 138360606.2.1
B72: 1 | C72: 1 | D72: 138365512 | E72: 751281410.1.1 | G72: 1 | H72: 1 | I72: 138365512 | J72: 751281410.1.1
B73: 2 | C73: 1 | D73: 138365512 | E73: 751281410.2.1 | G73: 2 | H73: 1 | I73: 138365512 | J73: 751281410.2.1
B74: 2 | C74: 1 | D74: 138365512 | E74: 751281410.2.100 | G74: 2 | H74: 1 | I74: 138365512 | J74: 751281410.2.100
B75: 2 | C75: 1 | D75: 138365512 | E75: 751281410.2.2 | G75: 2 | H75: 1 | I75: 138365512 | J75: 751281410.2.2
B76: 2 | C76: 1 | D76: 138365512 | E76: 751281410.2.3 | G76: 2 | H76: 1 | I76: 138365512 | J76: 751281410.2.3
B77: 1 | C77: 1 | D77: 138374715 | E77: 138374715.1.1 | G77: 1 | H77: 1 | I77: 138374715 | J77: 138374715.1.1
B78: 1 | C78: 1 | D78: 138913209 | E78: 138913209.1.1 | G78: 1 | H78: 1 | I78: 138913209 | J78: 138913209.1.1
B79: 1 | C79: 1 | D79: 138913209 | E79: 138913209.1.3 | G79: 1 | H79: 1 | I79: 138913209 | J79: 138913209.1.3
B80: 2 | C80: 1 | D80: 138913209 | E80: 138913209.2.1 | G80: 2 | H80: 1 | I80: 138913209 | J80: 138913209.2.1
B81: 2 | C81: 1 | D81: 138913209 | E81: 138913209.2.2 | G81: 2 | H81: 1 | I81: 138913209 | J81: 138913209.2.2
B82: 1 | C82: 1 | D82: 139173209 | E82: 139173209.1.1 | G82: 1 | H82: 1 | I82: 139173209 | J82: 139173209.1.1
B83: 1 | C83: 1 | D83: 139173209 | E83: 139173209.1.2 | G83: 1 | H83: 1 | I83: 139173209 | J83: 139173209.1.2
B84: 2 | C84: 1 | D84: 139173209 | E84: 139173209.2.1 | G84: 2 | H84: 1 | I84: 139173209 | J84: 139173209.2.1
B85: 2 | C85: 1 | D85: 139173209 | E85: 139173209.2.2 | G85: 2 | H85: 1 | I85: 139173209 | J85: 139173209.2.2
B86: 2 | C86: 1 | D86: 139173209 | E86: 139173209.2.3 | G86: 2 | H86: 1 | I86: 139173209 | J86: 139173209.2.3
B87: 1 | C87: 1 | D87: 140425362 | E87: 140425362.1.1 | G87: 1 | H87: 1 | I87: 140425362 | J87: 140425362.1.1
B88: 1 | C88: 1 | D88: 208843701 | E88: 208843701.1.1 | G88: 1 | H88: 1 | I88: 208843701 | J88: 208843701.1.1
B89: 1 | C89: 1 | D89: 208843701 | E89: 208843701.1.2 | G89: 1 | H89: 1 | I89: 208843701 | J89: 208843701.1.2
B90: 1 | C90: 1 | D90: 330811601 | E90: 177870603.1.100 | G90: 1 | H90: 1 | I90: 330811601 | J90: 177870603.1.100
B91: 1 | C91: 1 | D91: 330811601 | E91: 177870603.1.101 | G91: 1 | H91: 1 | I91: 330811601 | J91: 177870603.1.101
B92: 1 | C92: 1 | D92: 330811601 | E92: 177870603.1.2 | G92: 1 | H92: 1 | I92: 330811601 | J92: 177870603.1.2
B93: 2 | C93: 1 | D93: 330811601 | E93: 177870603.2.2 | G93: 2 | H93: 1 | I93: 330811601 | J93: 177870603.2.2
B94: 2 | C94: 1 | D94: 330811601 | E94: 177870603.2.3 | G94: 2 | H94: 1 | I94: 330811601 | J94: 177870603.2.3
B95: 2 | C95: 1 | D95: 330811601 | E95: 177870603.2.4 | G95: 2 | H95: 1 | I95: 330811601 | J95: 177870603.2.4
B96: 1 | C96: 2 | D96: 019053001 | E96: 019053001.1.1 | G96: 1 | H96: 2 | I96: 019053001 | J96: 019053001.1.1
B97: 1 | C97: 2 | D97: 081844501 | E97: 081844501.1.1 | G97: 1 | H97: 2 | I97: 081844501 | J97: 081844501.1.1
B98: 1 | C98: 2 | D98: 094092602 | E98: 094092602.1.1 | G98: 1 | H98: 2 | I98: 094092602 | J98: 094092602.1.1
B99: 1 | C99: 2 | D99: 094092602 | E99: 094092602.1.10 | G99: 1 | H99: 2 | I99: 094092602 | J99: 094092602.1.10
B100: 1 | C100: 2 | D100: 094092602 | E100: 094092602.1.11 | G100: 1 | H100: 2 | I100: 094092602 | J100: 094092602.1.11
B101: 1 | C101: 2 | D101: 094092602 | E101: 094092602.1.12 | G101: 1 | H101: 2 | I101: 094092602 | J101: 094092602.1.12
B102: 1 | C102: 2 | D102: 094092602 | E102: 094092602.1.13 | G102: 1 | H102: 2 | I102: 094092602 | J102: 094092602.1.13
B103: 1 | C103: 2 | D103: 094092602 | E103: 094092602.1.2 | G103: 1 | H103: 2 | I103: 094092602 | J103: 094092602.1.2
B104: 1 | C104: 2 | D104: 094092602 | E104: 094092602.1.3 | G104: 1 | H104: 2 | I104: 094092602 | J104: 094092602.1.3
B105: 1 | C105: 2 | D105: 094092602 | E105: 094092602.1.4 | G105: 1 | H105: 2 | I105: 094092602 | J105: 094092602.1.4
B106: 1 | C106: 2 | D106: 094092602 | E106: 094092602.1.5 | G106: 1 | H106: 2 | I106: 094092602 | J106: 094092602.1.5
B107: 1 | C107: 2 | D107: 094092602 | E107: 094092602.1.7 | G107: 1 | H107: 2 | I107: 094092602 | J107: 094092602.1.7
B108: 1 | C108: 2 | D108: 094092602 | E108: 094092602.1.8 | G108: 1 | H108: 2 | I108: 094092602 | J108: 094092602.1.8
B109: 1 | C109: 2 | D109: 094092602 | E109: 094092602.1.9 | G109: 1 | H109: 2 | I109: 094092602 | J109: 094092602.1.9
B110: 2 | C110: 2 | D110: 094092602 | E110: 094092602.2.1 | G110: 2 | H110: 2 | I110: 094092602 | J110: 094092602.2.1
B111: 2 | C111: 2 | D111: 094092602 | E111: 094092602.2.10 | G111: 2 | H111: 2 | I111: 094092602 | J111: 094092602.2.10
B112: 2 | C112: 2 | D112: 094092602 | E112: 094092602.2.11 | G112: 2 | H112: 2 | I112: 094092602 | J112: 094092602.2.11
B113: 2 | C113: 2 | D113: 094092602 | E113: 094092602.2.12 | G113: 2 | H113: 2 | I113: 094092602 | J113: 094092602.2.12
B114: 2 | C114: 2 | D114: 094092602 | E114: 094092602.2.13 | G114: 2 | H114: 2 | I114: 094092602 | J114: 094092602.2.13
B115: 2 | C115: 2 | D115: 094092602 | E115: 094092602.2.2 | G115: 2 | H115: 2 | I115: 094092602 | J115: 094092602.2.2
B116: 2 | C116: 2 | D116: 094092602 | E116: 094092602.2.3 | G116: 2 | H116: 2 | I116: 094092602 | J116: 094092602.2.3
B117: 2 | C117: 2 | D117: 094092602 | E117: 094092602.2.4 | G117: 2 | H117: 2 | I117: 094092602 | J117: 094092602.2.4
B118: 2 | C118: 2 | D118: 094092602 | E118: 094092602.2.5 | G118: 2 | H118: 2 | I118: 094092602 | J118: 094092602.2.5
B119: 2 | C119: 2 | D119: 094092602 | E119: 094092602.2.6 | G119: 2 | H119: 2 | I119: 094092602 | J119: 094092602.2.6
B120: 2 | C120: 2 | D120: 094092602 | E120: 094092602.2.7 | G120: 2 | H120: 2 | I120: 094092602 | J120: 094092602.2.7
B121: 2 | C121: 2 | D121: 094092602 | E121: 094092602.2.8 | G121: 2 | H121: 2 | I121: 094092602 | J121: 094092602.2.8
B122: 2 | C122: 2 | D122: 094092602 | E122: 094092602.2.9 | G122: 2 | H122: 2 | I122: 094092602 | J122: 094092602.2.9
B123: 2 | C123: 2 | D123: 094148602 | E123: 094148602.2.1 | G123: 2 | H123: 2 | I123: 094148602 | J123: 094148602.2.1
B124: 2 | C124: 2 | D124: 094148602 | E124: 094148602.2.2 | G124: 2 | H124: 2 | I124: 094148602 | J124: 094148602.2.2
B125: 1 | C125: 2 | D125: 096166602 | E125: 096166602.1.1 | G125: 1 | H125: 2 | I125: 096166602 | J125: 096166602.1.1
B126: 1 | C126: 2 | D126: 096166602 | E126: 096166602.1.6 | G126: 1 | H126: 2 | I126: 096166602 | J126: 096166602.1.6
B127: 1 | C127: 2 | D127: 096166602 | E127: 096166602.1.7 | G127: 1 | H127: 2 | I127: 096166602 | J127: 096166602.1.7
B128: 2 | C128: 2 | D128: 096166602 | E128: 096166602.2.1 | G128: 2 | H128: 2 | I128: 096166602 | J128: 096166602.2.1
B129: 2 | C129: 2 | D129: 096166602 | E129: 096166602.2.10 | G129: 2 | H129: 2 | I129: 096166602 | J129: 096166602.2.10
B130: 2 | C130: 2 | D130: 096166602 | E130: 096166602.2.100 | G130: 2 | H130: 2 | I130: 096166602 | J130: 096166602.2.100
B131: 2 | C131: 2 | D131: 096166602 | E131: 096166602.2.11 | G131: 2 | H131: 2 | I131: 096166602 | J131: 096166602.2.11
B132: 2 | C132: 2 | D132: 096166602 | E132: 096166602.2.12 | G132: 2 | H132: 2 | I132: 096166602 | J132: 096166602.2.12
B133: 2 | C133: 2 | D133: 096166602 | E133: 096166602.2.2 | G133: 2 | H133: 2 | I133: 096166602 | J133: 096166602.2.2
B134: 2 | C134: 2 | D134: 096166602 | E134: 096166602.2.3 | G134: 2 | H134: 2 | I134: 096166602 | J134: 096166602.2.3
B135: 2 | C135: 2 | D135: 096166602 | E135: 096166602.2.6 | G135: 2 | H135: 2 | I135: 096166602 | J135: 096166602.2.6
B136: 2 | C136: 2 | D136: 096166602 | E136: 096166602.2.7 | G136: 2 | H136: 2 | I136: 096166602 | J136: 096166602.2.7
B137: 2 | C137: 2 | D137: 096166602 | E137: 096166602.2.8 | G137: 2 | H137: 2 | I137: 096166602 | J137: 096166602.2.8
B138: 2 | C138: 2 | D138: 096166602 | E138: 096166602.2.9 | G138: 2 | H138: 2 | I138: 096166602 | J138: 096166602.2.9
B139: 1 | C139: 2 | D139: 109372601 | E139: 109372601.1.1 | G139: 1 | H139: 2 | I139: 109372601 | J139: 109372601.1.1
B140: 1 | C140: 2 | D140: 109372601 | E140: 109372601.1.2 | G140: 1 | H140: 2 | I140: 109372601 | J140: 109372601.1.2
B141: 1 | C141: 2 | D141: 109372601 | E141: 109372601.1.3 | G141: 1 | H141: 2 | I141: 109372601 | J141: 109372601.1.3
B142: 2 | C142: 2 | D142: 109372601 | E142: 109372601.2.1 | G142: 2 | H142: 2 | I142: 109372601 | J142: 109372601.2.1
B143: 2 | C143: 2 | D143: 109372601 | E143: 109372601.2.2 | G143: 2 | H143: 2 | I143: 109372601 | J143: 109372601.2.2
B144: 2 | C144: 2 | D144: 109372601 | E144: 109372601.2.3 | G144: 2 | H144: 2 | I144: 109372601 | J144: 109372601.2.3
B145: 1 | C145: 2 | D145: 112671602 | E145: 112671602.1.1 | G145: 1 | H145: 2 | I145: 112671602 | J145: 112671602.1.1
B146: 2 | C146: 2 | D146: 112671602 | E146: 112671602.2.1 | G146: 2 | H146: 2 | I146: 112671602 | J146: 112671602.2.1
B147: 1 | C147: 2 | D147: 131030203 | E147: 131030203.1.1 | G147: 1 | H147: 2 | I147: 131030203 | J147: 131030203.1.1
B148: 1 | C148: 2 | D148: 131030203 | E148: 131030203.1.100 | G148: 1 | H148: 2 | I148: 131030203 | J148: 131030203.1.100
B149: 1 | C149: 2 | D149: 131030203 | E149: 131030203.1.2 | G149: 1 | H149: 2 | I149: 131030203 | J149: 131030203.1.2
B150: 1 | C150: 2 | D150: 131030203 | E150: 131030203.1.3 | G150: 1 | H150: 2 | I150: 131030203 | J150: 131030203.1.3
B151: 1 | C151: 2 | D151: 131030203 | E151: 131030203.1.4 | G151: 1 | H151: 2 | I151: 131030203 | J151: 131030203.1.4
B152: 2 | C152: 2 | D152: 131030203 | E152: 131030203.2.1 | G152: 2 | H152: 2 | I152: 131030203 | J152: 131030203.2.1
B153: 2 | C153: 2 | D153: 131030203 | E153: 131030203.2.2 | G153: 2 | H153: 2 | I153: 131030203 | J153: 131030203.2.2
B154: 1 | C154: 2 | D154: 135222109 | E154: 135222109.1.1 | G154: 1 | H154: 2 | I154: 135222109 | J154: 135222109.1.1
B155: 1 | C155: 2 | D155: 135222109 | E155: 135222109.1.100 | G155: 1 | H155: 2 | I155: 135222109 | J155: 135222109.1.100
B156: 1 | C156: 2 | D156: 135222109 | E156: 135222109.1.2 | G156: 1 | H156: 2 | I156: 135222109 | J156: 135222109.1.2
B157: 1 | C157: 2 | D157: 135222109 | E157: 135222109.1.3 | G157: 1 | H157: 2 | I157: 135222109 | J157: 135222109.1.3
B158: 1 | C158: 2 | D158: 135222109 | E158: 135222109.1.4 | G158: 1 | H158: 2 | I158: 135222109 | J158: 135222109.1.4
B159: 1 | C159: 2 | D159: 135222109 | E159: 135222109.1.5 | G159: 1 | H159: 2 | I159: 135222109 | J159: 135222109.1.5
B160: 2 | C160: 2 | D160: 135222109 | E160: 135222109.2.1 | G160: 2 | H160: 2 | I160: 135222109 | J160: 135222109.2.1
B161: 2 | C161: 2 | D161: 135222109 | E161: 135222109.2.100 | G161: 2 | H161: 2 | I161: 135222109 | J161: 135222109.2.100
B162: 2 | C162: 2 | D162: 135222109 | E162: 135222109.2.101 | G162: 2 | H162: 2 | I162: 135222109 | J162: 135222109.2.101
B163: 2 | C163: 2 | D163: 135222109 | E163: 135222109.2.102 | G163: 2 | H163: 2 | I163: 135222109 | J163: 135222109.2.102
B164: 2 | C164: 2 | D164: 135222109 | E164: 135222109.2.103 | G164: 2 | H164: 2 | I164: 135222109 | J164: 135222109.2.103
B165: 2 | C165: 2 | D165: 135222109 | E165: 135222109.2.2 | G165: 2 | H165: 2 | I165: 135222109 | J165: 135222109.2.2
B166: 1 | C166: 2 | D166: 136367307 | E166: 136367307.1.1 | G166: 1 | H166: 2 | I166: 136367307 | J166: 136367307.1.1
B167: 1 | C167: 2 | D167: 136367307 | E167: 136367307.1.100 | G167: 1 | H167: 2 | I167: 136367307 | J167: 136367307.1.100
B168: 1 | C168: 2 | D168: 136367307 | E168: 136367307.1.2 | G168: 1 | H168: 2 | I168: 136367307 | J168: 136367307.1.2
B169: 2 | C169: 2 | D169: 136367307 | E169: 136367307.2.1 | G169: 2 | H169: 2 | I169: 136367307 | J169: 136367307.2.1
B170: 2 | C170: 2 | D170: 136367307 | E170: 136367307.2.100 | G170: 2 | H170: 2 | I170: 136367307 | J170: 136367307.2.100
B171: 2 | C171: 2 | D171: 136367307 | E171: 136367307.2.4 | G171: 2 | H171: 2 | I171: 136367307 | J171: 136367307.2.4
B172: 2 | C172: 2 | D172: 136367307 | E172: 136367307.2.5 | G172: 2 | H172: 2 | I172: 136367307 | J172: 136367307.2.5
B173: 1 | C173: 2 | D173: 136381405 | E173: 136381405.1.1 | G173: 1 | H173: 2 | I173: 136381405 | J173: 136381405.1.1
B174: 2 | C174: 2 | D174: 136381405 | E174: 136381405.2.1 | G174: 2 | H174: 2 | I174: 136381405 | J174: 136381405.2.1
B175: 1 | C175: 2 | D175: 138296208 | E175: 138296208.1.1 | G175: 1 | H175: 2 | I175: 138296208 | J175: 138296208.1.1
B176: 2 | C176: 2 | D176: 138296208 | E176: 138296208.2.1 | G176: 2 | H176: 2 | I176: 138296208 | J176: 138296208.2.1
B177: 1 | C177: 2 | D177: 200683501 | E177: 261955689.1.1 | G177: 1 | H177: 2 | I177: 200683501 | J177: 261955689.1.1
B178: 1 | C178: 2 | D178: 284333601 | E178: 284333601.1.1 | G178: 1 | H178: 2 | I178: 284333601 | J178: 284333601.1.1
B179: 1 | C179: 3 | D179: 020817501 | E179: 020817501.1.1 | G179: 1 | H179: 3 | I179: 020817501 | J179: 020817501.1.1
B180: 1 | C180: 3 | D180: 020817501 | E180: 020817501.1.2 | G180: 1 | H180: 3 | I180: 020817501 | J180: 020817501.1.2
B181: 1 | C181: 3 | D181: 020834001 | E181: 020834001.1.1 | G181: 1 | H181: 3 | I181: 020834001 | J181: 020834001.1.1
B182: 1 | C182: 3 | D182: 020834001 | E182: 020834001.1.2 | G182: 1 | H182: 3 | I182: 020834001 | J182: 020834001.1.2
B183: 1 | C183: 3 | D183: 020834001 | E183: 020834001.1.3 | G183: 1 | H183: 3 | I183: 020834001 | J183: 020834001.1.3
B184: 1 | C184: 3 | D184: 020834001 | E184: 020834001.1.4 | G184: 1 | H184: 3 | I184: 020834001 | J184: 020834001.1.4
B185: 2 | C185: 3 | D185: 020834001 | E185: 020834001.2.1 | G185: 2 | H185: 3 | I185: 020834001 | J185: 020834001.2.1
B186: 1 | C186: 3 | D186: 081522701 | E186: 081522701.1.1 | G186: 1 | H186: 3 | I186: 081522701 | J186: 081522701.1.1
B187: 1 | C187: 3 | D187: 081522701 | E187: 081522701.1.2 | G187: 1 | H187: 3 | I187: 081522701 | J187: 081522701.1.2
B188: 1 | C188: 3 | D188: 081522701 | E188: 081522701.1.3 | G188: 1 | H188: 3 | I188: 081522701 | J188: 081522701.1.3
B189: 2 | C189: 3 | D189: 081522701 | E189: 081522701.2.1 | G189: 2 | H189: 3 | I189: 081522701 | J189: 081522701.2.1
B190: 2 | C190: 3 | D190: 081522701 | E190: 081522701.2.100 | G190: 2 | H190: 3 | I190: 081522701 | J190: 081522701.2.100
B191: 1 | C191: 3 | D191: 082006001 | E191: 082006001.1.1 | G191: 1 | H191: 3 | I191: 082006001 | J191: 082006001.1.1
B192: 1 | C192: 3 | D192: 093774008 | E192: 093774008.1.1 | G192: 1 | H192: 3 | I192: 093774008 | J192: 093774008.1.1
B193: 1 | C193: 3 | D193: 093774008 | E193: 093774008.1.2 | G193: 1 | H193: 3 | I193: 093774008 | J193: 093774008.1.2
B194: 1 | C194: 3 | D194: 093774008 | E194: 093774008.1.3 | G194: 1 | H194: 3 | I194: 093774008 | J194: 093774008.1.3
B195: 1 | C195: 3 | D195: 093774008 | E195: 093774008.1.4 | G195: 1 | H195: 3 | I195: 093774008 | J195: 093774008.1.4
B196: 2 | C196: 3 | D196: 093774008 | E196: 093774008.2.1 | G196: 2 | H196: 3 | I196: 093774008 | J196: 093774008.2.1
B197: 2 | C197: 3 | D197: 093774008 | E197: 093774008.2.10 | G197: 2 | H197: 3 | I197: 093774008 | J197: 093774008.2.10
B198: 2 | C198: 3 | D198: 093774008 | E198: 093774008.2.100 | G198: 2 | H198: 3 | I198: 093774008 | J198: 093774008.2.100
B199: 2 | C199: 3 | D199: 093774008 | E199: 093774008.2.101 | G199: 2 | H199: 3 | I199: 093774008 | J199: 093774008.2.101
B200: 2 | C200: 3 | D200: 093774008 | E200: 093774008.2.2 | G200: 2 | H200: 3 | I200: 093774008 | J200: 093774008.2.2
... 1255 more rows

Sheet DY2-Category 1
A1: ="" & CELL("address",$F$7) & ":" & CELL("address",$F$1005) -> $F$7:$F$1005 | B1: Cells to look at: | C1: ="" & CELL("address",$E$1) & ":" & CELL("address",$ASA$1) -> $E$1:$ASA$1 | D1: To Hide ----> | E1: 0 | F1: 0 | G1: 0 | H1: 0 | I1: 0 | J1: 0 | K1: 0 | L1: 0 | M1: 0 | N1: 0 | O1: =IF(O$2>$C$2,1,IF(O$3>MAX(OFFSET($R$7:$R$1005,0,COUNTA($R$6:$DB$6)*(O$2-1))),1,0)) -> 0 | P1: =IF(P$2>$C$2,1,IF(P$3>MAX(OFFSET($R$7:$R$1005,0,COUNTA($R$6:$DB$6)*(P$2-1))),1,0)) -> 0 | Q1: =IF(Q$2>$C$2,1,IF(Q$3>MAX(OFFSET($R$7:$R$1005,0,COUNTA($R$6:$DB$6)*(Q$2-1))),1,0)) -> 0 | R1: 0 | S1: 0 | T1: 0 | U1: 0 | V1: 0 | W1: 0 | X1: 0 | Y1: 0 | Z1: 0 | AA1: 0 | AB1: 0 | AC1: 0 | AD1: 0 | AE1: =IF(AE$2>$C$2,1,IF(AE$3>MAX(OFFSET($R$7:$R$1005,0,COUNTA($R$6:$DB$6)*(AE$2-1))),1,0)) -> 1 | AF1: =IF(AF$2>$C$2,1,IF(AF$3>MAX(OFFSET($R$7:$R$1005,0,COUNTA($R$6:$DB$6)*(AF$2-1))),1,0)) -> 1 | AG1: 1 | AH1: 1 | AI1: 1 | AJ1: 1 | AK1: 1 | AL1: 1 | AM1: 1 | AN1: 1 | AO1: 1 | AP1: 1 | AQ1: 1 | AR1: 1 | AS1: 1 | AT1: 1 | AU1: 1 | AV1: 1 | AW1: 1 | AX1: 1 | AY1: 1 | AZ1: 1 | BA1: 1 | BB1: 1 | BC1: 1 | BD1: 1 | BE1: 1 | BF1: 1 | BG1: 1 | BH1: 1 | BI1: 1 | BJ1: 1 | BK1: 1 | BL1: 1 | BM1: 1 | BN1: 1 | BO1: 1 | BP1: 1 | BQ1: 1 | BR1: 1 | BS1: 1 | BT1: 1 | BU1: 1 | BV1: 1 | BW1: 1 | BX1: 1 | BY1: 1 | BZ1: 1 | CA1: 1 | CB1: =IF(CB$2>$C$2,1,IF(CB$3>MAX(OFFSET($R$7:$R$1005,0,COUNTA($R$6:$DB$6)*(CB$2-1))),1,0)) -> 1 | CC1: 1 | CD1: 1 | CE1: 1 | CF1: 1 | CG1: 1 | CH1: 1 | CI1: 1 | CJ1: 1 | CK1: 1 | CL1: 1 | CM1: 1 | CN1: 1 | CO1: 1 | CP1: 1 | CQ1: 1 | CR1: 1 | CS1: 1 | CT1: 1 | CU1: 1 | CV1: 1 | CW1: 1 | CX1: 1 | CY1: 0 | CZ1: 0 | DA1: 0 | DB1: 0 | DC1: 0 | DD1: 0 | DE1: 0 | DF1: 0 | DG1: 0 | DH1: 0 | DI1: 0 | DJ1: 0 | DK1: 0 | DL1: 0 | DM1: 0 | DN1: 0 | DO1: 0 | DP1: 1 | DQ1: 1 | DR1: 1 | DS1: 1 | DT1: 1 | DU1: 1 | DV1: 1 | DW1: 1 | DX1: 1 | DY1: 1 | DZ1: 1 | EA1: 1 | EB1: 1 | EC1: 1 | ED1: 1 | EE1: 1 | EF1: 1 | EG1: 1 | EH1: 1 | EI1: 1 | EJ1: 1 | EK1: 1 | EL1: 1 | EM1: 1 | EN1: =IF(EN$2>$C$2,1,IF(EN$3>MAX(OFFSET($R$7:$R$1005,0,COUNTA($R$6:$DB$6)*(EN$2-1))),1,0)) -> 1 | EO1: 1 | EP1: 1 | EQ1: 1 | ER1: 1 | ES1: 1 | ET1: 1 | EU1: 1 | EV1: 1 | EW1: 1 | EX1: 1 | EY1: 1 | EZ1: 1 | FA1: 1 | FB1: 1 | FC1: 1 | FD1: 1 | FE1: 1 | FF1: 1 | FG1: 1 | FH1: 1 | FI1: 1 | FJ1: 1 | FK1: 1 | FL1: 1 | FM1: 1 | FN1: 1 | FO1: 1 | FP1: 1 | FQ1: 1 | FR1: 1 | FS1: 1 | FT1: 1 | FU1: 1 | FV1: 1 | FW1: 1 | FX1: 1 | FY1: 1 | FZ1: 1 | GA1: 1 | GB1: 1 | GC1: 1 | GD1: 1 | GE1: 1 | GF1: 1 | GG1: 1 | GH1: 1 | GI1: 1 | GJ1: 0 | GK1: 0 | GL1: 0 | GM1: 0 | GN1: 0 | GO1: 0 | GP1: 0 | GQ1: 0 | GR1: 0 | GS1: 0 | GT1: 0 | GU1: 0 | GV1: 0 | GW1: 0 | GX1: 0 | GY1: 0 | GZ1: =IF(GZ$2>$C$2,1,IF(GZ$3>MAX(OFFSET($R$7:$R$1005,0,COUNTA($R$6:$DB$6)*(GZ$2-1))),1,0)) -> 0 | HA1: 1 | HB1: 1 | HC1: 1 | HD1: 1 | HE1: 1 | HF1: 1 | HG1: 1 | HH1: 1 | HI1: 1 | HJ1: 1 | HK1: 1 | HL1: 1 | HM1: 1 | HN1: 1 | HO1: 1 | HP1: 1 | HQ1: 1 | HR1: 1 | HS1: 1 | HT1: 1 | HU1: 1 | HV1: 1 | HW1: 1 | HX1: 1 | HY1: 1 | HZ1: 1 | IA1: 1 | IB1: 1 | IC1: 1 | ID1: 1 | IE1: 1 | IF1: 1 | IG1: 1 | IH1: 1 | II1: 1 | IJ1: 1 | IK1: 1 | IL1: 1 | IM1: 1 | IN1: 1 | IO1: 1 | IP1: 1 | IQ1: 1 | IR1: 1 | IS1: 1 | IT1: 1 | IU1: 1 | IV1: 1 | IW1: 1 | IX1: 1 | IY1: 1 | IZ1: 1 | JA1: 1 | JB1: 1 | JC1: 1 | JD1: 1 | JE1: 1 | JF1: 1 | JG1: 1 | JH1: 1 | JI1: 1 | JJ1: 1 | JK1: 1 | JL1: =IF(JL$2>$C$2,1,IF(JL$3>MAX(OFFSET($R$7:$R$1005,0,COUNTA($R$6:$DB$6)*(JL$2-1))),1,0)) -> 1 | JM1: 1 | JN1: 1 | JO1: 1 | JP1: 1 | JQ1: 1 | JR1: 1 | JS1: 1 | JT1: 1 | JU1: 0 | JV1: 0 | JW1: 0 | JX1: 0 | JY1: 0 | JZ1: 0 | KA1: 0 | KB1: 0 | KC1: 0 | KD1: 0 | KE1: 0 | KF1: 0 | KG1: 0 | KH1: 0 | KI1: 0 | KJ1: 0 | KK1: 0 | KL1: 1 | KM1: 1 | KN1: 1 | KO1: 1 | KP1: 1 | KQ1: 1 | KR1: 1 | KS1: 1 | KT1: 1 | KU1: 1 | KV1: 1 | KW1: 1 | KX1: 1 | KY1: 1 | KZ1: 1 | LA1: 1 | LB1: 1 | LC1: 1 | LD1: 1 | LE1: 1 | LF1: 1 | LG1: 1 | LH1: 1 | LI1: 1 | LJ1: 1 | LK1: 1 | LL1: 1 | LM1: 1 | LN1: 1 | LO1: 1 | LP1: 1 | LQ1: 1 | LR1: 1 | LS1: 1 | LT1: 1 | LU1: 1 | LV1: 1 | LW1: 1 | LX1: =IF(LX$2>$C$2,1,IF(LX$3>MAX(OFFSET($R$7:$R$1005,0,COUNTA($R$6:$DB$6)*(LX$2-1))),1,0)) -> 1 | LY1: 1 | LZ1: 1 | MA1: 1 | MB1: 1 | MC1: 1 | MD1: 1 | ME1: 1 | MF1: 1 | MG1: 1 | MH1: 1 | MI1: 1 | MJ1: 1 | MK1: 1 | ML1: 1 | MM1: 1 | MN1: 1 | MO1: 1 | MP1: 1 | MQ1: 1 | MR1: 1 | MS1: 1 | MT1: 1 | MU1: 1 | MV1: 1 | MW1: 1 | MX1: 1 | MY1: 1 | MZ1: 1 | NA1: 1 | NB1: 1 | NC1: 1 | ND1: 1 | NE1: 1 | NF1: 0 | NG1: 1 | NH1: 1 | NI1: 1 | NJ1: 1 | NK1: 1 | NL1: 1 | NM1: 1 | NN1: 1 | NO1: 1 | NP1: 1 | NQ1: 1 | NR1: 1 | NS1: 1 | NT1: 1 | NU1: 1 | NV1: 1 | NW1: 1 | NX1: 1 | NY1: 1 | NZ1: 1 | OA1: 1 | OB1: 1 | OC1: 1 | OD1: 1 | OE1: 1 | OF1: 1 | OG1: 1 | OH1: 1 | OI1: 1 | OJ1: =IF(OJ$2>$C$2,1,IF(OJ$3>MAX(OFFSET($R$7:$R$1005,0,COUNTA($R$6:$DB$6)*(OJ$2-1))),1,0)) -> 1 | OK1: 1 | OL1: 1 | OM1: 1 | ON1: 1 | OO1: 1 | OP1: 1 | OQ1: 1 | OR1: 1 | OS1: 1 | OT1: 1 | OU1: 1 | OV1: 1 | OW1: 1 | OX1: 1 | OY1: 1 | OZ1: 1 | PA1: 1 | PB1: 1 | PC1: 1 | PD1: 1 | PE1: 1 | PF1: 1 | PG1: 1 | PH1: 1 | PI1: 1 | PJ1: 1 | PK1: 1 | PL1: 1 | PM1: 1 | PN1: 1 | PO1: 1 | PP1: 1 | PQ1: 1 | PR1: 1 | PS1: 1 | PT1: 1 | PU1: 1 | PV1: 1 | PW1: 1 | PX1: 1 | PY1: 1 | PZ1: 1 | QA1: 1 | QB1: 1 | QC1: 1 | QD1: 1 | QE1: 1 | QF1: 1 | QG1: 1 | QH1: 1 | QI1: 1 | QJ1: 1 | QK1: 1 | QL1: 1 | QM1: 1 | QN1: 1 | QO1: 1 | QP1: 1 | QQ1: 1 | QR1: 1 | QS1: 1 | QT1: 1 | QU1: 1 | QV1: =IF(QV$2>$C$2,1,IF(QV$3>MAX(OFFSET($R$7:$R$1005,0,COUNTA($R$6:$DB$6)*(QV$2-1))),1,0)) -> 1 | QW1: 1 | QX1: 1 | QY1: 1 | QZ1: 1 | RA1: 1 | RB1: 1 | RC1: 1 | RD1: 1 | RE1: 1 | RF1: 1 | RG1: 1 | RH1: 1 | RI1: 1 | RJ1: 1 | RK1: 1 | RL1: 1 | RM1: 1 | RN1: 1 | RO1: 1 | RP1: 1 | RQ1: 1 | RR1: 1 | RS1: 1 | RT1: 1 | RU1: 1 | RV1: 1 | RW1: 1 | RX1: 1 | RY1: 1 | RZ1: 1 | SA1: 1 | SB1: 1 | SC1: 1 | SD1: 1 | SE1: 1 | SF1: 1 | SG1: 1 | SH1: 1 | SI1: 1 | SJ1: 1 | SK1: 1 | SL1: 1 | SM1: 1 | SN1: 1 | SO1: 1 | SP1: 1 | SQ1: 1 | SR1: 1 | SS1: 1 | ST1: 1 | SU1: 1 | SV1: 1 | SW1: 1 | SX1: 1 | SY1: 1 | SZ1: 1 | TA1: 1 | TB1: 1 | TC1: 1 | TD1: 1 | TE1: 1 | TF1: 1 | TG1: 1 | TH1: =IF(TH$2>$C$2,1,IF(TH$3>MAX(OFFSET($R$7:$R$1005,0,COUNTA($R$6:$DB$6)*(TH$2-1))),1,0)) -> 1 | TI1: 1 | TJ1: 1 | TK1: 1 | TL1: 1 | TM1: 1 | TN1: 1 | TO1: 1 | TP1: 1 | TQ1: 1 | TR1: 1 | TS1: 1 | TT1: 1 | TU1: 1 | TV1: 1 | TW1: 1 | TX1: 1 | TY1: 1 | TZ1: 1 | UA1: 1 | UB1: 1 | UC1: 1 | UD1: 1 | UE1: 1 | UF1: 1 | UG1: 1 | UH1: 1 | UI1: 1 | UJ1: 1 | UK1: 1 | UL1: 1 | UM1: 1 | UN1: 1 | UO1: 1 | UP1: 1 | UQ1: 1 | UR1: 1 | US1: 1 | UT1: 1 | UU1: 1 | UV1: 1 | UW1: 1 | UX1: 1 | UY1: 1 | UZ1: 1 | VA1: 1 | VB1: 1 | VC1: 1 | VD1: 1 | VE1: 1 | VF1: 1 | VG1: 1 | VH1: 1 | VI1: 1 | VJ1: 1 | VK1: 1 | VL1: 1 | VM1: 1 | VN1: 1 | VO1: 1 | VP1: 1 | VQ1: 1 | VR1: 1 | VS1: 1 | VT1: =IF(VT$2>$C$2,1,IF(VT$3>MAX(OFFSET($R$7:$R$1005,0,COUNTA($R$6:$DB$6)*(VT$2-1))),1,0)) -> 1 | VU1: 1 | VV1: 1 | VW1: 1 | VX1: 1 | VY1: 1 | VZ1: 1 | WA1: 1 | WB1: 1 | WC1: 1 | WD1: 1 | WE1: 1 | WF1: 1 | WG1: 1 | WH1: 1 | WI1: 1 | WJ1: 1 | WK1: 1 | WL1: 1 | WM1: 1 | WN1: 1 | WO1: 1 | WP1: 1 | WQ1: 1 | WR1: 1 | WS1: 1 | WT1: 1 | WU1: 1 | WV1: 1 | WW1: 1 | WX1: 1 | WY1: 1 | WZ1: 1 | XA1: 1 | XB1: 1 | XC1: 1 | XD1: 1 | XE1: 1 | XF1: 1 | XG1: 1 | XH1: 1 | XI1: 1 | XJ1: 1 | XK1: 1 | XL1: 1 | XM1: 1 | XN1: 1 | XO1: 1 | XP1: 1 | XQ1: 1 | XR1: 1 | XS1: 1 | XT1: 1 | XU1: 1 | XV1: 1 | XW1: 1 | XX1: 1 | XY1: 1 | XZ1: 1 | YA1: 1 | YB1: 1 | YC1: 1 | YD1: 1 | YE1: 1 | YF1: =IF(YF$2>$C$2,1,IF(YF$3>MAX(OFFSET($R$7:$R$1005,0,COUNTA($R$6:$DB$6)*(YF$2-1))),1,0)) -> 1 | YG1: 1 | YH1: 1 | YI1: 1 | YJ1: 1 | YK1: 1 | YL1: 1 | YM1: 1 | YN1: 1 | YO1: 1 | YP1: 1 | YQ1: 1 | YR1: 1 | YS1: 1 | YT1: 1 | YU1: 1 | YV1: 1 | YW1: 1 | YX1: 1 | YY1: 1 | YZ1: 1 | ZA1: 1 | ZB1: 1 | ZC1: 1 | ZD1: 1 | ZE1: 1 | ZF1: 1 | ZG1: 1 | ZH1: 1 | ZI1: 1 | ZJ1: 1 | ZK1: 1 | ZL1: 1 | ZM1: 1 | ZN1: 1 | ZO1: 1 | ZP1: 1 | ZQ1: 1 | ZR1: 1 | ZS1: 1 | ZT1: 1 | ZU1: 1 | ZV1: 1 | ZW1: 1 | ZX1: 1 | ZY1: 1 | ZZ1: 1 | AAA1: 1 | AAB1: 1 | AAC1: 1 | AAD1: 1 | AAE1: 1 | AAF1: 1 | AAG1: 1 | AAH1: 1 | AAI1: 1 | AAJ1: 1 | AAK1: 1 | AAL1: 1 | AAM1: 1 | AAN1: 1 | AAO1: 1 | AAP1: 1 | AAQ1: 1 | AAR1: =IF(AAR$2>$C$2,1,IF(AAR$3>MAX(OFFSET($R$7:$R$1005,0,COUNTA($R$6:$DB$6)*(AAR$2-1))),1,0)) -> 1 | AAS1: 1 | AAT1: 1 | AAU1: 1 | AAV1: 1 | AAW1: 1 | AAX1: 1 | AAY1: 1 | AAZ1: 1 | ABA1: 1 | ABB1: 1 | ABC1: 1 | ABD1: 1 | ABE1: 1 | ABF1: 1 | ABG1: 1 | ABH1: 1 | ABI1: 1 | ABJ1: 1 | ABK1: 1 | ABL1: 1 | ABM1: 1 | ABN1: 1 | ABO1: 1 | ABP1: 1 | ABQ1: 1 | ABR1: 1 | ABS1: 1 | ABT1: 1 | ABU1: 1 | ABV1: 1 | ABW1: 1 | ABX1: 1 | ABY1: 1 | ABZ1: 1 | ACA1: 1 | ACB1: 1 | ACC1: 1 | ACD1: 1 | ACE1: 1 | ACF1: 1 | ACG1: 1 | ACH1: 1 | ACI1: 1 | ACJ1: 1 | ACK1: 1 | ACL1: 1 | ACM1: 1 | ACN1: 1 | ACO1: 1 | ACP1: 1 | ACQ1: 1 | ACR1: 1 | ACS1: 1 | ACT1: 1 | ACU1: 1 | ACV1: 1 | ACW1: 1 | ACX1: 1 | ACY1: 1 | ACZ1: 1 | ADA1: 1 | ADB1: 1 | ADC1: 1 | ADD1: =IF(ADD$2>$C$2,1,IF(ADD$3>MAX(OFFSET($R$7:$R$1005,0,COUNTA($R$6:$DB$6)*(ADD$2-1))),1,0)) -> 1 | ADE1: 1 | ADF1: 1 | ADG1: 1 | ADH1: 1 | ADI1: 1 | ADJ1: 1 | ADK1: 1 | ADL1: 1 | ADM1: 1 | ADN1: 1 | ADO1: 1 | ADP1: 1 | ADQ1: 1 | ADR1: 1 | ADS1: 1 | ADT1: 1 | ADU1: 1 | ADV1: 1 | ADW1: 1 | ADX1: 1 | ADY1: 1 | ADZ1: 1 | AEA1: 1 | AEB1: 1 | AEC1: 1 | AED1: 1 | AEE1: 1 | AEF1: 1 | AEG1: 1 | AEH1: 1 | AEI1: 1 | AEJ1: 1 | AEK1: 1 | AEL1: 1 | AEM1: 1 | AEN1: 1 | AEO1: 1 | AEP1: 1 | AEQ1: 1 | AER1: 1 | AES1: 1 | AET1: 1 | AEU1: 1 | AEV1: 1 | AEW1: 1 | AEX1: 1 | AEY1: 1 | AEZ1: 1 | AFA1: 1 | AFB1: 1 | AFC1: 1 | AFD1: 1 | AFE1: 1 | AFF1: 1 | AFG1: 1 | AFH1: 1 | AFI1: 1 | AFJ1: 1 | AFK1: 1 | AFL1: 1 | AFM1: 1 | AFN1: 1 | AFO1: 1 | AFP1: =IF(AFP$2>$C$2,1,IF(AFP$3>MAX(OFFSET($R$7:$R$1005,0,COUNTA($R$6:$DB$6)*(AFP$2-1))),1,0)) -> 1 | AFQ1: 1 | AFR1: 1 | AFS1: 1 | AFT1: 1 | AFU1: 1 | AFV1: 1 | AFW1: 1 | AFX1: 1 | AFY1: 1 | AFZ1: 1 | AGA1: 1 | AGB1: 1 | AGC1: 1 | AGD1: 1 | AGE1: 1 | AGF1: 1 | AGG1: 1 | AGH1: 1 | AGI1: 1 | AGJ1: 1 | AGK1: 1 | AGL1: 1 | AGM1: 1 | AGN1: 1 | AGO1: 1 | AGP1: 1 | AGQ1: 1 | AGR1: 1 | AGS1: 1 | AGT1: 1 | AGU1: 1 | AGV1: 1 | AGW1: 1 | AGX1: 1 | AGY1: 1 | AGZ1: 1 | AHA1: 1 | AHB1: 1 | AHC1: 1 | AHD1: 1 | AHE1: 1 | AHF1: 1 | AHG1: 1 | AHH1: 1 | AHI1: 1 | AHJ1: 1 | AHK1: 1 | AHL1: 1 | AHM1: 1 | AHN1: 1 | AHO1: 1 | AHP1: 1 | AHQ1: 1 | AHR1: 1 | AHS1: 1 | AHT1: 1 | AHU1: 1 | AHV1: 1 | AHW1: 1 | AHX1: 1 | AHY1: 1 | AHZ1: 1 | AIA1: 1 | AIB1: =IF(AIB$2>$C$2,1,IF(AIB$3>MAX(OFFSET($R$7:$R$1005,0,COUNTA($R$6:$DB$6)*(AIB$2-1))),1,0)) -> 1 | AIC1: 1 | AID1: 1 | AIE1: 1 | AIF1: 1 | AIG1: 1 | AIH1: 1 | AII1: 1 | AIJ1: 1 | AIK1: 1 | AIL1: 1 | AIM1: 1 | AIN1: 1 | AIO1: 1 | AIP1: 1 | AIQ1: 1 | AIR1: 1 | AIS1: 1 | AIT1: 1 | AIU1: 1 | AIV1: 1 | AIW1: 1 | AIX1: 1 | AIY1: 1 | AIZ1: 1 | AJA1: 1 | AJB1: 1 | AJC1: 1 | AJD1: 1 | AJE1: 1 | AJF1: 1 | AJG1: 1 | AJH1: 1 | AJI1: 1 | AJJ1: 1 | AJK1: 1 | AJL1: 1 | AJM1: 1 | AJN1: 1 | AJO1: 1 | AJP1: 1 | AJQ1: 1 | AJR1: 1 | AJS1: 1 | AJT1: 1 | AJU1: 1 | AJV1: 1 | AJW1: 1 | AJX1: 1 | AJY1: 1 | AJZ1: 1 | AKA1: 1 | AKB1: 1 | AKC1: 1 | AKD1: 1 | AKE1: 1 | AKF1: 1 | AKG1: 1 | AKH1: 1 | AKI1: 1 | AKJ1: 1 | AKK1: 1 | AKL1: 1 | AKM1: 1 | AKN1: =IF(AKN$2>$C$2,1,IF(AKN$3>MAX(OFFSET($R$7:$R$1005,0,COUNTA($R$6:$DB$6)*(AKN$2-1))),1,0)) -> 1 | AKO1: 1 | AKP1: 1 | AKQ1: 1 | AKR1: 1 | AKS1: 1 | AKT1: 1 | AKU1: 1 | AKV1: 1 | AKW1: 1 | AKX1: 1 | AKY1: 1 | AKZ1: 1 | ALA1: 1 | ALB1: 1 | ALC1: 1 | ALD1: 1 | ALE1: 1 | ALF1: 1 | ALG1: 1 | ALH1: 1 | ALI1: 1 | ALJ1: 1 | ALK1: 1 | ALL1: 1 | ALM1: 1 | ALN1: 1 | ALO1: 1 | ALP1: 1 | ALQ1: 1 | ALR1: 1 | ALS1: 1 | ALT1: 1 | ALU1: 1 | ALV1: 1 | ALW1: 1 | ALX1: 1 | ALY1: 1 | ALZ1: 1 | AMA1: 1 | AMB1: 1 | AMC1: 1 | AMD1: 1 | AME1: 1 | AMF1: 1 | AMG1: 1 | AMH1: 1 | AMI1: 1 | AMJ1: 1 | AMK1: 1 | AML1: 1 | AMM1: 1 | AMN1: 1 | AMO1: 1 | AMP1: 1 | AMQ1: 1 | AMR1: 1 | AMS1: 1 | AMT1: 1 | AMU1: 1 | AMV1: 1 | AMW1: 1 | AMX1: 1 | AMY1: 1 | AMZ1: =IF(AMZ$2>$C$2,1,IF(AMZ$3>MAX(OFFSET($R$7:$R$1005,0,COUNTA($R$6:$DB$6)*(AMZ$2-1))),1,0)) -> 1 | ANA1: 1 | ANB1: 1 | ANC1: 1 | AND1: 1 | ANE1: 1 | ANF1: 1 | ANG1: 1 | ANH1: 1 | ANI1: 1 | ANJ1: 1 | ANK1: 1 | ANL1: 1 | ANM1: 1 | ANN1: 1 | ANO1: 1 | ANP1: 1 | ANQ1: 1 | ANR1: 1 | ANS1: 1 | ANT1: 1 | ANU1: 1 | ANV1: 1 | ANW1: 1 | ANX1: 1 | ANY1: 1 | ANZ1: 1 | AOA1: 1 | AOB1: 1 | AOC1: 1 | AOD1: 1 | AOE1: 1 | AOF1: 1 | AOG1: 1 | AOH1: 1 | AOI1: 1 | AOJ1: 1 | AOK1: 1 | AOL1: 1 | AOM1: 1 | AON1: 1 | AOO1: 1 | AOP1: 1 | AOQ1: 1 | AOR1: 1 | AOS1: 1 | AOT1: 1 | AOU1: 1 | AOV1: 1 | AOW1: 1 | AOX1: 1 | AOY1: 1 | AOZ1: 1 | APA1: 1 | APB1: 1 | APC1: 1 | APD1: 1 | APE1: 1 | APF1: 1 | APG1: 1 | APH1: 1 | API1: 1 | APJ1: 1 | APK1: 1 | APL1: =IF(APL$2>$C$2,1,IF(APL$3>MAX(OFFSET($R$7:$R$1005,0,COUNTA($R$6:$DB$6)*(APL$2-1))),1,0)) -> 1 | APM1: 1 | APN1: 1 | APO1: 1 | APP1: 1 | APQ1: 1 | APR1: 1 | APS1: 1 | APT1: 1 | APU1: 1 | APV1: 1 | APW1: 1 | APX1: 1 | APY1: 1 | APZ1: 1 | AQA1: 1 | AQB1: 1 | AQC1: 1 | AQD1: 1 | AQE1: 1 | AQF1: 1 | AQG1: 1 | AQH1: 1 | AQI1: 1 | AQJ1: 1 | AQK1: 1 | AQL1: 1 | AQM1: 1 | AQN1: 1 | AQO1: 1 | AQP1: 1 | AQQ1: 1 | AQR1: 1 | AQS1: 1 | AQT1: 1 | AQU1: 1 | AQV1: 1 | AQW1: 1 | AQX1: 1 | AQY1: 1 | AQZ1: 1 | ARA1: 1 | ARB1: 1 | ARC1: 1 | ARD1: 1 | ARE1: 1 | ARF1: 1 | ARG1: 1 | ARH1: 1 | ARI1: 1 | ARJ1: 1 | ARK1: 1 | ARL1: 1 | ARM1: 1 | ARN1: 1 | ARO1: 1 | ARP1: 1 | ARQ1: 1 | ARR1: 1 | ARS1: 1 | ART1: 1 | ARU1: 1 | ARV1: 1 | ARW1: 1 | ARX1: =IF(ARX$2>$C$2,1,IF(ARX$3>MAX(OFFSET($R$7:$R$1005,0,COUNTA($R$6:$DB$6)*(ARX$2-1))),1,0)) -> 1 | ARY1: 1 | ARZ1: 1 | ASA1: 1
A2: ="" & CELL("address",$H$7) & ":" & CELL("address",$H$1005) -> $H$7:$H$1005 | B2: Max Milestones: | C2: =MAX($M$7:$M$1005) -> 4 | D2: Milestone ---> | E2: 0 | F2: 0 | G2: 0 | H2: 0 | I2: 0 | J2: 0 | K2: 0 | L2: 0 | M2: 0 | N2: 0 | O2: 1 | P2: =IF(LEFT(P$5)="M",O2+1,O2) -> 1 | Q2: =IF(LEFT(Q$5)="M",P2+1,P2) -> 1 | R2: 1 | S2: 1 | T2: 1 | U2: 1 | V2: 1 | W2: 1 | X2: 1 | Y2: 1 | Z2: 1 | AA2: 1 | AB2: 1 | AC2: 1 | AD2: 1 | AE2: 1 | AF2: 1 | AG2: 1 | AH2: 1 | AI2: 1 | AJ2: 1 | AK2: 1 | AL2: 1 | AM2: 1 | AN2: 1 | AO2: 1 | AP2: 1 | AQ2: 1 | AR2: 1 | AS2: 1 | AT2: 1 | AU2: 1 | AV2: 1 | AW2: 1 | AX2: 1 | AY2: 1 | AZ2: 1 | BA2: 1 | BB2: 1 | BC2: 1 | BD2: 1 | BE2: 1 | BF2: 1 | BG2: 1 | BH2: 1 | BI2: 1 | BJ2: 1 | BK2: 1 | BL2: 1 | BM2: 1 | BN2: 1 | BO2: 1 | BP2: 1 | BQ2: 1 | BR2: 1 | BS2: 1 | BT2: 1 | BU2: 1 | BV2: 1 | BW2: 1 | BX2: 1 | BY2: 1 | BZ2: 1 | CA2: 1 | CB2: 1 | CC2: =IF(LEFT(CC$5)="M",CB2+1,CB2) -> 1 | CD2: 1 | CE2: 1 | CF2: 1 | CG2: 1 | CH2: 1 | CI2: 1 | CJ2: 1 | CK2: 1 | CL2: 1 | CM2: 1 | CN2: 1 | CO2: 1 | CP2: 1 | CQ2: 1 | CR2: 1 | CS2: 1 | CT2: 1 | CU2: 1 | CV2: 1 | CW2: 1 | CX2: 1 | CY2: 1 | CZ2: 2 | DA2: 2 | DB2: 2 | DC2: 2 | DD2: 2 | DE2: 2 | DF2: 2 | DG2: 2 | DH2: 2 | DI2: 2 | DJ2: 2 | DK2: 2 | DL2: 2 | DM2: 2 | DN2: 2 | DO2: 2 | DP2: 2 | DQ2: 2 | DR2: 2 | DS2: 2 | DT2: 2 | DU2: 2 | DV2: 2 | DW2: 2 | DX2: 2 | DY2: 2 | DZ2: 2 | EA2: 2 | EB2: 2 | EC2: 2 | ED2: 2 | EE2: 2 | EF2: 2 | EG2: 2 | EH2: 2 | EI2: 2 | EJ2: 2 | EK2: 2 | EL2: 2 | EM2: 2 | EN2: 2 | EO2: =IF(LEFT(EO$5)="M",EN2+1,EN2) -> 2 | EP2: 2 | EQ2: 2 | ER2: 2 | ES2: 2 | ET2: 2 | EU2: 2 | EV2: 2 | EW2: 2 | EX2: 2 | EY2: 2 | EZ2: 2 | FA2: 2 | FB2: 2 | FC2: 2 | FD2: 2 | FE2: 2 | FF2: 2 | FG2: 2 | FH2: 2 | FI2: 2 | FJ2: 2 | FK2: 2 | FL2: 2 | FM2: 2 | FN2: 2 | FO2: 2 | FP2: 2 | FQ2: 2 | FR2: 2 | FS2: 2 | FT2: 2 | FU2: 2 | FV2: 2 | FW2: 2 | FX2: 2 | FY2: 2 | FZ2: 2 | GA2: 2 | GB2: 2 | GC2: 2 | GD2: 2 | GE2: 2 | GF2: 2 | GG2: 2 | GH2: 2 | GI2: 2 | GJ2: 2 | GK2: 3 | GL2: 3 | GM2: 3 | GN2: 3 | GO2: 3 | GP2: 3 | GQ2: 3 | GR2: 3 | GS2: 3 | GT2: 3 | GU2: 3 | GV2: 3 | GW2: 3 | GX2: 3 | GY2: 3 | GZ2: 3 | HA2: =IF(LEFT(HA$5)="M",GZ2+1,GZ2) -> 3 | HB2: 3 | HC2: 3 | HD2: 3 | HE2: 3 | HF2: 3 | HG2: 3 | HH2: 3 | HI2: 3 | HJ2: 3 | HK2: 3 | HL2: 3 | HM2: 3 | HN2: 3 | HO2: 3 | HP2: 3 | HQ2: 3 | HR2: 3 | HS2: 3 | HT2: 3 | HU2: 3 | HV2: 3 | HW2: 3 | HX2: 3 | HY2: 3 | HZ2: 3 | IA2: 3 | IB2: 3 | IC2: 3 | ID2: 3 | IE2: 3 | IF2: 3 | IG2: 3 | IH2: 3 | II2: 3 | IJ2: 3 | IK2: 3 | IL2: 3 | IM2: 3 | IN2: 3 | IO2: 3 | IP2: 3 | IQ2: 3 | IR2: 3 | IS2: 3 | IT2: 3 | IU2: 3 | IV2: 3 | IW2: 3 | IX2: 3 | IY2: 3 | IZ2: 3 | JA2: 3 | JB2: 3 | JC2: 3 | JD2: 3 | JE2: 3 | JF2: 3 | JG2: 3 | JH2: 3 | JI2: 3 | JJ2: 3 | JK2: 3 | JL2: 3 | JM2: =IF(LEFT(JM$5)="M",JL2+1,JL2) -> 3 | JN2: 3 | JO2: 3 | JP2: 3 | JQ2: 3 | JR2: 3 | JS2: 3 | JT2: 3 | JU2: 3 | JV2: 4 | JW2: 4 | JX2: 4 | JY2: 4 | JZ2: 4 | KA2: 4 | KB2: 4 | KC2: 4 | KD2: 4 | KE2: 4 | KF2: 4 | KG2: 4 | KH2: 4 | KI2: 4 | KJ2: 4 | KK2: 4 | KL2: 4 | KM2: 4 | KN2: 4 | KO2: 4 | KP2: 4 | KQ2: 4 | KR2: 4 | KS2: 4 | KT2: 4 | KU2: 4 | KV2: 4 | KW2: 4 | KX2: 4 | KY2: 4 | KZ2: 4 | LA2: 4 | LB2: 4 | LC2: 4 | LD2: 4 | LE2: 4 | LF2: 4 | LG2: 4 | LH2: 4 | LI2: 4 | LJ2: 4 | LK2: 4 | LL2: 4 | LM2: 4 | LN2: 4 | LO2: 4 | LP2: 4 | LQ2: 4 | LR2: 4 | LS2: 4 | LT2: 4 | LU2: 4 | LV2: 4 | LW2: 4 | LX2: 4 | LY2: =IF(LEFT(LY$5)="M",LX2+1,LX2) -> 4 | LZ2: 4 | MA2: 4 | MB2: 4 | MC2: 4 | MD2: 4 | ME2: 4 | MF2: 4 | MG2: 4 | MH2: 4 | MI2: 4 | MJ2: 4 | MK2: 4 | ML2: 4 | MM2: 4 | MN2: 4 | MO2: 4 | MP2: 4 | MQ2: 4 | MR2: 4 | MS2: 4 | MT2: 4 | MU2: 4 | MV2: 4 | MW2: 4 | MX2: 4 | MY2: 4 | MZ2: 4 | NA2: 4 | NB2: 4 | NC2: 4 | ND2: 4 | NE2: 4 | NF2: 4 | NG2: 5 | NH2: 5 | NI2: 5 | NJ2: 5 | NK2: 5 | NL2: 5 | NM2: 5 | NN2: 5 | NO2: 5 | NP2: 5 | NQ2: 5 | NR2: 5 | NS2: 5 | NT2: 5 | NU2: 5 | NV2: 5 | NW2: 5 | NX2: 5 | NY2: 5 | NZ2: 5 | OA2: 5 | OB2: 5 | OC2: 5 | OD2: 5 | OE2: 5 | OF2: 5 | OG2: 5 | OH2: 5 | OI2: 5 | OJ2: 5 | OK2: =IF(LEFT(OK$5)="M",OJ2+1,OJ2) -> 5 | OL2: 5 | OM2: 5 | ON2: 5 | OO2: 5 | OP2: 5 | OQ2: 5 | OR2: 5 | OS2: 5 | OT2: 5 | OU2: 5 | OV2: 5 | OW2: 5 | OX2: 5 | OY2: 5 | OZ2: 5 | PA2: 5 | PB2: 5 | PC2: 5 | PD2: 5 | PE2: 5 | PF2: 5 | PG2: 5 | PH2: 5 | PI2: 5 | PJ2: 5 | PK2: 5 | PL2: 5 | PM2: 5 | PN2: 5 | PO2: 5 | PP2: 5 | PQ2: 5 | PR2: 5 | PS2: 5 | PT2: 5 | PU2: 5 | PV2: 5 | PW2: 5 | PX2: 5 | PY2: 5 | PZ2: 5 | QA2: 5 | QB2: 5 | QC2: 5 | QD2: 5 | QE2: 5 | QF2: 5 | QG2: 5 | QH2: 5 | QI2: 5 | QJ2: 5 | QK2: 5 | QL2: 5 | QM2: 5 | QN2: 5 | QO2: 5 | QP2: 5 | QQ2: 5 | QR2: 6 | QS2: 6 | QT2: 6 | QU2: 6 | QV2: 6 | QW2: =IF(LEFT(QW$5)="M",QV2+1,QV2) -> 6 | QX2: 6 | QY2: 6 | QZ2: 6 | RA2: 6 | RB2: 6 | RC2: 6 | RD2: 6 | RE2: 6 | RF2: 6 | RG2: 6 | RH2: 6 | RI2: 6 | RJ2: 6 | RK2: 6 | RL2: 6 | RM2: 6 | RN2: 6 | RO2: 6 | RP2: 6 | RQ2: 6 | RR2: 6 | RS2: 6 | RT2: 6 | RU2: 6 | RV2: 6 | RW2: 6 | RX2: 6 | RY2: 6 | RZ2: 6 | SA2: 6 | SB2: 6 | SC2: 6 | SD2: 6 | SE2: 6 | SF2: 6 | SG2: 6 | SH2: 6 | SI2: 6 | SJ2: 6 | SK2: 6 | SL2: 6 | SM2: 6 | SN2: 6 | SO2: 6 | SP2: 6 | SQ2: 6 | SR2: 6 | SS2: 6 | ST2: 6 | SU2: 6 | SV2: 6 | SW2: 6 | SX2: 6 | SY2: 6 | SZ2: 6 | TA2: 6 | TB2: 6 | TC2: 6 | TD2: 6 | TE2: 6 | TF2: 6 | TG2: 6 | TH2: 6 | TI2: =IF(LEFT(TI$5)="M",TH2+1,TH2) -> 6 | TJ2: 6 | TK2: 6 | TL2: 6 | TM2: 6 | TN2: 6 | TO2: 6 | TP2: 6 | TQ2: 6 | TR2: 6 | TS2: 6 | TT2: 6 | TU2: 6 | TV2: 6 | TW2: 6 | TX2: 6 | TY2: 6 | TZ2: 6 | UA2: 6 | UB2: 6 | UC2: 7 | UD2: 7 | UE2: 7 | UF2: 7 | UG2: 7 | UH2: 7 | UI2: 7 | UJ2: 7 | UK2: 7 | UL2: 7 | UM2: 7 | UN2: 7 | UO2: 7 | UP2: 7 | UQ2: 7 | UR2: 7 | US2: 7 | UT2: 7 | UU2: 7 | UV2: 7 | UW2: 7 | UX2: 7 | UY2: 7 | UZ2: 7 | VA2: 7 | VB2: 7 | VC2: 7 | VD2: 7 | VE2: 7 | VF2: 7 | VG2: 7 | VH2: 7 | VI2: 7 | VJ2: 7 | VK2: 7 | VL2: 7 | VM2: 7 | VN2: 7 | VO2: 7 | VP2: 7 | VQ2: 7 | VR2: 7 | VS2: 7 | VT2: 7 | VU2: =IF(LEFT(VU$5)="M",VT2+1,VT2) -> 7 | VV2: 7 | VW2: 7 | VX2: 7 | VY2: 7 | VZ2: 7 | WA2: 7 | WB2: 7 | WC2: 7 | WD2: 7 | WE2: 7 | WF2: 7 | WG2: 7 | WH2: 7 | WI2: 7 | WJ2: 7 | WK2: 7 | WL2: 7 | WM2: 7 | WN2: 7 | WO2: 7 | WP2: 7 | WQ2: 7 | WR2: 7 | WS2: 7 | WT2: 7 | WU2: 7 | WV2: 7 | WW2: 7 | WX2: 7 | WY2: 7 | WZ2: 7 | XA2: 7 | XB2: 7 | XC2: 7 | XD2: 7 | XE2: 7 | XF2: 7 | XG2: 7 | XH2: 7 | XI2: 7 | XJ2: 7 | XK2: 7 | XL2: 7 | XM2: 7 | XN2: 8 | XO2: 8 | XP2: 8 | XQ2: 8 | XR2: 8 | XS2: 8 | XT2: 8 | XU2: 8 | XV2: 8 | XW2: 8 | XX2: 8 | XY2: 8 | XZ2: 8 | YA2: 8 | YB2: 8 | YC2: 8 | YD2: 8 | YE2: 8 | YF2: 8 | YG2: =IF(LEFT(YG$5)="M",YF2+1,YF2) -> 8 | YH2: 8 | YI2: 8 | YJ2: 8 | YK2: 8 | YL2: 8 | YM2: 8 | YN2: 8 | YO2: 8 | YP2: 8 | YQ2: 8 | YR2: 8 | YS2: 8 | YT2: 8 | YU2: 8 | YV2: 8 | YW2: 8 | YX2: 8 | YY2: 8 | YZ2: 8 | ZA2: 8 | ZB2: 8 | ZC2: 8 | ZD2: 8 | ZE2: 8 | ZF2: 8 | ZG2: 8 | ZH2: 8 | ZI2: 8 | ZJ2: 8 | ZK2: 8 | ZL2: 8 | ZM2: 8 | ZN2: 8 | ZO2: 8 | ZP2: 8 | ZQ2: 8 | ZR2: 8 | ZS2: 8 | ZT2: 8 | ZU2: 8 | ZV2: 8 | ZW2: 8 | ZX2: 8 | ZY2: 8 | ZZ2: 8 | AAA2: 8 | AAB2: 8 | AAC2: 8 | AAD2: 8 | AAE2: 8 | AAF2: 8 | AAG2: 8 | AAH2: 8 | AAI2: 8 | AAJ2: 8 | AAK2: 8 | AAL2: 8 | AAM2: 8 | AAN2: 8 | AAO2: 8 | AAP2: 8 | AAQ2: 8 | AAR2: 8 | AAS2: =IF(LEFT(AAS$5)="M",AAR2+1,AAR2) -> 8 | AAT2: 8 | AAU2: 8 | AAV2: 8 | AAW2: 8 | AAX2: 8 | AAY2: 9 | AAZ2: 9 | ABA2: 9 | ABB2: 9 | ABC2: 9 | ABD2: 9 | ABE2: 9 | ABF2: 9 | ABG2: 9 | ABH2: 9 | ABI2: 9 | ABJ2: 9 | ABK2: 9 | ABL2: 9 | ABM2: 9 | ABN2: 9 | ABO2: 9 | ABP2: 9 | ABQ2: 9 | ABR2: 9 | ABS2: 9 | ABT2: 9 | ABU2: 9 | ABV2: 9 | ABW2: 9 | ABX2: 9 | ABY2: 9 | ABZ2: 9 | ACA2: 9 | ACB2: 9 | ACC2: 9 | ACD2: 9 | ACE2: 9 | ACF2: 9 | ACG2: 9 | ACH2: 9 | ACI2: 9 | ACJ2: 9 | ACK2: 9 | ACL2: 9 | ACM2: 9 | ACN2: 9 | ACO2: 9 | ACP2: 9 | ACQ2: 9 | ACR2: 9 | ACS2: 9 | ACT2: 9 | ACU2: 9 | ACV2: 9 | ACW2: 9 | ACX2: 9 | ACY2: 9 | ACZ2: 9 | ADA2: 9 | ADB2: 9 | ADC2: 9 | ADD2: 9 | ADE2: =IF(LEFT(ADE$5)="M",ADD2+1,ADD2) -> 9 | ADF2: 9 | ADG2: 9 | ADH2: 9 | ADI2: 9 | ADJ2: 9 | ADK2: 9 | ADL2: 9 | ADM2: 9 | ADN2: 9 | ADO2: 9 | ADP2: 9 | ADQ2: 9 | ADR2: 9 | ADS2: 9 | ADT2: 9 | ADU2: 9 | ADV2: 9 | ADW2: 9 | ADX2: 9 | ADY2: 9 | ADZ2: 9 | AEA2: 9 | AEB2: 9 | AEC2: 9 | AED2: 9 | AEE2: 9 | AEF2: 9 | AEG2: 9 | AEH2: 9 | AEI2: 9 | AEJ2: 10 | AEK2: 10 | AEL2: 10 | AEM2: 10 | AEN2: 10 | AEO2: 10 | AEP2: 10 | AEQ2: 10 | AER2: 10 | AES2: 10 | AET2: 10 | AEU2: 10 | AEV2: 10 | AEW2: 10 | AEX2: 10 | AEY2: 10 | AEZ2: 10 | AFA2: 10 | AFB2: 10 | AFC2: 10 | AFD2: 10 | AFE2: 10 | AFF2: 10 | AFG2: 10 | AFH2: 10 | AFI2: 10 | AFJ2: 10 | AFK2: 10 | AFL2: 10 | AFM2: 10 | AFN2: 10 | AFO2: 10 | AFP2: 10 | AFQ2: =IF(LEFT(AFQ$5)="M",AFP2+1,AFP2) -> 10 | AFR2: 10 | AFS2: 10 | AFT2: 10 | AFU2: 10 | AFV2: 10 | AFW2: 10 | AFX2: 10 | AFY2: 10 | AFZ2: 10 | AGA2: 10 | AGB2: 10 | AGC2: 10 | AGD2: 10 | AGE2: 10 | AGF2: 10 | AGG2: 10 | AGH2: 10 | AGI2: 10 | AGJ2: 10 | AGK2: 10 | AGL2: 10 | AGM2: 10 | AGN2: 10 | AGO2: 10 | AGP2: 10 | AGQ2: 10 | AGR2: 10 | AGS2: 10 | AGT2: 10 | AGU2: 10 | AGV2: 10 | AGW2: 10 | AGX2: 10 | AGY2: 10 | AGZ2: 10 | AHA2: 10 | AHB2: 10 | AHC2: 10 | AHD2: 10 | AHE2: 10 | AHF2: 10 | AHG2: 10 | AHH2: 10 | AHI2: 10 | AHJ2: 10 | AHK2: 10 | AHL2: 10 | AHM2: 10 | AHN2: 10 | AHO2: 10 | AHP2: 10 | AHQ2: 10 | AHR2: 10 | AHS2: 10 | AHT2: 10 | AHU2: 11 | AHV2: 11 | AHW2: 11 | AHX2: 11 | AHY2: 11 | AHZ2: 11 | AIA2: 11 | AIB2: 11 | AIC2: =IF(LEFT(AIC$5)="M",AIB2+1,AIB2) -> 11 | AID2: 11 | AIE2: 11 | AIF2: 11 | AIG2: 11 | AIH2: 11 | AII2: 11 | AIJ2: 11 | AIK2: 11 | AIL2: 11 | AIM2: 11 | AIN2: 11 | AIO2: 11 | AIP2: 11 | AIQ2: 11 | AIR2: 11 | AIS2: 11 | AIT2: 11 | AIU2: 11 | AIV2: 11 | AIW2: 11 | AIX2: 11 | AIY2: 11 | AIZ2: 11 | AJA2: 11 | AJB2: 11 | AJC2: 11 | AJD2: 11 | AJE2: 11 | AJF2: 11 | AJG2: 11 | AJH2: 11 | AJI2: 11 | AJJ2: 11 | AJK2: 11 | AJL2: 11 | AJM2: 11 | AJN2: 11 | AJO2: 11 | AJP2: 11 | AJQ2: 11 | AJR2: 11 | AJS2: 11 | AJT2: 11 | AJU2: 11 | AJV2: 11 | AJW2: 11 | AJX2: 11 | AJY2: 11 | AJZ2: 11 | AKA2: 11 | AKB2: 11 | AKC2: 11 | AKD2: 11 | AKE2: 11 | AKF2: 11 | AKG2: 11 | AKH2: 11 | AKI2: 11 | AKJ2: 11 | AKK2: 11 | AKL2: 11 | AKM2: 11 | AKN2: 11 | AKO2: =IF(LEFT(AKO$5)="M",AKN2+1,AKN2) -> 11 | AKP2: 11 | AKQ2: 11 | AKR2: 11 | AKS2: 11 | AKT2: 11 | AKU2: 11 | AKV2: 11 | AKW2: 11 | AKX2: 11 | AKY2: 11 | AKZ2: 11 | ALA2: 11 | ALB2: 11 | ALC2: 11 | ALD2: 11 | ALE2: 11 | ALF2: 12 | ALG2: 12 | ALH2: 12 | ALI2: 12 | ALJ2: 12 | ALK2: 12 | ALL2: 12 | ALM2: 12 | ALN2: 12 | ALO2: 12 | ALP2: 12 | ALQ2: 12 | ALR2: 12 | ALS2: 12 | ALT2: 12 | ALU2: 12 | ALV2: 12 | ALW2: 12 | ALX2: 12 | ALY2: 12 | ALZ2: 12 | AMA2: 12 | AMB2: 12 | AMC2: 12 | AMD2: 12 | AME2: 12 | AMF2: 12 | AMG2: 12 | AMH2: 12 | AMI2: 12 | AMJ2: 12 | AMK2: 12 | AML2: 12 | AMM2: 12 | AMN2: 12 | AMO2: 12 | AMP2: 12 | AMQ2: 12 | AMR2: 12 | AMS2: 12 | AMT2: 12 | AMU2: 12 | AMV2: 12 | AMW2: 12 | AMX2: 12 | AMY2: 12 | AMZ2: 12 | ANA2: =IF(LEFT(ANA$5)="M",AMZ2+1,AMZ2) -> 12 | ANB2: 12 | ANC2: 12 | AND2: 12 | ANE2: 12 | ANF2: 12 | ANG2: 12 | ANH2: 12 | ANI2: 12 | ANJ2: 12 | ANK2: 12 | ANL2: 12 | ANM2: 12 | ANN2: 12 | ANO2: 12 | ANP2: 12 | ANQ2: 12 | ANR2: 12 | ANS2: 12 | ANT2: 12 | ANU2: 12 | ANV2: 12 | ANW2: 12 | ANX2: 12 | ANY2: 12 | ANZ2: 12 | AOA2: 12 | AOB2: 12 | AOC2: 12 | AOD2: 12 | AOE2: 12 | AOF2: 12 | AOG2: 12 | AOH2: 12 | AOI2: 12 | AOJ2: 12 | AOK2: 12 | AOL2: 12 | AOM2: 12 | AON2: 12 | AOO2: 12 | AOP2: 12 | AOQ2: 13 | AOR2: 13 | AOS2: 13 | AOT2: 13 | AOU2: 13 | AOV2: 13 | AOW2: 13 | AOX2: 13 | AOY2: 13 | AOZ2: 13 | APA2: 13 | APB2: 13 | APC2: 13 | APD2: 13 | APE2: 13 | APF2: 13 | APG2: 13 | APH2: 13 | API2: 13 | APJ2: 13 | APK2: 13 | APL2: 13 | APM2: =IF(LEFT(APM$5)="M",APL2+1,APL2) -> 13 | APN2: 13 | APO2: 13 | APP2: 13 | APQ2: 13 | APR2: 13 | APS2: 13 | APT2: 13 | APU2: 13 | APV2: 13 | APW2: 13 | APX2: 13 | APY2: 13 | APZ2: 13 | AQA2: 13 | AQB2: 13 | AQC2: 13 | AQD2: 13 | AQE2: 13 | AQF2: 13 | AQG2: 13 | AQH2: 13 | AQI2: 13 | AQJ2: 13 | AQK2: 13 | AQL2: 13 | AQM2: 13 | AQN2: 13 | AQO2: 13 | AQP2: 13 | AQQ2: 13 | AQR2: 13 | AQS2: 13 | AQT2: 13 | AQU2: 13 | AQV2: 13 | AQW2: 13 | AQX2: 13 | AQY2: 13 | AQZ2: 13 | ARA2: 13 | ARB2: 13 | ARC2: 13 | ARD2: 13 | ARE2: 13 | ARF2: 13 | ARG2: 13 | ARH2: 13 | ARI2: 13 | ARJ2: 13 | ARK2: 13 | ARL2: 13 | ARM2: 13 | ARN2: 13 | ARO2: 13 | ARP2: 13 | ARQ2: 13 | ARR2: 13 | ARS2: 13 | ART2: 13 | ARU2: 13 | ARV2: 13 | ARW2: 13 | ARX2: 13 | ARY2: =IF(LEFT(ARY$5)="M",ARX2+1,ARX2) -> 13 | ARZ2: 13 | ASA2: 13
D3: Metric ---> | E3: 0 | F3: 0 | G3: 0 | H3: 0 | I3: 0 | J3: 0 | K3: 0 | L3: 0 | M3: 0 | N3: 0 | O3: 0 | P3: 0 | Q3: 0 | R3: 0 | S3: 1 | T3: 1 | U3: 1 | V3: 1 | W3: 1 | X3: 1 | Y3: 1 | Z3: 1 | AA3: 1 | AB3: 1 | AC3: 1 | AD3: 1 | AE3: 2 | AF3: 2 | AG3: 2 | AH3: 2 | AI3: 2 | AJ3: 2 | AK3: 2 | AL3: 2 | AM3: 2 | AN3: 2 | AO3: 2 | AP3: 2 | AQ3: 3 | AR3: 3 | AS3: 3 | AT3: 3 | AU3: 3 | AV3: 3 | AW3: 3 | AX3: 3 | AY3: 3 | AZ3: 3 | BA3: 3 | BB3: 3 | BC3: 4 | BD3: 4 | BE3: 4 | BF3: 4 | BG3: 4 | BH3: 4 | BI3: 4 | BJ3: 4 | BK3: 4 | BL3: 4 | BM3: 4 | BN3: 4 | BO3: 5 | BP3: 5 | BQ3: 5 | BR3: 5 | BS3: 5 | BT3: 5 | BU3: 5 | BV3: 5 | BW3: 5 | BX3: 5 | BY3: 5 | BZ3: 5 | CA3: 6 | CB3: 6 | CC3: 6 | CD3: 6 | CE3: 6 | CF3: 6 | CG3: 6 | CH3: 6 | CI3: 6 | CJ3: 6 | CK3: 6 | CL3: 6 | CM3: 7 | CN3: 7 | CO3: 7 | CP3: 7 | CQ3: 7 | CR3: 7 | CS3: 7 | CT3: 7 | CU3: 7 | CV3: 7 | CW3: 7 | CX3: 7 | CY3: 0 | CZ3: 0 | DA3: 0 | DB3: 0 | DC3: 0 | DD3: 1 | DE3: 1 | DF3: 1 | DG3: 1 | DH3: 1 | DI3: 1 | DJ3: 1 | DK3: 1 | DL3: 1 | DM3: 1 | DN3: 1 | DO3: 1 | DP3: 2 | DQ3: 2 | DR3: 2 | DS3: 2 | DT3: 2 | DU3: 2 | DV3: 2 | DW3: 2 | DX3: 2 | DY3: 2 | DZ3: 2 | EA3: 2 | EB3: 3 | EC3: 3 | ED3: 3 | EE3: 3 | EF3: 3 | EG3: 3 | EH3: 3 | EI3: 3 | EJ3: 3 | EK3: 3 | EL3: 3 | EM3: 3 | EN3: 4 | EO3: 4 | EP3: 4 | EQ3: 4 | ER3: 4 | ES3: 4 | ET3: 4 | EU3: 4 | EV3: 4 | EW3: 4 | EX3: 4 | EY3: 4 | EZ3: 5 | FA3: 5 | FB3: 5 | FC3: 5 | FD3: 5 | FE3: 5 | FF3: 5 | FG3: 5 | FH3: 5 | FI3: 5 | FJ3: 5 | FK3: 5 | FL3: 6 | FM3: 6 | FN3: 6 | FO3: 6 | FP3: 6 | FQ3: 6 | FR3: 6 | FS3: 6 | FT3: 6 | FU3: 6 | FV3: 6 | FW3: 6 | FX3: 7 | FY3: 7 | FZ3: 7 | GA3: 7 | GB3: 7 | GC3: 7 | GD3: 7 | GE3: 7 | GF3: 7 | GG3: 7 | GH3: 7 | GI3: 7 | GJ3: 0 | GK3: 0 | GL3: 0 | GM3: 0 | GN3: 0 | GO3: 1 | GP3: 1 | GQ3: 1 | GR3: 1 | GS3: 1 | GT3: 1 | GU3: 1 | GV3: 1 | GW3: 1 | GX3: 1 | GY3: 1 | GZ3: 1 | HA3: 2 | HB3: 2 | HC3: 2 | HD3: 2 | HE3: 2 | HF3: 2 | HG3: 2 | HH3: 2 | HI3: 2 | HJ3: 2 | HK3: 2 | HL3: 2 | HM3: 3 | HN3: 3 | HO3: 3 | HP3: 3 | HQ3: 3 | HR3: 3 | HS3: 3 | HT3: 3 | HU3: 3 | HV3: 3 | HW3: 3 | HX3: 3 | HY3: 4 | HZ3: 4 | IA3: 4 | IB3: 4 | IC3: 4 | ID3: 4 | IE3: 4 | IF3: 4 | IG3: 4 | IH3: 4 | II3: 4 | IJ3: 4 | IK3: 5 | IL3: 5 | IM3: 5 | IN3: 5 | IO3: 5 | IP3: 5 | IQ3: 5 | IR3: 5 | IS3: 5 | IT3: 5 | IU3: 5 | IV3: 5 | IW3: 6 | IX3: 6 | IY3: 6 | IZ3: 6 | JA3: 6 | JB3: 6 | JC3: 6 | JD3: 6 | JE3: 6 | JF3: 6 | JG3: 6 | JH3: 6 | JI3: 7 | JJ3: 7 | JK3: 7 | JL3: 7 | JM3: 7 | JN3: 7 | JO3: 7 | JP3: 7 | JQ3: 7 | JR3: 7 | JS3: 7 | JT3: 7 | JU3: 0 | JV3: 0 | JW3: 0 | JX3: 0 | JY3: 0 | JZ3: 1 | KA3: 1 | KB3: 1 | KC3: 1 | KD3: 1 | KE3: 1 | KF3: 1 | KG3: 1 | KH3: 1 | KI3: 1 | KJ3: 1 | KK3: 1 | KL3: 2 | KM3: 2 | KN3: 2 | KO3: 2 | KP3: 2 | KQ3: 2 | KR3: 2 | KS3: 2 | KT3: 2 | KU3: 2 | KV3: 2 | KW3: 2 | KX3: 3 | KY3: 3 | KZ3: 3 | LA3: 3 | LB3: 3 | LC3: 3 | LD3: 3 | LE3: 3 | LF3: 3 | LG3: 3 | LH3: 3 | LI3: 3 | LJ3: 4 | LK3: 4 | LL3: 4 | LM3: 4 | LN3: 4 | LO3: 4 | LP3: 4 | LQ3: 4 | LR3: 4 | LS3: 4 | LT3: 4 | LU3: 4 | LV3: 5 | LW3: 5 | LX3: 5 | LY3: 5 | LZ3: 5 | MA3: 5 | MB3: 5 | MC3: 5 | MD3: 5 | ME3: 5 | MF3: 5 | MG3: 5 | MH3: 6 | MI3: 6 | MJ3: 6 | MK3: 6 | ML3: 6 | MM3: 6 | MN3: 6 | MO3: 6 | MP3: 6 | MQ3: 6 | MR3: 6 | MS3: 6 | MT3: 7 | MU3: 7 | MV3: 7 | MW3: 7 | MX3: 7 | MY3: 7 | MZ3: 7 | NA3: 7 | NB3: 7 | NC3: 7 | ND3: 7 | NE3: 7 | NF3: 0 | NG3: 0 | NH3: 0 | NI3: 0 | NJ3: 0 | NK3: 1 | NL3: 1 | NM3: 1 | NN3: 1 | NO3: 1 | NP3: 1 | NQ3: 1 | NR3: 1 | NS3: 1 | NT3: 1 | NU3: 1 | NV3: 1 | NW3: 2 | NX3: 2 | NY3: 2 | NZ3: 2 | OA3: 2 | OB3: 2 | OC3: 2 | OD3: 2 | OE3: 2 | OF3: 2 | OG3: 2 | OH3: 2 | OI3: 3 | OJ3: 3 | OK3: 3 | OL3: 3 | OM3: 3 | ON3: 3 | OO3: 3 | OP3: 3 | OQ3: 3 | OR3: 3 | OS3: 3 | OT3: 3 | OU3: 4 | OV3: 4 | OW3: 4 | OX3: 4 | OY3: 4 | OZ3: 4 | PA3: 4 | PB3: 4 | PC3: 4 | PD3: 4 | PE3: 4 | PF3: 4 | PG3: 5 | PH3: 5 | PI3: 5 | PJ3: 5 | PK3: 5 | PL3: 5 | PM3: 5 | PN3: 5 | PO3: 5 | PP3: 5 | PQ3: 5 | PR3: 5 | PS3: 6 | PT3: 6 | PU3: 6 | PV3: 6 | PW3: 6 | PX3: 6 | PY3: 6 | PZ3: 6 | QA3: 6 | QB3: 6 | QC3: 6 | QD3: 6 | QE3: 7 | QF3: 7 | QG3: 7 | QH3: 7 | QI3: 7 | QJ3: 7 | QK3: 7 | QL3: 7 | QM3: 7 | QN3: 7 | QO3: 7 | QP3: 7 | QQ3: 0 | QR3: 0 | QS3: 0 | QT3: 0 | QU3: 0 | QV3: 1 | QW3: 1 | QX3: 1 | QY3: 1 | QZ3: 1 | RA3: 1 | RB3: 1 | RC3: 1 | RD3: 1 | RE3: 1 | RF3: 1 | RG3: 1 | RH3: 2 | RI3: 2 | RJ3: 2 | RK3: 2 | RL3: 2 | RM3: 2 | RN3: 2 | RO3: 2 | RP3: 2 | RQ3: 2 | RR3: 2 | RS3: 2 | RT3: 3 | RU3: 3 | RV3: 3 | RW3: 3 | RX3: 3 | RY3: 3 | RZ3: 3 | SA3: 3 | SB3: 3 | SC3: 3 | SD3: 3 | SE3: 3 | SF3: 4 | SG3: 4 | SH3: 4 | SI3: 4 | SJ3: 4 | SK3: 4 | SL3: 4 | SM3: 4 | SN3: 4 | SO3: 4 | SP3: 4 | SQ3: 4 | SR3: 5 | SS3: 5 | ST3: 5 | SU3: 5 | SV3: 5 | SW3: 5 | SX3: 5 | SY3: 5 | SZ3: 5 | TA3: 5 | TB3: 5 | TC3: 5 | TD3: 6 | TE3: 6 | TF3: 6 | TG3: 6 | TH3: 6 | TI3: 6 | TJ3: 6 | TK3: 6 | TL3: 6 | TM3: 6 | TN3: 6 | TO3: 6 | TP3: 7 | TQ3: 7 | TR3: 7 | TS3: 7 | TT3: 7 | TU3: 7 | TV3: 7 | TW3: 7 | TX3: 7 | TY3: 7 | TZ3: 7 | UA3: 7 | UB3: 0 | UC3: 0 | UD3: 0 | UE3: 0 | UF3: 0 | UG3: 1 | UH3: 1 | UI3: 1 | UJ3: 1 | UK3: 1 | UL3: 1 | UM3: 1 | UN3: 1 | UO3: 1 | UP3: 1 | UQ3: 1 | UR3: 1 | US3: 2 | UT3: 2 | UU3: 2 | UV3: 2 | UW3: 2 | UX3: 2 | UY3: 2 | UZ3: 2 | VA3: 2 | VB3: 2 | VC3: 2 | VD3: 2 | VE3: 3 | VF3: 3 | VG3: 3 | VH3: 3 | VI3: 3 | VJ3: 3 | VK3: 3 | VL3: 3 | VM3: 3 | VN3: 3 | VO3: 3 | VP3: 3 | VQ3: 4 | VR3: 4 | VS3: 4 | VT3: 4 | VU3: 4 | VV3: 4 | VW3: 4 | VX3: 4 | VY3: 4 | VZ3: 4 | WA3: 4 | WB3: 4 | WC3: 5 | WD3: 5 | WE3: 5 | WF3: 5 | WG3: 5 | WH3: 5 | WI3: 5 | WJ3: 5 | WK3: 5 | WL3: 5 | WM3: 5 | WN3: 5 | WO3: 6 | WP3: 6 | WQ3: 6 | WR3: 6 | WS3: 6 | WT3: 6 | WU3: 6 | WV3: 6 | WW3: 6 | WX3: 6 | WY3: 6 | WZ3: 6 | XA3: 7 | XB3: 7 | XC3: 7 | XD3: 7 | XE3: 7 | XF3: 7 | XG3: 7 | XH3: 7 | XI3: 7 | XJ3: 7 | XK3: 7 | XL3: 7 | XM3: 0 | XN3: 0 | XO3: 0 | XP3: 0 | XQ3: 0 | XR3: 1 | XS3: 1 | XT3: 1 | XU3: 1 | XV3: 1 | XW3: 1 | XX3: 1 | XY3: 1 | XZ3: 1 | YA3: 1 | YB3: 1 | YC3: 1 | YD3: 2 | YE3: 2 | YF3: 2 | YG3: 2 | YH3: 2 | YI3: 2 | YJ3: 2 | YK3: 2 | YL3: 2 | YM3: 2 | YN3: 2 | YO3: 2 | YP3: 3 | YQ3: 3 | YR3: 3 | YS3: 3 | YT3: 3 | YU3: 3 | YV3: 3 | YW3: 3 | YX3: 3 | YY3: 3 | YZ3: 3 | ZA3: 3 | ZB3: 4 | ZC3: 4 | ZD3: 4 | ZE3: 4 | ZF3: 4 | ZG3: 4 | ZH3: 4 | ZI3: 4 | ZJ3: 4 | ZK3: 4 | ZL3: 4 | ZM3: 4 | ZN3: 5 | ZO3: 5 | ZP3: 5 | ZQ3: 5 | ZR3: 5 | ZS3: 5 | ZT3: 5 | ZU3: 5 | ZV3: 5 | ZW3: 5 | ZX3: 5 | ZY3: 5 | ZZ3: 6 | AAA3: 6 | AAB3: 6 | AAC3: 6 | AAD3: 6 | AAE3: 6 | AAF3: 6 | AAG3: 6 | AAH3: 6 | AAI3: 6 | AAJ3: 6 | AAK3: 6 | AAL3: 7 | AAM3: 7 | AAN3: 7 | AAO3: 7 | AAP3: 7 | AAQ3: 7 | AAR3: 7 | AAS3: 7 | AAT3: 7 | AAU3: 7 | AAV3: 7 | AAW3: 7 | AAX3: 0 | AAY3: 0 | AAZ3: 0 | ABA3: 0 | ABB3: 0 | ABC3: 1 | ABD3: 1 | ABE3: 1 | ABF3: 1 | ABG3: 1 | ABH3: 1 | ABI3: 1 | ABJ3: 1 | ABK3: 1 | ABL3: 1 | ABM3: 1 | ABN3: 1 | ABO3: 2 | ABP3: 2 | ABQ3: 2 | ABR3: 2 | ABS3: 2 | ABT3: 2 | ABU3: 2 | ABV3: 2 | ABW3: 2 | ABX3: 2 | ABY3: 2 | ABZ3: 2 | ACA3: 3 | ACB3: 3 | ACC3: 3 | ACD3: 3 | ACE3: 3 | ACF3: 3 | ACG3: 3 | ACH3: 3 | ACI3: 3 | ACJ3: 3 | ACK3: 3 | ACL3: 3 | ACM3: 4 | ACN3: 4 | ACO3: 4 | ACP3: 4 | ACQ3: 4 | ACR3: 4 | ACS3: 4 | ACT3: 4 | ACU3: 4 | ACV3: 4 | ACW3: 4 | ACX3: 4 | ACY3: 5 | ACZ3: 5 | ADA3: 5 | ADB3: 5 | ADC3: 5 | ADD3: 5 | ADE3: 5 | ADF3: 5 | ADG3: 5 | ADH3: 5 | ADI3: 5 | ADJ3: 5 | ADK3: 6 | ADL3: 6 | ADM3: 6 | ADN3: 6 | ADO3: 6 | ADP3: 6 | ADQ3: 6 | ADR3: 6 | ADS3: 6 | ADT3: 6 | ADU3: 6 | ADV3: 6 | ADW3: 7 | ADX3: 7 | ADY3: 7 | ADZ3: 7 | AEA3: 7 | AEB3: 7 | AEC3: 7 | AED3: 7 | AEE3: 7 | AEF3: 7 | AEG3: 7 | AEH3: 7 | AEI3: 0 | AEJ3: 0 | AEK3: 0 | AEL3: 0 | AEM3: 0 | AEN3: 1 | AEO3: 1 | AEP3: 1 | AEQ3: 1 | AER3: 1 | AES3: 1 | AET3: 1 | AEU3: 1 | AEV3: 1 | AEW3: 1 | AEX3: 1 | AEY3: 1 | AEZ3: 2 | AFA3: 2 | AFB3: 2 | AFC3: 2 | AFD3: 2 | AFE3: 2 | AFF3: 2 | AFG3: 2 | AFH3: 2 | AFI3: 2 | AFJ3: 2 | AFK3: 2 | AFL3: 3 | AFM3: 3 | AFN3: 3 | AFO3: 3 | AFP3: 3 | AFQ3: 3 | AFR3: 3 | AFS3: 3 | AFT3: 3 | AFU3: 3 | AFV3: 3 | AFW3: 3 | AFX3: 4 | AFY3: 4 | AFZ3: 4 | AGA3: 4 | AGB3: 4 | AGC3: 4 | AGD3: 4 | AGE3: 4 | AGF3: 4 | AGG3: 4 | AGH3: 4 | AGI3: 4 | AGJ3: 5 | AGK3: 5 | AGL3: 5 | AGM3: 5 | AGN3: 5 | AGO3: 5 | AGP3: 5 | AGQ3: 5 | AGR3: 5 | AGS3: 5 | AGT3: 5 | AGU3: 5 | AGV3: 6 | AGW3: 6 | AGX3: 6 | AGY3: 6 | AGZ3: 6 | AHA3: 6 | AHB3: 6 | AHC3: 6 | AHD3: 6 | AHE3: 6 | AHF3: 6 | AHG3: 6 | AHH3: 7 | AHI3: 7 | AHJ3: 7 | AHK3: 7 | AHL3: 7 | AHM3: 7 | AHN3: 7 | AHO3: 7 | AHP3: 7 | AHQ3: 7 | AHR3: 7 | AHS3: 7 | AHT3: 0 | AHU3: 0 | AHV3: 0 | AHW3: 0 | AHX3: 0 | AHY3: 1 | AHZ3: 1 | AIA3: 1 | AIB3: 1 | AIC3: 1 | AID3: 1 | AIE3: 1 | AIF3: 1 | AIG3: 1 | AIH3: 1 | AII3: 1 | AIJ3: 1 | AIK3: 2 | AIL3: 2 | AIM3: 2 | AIN3: 2 | AIO3: 2 | AIP3: 2 | AIQ3: 2 | AIR3: 2 | AIS3: 2 | AIT3: 2 | AIU3: 2 | AIV3: 2 | AIW3: 3 | AIX3: 3 | AIY3: 3 | AIZ3: 3 | AJA3: 3 | AJB3: 3 | AJC3: 3 | AJD3: 3 | AJE3: 3 | AJF3: 3 | AJG3: 3 | AJH3: 3 | AJI3: 4 | AJJ3: 4 | AJK3: 4 | AJL3: 4 | AJM3: 4 | AJN3: 4 | AJO3: 4 | AJP3: 4 | AJQ3: 4 | AJR3: 4 | AJS3: 4 | AJT3: 4 | AJU3: 5 | AJV3: 5 | AJW3: 5 | AJX3: 5 | AJY3: 5 | AJZ3: 5 | AKA3: 5 | AKB3: 5 | AKC3: 5 | AKD3: 5 | AKE3: 5 | AKF3: 5 | AKG3: 6 | AKH3: 6 | AKI3: 6 | AKJ3: 6 | AKK3: 6 | AKL3: 6 | AKM3: 6 | AKN3: 6 | AKO3: 6 | AKP3: 6 | AKQ3: 6 | AKR3: 6 | AKS3: 7 | AKT3: 7 | AKU3: 7 | AKV3: 7 | AKW3: 7 | AKX3: 7 | AKY3: 7 | AKZ3: 7 | ALA3: 7 | ALB3: 7 | ALC3: 7 | ALD3: 7 | ALE3: 0 | ALF3: 0 | ALG3: 0 | ALH3: 0 | ALI3: 0 | ALJ3: 1 | ALK3: 1 | ALL3: 1 | ALM3: 1 | ALN3: 1 | ALO3: 1 | ALP3: 1 | ALQ3: 1 | ALR3: 1 | ALS3: 1 | ALT3: 1 | ALU3: 1 | ALV3: 2 | ALW3: 2 | ALX3: 2 | ALY3: 2 | ALZ3: 2 | AMA3: 2 | AMB3: 2 | AMC3: 2 | AMD3: 2 | AME3: 2 | AMF3: 2 | AMG3: 2 | AMH3: 3 | AMI3: 3 | AMJ3: 3 | AMK3: 3 | AML3: 3 | AMM3: 3 | AMN3: 3 | AMO3: 3 | AMP3: 3 | AMQ3: 3 | AMR3: 3 | AMS3: 3 | AMT3: 4 | AMU3: 4 | AMV3: 4 | AMW3: 4 | AMX3: 4 | AMY3: 4 | AMZ3: 4 | ANA3: 4 | ANB3: 4 | ANC3: 4 | AND3: 4 | ANE3: 4 | ANF3: 5 | ANG3: 5 | ANH3: 5 | ANI3: 5 | ANJ3: 5 | ANK3: 5 | ANL3: 5 | ANM3: 5 | ANN3: 5 | ANO3: 5 | ANP3: 5 | ANQ3: 5 | ANR3: 6 | ANS3: 6 | ANT3: 6 | ANU3: 6 | ANV3: 6 | ANW3: 6 | ANX3: 6 | ANY3: 6 | ANZ3: 6 | AOA3: 6 | AOB3: 6 | AOC3: 6 | AOD3: 7 | AOE3: 7 | AOF3: 7 | AOG3: 7 | AOH3: 7 | AOI3: 7 | AOJ3: 7 | AOK3: 7 | AOL3: 7 | AOM3: 7 | AON3: 7 | AOO3: 7 | AOP3: 0 | AOQ3: 0 | AOR3: 0 | AOS3: 0 | AOT3: 0 | AOU3: 1 | AOV3: 1 | AOW3: 1 | AOX3: 1 | AOY3: 1 | AOZ3: 1 | APA3: 1 | APB3: 1 | APC3: 1 | APD3: 1 | APE3: 1 | APF3: 1 | APG3: 2 | APH3: 2 | API3: 2 | APJ3: 2 | APK3: 2 | APL3: 2 | APM3: 2 | APN3: 2 | APO3: 2 | APP3: 2 | APQ3: 2 | APR3: 2 | APS3: 3 | APT3: 3 | APU3: 3 | APV3: 3 | APW3: 3 | APX3: 3 | APY3: 3 | APZ3: 3 | AQA3: 3 | AQB3: 3 | AQC3: 3 | AQD3: 3 | AQE3: 4 | AQF3: 4 | AQG3: 4 | AQH3: 4 | AQI3: 4 | AQJ3: 4 | AQK3: 4 | AQL3: 4 | AQM3: 4 | AQN3: 4 | AQO3: 4 | AQP3: 4 | AQQ3: 5 | AQR3: 5 | AQS3: 5 | AQT3: 5 | AQU3: 5 | AQV3: 5 | AQW3: 5 | AQX3: 5 | AQY3: 5 | AQZ3: 5 | ARA3: 5 | ARB3: 5 | ARC3: 6 | ARD3: 6 | ARE3: 6 | ARF3: 6 | ARG3: 6 | ARH3: 6 | ARI3: 6 | ARJ3: 6 | ARK3: 6 | ARL3: 6 | ARM3: 6 | ARN3: 6 | ARO3: 7 | ARP3: 7 | ARQ3: 7 | ARR3: 7 | ARS3: 7 | ART3: 7 | ARU3: 7 | ARV3: 7 | ARW3: 7 | ARX3: 7 | ARY3: 7 | ARZ3: 7 | ASA3: 0
A4: ="RHP " & RHP & " Category 1 - DY2" -> RHP 4 Category 1 - DY2
O5: Milestone #1 | CZ5: Milestone #2 | GK5: Milestone #3 | JV5: Milestone #4 | NG5: Milestone #5 | QR5: Milestone #6 | UC5: Milestone #7 | XN5: Milestone #8 | AAY5: Milestone #9 | AEJ5: Milestone #10 | AHU5: Milestone #11 | ALF5: Milestone #12 | AOQ5: Milestone #13
A6: Unique Identifier | B6: RHP_TPI | C6: DY Indicator | D6: Category(1 or 2) Indicator | E6: RHP | F6: TPI | G6: Provider Name | H6: Project ID | I6: Project Area | J6: Project Area Title | K6: Project Area Option # | L6: Project Area Option Title | M6: # of Milestones in DY2 | N6: Project DSRIP Allocation in DY2 | O6: Milestone # | P6: Milestone Desc | Q6: Milestone Provider Manual Desc (If needed) | R6: Number of Metrics Milestone #1 | S6: Metric #1 (DY2) | T6: Metric #1 Description (DY2) | U6: Metric #1 Provider Manual Desc (if needed) (DY2) | V6: Metric #1 Baseline/Goal (DY2) | W6: Metric #1 Type (DY2) | X6: Metric #1 Numeric Goal (if needed) (DY2) | Y6: Metric #1 Numerator (DY2) | Z6: Metric #1 Denominator (DY2) | AA6: Metric #1 Medicaid/Indigent Required (Yes/No) (DY2) | AB6: Metric #1 QPI? (Yes/No) (DY2) | AC6: Metric #1 Data Source (DY2) | AD6: Metric #1 Data Source Provider Manual Desc (if needed) (DY2) | AE6: Metric #2 (DY2) | AF6: Metric #2 Description (DY2) | AG6: Metric #2 Provider Manual Desc (if needed) (DY2) | AH6: Metric #2 Baseline/Goal (DY2) | AI6: Metric #2 Type (DY2) | AJ6: Metric #2 Numeric Goal (if needed) (DY2) | AK6: Metric #2 Numerator (DY2) | AL6: Metric #2 Denominator (DY2) | AM6: Metric #2 Medicaid/Indigent Required (Yes/No) (DY2) | AN6: Metric #2 QPI? (Yes/No) (DY2) | AO6: Metric #2 Data Source (DY2) | AP6: Metric #2 Data Source Provider Manual Desc (if needed) (DY2) | AQ6: Metric #3 (DY2) | AR6: Metric #3 Description (DY2) | AS6: Metric #3 Provider Manual Desc (if needed) (DY2) | AT6: Metric #3 Baseline/Goal (DY2) | AU6: Metric #3 Type (DY2) | AV6: Metric #3 Numeric Goal (if needed) (DY2) | AW6: Metric #3 Numerator (DY2) | AX6: Metric #3 Denominator (DY2) | AY6: Metric #3 Medicaid/Indigent Required (Yes/No) (DY2) | AZ6: Metric #3 QPI? (Yes/No) (DY2) | BA6: Metric #3 Data Source (DY2) | BB6: Metric #3 Data Source Provider Manual Desc (if needed) (DY2) | BC6: Metric #4 (DY2) | BD6: Metric #4 Description (DY2) | BE6: Metric #4 Provider Manual Desc (if needed) (DY2) | BF6: Metric #4 Baseline/Goal (DY2) | BG6: Metric #4 Type (DY2) | BH6: Metric #4 Numeric Goal (if needed) (DY2) | BI6: Metric #4 Numerator (DY2) | BJ6: Metric #4 Denominator (DY2) | BK6: Metric #4 Medicaid/Indigent Required (Yes/No) (DY2) | BL6: Metric #4 QPI? (Yes/No) (DY2) | BM6: Metric #4 Data Source (DY2) | BN6: Metric #4 Data Source Provider Manual Desc (if needed) (DY2) | BO6: Metric #5 (DY2) | BP6: Metric #5 Description (DY2) | BQ6: Metric #5 Provider Manual Desc (if needed) (DY2) | BR6: Metric #5 Baseline/Goal (DY2) | BS6: Metric #5 Type (DY2) | BT6: Metric #5 Numeric Goal (if needed) (DY2) | BU6: Metric #5 Numerator (DY2) | BV6: Metric #5 Denominator (DY2) | BW6: Metric #5 Medicaid/Indigent Required (Yes/No) (DY2) | BX6: Metric #5 QPI? (Yes/No) (DY2) | BY6: Metric #5 Data Source (DY2) | BZ6: Metric #5 Data Source Provider Manual Desc (if needed) (DY2) | CA6: Metric #6 (DY2) | CB6: Metric #6 Description (DY2) | CC6: Metric #6 Provider Manual Desc (if needed) (DY2) | CD6: Metric #6 Baseline/Goal (DY2) | CE6: Metric #6 Type (DY2) | CF6: Metric #6 Numeric Goal (if needed) (DY2) | CG6: Metric #6 Numerator (DY2) | CH6: Metric #6 Denominator (DY2) | CI6: Metric #6 Medicaid/Indigent Required (Yes/No) (DY2) | CJ6: Metric #6 QPI? (Yes/No) (DY2) | CK6: Metric #6 Data Source (DY2) | CL6: Metric #6 Data Source Provider Manual Desc (if needed) (DY2) | CM6: Metric #7 (DY2) | CN6: Metric #7 Description (DY2) | CO6: Metric #7 Provider Manual Desc (if needed) (DY2) | CP6: Metric #7 Baseline/Goal (DY2) | CQ6: Metric #7 Type (DY2) | CR6: Metric #7 Numeric Goal (if needed) (DY2) | CS6: Metric #7 Numerator (DY2) | CT6: Metric #7 Denominator (DY2) | CU6: Metric #7 Medicaid/Indigent Required (Yes/No) (DY2) | CV6: Metric #7 QPI? (Yes/No) (DY2) | CW6: Metric #7 Data Source (DY2) | CX6: Metric #7 Data Source Provider Manual Desc (if needed) (DY2) | CY6: Milestone #1 DSRIP (DY2) | CZ6: Milestone # | DA6: Milestone Desc | DB6: Milestone Provider Manual Desc (If needed) | DC6: Number of Metrics Milestone #2 | DD6: Metric #1 (DY2) | DE6: Metric #1 Description (DY2) | DF6: Metric #1 Provider Manual Desc (if needed) (DY2) | DG6: Metric #1 Baseline/Goal (DY2) | DH6: Metric #1 Type (DY2) | DI6: Metric #1 Numeric Goal (if needed) (DY2) | DJ6: Metric #1 Numerator (DY2) | DK6: Metric #1 Denominator (DY2) | DL6: Metric #1 Medicaid/Indigent Required (Yes/No) (DY2) | DM6: Metric #1 QPI? (Yes/No) (DY2) | DN6: Metric #1 Data Source (DY2) | DO6: Metric #1 Data Source Provider Manual Desc (if needed) (DY2) | DP6: Metric #2 (DY2) | DQ6: Metric #2 Description (DY2) | DR6: Metric #2 Provider Manual Desc (if needed) (DY2) | DS6: Metric #2 Baseline/Goal (DY2) | DT6: Metric #2 Type (DY2) | DU6: Metric #2 Numeric Goal (if needed) (DY2) | DV6: Metric #2 Numerator (DY2) | DW6: Metric #2 Denominator (DY2) | DX6: Metric #2 Medicaid/Indigent Required (Yes/No) (DY2) | DY6: Metric #2 QPI? (Yes/No) (DY2) | DZ6: Metric #2 Data Source (DY2) | EA6: Metric #2 Data Source Provider Manual Desc (if needed) (DY2) | EB6: Metric #3 (DY2) | EC6: Metric #3 Description (DY2) | ED6: Metric #3 Provider Manual Desc (if needed) (DY2) | EE6: Metric #3 Baseline/Goal (DY2) | EF6: Metric #3 Type (DY2) | EG6: Metric #3 Numeric Goal (if needed) (DY2) | EH6: Metric #3 Numerator (DY2) | EI6: Metric #3 Denominator (DY2) | EJ6: Metric #3 Medicaid/Indigent Required (Yes/No) (DY2) | EK6: Metric #3 QPI? (Yes/No) (DY2) | EL6: Metric #3 Data Source (DY2) | EM6: Metric #3 Data Source Provider Manual Desc (if needed) (DY2) | EN6: Metric #4 (DY2) | EO6: Metric #4 Description (DY2) | EP6: Metric #4 Provider Manual Desc (if needed) (DY2) | EQ6: Metric #4 Baseline/Goal (DY2) | ER6: Metric #4 Type (DY2) | ES6: Metric #4 Numeric Goal (if needed) (DY2) | ET6: Metric #4 Numerator (DY2) | EU6: Metric #4 Denominator (DY2) | EV6: Metric #4 Medicaid/Indigent Required (Yes/No) (DY2) | EW6: Metric #4 QPI? (Yes/No) (DY2) | EX6: Metric #4 Data Source (DY2) | EY6: Metric #4 Data Source Provider Manual Desc (if needed) (DY2) | EZ6: Metric #5 (DY2) | FA6: Metric #5 Description (DY2) | FB6: Metric #5 Provider Manual Desc (if needed) (DY2) | FC6: Metric #5 Baseline/Goal (DY2) | FD6: Metric #5 Type (DY2) | FE6: Metric #5 Numeric Goal (if needed) (DY2) | FF6: Metric #5 Numerator (DY2) | FG6: Metric #5 Denominator (DY2) | FH6: Metric #5 Medicaid/Indigent Required (Yes/No) (DY2) | FI6: Metric #5 QPI? (Yes/No) (DY2) | FJ6: Metric #5 Data Source (DY2) | FK6: Metric #5 Data Source Provider Manual Desc (if needed) (DY2) | FL6: Metric #6 (DY2) | FM6: Metric #6 Description (DY2) | FN6: Metric #6 Provider Manual Desc (if needed) (DY2) | FO6: Metric #6 Baseline/Goal (DY2) | FP6: Metric #6 Type (DY2) | FQ6: Metric #6 Numeric Goal (if needed) (DY2) | FR6: Metric #6 Numerator (DY2) | FS6: Metric #6 Denominator (DY2) | FT6: Metric #6 Medicaid/Indigent Required (Yes/No) (DY2) | FU6: Metric #6 QPI? (Yes/No) (DY2) | FV6: Metric #6 Data Source (DY2) | FW6: Metric #6 Data Source Provider Manual Desc (if needed) (DY2) | FX6: Metric #7 (DY2) | FY6: Metric #7 Description (DY2) | FZ6: Metric #7 Provider Manual Desc (if needed) (DY2) | GA6: Metric #7 Baseline/Goal (DY2) | GB6: Metric #7 Type (DY2) | GC6: Metric #7 Numeric Goal (if needed) (DY2) | GD6: Metric #7 Numerator (DY2) | GE6: Metric #7 Denominator (DY2) | GF6: Metric #7 Medicaid/Indigent Required (Yes/No) (DY2) | GG6: Metric #7 QPI? (Yes/No) (DY2) | GH6: Metric #7 Data Source (DY2) | GI6: Metric #7 Data Source Provider Manual Desc (if needed) (DY2) | GJ6: Milestone #2 DSRIP (DY2) | GK6: Milestone # | GL6: Milestone Desc | GM6: Milestone Provider Manual Desc (If needed) | GN6: Number of Metrics Milestone #3 | GO6: Metric #1 (DY2) | GP6: Metric #1 Description (DY2) | GQ6: Metric #1 Provider Manual Desc (if needed) (DY2) | GR6: Metric #1 Baseline/Goal (DY2) | GS6: Metric #1 Type (DY2) | GT6: Metric #1 Numeric Goal (if needed) (DY2) | GU6: Metric #1 Numerator (DY2) | GV6: Metric #1 Denominator (DY2) | GW6: Metric #1 Medicaid/Indigent Required (Yes/No) (DY2) | GX6: Metric #1 QPI? (Yes/No) (DY2) | GY6: Metric #1 Data Source (DY2) | GZ6: Metric #1 Data Source Provider Manual Desc (if needed) (DY2) | HA6: Metric #2 (DY2) | HB6: Metric #2 Description (DY2) | HC6: Metric #2 Provider Manual Desc (if needed) (DY2) | HD6: Metric #2 Baseline/Goal (DY2) | HE6: Metric #2 Type (DY2) | HF6: Metric #2 Numeric Goal (if needed) (DY2) | HG6: Metric #2 Numerator (DY2) | HH6: Metric #2 Denominator (DY2) | HI6: Metric #2 Medicaid/Indigent Required (Yes/No) (DY2) | HJ6: Metric #2 QPI? (Yes/No) (DY2) | HK6: Metric #2 Data Source (DY2) | HL6: Metric #2 Data Source Provider Manual Desc (if needed) (DY2) | HM6: Metric #3 (DY2) | HN6: Metric #3 Description (DY2) | HO6: Metric #3 Provider Manual Desc (if needed) (DY2) | HP6: Metric #3 Baseline/Goal (DY2) | HQ6: Metric #3 Type (DY2) | HR6: Metric #3 Numeric Goal (if needed) (DY2) | HS6: Metric #3 Numerator (DY2) | HT6: Metric #3 Denominator (DY2) | HU6: Metric #3 Medicaid/Indigent Required (Yes/No) (DY2) | HV6: Metric #3 QPI? (Yes/No) (DY2) | HW6: Metric #3 Data Source (DY2) | HX6: Metric #3 Data Source Provider Manual Desc (if needed) (DY2) | HY6: Metric #4 (DY2) | HZ6: Metric #4 Description (DY2) | IA6: Metric #4 Provider Manual Desc (if needed) (DY2) | IB6: Metric #4 Baseline/Goal (DY2) | IC6: Metric #4 Type (DY2) | ID6: Metric #4 Numeric Goal (if needed) (DY2) | IE6: Metric #4 Numerator (DY2) | IF6: Metric #4 Denominator (DY2) | IG6: Metric #4 Medicaid/Indigent Required (Yes/No) (DY2) | IH6: Metric #4 QPI? (Yes/No) (DY2) | II6: Metric #4 Data Source (DY2) | IJ6: Metric #4 Data Source Provider Manual Desc (if needed) (DY2) | IK6: Metric #5 (DY2) | IL6: Metric #5 Description (DY2) | IM6: Metric #5 Provider Manual Desc (if needed) (DY2) | IN6: Metric #5 Baseline/Goal (DY2) | IO6: Metric #5 Type (DY2) | IP6: Metric #5 Numeric Goal (if needed) (DY2) | IQ6: Metric #5 Numerator (DY2) | IR6: Metric #5 Denominator (DY2) | IS6: Metric #5 Medicaid/Indigent Required (Yes/No) (DY2) | IT6: Metric #5 QPI? (Yes/No) (DY2) | IU6: Metric #5 Data Source (DY2) | IV6: Metric #5 Data Source Provider Manual Desc (if needed) (DY2) | IW6: Metric #6 (DY2) | IX6: Metric #6 Description (DY2) | IY6: Metric #6 Provider Manual Desc (if needed) (DY2) | IZ6: Metric #6 Baseline/Goal (DY2) | JA6: Metric #6 Type (DY2) | JB6: Metric #6 Numeric Goal (if needed) (DY2) | JC6: Metric #6 Numerator (DY2) | JD6: Metric #6 Denominator (DY2) | JE6: Metric #6 Medicaid/Indigent Required (Yes/No) (DY2) | JF6: Metric #6 QPI? (Yes/No) (DY2) | JG6: Metric #6 Data Source (DY2) | JH6: Metric #6 Data Source Provider Manual Desc (if needed) (DY2) | JI6: Metric #7 (DY2) | JJ6: Metric #7 Description (DY2) | JK6: Metric #7 Provider Manual Desc (if needed) (DY2) | JL6: Metric #7 Baseline/Goal (DY2) | JM6: Metric #7 Type (DY2) | JN6: Metric #7 Numeric Goal (if needed) (DY2) | JO6: Metric #7 Numerator (DY2) | JP6: Metric #7 Denominator (DY2) | JQ6: Metric #7 Medicaid/Indigent Required (Yes/No) (DY2) | JR6: Metric #7 QPI? (Yes/No) (DY2) | JS6: Metric #7 Data Source (DY2) | JT6: Metric #7 Data Source Provider Manual Desc (if needed) (DY2) | JU6: Milestone #3 DSRIP (DY2) | JV6: Milestone # | JW6: Milestone Desc | JX6: Milestone Provider Manual Desc (If needed) | JY6: Number of Metrics Milestone #4 | JZ6: Metric #1 (DY2) | KA6: Metric #1 Description (DY2) | KB6: Metric #1 Provider Manual Desc (if needed) (DY2) | KC6: Metric #1 Baseline/Goal (DY2) | KD6: Metric #1 Type (DY2) | KE6: Metric #1 Numeric Goal (if needed) (DY2) | KF6: Metric #1 Numerator (DY2) | KG6: Metric #1 Denominator (DY2) | KH6: Metric #1 Medicaid/Indigent Required (Yes/No) (DY2) | KI6: Metric #1 QPI? (Yes/No) (DY2) | KJ6: Metric #1 Data Source (DY2) | KK6: Metric #1 Data Source Provider Manual Desc (if needed) (DY2) | KL6: Metric #2 (DY2) | KM6: Metric #2 Description (DY2) | KN6: Metric #2 Provider Manual Desc (if needed) (DY2) | KO6: Metric #2 Baseline/Goal (DY2) | KP6: Metric #2 Type (DY2) | KQ6: Metric #2 Numeric Goal (if needed) (DY2) | KR6: Metric #2 Numerator (DY2) | KS6: Metric #2 Denominator (DY2) | KT6: Metric #2 Medicaid/Indigent Required (Yes/No) (DY2) | KU6: Metric #2 QPI? (Yes/No) (DY2) | KV6: Metric #2 Data Source (DY2) | KW6: Metric #2 Data Source Provider Manual Desc (if needed) (DY2) | KX6: Metric #3 (DY2) | KY6: Metric #3 Description (DY2) | KZ6: Metric #3 Provider Manual Desc (if needed) (DY2) | LA6: Metric #3 Baseline/Goal (DY2) | LB6: Metric #3 Type (DY2) | LC6: Metric #3 Numeric Goal (if needed) (DY2) | LD6: Metric #3 Numerator (DY2) | LE6: Metric #3 Denominator (DY2) | LF6: Metric #3 Medicaid/Indigent Required (Yes/No) (DY2) | LG6: Metric #3 QPI? (Yes/No) (DY2) | LH6: Metric #3 Data Source (DY2) | LI6: Metric #3 Data Source Provider Manual Desc (if needed) (DY2) | LJ6: Metric #4 (DY2) | LK6: Metric #4 Description (DY2) | LL6: Metric #4 Provider Manual Desc (if needed) (DY2) | LM6: Metric #4 Baseline/Goal (DY2) | LN6: Metric #4 Type (DY2) | LO6: Metric #4 Numeric Goal (if needed) (DY2) | LP6: Metric #4 Numerator (DY2) | LQ6: Metric #4 Denominator (DY2) | LR6: Metric #4 Medicaid/Indigent Required (Yes/No) (DY2) | LS6: Metric #4 QPI? (Yes/No) (DY2) | LT6: Metric #4 Data Source (DY2) | LU6: Metric #4 Data Source Provider Manual Desc (if needed) (DY2) | LV6: Metric #5 (DY2) | LW6: Metric #5 Description (DY2) | LX6: Metric #5 Provider Manual Desc (if needed) (DY2) | LY6: Metric #5 Baseline/Goal (DY2) | LZ6: Metric #5 Type (DY2) | MA6: Metric #5 Numeric Goal (if needed) (DY2) | MB6: Metric #5 Numerator (DY2) | MC6: Metric #5 Denominator (DY2) | MD6: Metric #5 Medicaid/Indigent Required (Yes/No) (DY2) | ME6: Metric #5 QPI? (Yes/No) (DY2) | MF6: Metric #5 Data Source (DY2) | MG6: Metric #5 Data Source Provider Manual Desc (if needed) (DY2) | MH6: Metric #6 (DY2) | MI6: Metric #6 Description (DY2) | MJ6: Metric #6 Provider Manual Desc (if needed) (DY2) | MK6: Metric #6 Baseline/Goal (DY2) | ML6: Metric #6 Type (DY2) | MM6: Metric #6 Numeric Goal (if needed) (DY2) | MN6: Metric #6 Numerator (DY2) | MO6: Metric #6 Denominator (DY2) | MP6: Metric #6 Medicaid/Indigent Required (Yes/No) (DY2) | MQ6: Metric #6 QPI? (Yes/No) (DY2) | MR6: Metric #6 Data Source (DY2) | MS6: Metric #6 Data Source Provider Manual Desc (if needed) (DY2) | MT6: Metric #7 (DY2) | MU6: Metric #7 Description (DY2) | MV6: Metric #7 Provider Manual Desc (if needed) (DY2) | MW6: Metric #7 Baseline/Goal (DY2) | MX6: Metric #7 Type (DY2) | MY6: Metric #7 Numeric Goal (if needed) (DY2) | MZ6: Metric #7 Numerator (DY2) | NA6: Metric #7 Denominator (DY2) | NB6: Metric #7 Medicaid/Indigent Required (Yes/No) (DY2) | NC6: Metric #7 QPI? (Yes/No) (DY2) | ND6: Metric #7 Data Source (DY2) | NE6: Metric #7 Data Source Provider Manual Desc (if needed) (DY2) | NF6: Milestone #4 DSRIP (DY2) | NG6: Milestone # | NH6: Milestone Desc | NI6: Milestone Provider Manual Desc (If needed) | NJ6: Number of Metrics Milestone #5 | NK6: Metric #1 (DY2) | NL6: Metric #1 Description (DY2) | NM6: Metric #1 Provider Manual Desc (if needed) (DY2) | NN6: Metric #1 Baseline/Goal (DY2) | NO6: Metric #1 Type (DY2) | NP6: Metric #1 Numeric Goal (if needed) (DY2) | NQ6: Metric #1 Numerator (DY2) | NR6: Metric #1 Denominator (DY2) | NS6: Metric #1 Medicaid/Indigent Required (Yes/No) (DY2) | NT6: Metric #1 QPI? (Yes/No) (DY2) | NU6: Metric #1 Data Source (DY2) | NV6: Metric #1 Data Source Provider Manual Desc (if needed) (DY2) | NW6: Metric #2 (DY2) | NX6: Metric #2 Description (DY2) | NY6: Metric #2 Provider Manual Desc (if needed) (DY2) | NZ6: Metric #2 Baseline/Goal (DY2) | OA6: Metric #2 Type (DY2) | OB6: Metric #2 Numeric Goal (if needed) (DY2) | OC6: Metric #2 Numerator (DY2) | OD6: Metric #2 Denominator (DY2) | OE6: Metric #2 Medicaid/Indigent Required (Yes/No) (DY2) | OF6: Metric #2 QPI? (Yes/No) (DY2) | OG6: Metric #2 Data Source (DY2) | OH6: Metric #2 Data Source Provider Manual Desc (if needed) (DY2) | OI6: Metric #3 (DY2) | OJ6: Metric #3 Description (DY2) | OK6: Metric #3 Provider Manual Desc (if needed) (DY2) | OL6: Metric #3 Baseline/Goal (DY2) | OM6: Metric #3 Type (DY2) | ON6: Metric #3 Numeric Goal (if needed) (DY2) | OO6: Metric #3 Numerator (DY2) | OP6: Metric #3 Denominator (DY2) | OQ6: Metric #3 Medicaid/Indigent Required (Yes/No) (DY2) | OR6: Metric #3 QPI? (Yes/No) (DY2) | OS6: Metric #3 Data Source (DY2) | OT6: Metric #3 Data Source Provider Manual Desc (if needed) (DY2) | OU6: Metric #4 (DY2) | OV6: Metric #4 Description (DY2) | OW6: Metric #4 Provider Manual Desc (if needed) (DY2) | OX6: Metric #4 Baseline/Goal (DY2) | OY6: Metric #4 Type (DY2) | OZ6: Metric #4 Numeric Goal (if needed) (DY2) | PA6: Metric #4 Numerator (DY2) | PB6: Metric #4 Denominator (DY2) | PC6: Metric #4 Medicaid/Indigent Required (Yes/No) (DY2) | PD6: Metric #4 QPI? (Yes/No) (DY2) | PE6: Metric #4 Data Source (DY2) | PF6: Metric #4 Data Source Provider Manual Desc (if needed) (DY2) | PG6: Metric #5 (DY2) | PH6: Metric #5 Description (DY2) | PI6: Metric #5 Provider Manual Desc (if needed) (DY2) | PJ6: Metric #5 Baseline/Goal (DY2) | PK6: Metric #5 Type (DY2) | PL6: Metric #5 Numeric Goal (if needed) (DY2) | PM6: Metric #5 Numerator (DY2) | PN6: Metric #5 Denominator (DY2) | PO6: Metric #5 Medicaid/Indigent Required (Yes/No) (DY2) | PP6: Metric #5 QPI? (Yes/No) (DY2) | PQ6: Metric #5 Data Source (DY2) | PR6: Metric #5 Data Source Provider Manual Desc (if needed) (DY2) | PS6: Metric #6 (DY2) | PT6: Metric #6 Description (DY2) | PU6: Metric #6 Provider Manual Desc (if needed) (DY2) | PV6: Metric #6 Baseline/Goal (DY2) | PW6: Metric #6 Type (DY2) | PX6: Metric #6 Numeric Goal (if needed) (DY2) | PY6: Metric #6 Numerator (DY2) | PZ6: Metric #6 Denominator (DY2) | QA6: Metric #6 Medicaid/Indigent Required (Yes/No) (DY2) | QB6: Metric #6 QPI? (Yes/No) (DY2) | QC6: Metric #6 Data Source (DY2) | QD6: Metric #6 Data Source Provider Manual Desc (if needed) (DY2) | QE6: Metric #7 (DY2) | QF6: Metric #7 Description (DY2) | QG6: Metric #7 Provider Manual Desc (if needed) (DY2) | QH6: Metric #7 Baseline/Goal (DY2) | QI6: Metric #7 Type (DY2) | QJ6: Metric #7 Numeric Goal (if needed) (DY2) | QK6: Metric #7 Numerator (DY2) | QL6: Metric #7 Denominator (DY2) | QM6: Metric #7 Medicaid/Indigent Required (Yes/No) (DY2) | QN6: Metric #7 QPI? (Yes/No) (DY2) | QO6: Metric #7 Data Source (DY2) | QP6: Metric #7 Data Source Provider Manual Desc (if needed) (DY2) | QQ6: Milestone #5 DSRIP (DY2) | QR6: Milestone # | QS6: Milestone Desc | QT6: Milestone Provider Manual Desc (If needed) | QU6: Number of Metrics Milestone #6 | QV6: Metric #1 (DY2) | QW6: Metric #1 Description (DY2) | QX6: Metric #1 Provider Manual Desc (if needed) (DY2) | QY6: Metric #1 Baseline/Goal (DY2) | QZ6: Metric #1 Type (DY2) | RA6: Metric #1 Numeric Goal (if needed) (DY2) | RB6: Metric #1 Numerator (DY2) | RC6: Metric #1 Denominator (DY2) | RD6: Metric #1 Medicaid/Indigent Required (Yes/No) (DY2) | RE6: Metric #1 QPI? (Yes/No) (DY2) | RF6: Metric #1 Data Source (DY2) | RG6: Metric #1 Data Source Provider Manual Desc (if needed) (DY2) | RH6: Metric #2 (DY2) | RI6: Metric #2 Description (DY2) | RJ6: Metric #2 Provider Manual Desc (if needed) (DY2) | RK6: Metric #2 Baseline/Goal (DY2) | RL6: Metric #2 Type (DY2) | RM6: Metric #2 Numeric Goal (if needed) (DY2) | RN6: Metric #2 Numerator (DY2) | RO6: Metric #2 Denominator (DY2) | RP6: Metric #2 Medicaid/Indigent Required (Yes/No) (DY2) | RQ6: Metric #2 QPI? (Yes/No) (DY2) | RR6: Metric #2 Data Source (DY2) | RS6: Metric #2 Data Source Provider Manual Desc (if needed) (DY2) | RT6: Metric #3 (DY2) | RU6: Metric #3 Description (DY2) | RV6: Metric #3 Provider Manual Desc (if needed) (DY2) | RW6: Metric #3 Baseline/Goal (DY2) | RX6: Metric #3 Type (DY2) | RY6: Metric #3 Numeric Goal (if needed) (DY2) | RZ6: Metric #3 Numerator (DY2) | SA6: Metric #3 Denominator (DY2) | SB6: Metric #3 Medicaid/Indigent Required (Yes/No) (DY2) | SC6: Metric #3 QPI? (Yes/No) (DY2) | SD6: Metric #3 Data Source (DY2) | SE6: Metric #3 Data Source Provider Manual Desc (if needed) (DY2) | SF6: Metric #4 (DY2) | SG6: Metric #4 Description (DY2) | SH6: Metric #4 Provider Manual Desc (if needed) (DY2) | SI6: Metric #4 Baseline/Goal (DY2) | SJ6: Metric #4 Type (DY2) | SK6: Metric #4 Numeric Goal (if needed) (DY2) | SL6: Metric #4 Numerator (DY2) | SM6: Metric #4 Denominator (DY2) | SN6: Metric #4 Medicaid/Indigent Required (Yes/No) (DY2) | SO6: Metric #4 QPI? (Yes/No) (DY2) | SP6: Metric #4 Data Source (DY2) | SQ6: Metric #4 Data Source Provider Manual Desc (if needed) (DY2) | SR6: Metric #5 (DY2) | SS6: Metric #5 Description (DY2) | ST6: Metric #5 Provider Manual Desc (if needed) (DY2) | SU6: Metric #5 Baseline/Goal (DY2) | SV6: Metric #5 Type (DY2) | SW6: Metric #5 Numeric Goal (if needed) (DY2) | SX6: Metric #5 Numerator (DY2) | SY6: Metric #5 Denominator (DY2) | SZ6: Metric #5 Medicaid/Indigent Required (Yes/No) (DY2) | TA6: Metric #5 QPI? (Yes/No) (DY2) | TB6: Metric #5 Data Source (DY2) | TC6: Metric #5 Data Source Provider Manual Desc (if needed) (DY2) | TD6: Metric #6 (DY2) | TE6: Metric #6 Description (DY2) | TF6: Metric #6 Provider Manual Desc (if needed) (DY2) | TG6: Metric #6 Baseline/Goal (DY2) | TH6: Metric #6 Type (DY2) | TI6: Metric #6 Numeric Goal (if needed) (DY2) | TJ6: Metric #6 Numerator (DY2) | TK6: Metric #6 Denominator (DY2) | TL6: Metric #6 Medicaid/Indigent Required (Yes/No) (DY2) | TM6: Metric #6 QPI? (Yes/No) (DY2) | TN6: Metric #6 Data Source (DY2) | TO6: Metric #6 Data Source Provider Manual Desc (if needed) (DY2) | TP6: Metric #7 (DY2) | TQ6: Metric #7 Description (DY2) | TR6: Metric #7 Provider Manual Desc (if needed) (DY2) | TS6: Metric #7 Baseline/Goal (DY2) | TT6: Metric #7 Type (DY2) | TU6: Metric #7 Numeric Goal (if needed) (DY2) | TV6: Metric #7 Numerator (DY2) | TW6: Metric #7 Denominator (DY2) | TX6: Metric #7 Medicaid/Indigent Required (Yes/No) (DY2) | TY6: Metric #7 QPI? (Yes/No) (DY2) | TZ6: Metric #7 Data Source (DY2) | UA6: Metric #7 Data Source Provider Manual Desc (if needed) (DY2) | UB6: Milestone #6 DSRIP (DY2) | UC6: Milestone # | UD6: Milestone Desc | UE6: Milestone Provider Manual Desc (If needed) | UF6: Number of Metrics Milestone #7 | UG6: Metric #1 (DY2) | UH6: Metric #1 Description (DY2) | UI6: Metric #1 Provider Manual Desc (if needed) (DY2) | UJ6: Metric #1 Baseline/Goal (DY2) | UK6: Metric #1 Type (DY2) | UL6: Metric #1 Numeric Goal (if needed) (DY2) | UM6: Metric #1 Numerator (DY2) | UN6: Metric #1 Denominator (DY2) | UO6: Metric #1 Medicaid/Indigent Required (Yes/No) (DY2) | UP6: Metric #1 QPI? (Yes/No) (DY2) | UQ6: Metric #1 Data Source (DY2) | UR6: Metric #1 Data Source Provider Manual Desc (if needed) (DY2) | US6: Metric #2 (DY2) | UT6: Metric #2 Description (DY2) | UU6: Metric #2 Provider Manual Desc (if needed) (DY2) | UV6: Metric #2 Baseline/Goal (DY2) | UW6: Metric #2 Type (DY2) | UX6: Metric #2 Numeric Goal (if needed) (DY2) | UY6: Metric #2 Numerator (DY2) | UZ6: Metric #2 Denominator (DY2) | VA6: Metric #2 Medicaid/Indigent Required (Yes/No) (DY2) | VB6: Metric #2 QPI? (Yes/No) (DY2) | VC6: Metric #2 Data Source (DY2) | VD6: Metric #2 Data Source Provider Manual Desc (if needed) (DY2) | VE6: Metric #3 (DY2) | VF6: Metric #3 Description (DY2) | VG6: Metric #3 Provider Manual Desc (if needed) (DY2) | VH6: Metric #3 Baseline/Goal (DY2) | VI6: Metric #3 Type (DY2) | VJ6: Metric #3 Numeric Goal (if needed) (DY2) | VK6: Metric #3 Numerator (DY2) | VL6: Metric #3 Denominator (DY2) | VM6: Metric #3 Medicaid/Indigent Required (Yes/No) (DY2) | VN6: Metric #3 QPI? (Yes/No) (DY2) | VO6: Metric #3 Data Source (DY2) | VP6: Metric #3 Data Source Provider Manual Desc (if needed) (DY2) | VQ6: Metric #4 (DY2) | VR6: Metric #4 Description (DY2) | VS6: Metric #4 Provider Manual Desc (if needed) (DY2) | VT6: Metric #4 Baseline/Goal (DY2) | VU6: Metric #4 Type (DY2) | VV6: Metric #4 Numeric Goal (if needed) (DY2) | VW6: Metric #4 Numerator (DY2) | VX6: Metric #4 Denominator (DY2) | VY6: Metric #4 Medicaid/Indigent Required (Yes/No) (DY2) | VZ6: Metric #4 QPI? (Yes/No) (DY2) | WA6: Metric #4 Data Source (DY2) | WB6: Metric #4 Data Source Provider Manual Desc (if needed) (DY2) | WC6: Metric #5 (DY2) | WD6: Metric #5 Description (DY2) | WE6: Metric #5 Provider Manual Desc (if needed) (DY2) | WF6: Metric #5 Baseline/Goal (DY2) | WG6: Metric #5 Type (DY2) | WH6: Metric #5 Numeric Goal (if needed) (DY2) | WI6: Metric #5 Numerator (DY2) | WJ6: Metric #5 Denominator (DY2) | WK6: Metric #5 Medicaid/Indigent Required (Yes/No) (DY2) | WL6: Metric #5 QPI? (Yes/No) (DY2) | WM6: Metric #5 Data Source (DY2) | WN6: Metric #5 Data Source Provider Manual Desc (if needed) (DY2) | WO6: Metric #6 (DY2) | WP6: Metric #6 Description (DY2) | WQ6: Metric #6 Provider Manual Desc (if needed) (DY2) | WR6: Metric #6 Baseline/Goal (DY2) | WS6: Metric #6 Type (DY2) | WT6: Metric #6 Numeric Goal (if needed) (DY2) | WU6: Metric #6 Numerator (DY2) | WV6: Metric #6 Denominator (DY2) | WW6: Metric #6 Medicaid/Indigent Required (Yes/No) (DY2) | WX6: Metric #6 QPI? (Yes/No) (DY2) | WY6: Metric #6 Data Source (DY2) | WZ6: Metric #6 Data Source Provider Manual Desc (if needed) (DY2) | XA6: Metric #7 (DY2) | XB6: Metric #7 Description (DY2) | XC6: Metric #7 Provider Manual Desc (if needed) (DY2) | XD6: Metric #7 Baseline/Goal (DY2) | XE6: Metric #7 Type (DY2) | XF6: Metric #7 Numeric Goal (if needed) (DY2) | XG6: Metric #7 Numerator (DY2) | XH6: Metric #7 Denominator (DY2) | XI6: Metric #7 Medicaid/Indigent Required (Yes/No) (DY2) | XJ6: Metric #7 QPI? (Yes/No) (DY2) | XK6: Metric #7 Data Source (DY2) | XL6: Metric #7 Data Source Provider Manual Desc (if needed) (DY2) | XM6: Milestone #7 DSRIP (DY2) | XN6: Milestone # | XO6: Milestone Desc | XP6: Milestone Provider Manual Desc (If needed) | XQ6: Number of Metrics Milestone #8 | XR6: Metric #1 (DY2) | XS6: Metric #1 Description (DY2) | XT6: Metric #1 Provider Manual Desc (if needed) (DY2) | XU6: Metric #1 Baseline/Goal (DY2) | XV6: Metric #1 Type (DY2) | XW6: Metric #1 Numeric Goal (if needed) (DY2) | XX6: Metric #1 Numerator (DY2) | XY6: Metric #1 Denominator (DY2) | XZ6: Metric #1 Medicaid/Indigent Required (Yes/No) (DY2) | YA6: Metric #1 QPI? (Yes/No) (DY2) | YB6: Metric #1 Data Source (DY2) | YC6: Metric #1 Data Source Provider Manual Desc (if needed) (DY2) | YD6: Metric #2 (DY2) | YE6: Metric #2 Description (DY2) | YF6: Metric #2 Provider Manual Desc (if needed) (DY2) | YG6: Metric #2 Baseline/Goal (DY2) | YH6: Metric #2 Type (DY2) | YI6: Metric #2 Numeric Goal (if needed) (DY2) | YJ6: Metric #2 Numerator (DY2) | YK6: Metric #2 Denominator (DY2) | YL6: Metric #2 Medicaid/Indigent Required (Yes/No) (DY2) | YM6: Metric #2 QPI? (Yes/No) (DY2) | YN6: Metric #2 Data Source (DY2) | YO6: Metric #2 Data Source Provider Manual Desc (if needed) (DY2) | YP6: Metric #3 (DY2) | YQ6: Metric #3 Description (DY2) | YR6: Metric #3 Provider Manual Desc (if needed) (DY2) | YS6: Metric #3 Baseline/Goal (DY2) | YT6: Metric #3 Type (DY2) | YU6: Metric #3 Numeric Goal (if needed) (DY2) | YV6: Metric #3 Numerator (DY2) | YW6: Metric #3 Denominator (DY2) | YX6: Metric #3 Medicaid/Indigent Required (Yes/No) (DY2) | YY6: Metric #3 QPI? (Yes/No) (DY2) | YZ6: Metric #3 Data Source (DY2) | ZA6: Metric #3 Data Source Provider Manual Desc (if needed) (DY2) | ZB6: Metric #4 (DY2) | ZC6: Metric #4 Description (DY2) | ZD6: Metric #4 Provider Manual Desc (if needed) (DY2) | ZE6: Metric #4 Baseline/Goal (DY2) | ZF6: Metric #4 Type (DY2) | ZG6: Metric #4 Numeric Goal (if needed) (DY2) | ZH6: Metric #4 Numerator (DY2) | ZI6: Metric #4 Denominator (DY2) | ZJ6: Metric #4 Medicaid/Indigent Required (Yes/No) (DY2) | ZK6: Metric #4 QPI? (Yes/No) (DY2) | ZL6: Metric #4 Data Source (DY2) | ZM6: Metric #4 Data Source Provider Manual Desc (if needed) (DY2) | ZN6: Metric #5 (DY2) | ZO6: Metric #5 Description (DY2) | ZP6: Metric #5 Provider Manual Desc (if needed) (DY2) | ZQ6: Metric #5 Baseline/Goal (DY2) | ZR6: Metric #5 Type (DY2) | ZS6: Metric #5 Numeric Goal (if needed) (DY2) | ZT6: Metric #5 Numerator (DY2) | ZU6: Metric #5 Denominator (DY2) | ZV6: Metric #5 Medicaid/Indigent Required (Yes/No) (DY2) | ZW6: Metric #5 QPI? (Yes/No) (DY2) | ZX6: Metric #5 Data Source (DY2) | ZY6: Metric #5 Data Source Provider Manual Desc (if needed) (DY2) | ZZ6: Metric #6 (DY2) | AAA6: Metric #6 Description (DY2) | AAB6: Metric #6 Provider Manual Desc (if needed) (DY2) | AAC6: Metric #6 Baseline/Goal (DY2) | AAD6: Metric #6 Type (DY2) | AAE6: Metric #6 Numeric Goal (if needed) (DY2) | AAF6: Metric #6 Numerator (DY2) | AAG6: Metric #6 Denominator (DY2) | AAH6: Metric #6 Medicaid/Indigent Required (Yes/No) (DY2) | AAI6: Metric #6 QPI? (Yes/No) (DY2) | AAJ6: Metric #6 Data Source (DY2) | AAK6: Metric #6 Data Source Provider Manual Desc (if needed) (DY2) | AAL6: Metric #7 (DY2) | AAM6: Metric #7 Description (DY2) | AAN6: Metric #7 Provider Manual Desc (if needed) (DY2) | AAO6: Metric #7 Baseline/Goal (DY2) | AAP6: Metric #7 Type (DY2) | AAQ6: Metric #7 Numeric Goal (if needed) (DY2) | AAR6: Metric #7 Numerator (DY2) | AAS6: Metric #7 Denominator (DY2) | AAT6: Metric #7 Medicaid/Indigent Required (Yes/No) (DY2) | AAU6: Metric #7 QPI? (Yes/No) (DY2) | AAV6: Metric #7 Data Source (DY2) | AAW6: Metric #7 Data Source Provider Manual Desc (if needed) (DY2) | AAX6: Milestone #8 DSRIP (DY2) | AAY6: Milestone # | AAZ6: Milestone Desc | ABA6: Milestone Provider Manual Desc (If needed) | ABB6: Number of Metrics Milestone #9 | ABC6: Metric #1 (DY2) | ABD6: Metric #1 Description (DY2) | ABE6: Metric #1 Provider Manual Desc (if needed) (DY2) | ABF6: Metric #1 Baseline/Goal (DY2) | ABG6: Metric #1 Type (DY2) | ABH6: Metric #1 Numeric Goal (if needed) (DY2) | ABI6: Metric #1 Numerator (DY2) | ABJ6: Metric #1 Denominator (DY2) | ABK6: Metric #1 Medicaid/Indigent Required (Yes/No) (DY2) | ABL6: Metric #1 QPI? (Yes/No) (DY2) | ABM6: Metric #1 Data Source (DY2) | ABN6: Metric #1 Data Source Provider Manual Desc (if needed) (DY2) | ABO6: Metric #2 (DY2) | ABP6: Metric #2 Description (DY2) | ABQ6: Metric #2 Provider Manual Desc (if needed) (DY2) | ABR6: Metric #2 Baseline/Goal (DY2) | ABS6: Metric #2 Type (DY2) | ABT6: Metric #2 Numeric Goal (if needed) (DY2) | ABU6: Metric #2 Numerator (DY2) | ABV6: Metric #2 Denominator (DY2) | ABW6: Metric #2 Medicaid/Indigent Required (Yes/No) (DY2) | ABX6: Metric #2 QPI? (Yes/No) (DY2) | ABY6: Metric #2 Data Source (DY2) | ABZ6: Metric #2 Data Source Provider Manual Desc (if needed) (DY2) | ACA6: Metric #3 (DY2) | ACB6: Metric #3 Description (DY2) | ACC6: Metric #3 Provider Manual Desc (if needed) (DY2) | ACD6: Metric #3 Baseline/Goal (DY2) | ACE6: Metric #3 Type (DY2) | ACF6: Metric #3 Numeric Goal (if needed) (DY2) | ACG6: Metric #3 Numerator (DY2) | ACH6: Metric #3 Denominator (DY2) | ACI6: Metric #3 Medicaid/Indigent Required (Yes/No) (DY2) | ACJ6: Metric #3 QPI? (Yes/No) (DY2) | ACK6: Metric #3 Data Source (DY2) | ACL6: Metric #3 Data Source Provider Manual Desc (if needed) (DY2) | ACM6: Metric #4 (DY2) | ACN6: Metric #4 Description (DY2) | ACO6: Metric #4 Provider Manual Desc (if needed) (DY2) | ACP6: Metric #4 Baseline/Goal (DY2) | ACQ6: Metric #4 Type (DY2) | ACR6: Metric #4 Numeric Goal (if needed) (DY2) | ACS6: Metric #4 Numerator (DY2) | ACT6: Metric #4 Denominator (DY2) | ACU6: Metric #4 Medicaid/Indigent Required (Yes/No) (DY2) | ACV6: Metric #4 QPI? (Yes/No) (DY2) | ACW6: Metric #4 Data Source (DY2) | ACX6: Metric #4 Data Source Provider Manual Desc (if needed) (DY2) | ACY6: Metric #5 (DY2) | ACZ6: Metric #5 Description (DY2) | ADA6: Metric #5 Provider Manual Desc (if needed) (DY2) | ADB6: Metric #5 Baseline/Goal (DY2) | ADC6: Metric #5 Type (DY2) | ADD6: Metric #5 Numeric Goal (if needed) (DY2) | ADE6: Metric #5 Numerator (DY2) | ADF6: Metric #5 Denominator (DY2) | ADG6: Metric #5 Medicaid/Indigent Required (Yes/No) (DY2) | ADH6: Metric #5 QPI? (Yes/No) (DY2) | ADI6: Metric #5 Data Source (DY2) | ADJ6: Metric #5 Data Source Provider Manual Desc (if needed) (DY2) | ADK6: Metric #6 (DY2) | ADL6: Metric #6 Description (DY2) | ADM6: Metric #6 Provider Manual Desc (if needed) (DY2) | ADN6: Metric #6 Baseline/Goal (DY2) | ADO6: Metric #6 Type (DY2) | ADP6: Metric #6 Numeric Goal (if needed) (DY2) | ADQ6: Metric #6 Numerator (DY2) | ADR6: Metric #6 Denominator (DY2) | ADS6: Metric #6 Medicaid/Indigent Required (Yes/No) (DY2) | ADT6: Metric #6 QPI? (Yes/No) (DY2) | ADU6: Metric #6 Data Source (DY2) | ADV6: Metric #6 Data Source Provider Manual Desc (if needed) (DY2) | ADW6: Metric #7 (DY2) | ADX6: Metric #7 Description (DY2) | ADY6: Metric #7 Provider Manual Desc (if needed) (DY2) | ADZ6: Metric #7 Baseline/Goal (DY2) | AEA6: Metric #7 Type (DY2) | AEB6: Metric #7 Numeric Goal (if needed) (DY2) | AEC6: Metric #7 Numerator (DY2) | AED6: Metric #7 Denominator (DY2) | AEE6: Metric #7 Medicaid/Indigent Required (Yes/No) (DY2) | AEF6: Metric #7 QPI? (Yes/No) (DY2) | AEG6: Metric #7 Data Source (DY2) | AEH6: Metric #7 Data Source Provider Manual Desc (if needed) (DY2) | AEI6: Milestone #9 DSRIP (DY2) | AEJ6: Milestone # | AEK6: Milestone Desc | AEL6: Milestone Provider Manual Desc (If needed) | AEM6: Number of Metrics Milestone #10 | AEN6: Metric #1 (DY2) | AEO6: Metric #1 Description (DY2) | AEP6: Metric #1 Provider Manual Desc (if needed) (DY2) | AEQ6: Metric #1 Baseline/Goal (DY2) | AER6: Metric #1 Type (DY2) | AES6: Metric #1 Numeric Goal (if needed) (DY2) | AET6: Metric #1 Numerator (DY2) | AEU6: Metric #1 Denominator (DY2) | AEV6: Metric #1 Medicaid/Indigent Required (Yes/No) (DY2) | AEW6: Metric #1 QPI? (Yes/No) (DY2) | AEX6: Metric #1 Data Source (DY2) | AEY6: Metric #1 Data Source Provider Manual Desc (if needed) (DY2) | AEZ6: Metric #2 (DY2) | AFA6: Metric #2 Description (DY2) | AFB6: Metric #2 Provider Manual Desc (if needed) (DY2) | AFC6: Metric #2 Baseline/Goal (DY2) | AFD6: Metric #2 Type (DY2) | AFE6: Metric #2 Numeric Goal (if needed) (DY2) | AFF6: Metric #2 Numerator (DY2) | AFG6: Metric #2 Denominator (DY2) | AFH6: Metric #2 Medicaid/Indigent Required (Yes/No) (DY2) | AFI6: Metric #2 QPI? (Yes/No) (DY2) | AFJ6: Metric #2 Data Source (DY2) | AFK6: Metric #2 Data Source Provider Manual Desc (if needed) (DY2) | AFL6: Metric #3 (DY2) | AFM6: Metric #3 Description (DY2) | AFN6: Metric #3 Provider Manual Desc (if needed) (DY2) | AFO6: Metric #3 Baseline/Goal (DY2) | AFP6: Metric #3 Type (DY2) | AFQ6: Metric #3 Numeric Goal (if needed) (DY2) | AFR6: Metric #3 Numerator (DY2) | AFS6: Metric #3 Denominator (DY2) | AFT6: Metric #3 Medicaid/Indigent Required (Yes/No) (DY2) | AFU6: Metric #3 QPI? (Yes/No) (DY2) | AFV6: Metric #3 Data Source (DY2) | AFW6: Metric #3 Data Source Provider Manual Desc (if needed) (DY2) | AFX6: Metric #4 (DY2) | AFY6: Metric #4 Description (DY2) | AFZ6: Metric #4 Provider Manual Desc (if needed) (DY2) | AGA6: Metric #4 Baseline/Goal (DY2) | AGB6: Metric #4 Type (DY2) | AGC6: Metric #4 Numeric Goal (if needed) (DY2) | AGD6: Metric #4 Numerator (DY2) | AGE6: Metric #4 Denominator (DY2) | AGF6: Metric #4 Medicaid/Indigent Required (Yes/No) (DY2) | AGG6: Metric #4 QPI? (Yes/No) (DY2) | AGH6: Metric #4 Data Source (DY2) | AGI6: Metric #4 Data Source Provider Manual Desc (if needed) (DY2) | AGJ6: Metric #5 (DY2) | AGK6: Metric #5 Description (DY2) | AGL6: Metric #5 Provider Manual Desc (if needed) (DY2) | AGM6: Metric #5 Baseline/Goal (DY2) | AGN6: Metric #5 Type (DY2) | AGO6: Metric #5 Numeric Goal (if needed) (DY2) | AGP6: Metric #5 Numerator (DY2) | AGQ6: Metric #5 Denominator (DY2) | AGR6: Metric #5 Medicaid/Indigent Required (Yes/No) (DY2) | AGS6: Metric #5 QPI? (Yes/No) (DY2) | AGT6: Metric #5 Data Source (DY2) | AGU6: Metric #5 Data Source Provider Manual Desc (if needed) (DY2) | AGV6: Metric #6 (DY2) | AGW6: Metric #6 Description (DY2) | AGX6: Metric #6 Provider Manual Desc (if needed) (DY2) | AGY6: Metric #6 Baseline/Goal (DY2) | AGZ6: Metric #6 Type (DY2) | AHA6: Metric #6 Numeric Goal (if needed) (DY2) | AHB6: Metric #6 Numerator (DY2) | AHC6: Metric #6 Denominator (DY2) | AHD6: Metric #6 Medicaid/Indigent Required (Yes/No) (DY2) | AHE6: Metric #6 QPI? (Yes/No) (DY2) | AHF6: Metric #6 Data Source (DY2) | AHG6: Metric #6 Data Source Provider Manual Desc (if needed) (DY2) | AHH6: Metric #7 (DY2) | AHI6: Metric #7 Description (DY2) | AHJ6: Metric #7 Provider Manual Desc (if needed) (DY2) | AHK6: Metric #7 Baseline/Goal (DY2) | AHL6: Metric #7 Type (DY2) | AHM6: Metric #7 Numeric Goal (if needed) (DY2) | AHN6: Metric #7 Numerator (DY2) | AHO6: Metric #7 Denominator (DY2) | AHP6: Metric #7 Medicaid/Indigent Required (Yes/No) (DY2) | AHQ6: Metric #7 QPI? (Yes/No) (DY2) | AHR6: Metric #7 Data Source (DY2) | AHS6: Metric #7 Data Source Provider Manual Desc (if needed) (DY2) | AHT6: Milestone #10 DSRIP (DY2) | AHU6: Milestone # | AHV6: Milestone Desc | AHW6: Milestone Provider Manual Desc (If needed) | AHX6: Number of Metrics Milestone #11 | AHY6: Metric #1 (DY2) | AHZ6: Metric #1 Description (DY2) | AIA6: Metric #1 Provider Manual Desc (if needed) (DY2) | AIB6: Metric #1 Baseline/Goal (DY2) | AIC6: Metric #1 Type (DY2) | AID6: Metric #1 Numeric Goal (if needed) (DY2) | AIE6: Metric #1 Numerator (DY2) | AIF6: Metric #1 Denominator (DY2) | AIG6: Metric #1 Medicaid/Indigent Required (Yes/No) (DY2) | AIH6: Metric #1 QPI? (Yes/No) (DY2) | AII6: Metric #1 Data Source (DY2) | AIJ6: Metric #1 Data Source Provider Manual Desc (if needed) (DY2) | AIK6: Metric #2 (DY2) | AIL6: Metric #2 Description (DY2) | AIM6: Metric #2 Provider Manual Desc (if needed) (DY2) | AIN6: Metric #2 Baseline/Goal (DY2) | AIO6: Metric #2 Type (DY2) | AIP6: Metric #2 Numeric Goal (if needed) (DY2) | AIQ6: Metric #2 Numerator (DY2) | AIR6: Metric #2 Denominator (DY2) | AIS6: Metric #2 Medicaid/Indigent Required (Yes/No) (DY2) | AIT6: Metric #2 QPI? (Yes/No) (DY2) | AIU6: Metric #2 Data Source (DY2) | AIV6: Metric #2 Data Source Provider Manual Desc (if needed) (DY2) | AIW6: Metric #3 (DY2) | AIX6: Metric #3 Description (DY2) | AIY6: Metric #3 Provider Manual Desc (if needed) (DY2) | AIZ6: Metric #3 Baseline/Goal (DY2) | AJA6: Metric #3 Type (DY2) | AJB6: Metric #3 Numeric Goal (if needed) (DY2) | AJC6: Metric #3 Numerator (DY2) | AJD6: Metric #3 Denominator (DY2) | AJE6: Metric #3 Medicaid/Indigent Required (Yes/No) (DY2) | AJF6: Metric #3 QPI? (Yes/No) (DY2) | AJG6: Metric #3 Data Source (DY2) | AJH6: Metric #3 Data Source Provider Manual Desc (if needed) (DY2) | AJI6: Metric #4 (DY2) | AJJ6: Metric #4 Description (DY2) | AJK6: Metric #4 Provider Manual Desc (if needed) (DY2) | AJL6: Metric #4 Baseline/Goal (DY2) | AJM6: Metric #4 Type (DY2) | AJN6: Metric #4 Numeric Goal (if needed) (DY2) | AJO6: Metric #4 Numerator (DY2) | AJP6: Metric #4 Denominator (DY2) | AJQ6: Metric #4 Medicaid/Indigent Required (Yes/No) (DY2) | AJR6: Metric #4 QPI? (Yes/No) (DY2) | AJS6: Metric #4 Data Source (DY2) | AJT6: Metric #4 Data Source Provider Manual Desc (if needed) (DY2) | AJU6: Metric #5 (DY2) | AJV6: Metric #5 Description (DY2) | AJW6: Metric #5 Provider Manual Desc (if needed) (DY2) | AJX6: Metric #5 Baseline/Goal (DY2) | AJY6: Metric #5 Type (DY2) | AJZ6: Metric #5 Numeric Goal (if needed) (DY2) | AKA6: Metric #5 Numerator (DY2) | AKB6: Metric #5 Denominator (DY2) | AKC6: Metric #5 Medicaid/Indigent Required (Yes/No) (DY2) | AKD6: Metric #5 QPI? (Yes/No) (DY2) | AKE6: Metric #5 Data Source (DY2) | AKF6: Metric #5 Data Source Provider Manual Desc (if needed) (DY2) | AKG6: Metric #6 (DY2) | AKH6: Metric #6 Description (DY2) | AKI6: Metric #6 Provider Manual Desc (if needed) (DY2) | AKJ6: Metric #6 Baseline/Goal (DY2) | AKK6: Metric #6 Type (DY2) | AKL6: Metric #6 Numeric Goal (if needed) (DY2) | AKM6: Metric #6 Numerator (DY2) | AKN6: Metric #6 Denominator (DY2) | AKO6: Metric #6 Medicaid/Indigent Required (Yes/No) (DY2) | AKP6: Metric #6 QPI? (Yes/No) (DY2) | AKQ6: Metric #6 Data Source (DY2) | AKR6: Metric #6 Data Source Provider Manual Desc (if needed) (DY2) | AKS6: Metric #7 (DY2) | AKT6: Metric #7 Description (DY2) | AKU6: Metric #7 Provider Manual Desc (if needed) (DY2) | AKV6: Metric #7 Baseline/Goal (DY2) | AKW6: Metric #7 Type (DY2) | AKX6: Metric #7 Numeric Goal (if needed) (DY2) | AKY6: Metric #7 Numerator (DY2) | AKZ6: Metric #7 Denominator (DY2) | ALA6: Metric #7 Medicaid/Indigent Required (Yes/No) (DY2) | ALB6: Metric #7 QPI? (Yes/No) (DY2) | ALC6: Metric #7 Data Source (DY2) | ALD6: Metric #7 Data Source Provider Manual Desc (if needed) (DY2) | ALE6: Milestone #11 DSRIP (DY2) | ALF6: Milestone # | ALG6: Milestone Desc | ALH6: Milestone Provider Manual Desc (If needed) | ALI6: Number of Metrics Milestone #12 | ALJ6: Metric #1 (DY2) | ALK6: Metric #1 Description (DY2) | ALL6: Metric #1 Provider Manual Desc (if needed) (DY2) | ALM6: Metric #1 Baseline/Goal (DY2) | ALN6: Metric #1 Type (DY2) | ALO6: Metric #1 Numeric Goal (if needed) (DY2) | ALP6: Metric #1 Numerator (DY2) | ALQ6: Metric #1 Denominator (DY2) | ALR6: Metric #1 Medicaid/Indigent Required (Yes/No) (DY2) | ALS6: Metric #1 QPI? (Yes/No) (DY2) | ALT6: Metric #1 Data Source (DY2) | ALU6: Metric #1 Data Source Provider Manual Desc (if needed) (DY2) | ALV6: Metric #2 (DY2) | ALW6: Metric #2 Description (DY2) | ALX6: Metric #2 Provider Manual Desc (if needed) (DY2) | ALY6: Metric #2 Baseline/Goal (DY2) | ALZ6: Metric #2 Type (DY2) | AMA6: Metric #2 Numeric Goal (if needed) (DY2) | AMB6: Metric #2 Numerator (DY2) | AMC6: Metric #2 Denominator (DY2) | AMD6: Metric #2 Medicaid/Indigent Required (Yes/No) (DY2) | AME6: Metric #2 QPI? (Yes/No) (DY2) | AMF6: Metric #2 Data Source (DY2) | AMG6: Metric #2 Data Source Provider Manual Desc (if needed) (DY2) | AMH6: Metric #3 (DY2) | AMI6: Metric #3 Description (DY2) | AMJ6: Metric #3 Provider Manual Desc (if needed) (DY2) | AMK6: Metric #3 Baseline/Goal (DY2) | AML6: Metric #3 Type (DY2) | AMM6: Metric #3 Numeric Goal (if needed) (DY2) | AMN6: Metric #3 Numerator (DY2) | AMO6: Metric #3 Denominator (DY2) | AMP6: Metric #3 Medicaid/Indigent Required (Yes/No) (DY2) | AMQ6: Metric #3 QPI? (Yes/No) (DY2) | AMR6: Metric #3 Data Source (DY2) | AMS6: Metric #3 Data Source Provider Manual Desc (if needed) (DY2) | AMT6: Metric #4 (DY2) | AMU6: Metric #4 Description (DY2) | AMV6: Metric #4 Provider Manual Desc (if needed) (DY2) | AMW6: Metric #4 Baseline/Goal (DY2) | AMX6: Metric #4 Type (DY2) | AMY6: Metric #4 Numeric Goal (if needed) (DY2) | AMZ6: Metric #4 Numerator (DY2) | ANA6: Metric #4 Denominator (DY2) | ANB6: Metric #4 Medicaid/Indigent Required (Yes/No) (DY2) | ANC6: Metric #4 QPI? (Yes/No) (DY2) | AND6: Metric #4 Data Source (DY2) | ANE6: Metric #4 Data Source Provider Manual Desc (if needed) (DY2) | ANF6: Metric #5 (DY2) | ANG6: Metric #5 Description (DY2) | ANH6: Metric #5 Provider Manual Desc (if needed) (DY2) | ANI6: Metric #5 Baseline/Goal (DY2) | ANJ6: Metric #5 Type (DY2) | ANK6: Metric #5 Numeric Goal (if needed) (DY2) | ANL6: Metric #5 Numerator (DY2) | ANM6: Metric #5 Denominator (DY2) | ANN6: Metric #5 Medicaid/Indigent Required (Yes/No) (DY2) | ANO6: Metric #5 QPI? (Yes/No) (DY2) | ANP6: Metric #5 Data Source (DY2) | ANQ6: Metric #5 Data Source Provider Manual Desc (if needed) (DY2) | ANR6: Metric #6 (DY2) | ANS6: Metric #6 Description (DY2) | ANT6: Metric #6 Provider Manual Desc (if needed) (DY2) | ANU6: Metric #6 Baseline/Goal (DY2) | ANV6: Metric #6 Type (DY2) | ANW6: Metric #6 Numeric Goal (if needed) (DY2) | ANX6: Metric #6 Numerator (DY2) | ANY6: Metric #6 Denominator (DY2) | ANZ6: Metric #6 Medicaid/Indigent Required (Yes/No) (DY2) | AOA6: Metric #6 QPI? (Yes/No) (DY2) | AOB6: Metric #6 Data Source (DY2) | AOC6: Metric #6 Data Source Provider Manual Desc (if needed) (DY2) | AOD6: Metric #7 (DY2) | AOE6: Metric #7 Description (DY2) | AOF6: Metric #7 Provider Manual Desc (if needed) (DY2) | AOG6: Metric #7 Baseline/Goal (DY2) | AOH6: Metric #7 Type (DY2) | AOI6: Metric #7 Numeric Goal (if needed) (DY2) | AOJ6: Metric #7 Numerator (DY2) | AOK6: Metric #7 Denominator (DY2) | AOL6: Metric #7 Medicaid/Indigent Required (Yes/No) (DY2) | AOM6: Metric #7 QPI? (Yes/No) (DY2) | AON6: Metric #7 Data Source (DY2) | AOO6: Metric #7 Data Source Provider Manual Desc (if needed) (DY2) | AOP6: Milestone #12 DSRIP (DY2) | AOQ6: Milestone # | AOR6: Milestone Desc | AOS6: Milestone Provider Manual Desc (If needed) | AOT6: Number of Metrics Milestone #13 | AOU6: Metric #1 (DY2) | AOV6: Metric #1 Description (DY2) | AOW6: Metric #1 Provider Manual Desc (if needed) (DY2) | AOX6: Metric #1 Baseline/Goal (DY2) | AOY6: Metric #1 Type (DY2) | AOZ6: Metric #1 Numeric Goal (if needed) (DY2) | APA6: Metric #1 Numerator (DY2) | APB6: Metric #1 Denominator (DY2) | APC6: Metric #1 Medicaid/Indigent Required (Yes/No) (DY2) | APD6: Metric #1 QPI? (Yes/No) (DY2) | APE6: Metric #1 Data Source (DY2) | APF6: Metric #1 Data Source Provider Manual Desc (if needed) (DY2) | APG6: Metric #2 (DY2) | APH6: Metric #2 Description (DY2) | API6: Metric #2 Provider Manual Desc (if needed) (DY2) | APJ6: Metric #2 Baseline/Goal (DY2) | APK6: Metric #2 Type (DY2) | APL6: Metric #2 Numeric Goal (if needed) (DY2) | APM6: Metric #2 Numerator (DY2) | APN6: Metric #2 Denominator (DY2) | APO6: Metric #2 Medicaid/Indigent Required (Yes/No) (DY2) | APP6: Metric #2 QPI? (Yes/No) (DY2) | APQ6: Metric #2 Data Source (DY2) | APR6: Metric #2 Data Source Provider Manual Desc (if needed) (DY2) | APS6: Metric #3 (DY2) | APT6: Metric #3 Description (DY2) | APU6: Metric #3 Provider Manual Desc (if needed) (DY2) | APV6: Metric #3 Baseline/Goal (DY2) | APW6: Metric #3 Type (DY2) | APX6: Metric #3 Numeric Goal (if needed) (DY2) | APY6: Metric #3 Numerator (DY2) | APZ6: Metric #3 Denominator (DY2) | AQA6: Metric #3 Medicaid/Indigent Required (Yes/No) (DY2) | AQB6: Metric #3 QPI? (Yes/No) (DY2) | AQC6: Metric #3 Data Source (DY2) | AQD6: Metric #3 Data Source Provider Manual Desc (if needed) (DY2) | AQE6: Metric #4 (DY2) | AQF6: Metric #4 Description (DY2) | AQG6: Metric #4 Provider Manual Desc (if needed) (DY2) | AQH6: Metric #4 Baseline/Goal (DY2) | AQI6: Metric #4 Type (DY2) | AQJ6: Metric #4 Numeric Goal (if needed) (DY2) | AQK6: Metric #4 Numerator (DY2) | AQL6: Metric #4 Denominator (DY2) | AQM6: Metric #4 Medicaid/Indigent Required (Yes/No) (DY2) | AQN6: Metric #4 QPI? (Yes/No) (DY2) | AQO6: Metric #4 Data Source (DY2) | AQP6: Metric #4 Data Source Provider Manual Desc (if needed) (DY2) | AQQ6: Metric #5 (DY2) | AQR6: Metric #5 Description (DY2) | AQS6: Metric #5 Provider Manual Desc (if needed) (DY2) | AQT6: Metric #5 Baseline/Goal (DY2) | AQU6: Metric #5 Type (DY2) | AQV6: Metric #5 Numeric Goal (if needed) (DY2) | AQW6: Metric #5 Numerator (DY2) | AQX6: Metric #5 Denominator (DY2) | AQY6: Metric #5 Medicaid/Indigent Required (Yes/No) (DY2) | AQZ6: Metric #5 QPI? (Yes/No) (DY2) | ARA6: Metric #5 Data Source (DY2) | ARB6: Metric #5 Data Source Provider Manual Desc (if needed) (DY2) | ARC6: Metric #6 (DY2) | ARD6: Metric #6 Description (DY2) | ARE6: Metric #6 Provider Manual Desc (if needed) (DY2) | ARF6: Metric #6 Baseline/Goal (DY2) | ARG6: Metric #6 Type (DY2) | ARH6: Metric #6 Numeric Goal (if needed) (DY2) | ARI6: Metric #6 Numerator (DY2) | ARJ6: Metric #6 Denominator (DY2) | ARK6: Metric #6 Medicaid/Indigent Required (Yes/No) (DY2) | ARL6: Metric #6 QPI? (Yes/No) (DY2) | ARM6: Metric #6 Data Source (DY2) | ARN6: Metric #6 Data Source Provider Manual Desc (if needed) (DY2) | ARO6: Metric #7 (DY2) | ARP6: Metric #7 Description (DY2) | ARQ6: Metric #7 Provider Manual Desc (if needed) (DY2) | ARR6: Metric #7 Baseline/Goal (DY2) | ARS6: Metric #7 Type (DY2) | ART6: Metric #7 Numeric Goal (if needed) (DY2) | ARU6: Metric #7 Numerator (DY2) | ARV6: Metric #7 Denominator (DY2) | ARW6: Metric #7 Medicaid/Indigent Required (Yes/No) (DY2) | ARX6: Metric #7 QPI? (Yes/No) (DY2) | ARY6: Metric #7 Data Source (DY2) | ARZ6: Metric #7 Data Source Provider Manual Desc (if needed) (DY2) | ASA6: Milestone #13 DSRIP (DY2) | ASC6: DY Indicator | ASD6: Category(1 or 2) Indicator | ASE6: RHP | ASF6: TPI | ASG6: Provider Name | ASH6: Project ID | ASI6: Project Area | ASJ6: Proejct Area Title | ASK6: Project Area Option # | ASL6: Project Area Option Title | ASM6: # of Milestones in DY2 | ASN6: Project DSRIP Allocation in DY2 | ASO6: Milestone # | ASP6: Milestone Desc | ASQ6: Milestone Provider Manual Desc (If needed) | ASR6: Number of Metrics Milestone #1 | ASS6: Metric #1 (DY2) | AST6: Metric #1 Description (DY2) | ASU6: Metric #1 Provider Manual Desc (if needed) (DY2) | ASV6: Metric #1 Baseline/Goal (DY2) | ASW6: Metric #1 Type (DY2) | ASX6: Metric #1 Numeric Goal (if needed) (DY2) | ASY6: Metric #1 Numerator (DY2) | ASZ6: Metric #1 Denominator (DY2) | ATA6: Metric #1 Medicaid/Indigent Required (Yes/No) (DY2) | ATB6: Metric #1 QPI? (Yes/No) (DY2) | ATC6: Metric #1 Data Source (DY2) | ATD6: Metric #1 Data Source Provider Manual Desc (if needed) (DY2) | ATE6: Metric #2 (DY2) | ATF6: Metric #2 Description (DY2) | ATG6: Metric #2 Provider Manual Desc (if needed) (DY2) | ATH6: Metric #2 Baseline/Goal (DY2) | ATI6: Metric #2 Type (DY2) | ATJ6: Metric #2 Numeric Goal (if needed) (DY2) | ATK6: Metric #2 Numerator (DY2) | ATL6: Metric #2 Denominator (DY2) | ATM6: Metric #2 Medicaid/Indigent Required (Yes/No) (DY2) | ATN6: Metric #2 QPI? (Yes/No) (DY2) | ATO6: Metric #2 Data Source (DY2) | ATP6: Metric #2 Data Source Provider Manual Desc (if needed) (DY2) | ATQ6: Metric #3 (DY2) | ATR6: Metric #3 Description (DY2) | ATS6: Metric #3 Provider Manual Desc (if needed) (DY2) | ATT6: Metric #3 Baseline/Goal (DY2) | ATU6: Metric #3 Type (DY2) | ATV6: Metric #3 Numeric Goal (if needed) (DY2) | ATW6: Metric #3 Numerator (DY2) | ATX6: Metric #3 Denominator (DY2) | ATY6: Metric #3 Medicaid/Indigent Required (Yes/No) (DY2) | ATZ6: Metric #3 QPI? (Yes/No) (DY2) | AUA6: Metric #3 Data Source (DY2) | AUB6: Metric #3 Data Source Provider Manual Desc (if needed) (DY2) | AUC6: Metric #4 (DY2) | AUD6: Metric #4 Description (DY2) | AUE6: Metric #4 Provider Manual Desc (if needed) (DY2) | AUF6: Metric #4 Baseline/Goal (DY2) | AUG6: Metric #4 Type (DY2) | AUH6: Metric #4 Numeric Goal (if needed) (DY2) | AUI6: Metric #4 Numerator (DY2) | AUJ6: Metric #4 Denominator (DY2) | AUK6: Metric #4 Medicaid/Indigent Required (Yes/No) (DY2) | AUL6: Metric #4 QPI? (Yes/No) (DY2) | AUM6: Metric #4 Data Source (DY2) | AUN6: Metric #4 Data Source Provider Manual Desc (if needed) (DY2) | AUO6: Metric #5 (DY2) | AUP6: Metric #5 Description (DY2) | AUQ6: Metric #5 Provider Manual Desc (if needed) (DY2) | AUR6: Metric #5 Baseline/Goal (DY2) | AUS6: Metric #5 Type (DY2) | AUT6: Metric #5 Numeric Goal (if needed) (DY2) | AUU6: Metric #5 Numerator (DY2) | AUV6: Metric #5 Denominator (DY2) | AUW6: Metric #5 Medicaid/Indigent Required (Yes/No) (DY2) | AUX6: Metric #5 QPI? (Yes/No) (DY2) | AUY6: Metric #5 Data Source (DY2) | AUZ6: Metric #5 Data Source Provider Manual Desc (if needed) (DY2) | AVA6: Metric #6 (DY2) | AVB6: Metric #6 Description (DY2) | AVC6: Metric #6 Provider Manual Desc (if needed) (DY2) | AVD6: Metric #6 Baseline/Goal (DY2) | AVE6: Metric #6 Type (DY2) | AVF6: Metric #6 Numeric Goal (if needed) (DY2) | AVG6: Metric #6 Numerator (DY2) | AVH6: Metric #6 Denominator (DY2) | AVI6: Metric #6 Medicaid/Indigent Required (Yes/No) (DY2) | AVJ6: Metric #6 QPI? (Yes/No) (DY2) | AVK6: Metric #6 Data Source (DY2) | AVL6: Metric #6 Data Source Provider Manual Desc (if needed) (DY2) | AVM6: Metric #7 (DY2) | AVN6: Metric #7 Description (DY2) | AVO6: Metric #7 Provider Manual Desc (if needed) (DY2) | AVP6: Metric #7 Baseline/Goal (DY2) | AVQ6: Metric #7 Type (DY2) | AVR6: Metric #7 Numeric Goal (if needed) (DY2) | AVS6: Metric #7 Numerator (DY2) | AVT6: Metric #7 Denominator (DY2) | AVU6: Metric #7 Medicaid/Indigent Required (Yes/No) (DY2) | AVV6: Metric #7 QPI? (Yes/No) (DY2) | AVW6: Metric #7 Data Source (DY2) | AVX6: Metric #7 Data Source Provider Manual Desc (if needed) (DY2) | AVY6: Milestone #1 DSRIP (DY2) | AVZ6: Milestone # | AWA6: Milestone Desc | AWB6: Milestone Provider Manual Desc (If needed) | AWC6: Number of Metrics Milestone #2 | AWD6: Metric #1 (DY2) | AWE6: Metric #1 Description (DY2) | AWF6: Metric #1 Provider Manual Desc (if needed) (DY2) | AWG6: Metric #1 Baseline/Goal (DY2) | AWH6: Metric #1 Type (DY2) | AWI6: Metric #1 Numeric Goal (if needed) (DY2) | AWJ6: Metric #1 Numerator (DY2) | AWK6: Metric #1 Denominator (DY2) | AWL6: Metric #1 Medicaid/Indigent Required (Yes/No) (DY2) | AWM6: Metric #1 QPI? (Yes/No) (DY2) | AWN6: Metric #1 Data Source (DY2) | AWO6: Metric #1 Data Source Provider Manual Desc (if needed) (DY2) | AWP6: Metric #2 (DY2) | AWQ6: Metric #2 Description (DY2) | AWR6: Metric #2 Provider Manual Desc (if needed) (DY2) | AWS6: Metric #2 Baseline/Goal (DY2) | AWT6: Metric #2 Type (DY2) | AWU6: Metric #2 Numeric Goal (if needed) (DY2) | AWV6: Metric #2 Numerator (DY2) | AWW6: Metric #2 Denominator (DY2) | AWX6: Metric #2 Medicaid/Indigent Required (Yes/No) (DY2) | AWY6: Metric #2 QPI? (Yes/No) (DY2) | AWZ6: Metric #2 Data Source (DY2) | AXA6: Metric #2 Data Source Provider Manual Desc (if needed) (DY2) | AXB6: Metric #3 (DY2) | AXC6: Metric #3 Description (DY2) | AXD6: Metric #3 Provider Manual Desc (if needed) (DY2) | AXE6: Metric #3 Baseline/Goal (DY2) | AXF6: Metric #3 Type (DY2) | AXG6: Metric #3 Numeric Goal (if needed) (DY2) | AXH6: Metric #3 Numerator (DY2) | AXI6: Metric #3 Denominator (DY2) | AXJ6: Metric #3 Medicaid/Indigent Required (Yes/No) (DY2) | AXK6: Metric #3 QPI? (Yes/No) (DY2) | AXL6: Metric #3 Data Source (DY2) | AXM6: Metric #3 Data Source Provider Manual Desc (if needed) (DY2) | AXN6: Metric #4 (DY2) | AXO6: Metric #4 Description (DY2) | AXP6: Metric #4 Provider Manual Desc (if needed) (DY2) | AXQ6: Metric #4 Baseline/Goal (DY2) | AXR6: Metric #4 Type (DY2) | AXS6: Metric #4 Numeric Goal (if needed) (DY2) | AXT6: Metric #4 Numerator (DY2) | AXU6: Metric #4 Denominator (DY2) | AXV6: Metric #4 Medicaid/Indigent Required (Yes/No) (DY2) | AXW6: Metric #4 QPI? (Yes/No) (DY2) | AXX6: Metric #4 Data Source (DY2) | AXY6: Metric #4 Data Source Provider Manual Desc (if needed) (DY2) | AXZ6: Metric #5 (DY2) | AYA6: Metric #5 Description (DY2) | AYB6: Metric #5 Provider Manual Desc (if needed) (DY2) | AYC6: Metric #5 Baseline/Goal (DY2) | AYD6: Metric #5 Type (DY2) | AYE6: Metric #5 Numeric Goal (if needed) (DY2) | AYF6: Metric #5 Numerator (DY2) | AYG6: Metric #5 Denominator (DY2) | AYH6: Metric #5 Medicaid/Indigent Required (Yes/No) (DY2) | AYI6: Metric #5 QPI? (Yes/No) (DY2) | AYJ6: Metric #5 Data Source (DY2) | AYK6: Metric #5 Data Source Provider Manual Desc (if needed) (DY2) | AYL6: Metric #6 (DY2) | AYM6: Metric #6 Description (DY2) | AYN6: Metric #6 Provider Manual Desc (if needed) (DY2) | AYO6: Metric #6 Baseline/Goal (DY2) | AYP6: Metric #6 Type (DY2) | AYQ6: Metric #6 Numeric Goal (if needed) (DY2) | AYR6: Metric #6 Numerator (DY2) | AYS6: Metric #6 Denominator (DY2) | AYT6: Metric #6 Medicaid/Indigent Required (Yes/No) (DY2) | AYU6: Metric #6 QPI? (Yes/No) (DY2) | AYV6: Metric #6 Data Source (DY2) | AYW6: Metric #6 Data Source Provider Manual Desc (if needed) (DY2) | AYX6: Metric #7 (DY2) | AYY6: Metric #7 Description (DY2) | AYZ6: Metric #7 Provider Manual Desc (if needed) (DY2) | AZA6: Metric #7 Baseline/Goal (DY2) | AZB6: Metric #7 Type (DY2) | AZC6: Metric #7 Numeric Goal (if needed) (DY2) | AZD6: Metric #7 Numerator (DY2) | AZE6: Metric #7 Denominator (DY2) | AZF6: Metric #7 Medicaid/Indigent Required (Yes/No) (DY2) | AZG6: Metric #7 QPI? (Yes/No) (DY2) | AZH6: Metric #7 Data Source (DY2) | AZI6: Metric #7 Data Source Provider Manual Desc (if needed) (DY2) | AZJ6: Milestone #2 DSRIP (DY2) | AZK6: Milestone # | AZL6: Milestone Desc | AZM6: Milestone Provider Manual Desc (If needed) | AZN6: Number of Metrics Milestone #3 | AZO6: Metric #1 (DY2) | AZP6: Metric #1 Description (DY2) | AZQ6: Metric #1 Provider Manual Desc (if needed) (DY2) | AZR6: Metric #1 Baseline/Goal (DY2) | AZS6: Metric #1 Type (DY2) | AZT6: Metric #1 Numeric Goal (if needed) (DY2) | AZU6: Metric #1 Numerator (DY2) | AZV6: Metric #1 Denominator (DY2) | AZW6: Metric #1 Medicaid/Indigent Required (Yes/No) (DY2) | AZX6: Metric #1 QPI? (Yes/No) (DY2) | AZY6: Metric #1 Data Source (DY2) | AZZ6: Metric #1 Data Source Provider Manual Desc (if needed) (DY2) | BAA6: Metric #2 (DY2) | BAB6: Metric #2 Description (DY2) | BAC6: Metric #2 Provider Manual Desc (if needed) (DY2) | BAD6: Metric #2 Baseline/Goal (DY2) | BAE6: Metric #2 Type (DY2) | BAF6: Metric #2 Numeric Goal (if needed) (DY2) | BAG6: Metric #2 Numerator (DY2) | BAH6: Metric #2 Denominator (DY2) | BAI6: Metric #2 Medicaid/Indigent Required (Yes/No) (DY2) | BAJ6: Metric #2 QPI? (Yes/No) (DY2) | BAK6: Metric #2 Data Source (DY2) | BAL6: Metric #2 Data Source Provider Manual Desc (if needed) (DY2) | BAM6: Metric #3 (DY2) | BAN6: Metric #3 Description (DY2) | BAO6: Metric #3 Provider Manual Desc (if needed) (DY2) | BAP6: Metric #3 Baseline/Goal (DY2) | BAQ6: Metric #3 Type (DY2) | BAR6: Metric #3 Numeric Goal (if needed) (DY2) | BAS6: Metric #3 Numerator (DY2) | BAT6: Metric #3 Denominator (DY2) | BAU6: Metric #3 Medicaid/Indigent Required (Yes/No) (DY2) | BAV6: Metric #3 QPI? (Yes/No) (DY2) | BAW6: Metric #3 Data Source (DY2) | BAX6: Metric #3 Data Source Provider Manual Desc (if needed) (DY2) | BAY6: Metric #4 (DY2) | BAZ6: Metric #4 Description (DY2) | BBA6: Metric #4 Provider Manual Desc (if needed) (DY2) | BBB6: Metric #4 Baseline/Goal (DY2) | BBC6: Metric #4 Type (DY2) | BBD6: Metric #4 Numeric Goal (if needed) (DY2) | BBE6: Metric #4 Numerator (DY2) | BBF6: Metric #4 Denominator (DY2) | BBG6: Metric #4 Medicaid/Indigent Required (Yes/No) (DY2) | BBH6: Metric #4 QPI? (Yes/No) (DY2) | BBI6: Metric #4 Data Source (DY2) | BBJ6: Metric #4 Data Source Provider Manual Desc (if needed) (DY2) | BBK6: Metric #5 (DY2) | BBL6: Metric #5 Description (DY2) | BBM6: Metric #5 Provider Manual Desc (if needed) (DY2) | BBN6: Metric #5 Baseline/Goal (DY2) | BBO6: Metric #5 Type (DY2) | BBP6: Metric #5 Numeric Goal (if needed) (DY2) | BBQ6: Metric #5 Numerator (DY2) | BBR6: Metric #5 Denominator (DY2) | BBS6: Metric #5 Medicaid/Indigent Required (Yes/No) (DY2) | BBT6: Metric #5 QPI? (Yes/No) (DY2) | BBU6: Metric #5 Data Source (DY2) | BBV6: Metric #5 Data Source Provider Manual Desc (if needed) (DY2) | BBW6: Metric #6 (DY2) | BBX6: Metric #6 Description (DY2) | BBY6: Metric #6 Provider Manual Desc (if needed) (DY2) | BBZ6: Metric #6 Baseline/Goal (DY2) | BCA6: Metric #6 Type (DY2) | BCB6: Metric #6 Numeric Goal (if needed) (DY2) | BCC6: Metric #6 Numerator (DY2) | BCD6: Metric #6 Denominator (DY2) | BCE6: Metric #6 Medicaid/Indigent Required (Yes/No) (DY2) | BCF6: Metric #6 QPI? (Yes/No) (DY2) | BCG6: Metric #6 Data Source (DY2) | BCH6: Metric #6 Data Source Provider Manual Desc (if needed) (DY2) | BCI6: Metric #7 (DY2) | BCJ6: Metric #7 Description (DY2) | BCK6: Metric #7 Provider Manual Desc (if needed) (DY2) | BCL6: Metric #7 Baseline/Goal (DY2) | BCM6: Metric #7 Type (DY2) | BCN6: Metric #7 Numeric Goal (if needed) (DY2) | BCO6: Metric #7 Numerator (DY2) | BCP6: Metric #7 Denominator (DY2) | BCQ6: Metric #7 Medicaid/Indigent Required (Yes/No) (DY2) | BCR6: Metric #7 QPI? (Yes/No) (DY2) | BCS6: Metric #7 Data Source (DY2) | BCT6: Metric #7 Data Source Provider Manual Desc (if needed) (DY2) | BCU6: Milestone #3 DSRIP (DY2) | BCV6: Milestone # | BCW6: Milestone Desc | BCX6: Milestone Provider Manual Desc (If needed) | BCY6: Number of Metrics Milestone #4 | BCZ6: Metric #1 (DY2) | BDA6: Metric #1 Description (DY2) | BDB6: Metric #1 Provider Manual Desc (if needed) (DY2) | BDC6: Metric #1 Baseline/Goal (DY2) | BDD6: Metric #1 Type (DY2) | BDE6: Metric #1 Numeric Goal (if needed) (DY2) | BDF6: Metric #1 Numerator (DY2) | BDG6: Metric #1 Denominator (DY2) | BDH6: Metric #1 Medicaid/Indigent Required (Yes/No) (DY2) | BDI6: Metric #1 QPI? (Yes/No) (DY2) | BDJ6: Metric #1 Data Source (DY2) | BDK6: Metric #1 Data Source Provider Manual Desc (if needed) (DY2) | BDL6: Metric #2 (DY2) | BDM6: Metric #2 Description (DY2) | BDN6: Metric #2 Provider Manual Desc (if needed) (DY2) | BDO6: Metric #2 Baseline/Goal (DY2) | BDP6: Metric #2 Type (DY2) | BDQ6: Metric #2 Numeric Goal (if needed) (DY2) | BDR6: Metric #2 Numerator (DY2) | BDS6: Metric #2 Denominator (DY2) | BDT6: Metric #2 Medicaid/Indigent Required (Yes/No) (DY2) | BDU6: Metric #2 QPI? (Yes/No) (DY2) | BDV6: Metric #2 Data Source (DY2) | BDW6: Metric #2 Data Source Provider Manual Desc (if needed) (DY2) | BDX6: Metric #3 (DY2) | BDY6: Metric #3 Description (DY2) | BDZ6: Metric #3 Provider Manual Desc (if needed) (DY2) | BEA6: Metric #3 Baseline/Goal (DY2) | BEB6: Metric #3 Type (DY2) | BEC6: Metric #3 Numeric Goal (if needed) (DY2) | BED6: Metric #3 Numerator (DY2) | BEE6: Metric #3 Denominator (DY2) | BEF6: Metric #3 Medicaid/Indigent Required (Yes/No) (DY2) | BEG6: Metric #3 QPI? (Yes/No) (DY2) | BEH6: Metric #3 Data Source (DY2) | BEI6: Metric #3 Data Source Provider Manual Desc (if needed) (DY2) | BEJ6: Metric #4 (DY2) | BEK6: Metric #4 Description (DY2) | BEL6: Metric #4 Provider Manual Desc (if needed) (DY2) | BEM6: Metric #4 Baseline/Goal (DY2) | BEN6: Metric #4 Type (DY2) | BEO6: Metric #4 Numeric Goal (if needed) (DY2) | BEP6: Metric #4 Numerator (DY2) | BEQ6: Metric #4 Denominator (DY2) | BER6: Metric #4 Medicaid/Indigent Required (Yes/No) (DY2) | BES6: Metric #4 QPI? (Yes/No) (DY2) | BET6: Metric #4 Data Source (DY2) | BEU6: Metric #4 Data Source Provider Manual Desc (if needed) (DY2) | BEV6: Metric #5 (DY2) | BEW6: Metric #5 Description (DY2) | BEX6: Metric #5 Provider Manual Desc (if needed) (DY2) | BEY6: Metric #5 Baseline/Goal (DY2) | BEZ6: Metric #5 Type (DY2) | BFA6: Metric #5 Numeric Goal (if needed) (DY2) | BFB6: Metric #5 Numerator (DY2) | BFC6: Metric #5 Denominator (DY2) | BFD6: Metric #5 Medicaid/Indigent Required (Yes/No) (DY2) | BFE6: Metric #5 QPI? (Yes/No) (DY2) | BFF6: Metric #5 Data Source (DY2) | BFG6: Metric #5 Data Source Provider Manual Desc (if needed) (DY2) | BFH6: Metric #6 (DY2) | BFI6: Metric #6 Description (DY2) | BFJ6: Metric #6 Provider Manual Desc (if needed) (DY2) | BFK6: Metric #6 Baseline/Goal (DY2) | BFL6: Metric #6 Type (DY2) | BFM6: Metric #6 Numeric Goal (if needed) (DY2) | BFN6: Metric #6 Numerator (DY2) | BFO6: Metric #6 Denominator (DY2) | BFP6: Metric #6 Medicaid/Indigent Required (Yes/No) (DY2) | BFQ6: Metric #6 QPI? (Yes/No) (DY2) | BFR6: Metric #6 Data Source (DY2) | BFS6: Metric #6 Data Source Provider Manual Desc (if needed) (DY2) | BFT6: Metric #7 (DY2) | BFU6: Metric #7 Description (DY2) | BFV6: Metric #7 Provider Manual Desc (if needed) (DY2) | BFW6: Metric #7 Baseline/Goal (DY2) | BFX6: Metric #7 Type (DY2) | BFY6: Metric #7 Numeric Goal (if needed) (DY2) | BFZ6: Metric #7 Numerator (DY2) | BGA6: Metric #7 Denominator (DY2) | BGB6: Metric #7 Medicaid/Indigent Required (Yes/No) (DY2) | BGC6: Metric #7 QPI? (Yes/No) (DY2) | BGD6: Metric #7 Data Source (DY2) | BGE6: Metric #7 Data Source Provider Manual Desc (if needed) (DY2) | BGF6: Milestone #4 DSRIP (DY2) | BGG6: Milestone # | BGH6: Milestone Desc | BGI6: Milestone Provider Manual Desc (If needed) | BGJ6: Number of Metrics Milestone #5 | BGK6: Metric #1 (DY2) | BGL6: Metric #1 Description (DY2) | BGM6: Metric #1 Provider Manual Desc (if needed) (DY2) | BGN6: Metric #1 Baseline/Goal (DY2) | BGO6: Metric #1 Type (DY2) | BGP6: Metric #1 Numeric Goal (if needed) (DY2) | BGQ6: Metric #1 Numerator (DY2) | BGR6: Metric #1 Denominator (DY2) | BGS6: Metric #1 Medicaid/Indigent Required (Yes/No) (DY2) | BGT6: Metric #1 QPI? (Yes/No) (DY2) | BGU6: Metric #1 Data Source (DY2) | BGV6: Metric #1 Data Source Provider Manual Desc (if needed) (DY2) | BGW6: Metric #2 (DY2) | BGX6: Metric #2 Description (DY2) | BGY6: Metric #2 Provider Manual Desc (if needed) (DY2) | BGZ6: Metric #2 Baseline/Goal (DY2) | BHA6: Metric #2 Type (DY2) | BHB6: Metric #2 Numeric Goal (if needed) (DY2) | BHC6: Metric #2 Numerator (DY2) | BHD6: Metric #2 Denominator (DY2) | BHE6: Metric #2 Medicaid/Indigent Required (Yes/No) (DY2) | BHF6: Metric #2 QPI? (Yes/No) (DY2) | BHG6: Metric #2 Data Source (DY2) | BHH6: Metric #2 Data Source Provider Manual Desc (if needed) (DY2) | BHI6: Metric #3 (DY2) | BHJ6: Metric #3 Description (DY2) | BHK6: Metric #3 Provider Manual Desc (if needed) (DY2) | BHL6: Metric #3 Baseline/Goal (DY2) | BHM6: Metric #3 Type (DY2) | BHN6: Metric #3 Numeric Goal (if needed) (DY2) | BHO6: Metric #3 Numerator (DY2) | BHP6: Metric #3 Denominator (DY2) | BHQ6: Metric #3 Medicaid/Indigent Required (Yes/No) (DY2) | BHR6: Metric #3 QPI? (Yes/No) (DY2) | BHS6: Metric #3 Data Source (DY2) | BHT6: Metric #3 Data Source Provider Manual Desc (if needed) (DY2) | BHU6: Metric #4 (DY2) | BHV6: Metric #4 Description (DY2) | BHW6: Metric #4 Provider Manual Desc (if needed) (DY2) | BHX6: Metric #4 Baseline/Goal (DY2) | BHY6: Metric #4 Type (DY2) | BHZ6: Metric #4 Numeric Goal (if needed) (DY2) | BIA6: Metric #4 Numerator (DY2) | BIB6: Metric #4 Denominator (DY2) | BIC6: Metric #4 Medicaid/Indigent Required (Yes/No) (DY2) | BID6: Metric #4 QPI? (Yes/No) (DY2) | BIE6: Metric #4 Data Source (DY2) | BIF6: Metric #4 Data Source Provider Manual Desc (if needed) (DY2) | BIG6: Metric #5 (DY2) | BIH6: Metric #5 Description (DY2) | BII6: Metric #5 Provider Manual Desc (if needed) (DY2) | BIJ6: Metric #5 Baseline/Goal (DY2) | BIK6: Metric #5 Type (DY2) | BIL6: Metric #5 Numeric Goal (if needed) (DY2) | BIM6: Metric #5 Numerator (DY2) | BIN6: Metric #5 Denominator (DY2) | BIO6: Metric #5 Medicaid/Indigent Required (Yes/No) (DY2) | BIP6: Metric #5 QPI? (Yes/No) (DY2) | BIQ6: Metric #5 Data Source (DY2) | BIR6: Metric #5 Data Source Provider Manual Desc (if needed) (DY2) | BIS6: Metric #6 (DY2) | BIT6: Metric #6 Description (DY2) | BIU6: Metric #6 Provider Manual Desc (if needed) (DY2) | BIV6: Metric #6 Baseline/Goal (DY2) | BIW6: Metric #6 Type (DY2) | BIX6: Metric #6 Numeric Goal (if needed) (DY2) | BIY6: Metric #6 Numerator (DY2) | BIZ6: Metric #6 Denominator (DY2) | BJA6: Metric #6 Medicaid/Indigent Required (Yes/No) (DY2) | BJB6: Metric #6 QPI? (Yes/No) (DY2) | BJC6: Metric #6 Data Source (DY2) | BJD6: Metric #6 Data Source Provider Manual Desc (if needed) (DY2) | BJE6: Metric #7 (DY2) | BJF6: Metric #7 Description (DY2) | BJG6: Metric #7 Provider Manual Desc (if needed) (DY2) | BJH6: Metric #7 Baseline/Goal (DY2) | BJI6: Metric #7 Type (DY2) | BJJ6: Metric #7 Numeric Goal (if needed) (DY2) | BJK6: Metric #7 Numerator (DY2) | BJL6: Metric #7 Denominator (DY2) | BJM6: Metric #7 Medicaid/Indigent Required (Yes/No) (DY2) | BJN6: Metric #7 QPI? (Yes/No) (DY2) | BJO6: Metric #7 Data Source (DY2) | BJP6: Metric #7 Data Source Provider Manual Desc (if needed) (DY2) | BJQ6: Milestone #5 DSRIP (DY2) | BJR6: Milestone # | BJS6: Milestone Desc | BJT6: Milestone Provider Manual Desc (If needed) | BJU6: Number of Metrics Milestone #6 | BJV6: Metric #1 (DY2) | BJW6: Metric #1 Description (DY2) | BJX6: Metric #1 Provider Manual Desc (if needed) (DY2) | BJY6: Metric #1 Baseline/Goal (DY2) | BJZ6: Metric #1 Type (DY2) | BKA6: Metric #1 Numeric Goal (if needed) (DY2) | BKB6: Metric #1 Numerator (DY2) | BKC6: Metric #1 Denominator (DY2) | BKD6: Metric #1 Medicaid/Indigent Required (Yes/No) (DY2) | BKE6: Metric #1 QPI? (Yes/No) (DY2) | BKF6: Metric #1 Data Source (DY2) | BKG6: Metric #1 Data Source Provider Manual Desc (if needed) (DY2) | BKH6: Metric #2 (DY2) | BKI6: Metric #2 Description (DY2) | BKJ6: Metric #2 Provider Manual Desc (if needed) (DY2) | BKK6: Metric #2 Baseline/Goal (DY2) | BKL6: Metric #2 Type (DY2) | BKM6: Metric #2 Numeric Goal (if needed) (DY2) | BKN6: Metric #2 Numerator (DY2) | BKO6: Metric #2 Denominator (DY2) | BKP6: Metric #2 Medicaid/Indigent Required (Yes/No) (DY2) | BKQ6: Metric #2 QPI? (Yes/No) (DY2) | BKR6: Metric #2 Data Source (DY2) | BKS6: Metric #2 Data Source Provider Manual Desc (if needed) (DY2) | BKT6: Metric #3 (DY2) | BKU6: Metric #3 Description (DY2) | BKV6: Metric #3 Provider Manual Desc (if needed) (DY2) | BKW6: Metric #3 Baseline/Goal (DY2) | BKX6: Metric #3 Type (DY2) | BKY6: Metric #3 Numeric Goal (if needed) (DY2) | BKZ6: Metric #3 Numerator (DY2) | BLA6: Metric #3 Denominator (DY2) | BLB6: Metric #3 Medicaid/Indigent Required (Yes/No) (DY2) | BLC6: Metric #3 QPI? (Yes/No) (DY2) | BLD6: Metric #3 Data Source (DY2) | BLE6: Metric #3 Data Source Provider Manual Desc (if needed) (DY2) | BLF6: Metric #4 (DY2) | BLG6: Metric #4 Description (DY2) | BLH6: Metric #4 Provider Manual Desc (if needed) (DY2) | BLI6: Metric #4 Baseline/Goal (DY2) | BLJ6: Metric #4 Type (DY2) | BLK6: Metric #4 Numeric Goal (if needed) (DY2) | BLL6: Metric #4 Numerator (DY2) | BLM6: Metric #4 Denominator (DY2) | BLN6: Metric #4 Medicaid/Indigent Required (Yes/No) (DY2) | BLO6: Metric #4 QPI? (Yes/No) (DY2) | BLP6: Metric #4 Data Source (DY2) | BLQ6: Metric #4 Data Source Provider Manual Desc (if needed) (DY2) | BLR6: Metric #5 (DY2) | BLS6: Metric #5 Description (DY2) | BLT6: Metric #5 Provider Manual Desc (if needed) (DY2) | BLU6: Metric #5 Baseline/Goal (DY2) | BLV6: Metric #5 Type (DY2) | BLW6: Metric #5 Numeric Goal (if needed) (DY2) | BLX6: Metric #5 Numerator (DY2) | BLY6: Metric #5 Denominator (DY2) | BLZ6: Metric #5 Medicaid/Indigent Required (Yes/No) (DY2) | BMA6: Metric #5 QPI? (Yes/No) (DY2) | BMB6: Metric #5 Data Source (DY2) | BMC6: Metric #5 Data Source Provider Manual Desc (if needed) (DY2) | BMD6: Metric #6 (DY2) | BME6: Metric #6 Description (DY2) | BMF6: Metric #6 Provider Manual Desc (if needed) (DY2) | BMG6: Metric #6 Baseline/Goal (DY2) | BMH6: Metric #6 Type (DY2) | BMI6: Metric #6 Numeric Goal (if needed) (DY2) | BMJ6: Metric #6 Numerator (DY2) | BMK6: Metric #6 Denominator (DY2) | BML6: Metric #6 Medicaid/Indigent Required (Yes/No) (DY2) | BMM6: Metric #6 QPI? (Yes/No) (DY2) | BMN6: Metric #6 Data Source (DY2) | BMO6: Metric #6 Data Source Provider Manual Desc (if needed) (DY2) | BMP6: Metric #7 (DY2) | BMQ6: Metric #7 Description (DY2) | BMR6: Metric #7 Provider Manual Desc (if needed) (DY2) | BMS6: Metric #7 Baseline/Goal (DY2) | BMT6: Metric #7 Type (DY2) | BMU6: Metric #7 Numeric Goal (if needed) (DY2) | BMV6: Metric #7 Numerator (DY2) | BMW6: Metric #7 Denominator (DY2) | BMX6: Metric #7 Medicaid/Indigent Required (Yes/No) (DY2) | BMY6: Metric #7 QPI? (Yes/No) (DY2) | BMZ6: Metric #7 Data Source (DY2) | BNA6: Metric #7 Data Source Provider Manual Desc (if needed) (DY2) | BNB6: Milestone #6 DSRIP (DY2) | BNC6: Milestone # | BND6: Milestone Desc | BNE6: Milestone Provider Manual Desc (If needed) | BNF6: Number of Metrics Milestone #7 | BNG6: Metric #1 (DY2) | BNH6: Metric #1 Description (DY2) | BNI6: Metric #1 Provider Manual Desc (if needed) (DY2) | BNJ6: Metric #1 Baseline/Goal (DY2) | BNK6: Metric #1 Type (DY2) | BNL6: Metric #1 Numeric Goal (if needed) (DY2) | BNM6: Metric #1 Numerator (DY2) | BNN6: Metric #1 Denominator (DY2) | BNO6: Metric #1 Medicaid/Indigent Required (Yes/No) (DY2) | BNP6: Metric #1 QPI? (Yes/No) (DY2) | BNQ6: Metric #1 Data Source (DY2) | BNR6: Metric #1 Data Source Provider Manual Desc (if needed) (DY2) | BNS6: Metric #2 (DY2) | BNT6: Metric #2 Description (DY2) | BNU6: Metric #2 Provider Manual Desc (if needed) (DY2) | BNV6: Metric #2 Baseline/Goal (DY2) | BNW6: Metric #2 Type (DY2) | BNX6: Metric #2 Numeric Goal (if needed) (DY2) | BNY6: Metric #2 Numerator (DY2) | BNZ6: Metric #2 Denominator (DY2) | BOA6: Metric #2 Medicaid/Indigent Required (Yes/No) (DY2) | BOB6: Metric #2 QPI? (Yes/No) (DY2) | BOC6: Metric #2 Data Source (DY2) | BOD6: Metric #2 Data Source Provider Manual Desc (if needed) (DY2) | BOE6: Metric #3 (DY2) | BOF6: Metric #3 Description (DY2) | BOG6: Metric #3 Provider Manual Desc (if needed) (DY2) | BOH6: Metric #3 Baseline/Goal (DY2) | BOI6: Metric #3 Type (DY2) | BOJ6: Metric #3 Numeric Goal (if needed) (DY2) | BOK6: Metric #3 Numerator (DY2) | BOL6: Metric #3 Denominator (DY2) | BOM6: Metric #3 Medicaid/Indigent Required (Yes/No) (DY2) | BON6: Metric #3 QPI? (Yes/No) (DY2) | BOO6: Metric #3 Data Source (DY2) | BOP6: Metric #3 Data Source Provider Manual Desc (if needed) (DY2) | BOQ6: Metric #4 (DY2) | BOR6: Metric #4 Description (DY2) | BOS6: Metric #4 Provider Manual Desc (if needed) (DY2) | BOT6: Metric #4 Baseline/Goal (DY2) | BOU6: Metric #4 Type (DY2) | BOV6: Metric #4 Numeric Goal (if needed) (DY2) | BOW6: Metric #4 Numerator (DY2) | BOX6: Metric #4 Denominator (DY2) | BOY6: Metric #4 Medicaid/Indigent Required (Yes/No) (DY2) | BOZ6: Metric #4 QPI? (Yes/No) (DY2) | BPA6: Metric #4 Data Source (DY2) | BPB6: Metric #4 Data Source Provider Manual Desc (if needed) (DY2) | BPC6: Metric #5 (DY2) | BPD6: Metric #5 Description (DY2) | BPE6: Metric #5 Provider Manual Desc (if needed) (DY2) | BPF6: Metric #5 Baseline/Goal (DY2) | BPG6: Metric #5 Type (DY2) | BPH6: Metric #5 Numeric Goal (if needed) (DY2) | BPI6: Metric #5 Numerator (DY2) | BPJ6: Metric #5 Denominator (DY2) | BPK6: Metric #5 Medicaid/Indigent Required (Yes/No) (DY2) | BPL6: Metric #5 QPI? (Yes/No) (DY2) | BPM6: Metric #5 Data Source (DY2) | BPN6: Metric #5 Data Source Provider Manual Desc (if needed) (DY2) | BPO6: Metric #6 (DY2) | BPP6: Metric #6 Description (DY2) | BPQ6: Metric #6 Provider Manual Desc (if needed) (DY2) | BPR6: Metric #6 Baseline/Goal (DY2) | BPS6: Metric #6 Type (DY2) | BPT6: Metric #6 Numeric Goal (if needed) (DY2) | BPU6: Metric #6 Numerator (DY2) | BPV6: Metric #6 Denominator (DY2) | BPW6: Metric #6 Medicaid/Indigent Required (Yes/No) (DY2) | BPX6: Metric #6 QPI? (Yes/No) (DY2) | BPY6: Metric #6 Data Source (DY2) | BPZ6: Metric #6 Data Source Provider Manual Desc (if needed) (DY2) | BQA6: Metric #7 (DY2) | BQB6: Metric #7 Description (DY2) | BQC6: Metric #7 Provider Manual Desc (if needed) (DY2) | BQD6: Metric #7 Baseline/Goal (DY2) | BQE6: Metric #7 Type (DY2) | BQF6: Metric #7 Numeric Goal (if needed) (DY2) | BQG6: Metric #7 Numerator (DY2) | BQH6: Metric #7 Denominator (DY2) | BQI6: Metric #7 Medicaid/Indigent Required (Yes/No) (DY2) | BQJ6: Metric #7 QPI? (Yes/No) (DY2) | BQK6: Metric #7 Data Source (DY2) | BQL6: Metric #7 Data Source Provider Manual Desc (if needed) (DY2) | BQM6: Milestone #7 DSRIP (DY2) | BQN6: Milestone # | BQO6: Milestone Desc | BQP6: Milestone Provider Manual Desc (If needed) | BQQ6: Number of Metrics Milestone #8 | BQR6: Metric #1 (DY2) | BQS6: Metric #1 Description (DY2) | BQT6: Metric #1 Provider Manual Desc (if needed) (DY2) | BQU6: Metric #1 Baseline/Goal (DY2) | BQV6: Metric #1 Type (DY2) | BQW6: Metric #1 Numeric Goal (if needed) (DY2) | BQX6: Metric #1 Numerator (DY2) | BQY6: Metric #1 Denominator (DY2) | BQZ6: Metric #1 Medicaid/Indigent Required (Yes/No) (DY2) | BRA6: Metric #1 QPI? (Yes/No) (DY2) | BRB6: Metric #1 Data Source (DY2) | BRC6: Metric #1 Data Source Provider Manual Desc (if needed) (DY2) | BRD6: Metric #2 (DY2) | BRE6: Metric #2 Description (DY2) | BRF6: Metric #2 Provider Manual Desc (if needed) (DY2) | BRG6: Metric #2 Baseline/Goal (DY2) | BRH6: Metric #2 Type (DY2) | BRI6: Metric #2 Numeric Goal (if needed) (DY2) | BRJ6: Metric #2 Numerator (DY2) | BRK6: Metric #2 Denominator (DY2) | BRL6: Metric #2 Medicaid/Indigent Required (Yes/No) (DY2) | BRM6: Metric #2 QPI? (Yes/No) (DY2) | BRN6: Metric #2 Data Source (DY2) | BRO6: Metric #2 Data Source Provider Manual Desc (if needed) (DY2) | BRP6: Metric #3 (DY2) | BRQ6: Metric #3 Description (DY2) | BRR6: Metric #3 Provider Manual Desc (if needed) (DY2) | BRS6: Metric #3 Baseline/Goal (DY2) | BRT6: Metric #3 Type (DY2) | BRU6: Metric #3 Numeric Goal (if needed) (DY2) | BRV6: Metric #3 Numerator (DY2) | BRW6: Metric #3 Denominator (DY2) | BRX6: Metric #3 Medicaid/Indigent Required (Yes/No) (DY2) | BRY6: Metric #3 QPI? (Yes/No) (DY2) | BRZ6: Metric #3 Data Source (DY2) | BSA6: Metric #3 Data Source Provider Manual Desc (if needed) (DY2) | BSB6: Metric #4 (DY2) | BSC6: Metric #4 Description (DY2) | BSD6: Metric #4 Provider Manual Desc (if needed) (DY2) | BSE6: Metric #4 Baseline/Goal (DY2) | BSF6: Metric #4 Type (DY2) | BSG6: Metric #4 Numeric Goal (if needed) (DY2) | BSH6: Metric #4 Numerator (DY2) | BSI6: Metric #4 Denominator (DY2) | BSJ6: Metric #4 Medicaid/Indigent Required (Yes/No) (DY2) | BSK6: Metric #4 QPI? (Yes/No) (DY2) | BSL6: Metric #4 Data Source (DY2) | BSM6: Metric #4 Data Source Provider Manual Desc (if needed) (DY2) | BSN6: Metric #5 (DY2) | BSO6: Metric #5 Description (DY2) | BSP6: Metric #5 Provider Manual Desc (if needed) (DY2) | BSQ6: Metric #5 Baseline/Goal (DY2) | BSR6: Metric #5 Type (DY2) | BSS6: Metric #5 Numeric Goal (if needed) (DY2) | BST6: Metric #5 Numerator (DY2) | BSU6: Metric #5 Denominator (DY2) | BSV6: Metric #5 Medicaid/Indigent Required (Yes/No) (DY2) | BSW6: Metric #5 QPI? (Yes/No) (DY2) | BSX6: Metric #5 Data Source (DY2) | BSY6: Metric #5 Data Source Provider Manual Desc (if needed) (DY2) | BSZ6: Metric #6 (DY2) | BTA6: Metric #6 Description (DY2) | BTB6: Metric #6 Provider Manual Desc (if needed) (DY2) | BTC6: Metric #6 Baseline/Goal (DY2) | BTD6: Metric #6 Type (DY2) | BTE6: Metric #6 Numeric Goal (if needed) (DY2) | BTF6: Metric #6 Numerator (DY2) | BTG6: Metric #6 Denominator (DY2) | BTH6: Metric #6 Medicaid/Indigent Required (Yes/No) (DY2) | BTI6: Metric #6 QPI? (Yes/No) (DY2) | BTJ6: Metric #6 Data Source (DY2) | BTK6: Metric #6 Data Source Provider Manual Desc (if needed) (DY2) | BTL6: Metric #7 (DY2) | BTM6: Metric #7 Description (DY2) | BTN6: Metric #7 Provider Manual Desc (if needed) (DY2) | BTO6: Metric #7 Baseline/Goal (DY2) | BTP6: Metric #7 Type (DY2) | BTQ6: Metric #7 Numeric Goal (if needed) (DY2) | BTR6: Metric #7 Numerator (DY2) | BTS6: Metric #7 Denominator (DY2) | BTT6: Metric #7 Medicaid/Indigent Required (Yes/No) (DY2) | BTU6: Metric #7 QPI? (Yes/No) (DY2) | BTV6: Metric #7 Data Source (DY2) | BTW6: Metric #7 Data Source Provider Manual Desc (if needed) (DY2) | BTX6: Milestone #8 DSRIP (DY2) | BTY6: Milestone # | BTZ6: Milestone Desc | BUA6: Milestone Provider Manual Desc (If needed) | BUB6: Number of Metrics Milestone #9 | BUC6: Metric #1 (DY2) | BUD6: Metric #1 Description (DY2) | BUE6: Metric #1 Provider Manual Desc (if needed) (DY2) | BUF6: Metric #1 Baseline/Goal (DY2) | BUG6: Metric #1 Type (DY2) | BUH6: Metric #1 Numeric Goal (if needed) (DY2) | BUI6: Metric #1 Numerator (DY2) | BUJ6: Metric #1 Denominator (DY2) | BUK6: Metric #1 Medicaid/Indigent Required (Yes/No) (DY2) | BUL6: Metric #1 QPI? (Yes/No) (DY2) | BUM6: Metric #1 Data Source (DY2) | BUN6: Metric #1 Data Source Provider Manual Desc (if needed) (DY2) | BUO6: Metric #2 (DY2) | BUP6: Metric #2 Description (DY2) | BUQ6: Metric #2 Provider Manual Desc (if needed) (DY2) | BUR6: Metric #2 Baseline/Goal (DY2) | BUS6: Metric #2 Type (DY2) | BUT6: Metric #2 Numeric Goal (if needed) (DY2) | BUU6: Metric #2 Numerator (DY2) | BUV6: Metric #2 Denominator (DY2) | BUW6: Metric #2 Medicaid/Indigent Required (Yes/No) (DY2) | BUX6: Metric #2 QPI? (Yes/No) (DY2) | BUY6: Metric #2 Data Source (DY2) | BUZ6: Metric #2 Data Source Provider Manual Desc (if needed) (DY2) | BVA6: Metric #3 (DY2) | BVB6: Metric #3 Description (DY2) | BVC6: Metric #3 Provider Manual Desc (if needed) (DY2) | BVD6: Metric #3 Baseline/Goal (DY2) | BVE6: Metric #3 Type (DY2) | BVF6: Metric #3 Numeric Goal (if needed) (DY2) | BVG6: Metric #3 Numerator (DY2) | BVH6: Metric #3 Denominator (DY2) | BVI6: Metric #3 Medicaid/Indigent Required (Yes/No) (DY2) | BVJ6: Metric #3 QPI? (Yes/No) (DY2) | BVK6: Metric #3 Data Source (DY2) | BVL6: Metric #3 Data Source Provider Manual Desc (if needed) (DY2) | BVM6: Metric #4 (DY2) | BVN6: Metric #4 Description (DY2) | BVO6: Metric #4 Provider Manual Desc (if needed) (DY2) | BVP6: Metric #4 Baseline/Goal (DY2) | BVQ6: Metric #4 Type (DY2) | BVR6: Metric #4 Numeric Goal (if needed) (DY2) | BVS6: Metric #4 Numerator (DY2) | BVT6: Metric #4 Denominator (DY2) | BVU6: Metric #4 Medicaid/Indigent Required (Yes/No) (DY2) | BVV6: Metric #4 QPI? (Yes/No) (DY2) | BVW6: Metric #4 Data Source (DY2) | BVX6: Metric #4 Data Source Provider Manual Desc (if needed) (DY2) | BVY6: Metric #5 (DY2) | BVZ6: Metric #5 Description (DY2) | BWA6: Metric #5 Provider Manual Desc (if needed) (DY2) | BWB6: Metric #5 Baseline/Goal (DY2) | BWC6: Metric #5 Type (DY2) | BWD6: Metric #5 Numeric Goal (if needed) (DY2) | BWE6: Metric #5 Numerator (DY2) | BWF6: Metric #5 Denominator (DY2) | BWG6: Metric #5 Medicaid/Indigent Required (Yes/No) (DY2) | BWH6: Metric #5 QPI? (Yes/No) (DY2) | BWI6: Metric #5 Data Source (DY2) | BWJ6: Metric #5 Data Source Provider Manual Desc (if needed) (DY2) | BWK6: Metric #6 (DY2) | BWL6: Metric #6 Description (DY2) | BWM6: Metric #6 Provider Manual Desc (if needed) (DY2) | BWN6: Metric #6 Baseline/Goal (DY2) | BWO6: Metric #6 Type (DY2) | BWP6: Metric #6 Numeric Goal (if needed) (DY2) | BWQ6: Metric #6 Numerator (DY2) | BWR6: Metric #6 Denominator (DY2) | BWS6: Metric #6 Medicaid/Indigent Required (Yes/No) (DY2) | BWT6: Metric #6 QPI? (Yes/No) (DY2) | BWU6: Metric #6 Data Source (DY2) | BWV6: Metric #6 Data Source Provider Manual Desc (if needed) (DY2) | BWW6: Metric #7 (DY2) | BWX6: Metric #7 Description (DY2) | BWY6: Metric #7 Provider Manual Desc (if needed) (DY2) | BWZ6: Metric #7 Baseline/Goal (DY2) | BXA6: Metric #7 Type (DY2) | BXB6: Metric #7 Numeric Goal (if needed) (DY2) | BXC6: Metric #7 Numerator (DY2) | BXD6: Metric #7 Denominator (DY2) | BXE6: Metric #7 Medicaid/Indigent Required (Yes/No) (DY2) | BXF6: Metric #7 QPI? (Yes/No) (DY2) | BXG6: Metric #7 Data Source (DY2) | BXH6: Metric #7 Data Source Provider Manual Desc (if needed) (DY2) | BXI6: Milestone #9 DSRIP (DY2) | BXJ6: Milestone # | BXK6: Milestone Desc | BXL6: Milestone Provider Manual Desc (If needed) | BXM6: Number of Metrics Milestone #10 | BXN6: Metric #1 (DY2) | BXO6: Metric #1 Description (DY2) | BXP6: Metric #1 Provider Manual Desc (if needed) (DY2) | BXQ6: Metric #1 Baseline/Goal (DY2) | BXR6: Metric #1 Type (DY2) | BXS6: Metric #1 Numeric Goal (if needed) (DY2) | BXT6: Metric #1 Numerator (DY2) | BXU6: Metric #1 Denominator (DY2) | BXV6: Metric #1 Medicaid/Indigent Required (Yes/No) (DY2) | BXW6: Metric #1 QPI? (Yes/No) (DY2) | BXX6: Metric #1 Data Source (DY2) | BXY6: Metric #1 Data Source Provider Manual Desc (if needed) (DY2) | BXZ6: Metric #2 (DY2) | BYA6: Metric #2 Description (DY2) | BYB6: Metric #2 Provider Manual Desc (if needed) (DY2) | BYC6: Metric #2 Baseline/Goal (DY2) | BYD6: Metric #2 Type (DY2) | BYE6: Metric #2 Numeric Goal (if needed) (DY2) | BYF6: Metric #2 Numerator (DY2) | BYG6: Metric #2 Denominator (DY2) | BYH6: Metric #2 Medicaid/Indigent Required (Yes/No) (DY2) | BYI6: Metric #2 QPI? (Yes/No) (DY2) | BYJ6: Metric #2 Data Source (DY2) | BYK6: Metric #2 Data Source Provider Manual Desc (if needed) (DY2) | BYL6: Metric #3 (DY2) | BYM6: Metric #3 Description (DY2) | BYN6: Metric #3 Provider Manual Desc (if needed) (DY2) | BYO6: Metric #3 Baseline/Goal (DY2) | BYP6: Metric #3 Type (DY2) | BYQ6: Metric #3 Numeric Goal (if needed) (DY2) | BYR6: Metric #3 Numerator (DY2) | BYS6: Metric #3 Denominator (DY2) | BYT6: Metric #3 Medicaid/Indigent Required (Yes/No) (DY2) | BYU6: Metric #3 QPI? (Yes/No) (DY2) | BYV6: Metric #3 Data Source (DY2) | BYW6: Metric #3 Data Source Provider Manual Desc (if needed) (DY2) | BYX6: Metric #4 (DY2) | BYY6: Metric #4 Description (DY2) | BYZ6: Metric #4 Provider Manual Desc (if needed) (DY2) | BZA6: Metric #4 Baseline/Goal (DY2) | BZB6: Metric #4 Type (DY2) | BZC6: Metric #4 Numeric Goal (if needed) (DY2) | BZD6: Metric #4 Numerator (DY2) | BZE6: Metric #4 Denominator (DY2) | BZF6: Metric #4 Medicaid/Indigent Required (Yes/No) (DY2) | BZG6: Metric #4 QPI? (Yes/No) (DY2) | BZH6: Metric #4 Data Source (DY2) | BZI6: Metric #4 Data Source Provider Manual Desc (if needed) (DY2) | BZJ6: Metric #5 (DY2) | BZK6: Metric #5 Description (DY2) | BZL6: Metric #5 Provider Manual Desc (if needed) (DY2) | BZM6: Metric #5 Baseline/Goal (DY2) | BZN6: Metric #5 Type (DY2) | BZO6: Metric #5 Numeric Goal (if needed) (DY2) | BZP6: Metric #5 Numerator (DY2) | BZQ6: Metric #5 Denominator (DY2) | BZR6: Metric #5 Medicaid/Indigent Required (Yes/No) (DY2) | BZS6: Metric #5 QPI? (Yes/No) (DY2) | BZT6: Metric #5 Data Source (DY2) | BZU6: Metric #5 Data Source Provider Manual Desc (if needed) (DY2) | BZV6: Metric #6 (DY2) | BZW6: Metric #6 Description (DY2) | BZX6: Metric #6 Provider Manual Desc (if needed) (DY2) | BZY6: Metric #6 Baseline/Goal (DY2) | BZZ6: Metric #6 Type (DY2) | CAA6: Metric #6 Numeric Goal (if needed) (DY2) | CAB6: Metric #6 Numerator (DY2) | CAC6: Metric #6 Denominator (DY2) | CAD6: Metric #6 Medicaid/Indigent Required (Yes/No) (DY2) | CAE6: Metric #6 QPI? (Yes/No) (DY2) | CAF6: Metric #6 Data Source (DY2) | CAG6: Metric #6 Data Source Provider Manual Desc (if needed) (DY2) | CAH6: Metric #7 (DY2) | CAI6: Metric #7 Description (DY2) | CAJ6: Metric #7 Provider Manual Desc (if needed) (DY2) | CAK6: Metric #7 Baseline/Goal (DY2) | CAL6: Metric #7 Type (DY2) | CAM6: Metric #7 Numeric Goal (if needed) (DY2) | CAN6: Metric #7 Numerator (DY2) | CAO6: Metric #7 Denominator (DY2) | CAP6: Metric #7 Medicaid/Indigent Required (Yes/No) (DY2) | CAQ6: Metric #7 QPI? (Yes/No) (DY2) | CAR6: Metric #7 Data Source (DY2) | CAS6: Metric #7 Data Source Provider Manual Desc (if needed) (DY2) | CAT6: Milestone #10 DSRIP (DY2) | CAU6: Milestone # | CAV6: Milestone Desc | CAW6: Milestone Provider Manual Desc (If needed) | CAX6: Number of Metrics Milestone #11 | CAY6: Metric #1 (DY2) | CAZ6: Metric #1 Description (DY2) | CBA6: Metric #1 Provider Manual Desc (if needed) (DY2) | CBB6: Metric #1 Baseline/Goal (DY2) | CBC6: Metric #1 Type (DY2) | CBD6: Metric #1 Numeric Goal (if needed) (DY2) | CBE6: Metric #1 Numerator (DY2) | CBF6: Metric #1 Denominator (DY2) | CBG6: Metric #1 Medicaid/Indigent Required (Yes/No) (DY2) | CBH6: Metric #1 QPI? (Yes/No) (DY2) | CBI6: Metric #1 Data Source (DY2) | CBJ6: Metric #1 Data Source Provider Manual Desc (if needed) (DY2) | CBK6: Metric #2 (DY2) | CBL6: Metric #2 Description (DY2) | CBM6: Metric #2 Provider Manual Desc (if needed) (DY2) | CBN6: Metric #2 Baseline/Goal (DY2) | CBO6: Metric #2 Type (DY2) | CBP6: Metric #2 Numeric Goal (if needed) (DY2) | CBQ6: Metric #2 Numerator (DY2) | CBR6: Metric #2 Denominator (DY2) | CBS6: Metric #2 Medicaid/Indigent Required (Yes/No) (DY2) | CBT6: Metric #2 QPI? (Yes/No) (DY2) | CBU6: Metric #2 Data Source (DY2) | CBV6: Metric #2 Data Source Provider Manual Desc (if needed) (DY2) | CBW6: Metric #3 (DY2) | CBX6: Metric #3 Description (DY2) | CBY6: Metric #3 Provider Manual Desc (if needed) (DY2) | CBZ6: Metric #3 Baseline/Goal (DY2) | CCA6: Metric #3 Type (DY2) | CCB6: Metric #3 Numeric Goal (if needed) (DY2) | CCC6: Metric #3 Numerator (DY2) | CCD6: Metric #3 Denominator (DY2) | CCE6: Metric #3 Medicaid/Indigent Required (Yes/No) (DY2) | CCF6: Metric #3 QPI? (Yes/No) (DY2) | CCG6: Metric #3 Data Source (DY2) | CCH6: Metric #3 Data Source Provider Manual Desc (if needed) (DY2) | CCI6: Metric #4 (DY2) | CCJ6: Metric #4 Description (DY2) | CCK6: Metric #4 Provider Manual Desc (if needed) (DY2) | CCL6: Metric #4 Baseline/Goal (DY2) | CCM6: Metric #4 Type (DY2) | CCN6: Metric #4 Numeric Goal (if needed) (DY2) | CCO6: Metric #4 Numerator (DY2) | CCP6: Metric #4 Denominator (DY2) | CCQ6: Metric #4 Medicaid/Indigent Required (Yes/No) (DY2) | CCR6: Metric #4 QPI? (Yes/No) (DY2) | CCS6: Metric #4 Data Source (DY2) | CCT6: Metric #4 Data Source Provider Manual Desc (if needed) (DY2) | CCU6: Metric #5 (DY2) | CCV6: Metric #5 Description (DY2) | CCW6: Metric #5 Provider Manual Desc (if needed) (DY2) | CCX6: Metric #5 Baseline/Goal (DY2) | CCY6: Metric #5 Type (DY2) | CCZ6: Metric #5 Numeric Goal (if needed) (DY2) | CDA6: Metric #5 Numerator (DY2) | CDB6: Metric #5 Denominator (DY2) | CDC6: Metric #5 Medicaid/Indigent Required (Yes/No) (DY2) | CDD6: Metric #5 QPI? (Yes/No) (DY2) | CDE6: Metric #5 Data Source (DY2) | CDF6: Metric #5 Data Source Provider Manual Desc (if needed) (DY2) | CDG6: Metric #6 (DY2) | CDH6: Metric #6 Description (DY2) | CDI6: Metric #6 Provider Manual Desc (if needed) (DY2) | CDJ6: Metric #6 Baseline/Goal (DY2) | CDK6: Metric #6 Type (DY2) | CDL6: Metric #6 Numeric Goal (if needed) (DY2) | CDM6: Metric #6 Numerator (DY2) | CDN6: Metric #6 Denominator (DY2) | CDO6: Metric #6 Medicaid/Indigent Required (Yes/No) (DY2) | CDP6: Metric #6 QPI? (Yes/No) (DY2) | CDQ6: Metric #6 Data Source (DY2) | CDR6: Metric #6 Data Source Provider Manual Desc (if needed) (DY2) | CDS6: Metric #7 (DY2) | CDT6: Metric #7 Description (DY2) | CDU6: Metric #7 Provider Manual Desc (if needed) (DY2) | CDV6: Metric #7 Baseline/Goal (DY2) | CDW6: Metric #7 Type (DY2) | CDX6: Metric #7 Numeric Goal (if needed) (DY2) | CDY6: Metric #7 Numerator (DY2) | CDZ6: Metric #7 Denominator (DY2) | CEA6: Metric #7 Medicaid/Indigent Required (Yes/No) (DY2) | CEB6: Metric #7 QPI? (Yes/No) (DY2) | CEC6: Metric #7 Data Source (DY2) | CED6: Metric #7 Data Source Provider Manual Desc (if needed) (DY2) | CEE6: Milestone #11 DSRIP (DY2) | CEF6: Milestone # | CEG6: Milestone Desc | CEH6: Milestone Provider Manual Desc (If needed) | CEI6: Number of Metrics Milestone #12 | CEJ6: Metric #1 (DY2) | CEK6: Metric #1 Description (DY2) | CEL6: Metric #1 Provider Manual Desc (if needed) (DY2) | CEM6: Metric #1 Baseline/Goal (DY2) | CEN6: Metric #1 Type (DY2) | CEO6: Metric #1 Numeric Goal (if needed) (DY2) | CEP6: Metric #1 Numerator (DY2) | CEQ6: Metric #1 Denominator (DY2) | CER6: Metric #1 Medicaid/Indigent Required (Yes/No) (DY2) | CES6: Metric #1 QPI? (Yes/No) (DY2) | CET6: Metric #1 Data Source (DY2) | CEU6: Metric #1 Data Source Provider Manual Desc (if needed) (DY2) | CEV6: Metric #2 (DY2) | CEW6: Metric #2 Description (DY2) | CEX6: Metric #2 Provider Manual Desc (if needed) (DY2) | CEY6: Metric #2 Baseline/Goal (DY2) | CEZ6: Metric #2 Type (DY2) | CFA6: Metric #2 Numeric Goal (if needed) (DY2) | CFB6: Metric #2 Numerator (DY2) | CFC6: Metric #2 Denominator (DY2) | CFD6: Metric #2 Medicaid/Indigent Required (Yes/No) (DY2) | CFE6: Metric #2 QPI? (Yes/No) (DY2) | CFF6: Metric #2 Data Source (DY2) | CFG6: Metric #2 Data Source Provider Manual Desc (if needed) (DY2) | CFH6: Metric #3 (DY2) | CFI6: Metric #3 Description (DY2) | CFJ6: Metric #3 Provider Manual Desc (if needed) (DY2) | CFK6: Metric #3 Baseline/Goal (DY2) | CFL6: Metric #3 Type (DY2) | CFM6: Metric #3 Numeric Goal (if needed) (DY2) | CFN6: Metric #3 Numerator (DY2) | CFO6: Metric #3 Denominator (DY2) | CFP6: Metric #3 Medicaid/Indigent Required (Yes/No) (DY2) | CFQ6: Metric #3 QPI? (Yes/No) (DY2) | CFR6: Metric #3 Data Source (DY2) | CFS6: Metric #3 Data Source Provider Manual Desc (if needed) (DY2) | CFT6: Metric #4 (DY2) | CFU6: Metric #4 Description (DY2) | CFV6: Metric #4 Provider Manual Desc (if needed) (DY2) | CFW6: Metric #4 Baseline/Goal (DY2) | CFX6: Metric #4 Type (DY2) | CFY6: Metric #4 Numeric Goal (if needed) (DY2) | CFZ6: Metric #4 Numerator (DY2) | CGA6: Metric #4 Denominator (DY2) | CGB6: Metric #4 Medicaid/Indigent Required (Yes/No) (DY2) | CGC6: Metric #4 QPI? (Yes/No) (DY2) | CGD6: Metric #4 Data Source (DY2) | CGE6: Metric #4 Data Source Provider Manual Desc (if needed) (DY2) | CGF6: Metric #5 (DY2) | CGG6: Metric #5 Description (DY2) | CGH6: Metric #5 Provider Manual Desc (if needed) (DY2) | CGI6: Metric #5 Baseline/Goal (DY2) | CGJ6: Metric #5 Type (DY2) | CGK6: Metric #5 Numeric Goal (if needed) (DY2) | CGL6: Metric #5 Numerator (DY2) | CGM6: Metric #5 Denominator (DY2) | CGN6: Metric #5 Medicaid/Indigent Required (Yes/No) (DY2) | CGO6: Metric #5 QPI? (Yes/No) (DY2) | CGP6: Metric #5 Data Source (DY2) | CGQ6: Metric #5 Data Source Provider Manual Desc (if needed) (DY2) | CGR6: Metric #6 (DY2) | CGS6: Metric #6 Description (DY2) | CGT6: Metric #6 Provider Manual Desc (if needed) (DY2) | CGU6: Metric #6 Baseline/Goal (DY2) | CGV6: Metric #6 Type (DY2) | CGW6: Metric #6 Numeric Goal (if needed) (DY2) | CGX6: Metric #6 Numerator (DY2) | CGY6: Metric #6 Denominator (DY2) | CGZ6: Metric #6 Medicaid/Indigent Required (Yes/No) (DY2) | CHA6: Metric #6 QPI? (Yes/No) (DY2) | CHB6: Metric #6 Data Source (DY2) | CHC6: Metric #6 Data Source Provider Manual Desc (if needed) (DY2) | CHD6: Metric #7 (DY2) | CHE6: Metric #7 Description (DY2) | CHF6: Metric #7 Provider Manual Desc (if needed) (DY2) | CHG6: Metric #7 Baseline/Goal (DY2) | CHH6: Metric #7 Type (DY2) | CHI6: Metric #7 Numeric Goal (if needed) (DY2) | CHJ6: Metric #7 Numerator (DY2) | CHK6: Metric #7 Denominator (DY2) | CHL6: Metric #7 Medicaid/Indigent Required (Yes/No) (DY2) | CHM6: Metric #7 QPI? (Yes/No) (DY2) | CHN6: Metric #7 Data Source (DY2) | CHO6: Metric #7 Data Source Provider Manual Desc (if needed) (DY2) | CHP6: Milestone #12 DSRIP (DY2) | CHQ6: Milestone # | CHR6: Milestone Desc | CHS6: Milestone Provider Manual Desc (If needed) | CHT6: Number of Metrics Milestone #13 | CHU6: Metric #1 (DY2) | CHV6: Metric #1 Description (DY2) | CHW6: Metric #1 Provider Manual Desc (if needed) (DY2) | CHX6: Metric #1 Baseline/Goal (DY2) | CHY6: Metric #1 Type (DY2) | CHZ6: Metric #1 Numeric Goal (if needed) (DY2) | CIA6: Metric #1 Numerator (DY2) | CIB6: Metric #1 Denominator (DY2) | CIC6: Metric #1 Medicaid/Indigent Required (Yes/No) (DY2) | CID6: Metric #1 QPI? (Yes/No) (DY2) | CIE6: Metric #1 Data Source (DY2) | CIF6: Metric #1 Data Source Provider Manual Desc (if needed) (DY2) | CIG6: Metric #2 (DY2) | CIH6: Metric #2 Description (DY2) | CII6: Metric #2 Provider Manual Desc (if needed) (DY2) | CIJ6: Metric #2 Baseline/Goal (DY2) | CIK6: Metric #2 Type (DY2) | CIL6: Metric #2 Numeric Goal (if needed) (DY2) | CIM6: Metric #2 Numerator (DY2) | CIN6: Metric #2 Denominator (DY2) | CIO6: Metric #2 Medicaid/Indigent Required (Yes/No) (DY2) | CIP6: Metric #2 QPI? (Yes/No) (DY2) | CIQ6: Metric #2 Data Source (DY2) | CIR6: Metric #2 Data Source Provider Manual Desc (if needed) (DY2) | CIS6: Metric #3 (DY2) | CIT6: Metric #3 Description (DY2) | CIU6: Metric #3 Provider Manual Desc (if needed) (DY2) | CIV6: Metric #3 Baseline/Goal (DY2) | CIW6: Metric #3 Type (DY2) | CIX6: Metric #3 Numeric Goal (if needed) (DY2) | CIY6: Metric #3 Numerator (DY2) | CIZ6: Metric #3 Denominator (DY2) | CJA6: Metric #3 Medicaid/Indigent Required (Yes/No) (DY2) | CJB6: Metric #3 QPI? (Yes/No) (DY2) | CJC6: Metric #3 Data Source (DY2) | CJD6: Metric #3 Data Source Provider Manual Desc (if needed) (DY2) | CJE6: Metric #4 (DY2) | CJF6: Metric #4 Description (DY2) | CJG6: Metric #4 Provider Manual Desc (if needed) (DY2) | CJH6: Metric #4 Baseline/Goal (DY2) | CJI6: Metric #4 Type (DY2) | CJJ6: Metric #4 Numeric Goal (if needed) (DY2) | CJK6: Metric #4 Numerator (DY2) | CJL6: Metric #4 Denominator (DY2) | CJM6: Metric #4 Medicaid/Indigent Required (Yes/No) (DY2) | CJN6: Metric #4 QPI? (Yes/No) (DY2) | CJO6: Metric #4 Data Source (DY2) | CJP6: Metric #4 Data Source Provider Manual Desc (if needed) (DY2) | CJQ6: Metric #5 (DY2) | CJR6: Metric #5 Description (DY2) | CJS6: Metric #5 Provider Manual Desc (if needed) (DY2) | CJT6: Metric #5 Baseline/Goal (DY2) | CJU6: Metric #5 Type (DY2) | CJV6: Metric #5 Numeric Goal (if needed) (DY2) | CJW6: Metric #5 Numerator (DY2) | CJX6: Metric #5 Denominator (DY2) | CJY6: Metric #5 Medicaid/Indigent Required (Yes/No) (DY2) | CJZ6: Metric #5 QPI? (Yes/No) (DY2) | CKA6: Metric #5 Data Source (DY2) | CKB6: Metric #5 Data Source Provider Manual Desc (if needed) (DY2) | CKC6: Metric #6 (DY2) | CKD6: Metric #6 Description (DY2) | CKE6: Metric #6 Provider Manual Desc (if needed) (DY2) | CKF6: Metric #6 Baseline/Goal (DY2) | CKG6: Metric #6 Type (DY2) | CKH6: Metric #6 Numeric Goal (if needed) (DY2) | CKI6: Metric #6 Numerator (DY2) | CKJ6: Metric #6 Denominator (DY2) | CKK6: Metric #6 Medicaid/Indigent Required (Yes/No) (DY2) | CKL6: Metric #6 QPI? (Yes/No) (DY2) | CKM6: Metric #6 Data Source (DY2) | CKN6: Metric #6 Data Source Provider Manual Desc (if needed) (DY2) | CKO6: Metric #7 (DY2) | CKP6: Metric #7 Description (DY2) | CKQ6: Metric #7 Provider Manual Desc (if needed) (DY2) | CKR6: Metric #7 Baseline/Goal (DY2) | CKS6: Metric #7 Type (DY2) | CKT6: Metric #7 Numeric Goal (if needed) (DY2) | CKU6: Metric #7 Numerator (DY2) | CKV6: Metric #7 Denominator (DY2) | CKW6: Metric #7 Medicaid/Indigent Required (Yes/No) (DY2) | CKX6: Metric #7 QPI? (Yes/No) (DY2) | CKY6: Metric #7 Data Source (DY2) | CKZ6: Metric #7 Data Source Provider Manual Desc (if needed) (DY2) | CLA6: Milestone #13 DSRIP (DY2)
